Workbook

Sheet Overview
C27: ******************************************************************************************************************************************************
C28: COPYRIGHT NOTIFICATION
C30: GREET® SOFTWARE
C32: GREET1 MODEL
C34: Email contact: greet@anl.gov
C35: ******************************************************************************************************************************************************
C37: © COPYRIGHT 2017 UChicago Argonne, LLC ALL RIGHTS RESERVED
C39: THIS SOFTWARE DISCLOSES MATERIAL PROTECTED UNDER COPYRIGHT LAW, AND FURTHER DISSEMINATION IS PROHIBITED WITHOUT PRIOR WRITTEN CONSENT OF THE PATENT COUNSEL OF ARGONNE NATIONAL LABORATORY, EXCEPT AS NOTED IN THE “LICENSING TERMS AND CONDITIONS” NOTED BELOW.
C41: ******************************************************************************************************************************************************
C43: ARGONNE NATIONAL LABORATORY, WITH A FACILITY IN THE STATE OF ILLINOIS, IS OWNED BY THE UNITED STATES GOVERNMENT, AND OPERATED BY UCHICAGO ARGONNE, LLC UNDER PROVISION OF A CONTRACT WITH THE DEPARTMENT OF ENERGY.
C46: ******************************************************************************************************************************************************
C48: GOVERNMENT LICENSE
C50: ******************************************************************************************************************************************************
C52: NOTICE: This data was produced by UChicago Argonne, LLC under Contract No. DE-AC02-06CH11357 with the Department of Energy. During the period of commercialization or such other time period specified by DOE, the Government is granted for itself and others acting on its behalf a paid-up, nonexclusive, irrevocable worldwide license in such copyrighted data to reproduce, prepare derivative works and perform publicly and display publicly, by or on behalf of the Government. Subsequent to that period the Government is granted for itself and others acting on its behalf a paid-up, nonexclusive, irrevocable worldwide license in such copyrighted data to reproduce, distribute copies to the public, prepare derivative works, perform publicly and display publicly, and to permit others to do so. The specific term of the license can be identified by inquiry made to UChicago Argonne, LLC or DOE.
C54: ******************************************************************************************************************************************************
C56: END-USER LICENSING TERMS AND CONDITIONS
C58: ******************************************************************************************************************************************************
C60: Redistribution and use of the GREET software is permitted provided that the following conditions are met:
C62: 1. Redistributions of the GREET software must retain the above copyright notice, this list of conditions and the following disclaimer. Modification or reverse compilation of the source code is not permitted.
... 57 more rows

Sheet Inputs
Z5: Simulation years
A6: Scenario Control Variables and Input Assumptions
A7: 1. Key Options for Simulation | Z7: 1990
B8: 1.1) Target Year for Simulation | Z8: 1991
E9: 2021 | Z9: 1992
Z10: 1993
B11: 1.2) Point-Estimation or Probability-Estimation Option | Z11: 1994
F12: Load Stochastic Toolkit | G12: … To load the stochastic toolkit | Z12: 1995
F13: Unload Stochastic Toolkit | G13: … To unload the stochastic toolkit | Z13: 1996
Z14: 1997
A15: 2. Vehicle Types for Simulation | Z15: 1998
E16: 1 | F16: 1 -- Passenger Cars; 2 -- Light-Duty Trucks 1 (LDT1) (Sports utility vehicles [SUV]); 3 -- Light-Duty Trucks 2 (LDT2) (Pickup Truck [PUT]) | Z16: 1999
Z17: 2000
A18: 3. Petroleum-Based Fuels | Z18: 2001
B19: 3.1) Petroleum Recovery Options | Z19: 2002
C20: 3.1.a) Share of crude oil sources | Z20: 2003
E21: 1 | F21: Basis of share of crude oil sources: 1 -- EIA projection, 2 -- User defined | Z21: 2004
F22: U.S. Domestic | G22: Canada (Oil Sands) | H22: Canada (Conv. Crude) | I22: Mexico | J22: Middle East | K22: Latin America | L22: Africa | M22: Others | Z22: 2005
E23: EIA projection | F23: =Fuel_Prod_TS!$AV$9 -> 0.7747059368 | G23: =Fuel_Prod_TS!$AW$9 -> 0.07885476666 | H23: =Fuel_Prod_TS!$AX$9 -> 0.05931886861 | I23: =Fuel_Prod_TS!$AY$9 -> 0.02142046283 | J23: =Fuel_Prod_TS!$AZ$9 -> 0.02004793974 | K23: =Fuel_Prod_TS!$BA$9 -> 0.01893006493 | L23: =Fuel_Prod_TS!$BB$9 -> 0.01122899299 | M23: =1-SUM(F23:L23) -> 0.01549296744 | Z23: 2006
E24: User defined | F24: 0.7747059368 | G24: 0.07885476666 | H24: 0.05931886861 | I24: 0.02142046283 | J24: 0.02004793974 | K24: 0.01893006493 | L24: 0.01122899299 | M24: =1-SUM(F24:L24) -> 0.01549296744 | Z24: 2007
E25: Used in calculation | F25: =IF($E21=1,F23,F24) -> 0.7747059368 | G25: 0.07885476666 | H25: 0.05931886861 | I25: 0.02142046283 | J25: 0.02004793974 | K25: 0.01893006493 | L25: 0.01122899299 | M25: 0.01549296744 | Z25: 2008
E26: API gravity | F26: =AvgAPI(F31:H31,F32:H32) -> 34.22544737 | G26: =1/((G45+I45)/(32+131.5)+(F45+H45)/(8+131.5)+(F45+H45)*G40*(1-F42)/(80+131.5))*((G45+I45)+(F45+H45)*(1+G40*(1-F42)))-131.5 -> 18.07557347 | H26: 26.5 | I26: 26.5 | J26: 31.8 | K26: 24.8 | L26: 38.3 | M26: 32 | Z26: 2009
E27: S Content (wt %) | F27: 1.39 | G27: =(Fuel_Specs!H8*(G46+I46)+Fuel_Specs!H9*(F46+H46)+Fuel_Specs!H12*(F46+H46)*Petroleum!C23/Petroleum!B23)/((G46+I46)+(F46+H46)*(1+Petroleum!C23/Petroleum!B23))*100 -> 2.863911759 | H27: 1.94 | I27: 2.2 | J27: 2.26 | K27: 2.8 | L27: 0.289 | M27: 0.764 | Z27: 2010
E28: Average transportation distances (mi) | F28: See T&D_Flowcharts tab | G28: 1708 | H28: 1708 | I28: 797 | J28: 14596 | K28: 4620 | L28: 7280 | M28: 6128 | Z28: 2011
Z29: 2012
E30: U.S. Domestic crude | F30: Shale Oil (Bakken) | G30: Shale Oil (Eagle Ford) | H30: Rest of U.S. domestic crude | Z30: 2013
E31: API gravity | F31: 42 | G31: 48 | H31: 32 | Z31: 2014
E32: Vol. Share (%) | F32: =Fuel_Prod_TS!L30 -> 0.09980803923 | G32: =Fuel_Prod_TS!M30 -> 0.08611394233 | H32: =1-SUM(F32:G32) -> 0.8140780184 | Z32: 2015
Z33: 2016
C34: 3.1.b) Efficiency for Petroleum Recovery | Z34: 2017
E35: Conventional Crude Recovery | Z35: 2018
E36: =Fuel_Prod_TS!$C$9 -> 0.98 | Z36: 2019
Z37: 2020
C38: 3.1.c) Key parameters of Oil Sands Recovery Methods and Products | Z38: 2021
E39: Dilbit Composition | F39: Bitumen | G39: Diluent | Z39: 2022
E40: Volumetric Shares | F40: 0.7 | G40: =1-F40 -> 0.3 | Z40: 2023
Z41: 2024
E42: Recovered Diluent in Refineries | F42: 1 | G42: by volume | Z42: 2025
Z43: 2026
E44: Share of oil sands recovery methods and products | F44: Surface Mining + Bitumen | G44: Surface Mining + SCO | H44: In-Situ + Bitumen | I44: In-Situ + SCO | Z44: 2027
E45: Volumetric Shares | F45: =Fuel_Prod_TS!D30 -> 0.05037986411 | G45: =Fuel_Prod_TS!E30 -> 0.3963849686 | H45: =Fuel_Prod_TS!F30 -> 0.490722719 | I45: =Fuel_Prod_TS!G30 -> 0.06251244828 | Z45: 2028
E46: Mass Shares | F46: =F$45*Fuel_Specs!$E$10/(($F$45+$H$45)*Fuel_Specs!$E$10+($G$45+$I$45)*Fuel_Specs!$E$8) -> 0.05408833865 | G46: =G$45*Fuel_Specs!$E$8/(($F$45+$H$45)*Fuel_Specs!$E$10+($G$45+$I$45)*Fuel_Specs!$E$8) -> 0.3619801334 | H46: =H$45*Fuel_Specs!$E$10/(($F$45+$H$45)*Fuel_Specs!$E$10+($G$45+$I$45)*Fuel_Specs!$E$8) -> 0.5268449425 | I46: =1-SUM(F46:H46) -> 0.05708658543 | Z46: 2029
E47: Energy Shares | F47: =F$45*Fuel_Specs!$B$10/(($F$45+$H$45)*Fuel_Specs!$B$10+($G$45+$I$45)*Fuel_Specs!$B$8) -> 0.05314670469 | G47: =G$45*Fuel_Specs!$B$8/(($F$45+$H$45)*Fuel_Specs!$B$10+($G$45+$I$45)*Fuel_Specs!$B$8) -> 0.3707160061 | H47: =H$45*Fuel_Specs!$B$10/(($F$45+$H$45)*Fuel_Specs!$B$10+($G$45+$I$45)*Fuel_Specs!$B$8) -> 0.5176730007 | I47: =1-SUM(F47:H47) -> 0.0584642885 | Z47: 2030
Z48: 2031
B49: 3.2) Conventional Crude Transport Options | Z49: 2032
F50: Domestic: Alaska | G50: Domestic: U.S. 48 States | H50: Imported: Offshore Countries | I50: Imported Canada and Mexico | Z50: 2033
E51: Domestic Share of Crude Input to Refineries | G51: =1-SUM(F53,H53,I54,I55) -> 0.7809168482 | Z51: 2034
E52: Mode Shares | Z52: 2035
E53: Ocean Tanker | F53: =MIN(Fuel_Prod_TS!$BD$9,F24) -> 0.0306423561 | H53: =IFERROR(SUM(J25:M25)/(1-G25-F25*(F32+G32)),0) -> 0.08454393043 | Z53: 2036
E54: Pipeline | G54: See T&D_Flowcharts tab | I54: =IFERROR(H25/(1-G25-F25*(F32+G32)),0) -> 0.07633261743 | Z54: 2037
E55: Rail | G55: See T&D_Flowcharts tab | I55: =IFERROR(I25/(1-G25-F25*(F32+G32)),0) -> 0.02756424782 | Z55: 2038
E56: Average transportation distances (mi) | Z56: 2039
E57: Ocean Tanker | F57: 2100 | H57: =Fuel_Prod_TS!Q30 -> 8707.044912 | Z57: 2040
E58: Pipeline | G58: See T&D_Flowcharts tab | I58: =Fuel_Prod_TS!R30 -> 1671.898704 | Z58: 2041
E59: Rail | G59: See T&D_Flowcharts tab | I59: =I28 -> 797 | Z59: 2042
Z60: 2043
B61: 3.3) Petroleum Refining Efficiency | Z61: 2044
C62: 3.3.a) Simulation scenarios | Z62: 2045
... 72 more rows

Sheet Results
B1: WTW Results Menu | D1: Select a vehicle type from a pink drop down menu, then press "Go"
B2: SI ICE Vehicles | F2: SI Hybrid Vehicles (HEV) | J2: SI Plug-in Hybrids (PHEV) | N2: Performance-enhancing Fuels | R2: Per Vehicle Distnace Travelled | Y2: Per Energy in Fuels
B3: Select Fuels | F3: Select Fuels | J3: Select Fuels | N3: Selct Fuels | R3: Energy Unit | S3: Btu | T3: mBtu | U3: J | V3: kJ | W3: MJ | Y3: Energy Unit | Z3: Btu | AA3: mBtu | AB3: J | AC3: kJ | AD3: MJ
B4: SIDI ICE Vehicles | F4: CIDI Hybrid Vehicles (HEV) | J4: CIDI Plug-in Hybrids (PHEV) | S4: 1 | T4: 0.001 | U4: =BTU2J -> 1055.05585 | V4: =BTU2kJ -> 1.05505585 | W4: =BTU2MJ -> 0.00105505585 | Z4: 1 | AA4: 0.001 | AB4: =BTU2J -> 1055.05585 | AC4: =BTU2kJ -> 1.05505585 | AD4: =BTU2MJ -> 0.00105505585
B5: Select Fuels | F5: Select Fuels | J5: N/A | R5: Emission Unit | S5: g | T5: mg | U5: kg | V5: lb | W5: oz | Y5: Emission Unit | Z5: g | AA5: mg | AB5: kg | AC5: lb | AD5: oz
B6: CIDI ICE Vehicles | F6: BEV and FCV | J6: GCI ICE Vehicles | S6: 1 | T6: 1000 | U6: =g2kg -> 0.001 | V6: =g2lb -> 0.002204622622 | W6: =g2lb*16 -> 0.03527396195 | Z6: 1 | AA6: 1000 | AB6: =g2kg -> 0.001 | AC6: =g2lb -> 0.002204622622 | AD6: =g2lb*16 -> 0.03527396195
B7: CIDI - Diesel | F7: Select Fuels | J7: Select Fuels | R7: Functional Unit | S7: mile | T7: km | Y7: Functional Unit | Z7: mBtu | AA7: mmBtu | AB7: J | AC7: kJ | AD7: MJ
B8: Unit Selection | D8: Select units from a pink drop down menu for the Results | S8: 1 | T8: 1.60934 | Z8: 0.001 | AA8: 1e-06 | AB8: =BTU2J -> 1055.05585 | AC8: =BTU2kJ -> 1.05505585 | AD8: =BTU2MJ -> 0.00105505585
B9: Per Vehicle Distance Travelled | G9: Per Energy in Fuels
B10: Energy Unit: | C10: Btu | D10: Emission Unit: | E10: g | G10: Energy Unit: | H10: Btu | I10: Emission Unit: | J10: g
D11: Service Functional Unit: | E11: mile | I11: Energy Functional Unit: | J11: mmBtu
A12: ="1. Well-to-Pump Energy Consumption, Water Consmption and Emissions: "&Results_EnergyUnit_Energy&" or Gallon or "&Results_EnergyUnit_Emission&" per "&Results_EnergyFunctionalUnit&" of Fuel Available at Fuel Station Pumps" -> 1. Well-to-Pump Energy Consumption, Water Consmption and Emissions: Btu or Gallon or g per mmBtu of Fuel Available at Fuel Station Pumps
B13: Baseline Gasoline | C13: CA Gasoline | D13: ="Low-Level EtOH Blend with Gasoline (E"&Inputs!F861*100&", "&IF(EtOH!C7=1,"Corn"&IF(EtOH!C136=1,", dry",IF(EtOH!C136=0,", wet","")),IF(EtOH!D7=1,"Willow",IF(EtOH!E7=1,"Poplar",IF(EtOH!F7=1,"Switchgrass",IF(EtOH!G7=1,"Miscanthus",IF(EtOH!H7=1,"Corn Stover",IF(EtOH!I7=1,"Forest Residue",IF(EtOH!M7=1,"Sugarcane",IF(EtOH!J7=1,IF(EtOH!D233=1,"Grain",IF(EtOH!D233=3,"Forage","Sweet"))&" Sorghum",IF(EtOH!L7=1,"Solid Waste","Mixed Source"))))))))))&")" -> Low-Level EtOH Blend with Gasoline (E10, Corn) | E13: Baseline Conventional and LS Diesel | F13: ="Compressed Natural Gas, "& IF(Inputs!F114=1,"NA NG",IF(Inputs!F114=2,"Non-NA NG",IF(Inputs!F114=3,"FG",IF(RNG!G6=1,"LFG",IF(RNG!G7=1,"AD Gas","RNG"))))) -> Compressed Natural Gas, NA NG | G13: ="Liquefied Natural Gas, "&IF(Inputs!$G$114=1,"NA NG",IF(Inputs!$G$114=2,"Non-NA NG",IF(Inputs!$G$114=3,"FG",IF(RNG!$H$6=1,"LFG",IF(RNG!$H$6=0,"AD Gas","RNG"))))) -> Liquefied Natural Gas, NA NG | H13: ="Liquefied Petroleum Gas, " &IF(NG!C5=1, "Crude", IF(NG!C5=0, IF(Inputs!$G$114=1, "NA NG", IF(Inputs!$G$114=2, "Non-NA NG", IF(Inputs!$G$114=3, "FG", IF(RNG!$H$6=1, "LFG", IF(RNG!$H$6=0, "AD Gas", "RNG"))))), "Crude and NG Mix")) -> Liquefied Petroleum Gas, Crude and NG Mix | I13: ="Naphtha, "&IF(MeOH_FTD!E9=1,"Crude",IF(MeOH_FTD!E9=0,IF(Inputs!F155=1,"NA NG",IF(Inputs!F155=2,"Non-NA NG",IF(Inputs!F155=3,"FG",IF(RNG!E6=1,"LFG",IF(RNG!E7=1,"AD Gas","RNG"))))),"Mixed Sources")) -> Naphtha, NA NG | J13: ="M"&Vehicles!C5*100&" for MeOH FFV, "&IF(Inputs!F152=1,"NA NG",IF(Inputs!F152=2,"Non-NA NG",IF(Inputs!F152=3,"FG",IF(Inputs!F152=4,IF(RNG!E6=1,"LFG",IF(RNG!E7=1,"AD Gas","RNG")),IF(Inputs!F152=5,"Biomass",IF(Inputs!F152=9,"Black Liquor","Coal")))))) -> M85 for MeOH FFV, NA NG | K13: ="M"&Vehicles!C6*100&" for Dedi. MeOH Vehicles, "&IF(Inputs!F152=1,"NA NG",IF(Inputs!F152=2,"Non-NA NG",IF(Inputs!F152=3,"FG",IF(Inputs!F152=4,IF(RNG!E6=1,"LFG",IF(RNG!E7=1,"AD Gas","RNG")),IF(Inputs!F152=5,"Biomass",IF(Inputs!F152=9,"Black Liquor","Coal")))))) -> M90 for Dedi. MeOH Vehicles, NA NG | L13: ="MeOH for FCV: "&IF(Inputs!F152=1,"NA NG",IF(Inputs!F152=2,"Non-NA NG",IF(Inputs!F152=3,"FG",IF(Inputs!F152=4,IF(RNG!E6=1,"LFG",IF(RNG!E7=1,"AD Gas","RNG")),IF(Inputs!F152=5,"Biomass",IF(Inputs!F152=9,"Black Liquor","Coal")))))) -> MeOH for FCV: NA NG | M13: ="E"&Inputs!F862*100&" for FFV, "&IF(EtOH!C7=1,"Corn"&IF(EtOH!C136=1,", dry",IF(EtOH!C136=0,", wet","")),IF(EtOH!D7=1,"Willow",IF(EtOH!E7=1,"Poplar",IF(EtOH!F7=1,"Switchgrass",IF(EtOH!G7=1,"Miscanthus",IF(EtOH!H7=1,"Corn Stover",IF(EtOH!I7=1,"Forest Residue",IF(EtOH!M7=1,"Sugarcane",IF(EtOH!J7=1,IF(EtOH!D233=1,"Grain",IF(EtOH!D233=3,"Forage","Sweet"))&" Sorghum",IF(EtOH!L7=1,"Solid Waste","Mixed Source")))))))))) -> E85 for FFV, Corn | N13: ="BtOH for FFV: BtOH"&Vehicles!C12*100&", Corn" -> BtOH for FFV: BtOH100, Corn | O13: ="E"&Inputs!F863*100&" for Dedi. EtOH Vehicle, "&IF(EtOH!C7=1,"Corn"&IF(EtOH!C136=1,", dry",IF(EtOH!C136=0,", wet","")),IF(EtOH!D7=1,"Willow",IF(EtOH!E7=1,"Poplar",IF(EtOH!F7=1,"Switchgrass",IF(EtOH!G7=1,"Miscanthus",IF(EtOH!H7=1,"Corn Stover",IF(EtOH!I7=1,"Forest Residue",IF(EtOH!M7=1,"Sugarcane",IF(EtOH!J7=1,IF(EtOH!D233=1,"Grain",IF(EtOH!D233=3,"Forage","Sweet"))&" Sorghum",IF(EtOH!L7=1,"Solid Waste","Mixed Source")))))))))) -> E85 for Dedi. EtOH Vehicle, Corn | P13: ="EtOH for FCV, "&IF(EtOH!C6=1,"Corn"&IF(EtOH!C136=1,", dry",IF(EtOH!C136=0,", wet","")),IF(EtOH!D6=1,"Willow",IF(EtOH!E6=1,"Poplar",IF(EtOH!F6=1,"Switchgrass",IF(EtOH!G6=1,"Miscanthus",IF(EtOH!H6=1,"Corn Stover",IF(EtOH!I6=1,"Forest Residue",IF(EtOH!M6=1,"Sugarcane",IF(EtOH!J6=1,IF(EtOH!D233=1,"Grain",IF(EtOH!D233=3,"Forage","Sweet"))&" Sorghum",IF(EtOH!L6=1,"Solid Waste","Mixed Source")))))))))) -> EtOH for FCV, Corn | Q13: =IF(Inputs!$J$630=2,"Palm FFB",IF(Inputs!$J$630=3,"Canola",IF(Inputs!$J$630=4,"Jatropha",IF(Inputs!$J$630=5,"Camelina",IF(Inputs!$J$630=6,"Algae",IF(Inputs!$J$630=7,"Tallow",IF(Inputs!$J$630=8,"Corn Oil","Soybean")))))))&"-based RG"&Vehicles!C16*100 -> Soybean-based RG100 | R13: =IF(Pyrolysis_IDL!B26=1,"Corn Stover","Forest Residue")&"-based Pyrolysis RG"&Vehicles!C16*100 -> Forest Residue-based Pyrolysis RG100 | S13: ="Grid-Connected SI PHEV: Gasoline and Electricity ("&VLOOKUP(Inputs!$F$720,Inputs!$G$720:$H$756,2,FALSE)&")" -> Grid-Connected SI PHEV: Gasoline and Electricity (AKMS Mix) | T13: ="Grid-Connected SI PHEV: CA gasoline and Electricity ("&VLOOKUP(Inputs!$F$720,Inputs!$G$720:$H$756,2,FALSE)&")" -> Grid-Connected SI PHEV: CA gasoline and Electricity (AKMS Mix) | U13: ="Grid-Connected SI PHEV: Low-Level EtOH Blend with Gasoline (E"&Inputs!F861*100&", "&IF(EtOH!C6=1,"Corn"&IF(EtOH!C136=1,", dry",IF(EtOH!C136=0,", wet","")),IF(EtOH!D6=1,"Willow",IF(EtOH!E6=1,"Poplar",IF(EtOH!F6=1,"Switchgrass",IF(EtOH!G6=1,"Miscanthus",IF(EtOH!H6=1,"Corn Stover",IF(EtOH!I6=1,"Forest Residue",IF(EtOH!M6=1,"Sugarcane",IF(EtOH!J6=1,IF(EtOH!D233=1,"Grain",IF(EtOH!D233=3,"Forage","Sweet"))&" Sorghum",IF(EtOH!L6=1,"Solid Waste","Mixed Source"))))))))))&") and Electricity ("&VLOOKUP(Inputs!$F$720,Inputs!$G$720:$H$756,2,FALSE)&")" -> Grid-Connected SI PHEV: Low-Level EtOH Blend with Gasoline (E10, Corn) and Electricity (AKMS Mix) | V13: ="Grid-Connected SI PHEV: CNG ("&IF(Inputs!F114=1,"NA NG",IF(Inputs!F114=2,"Non-NA NG",IF(Inputs!F114=3,"FG",IF(RNG!G6=1,"LFG",IF(RNG!G7=1,"AD Gas","RNG")))))&") and Electricity ("&VLOOKUP(Inputs!$F$720,Inputs!$G$720:$H$756,2,FALSE)&")" -> Grid-Connected SI PHEV: CNG (NA NG) and Electricity (AKMS Mix) | W13: ="Grid-Connected SI PHEV: LNG ("&IF(Inputs!$H$114=1,"NA NG",IF(Inputs!$H$114=2,"Non-NA NG",IF(Inputs!$H$114=3,"FG",IF(RNG!$H$6=1,"LFG",IF(RNG!$H$6=0,"AD Gas","RNG")))))&") and Electricity ("&VLOOKUP(Inputs!$F$720,Inputs!$G$720:$H$756,2,FALSE)&")" -> Grid-Connected SI PHEV: LNG (NA NG) and Electricity (AKMS Mix) | X13: ="Grid-Connected SI PHEV: LPG ("&IF(NG!C5=1,"Crude",IF(NG!C5=0,IF(Inputs!$G$114=1,"NA NG",IF(Inputs!$G$114=2,"Non-NA NG",IF(Inputs!$G$114=3,"FG",IF(RNG!$H$6=1,"LFG",IF(RNG!$H$6=0,"AD Gas","RNG"))))),"Crude and NG Mix"))&") and Electricity ("&VLOOKUP(Inputs!$F$720,Inputs!$G$720:$H$756,2,FALSE)&")" -> Grid-Connected SI PHEV: LPG (Crude and NG Mix) and Electricity (AKMS Mix) | Y13: ="Grid-Connected SI PHEV: M"&Vehicles!C6*100&" ("&IF(Inputs!F152=1,"NA NG",IF(Inputs!F152=2,"Non-NA NG",IF(Inputs!F152=3,"FG",IF(Inputs!F152=4,IF(RNG!E6=1,"LFG",IF(RNG!E7=1,"AD Gas","RNG")),IF(Inputs!F152=5,"Biomass",IF(Inputs!F152=9,"Black Liquor","Coal"))))))&") and Electricity ("&VLOOKUP(Inputs!$F$720,Inputs!$G$720:$H$756,2,FALSE)&")" -> Grid-Connected SI PHEV: M90 (NA NG) and Electricity (AKMS Mix) | Z13: ="Grid-Connected SI PHEV: LPG ("&IF(NG!E5=1,"Crude",IF(NG!E5=0,IF(Inputs!$G$114=1,"NA NG",IF(Inputs!$G$114=2,"Non-NA NG",IF(Inputs!$G$114=3,"FG",IF(RNG!$H$6=1,"LFG",IF(RNG!$H$6=0,"AD Gas","RNG"))))),"Crude and NG Mix"))&") and Electricity ("&VLOOKUP(Inputs!$F$720,Inputs!$G$720:$H$756,2,FALSE)&")" -> Grid-Connected SI PHEV: LPG (Crude and NG Mix) and Electricity (AKMS Mix) | AA13: ="Grid-Connected SI PHEV: G.H2 ("&IF(Inputs!F211=1,"Central Plants, "&IF(Inputs!F216=1,IF(Inputs!F239=1,"NA NG",IF(Inputs!F239=2,"Non-NA NG",IF(Inputs!F239=3,"FG",IF(RNG!G6=1,"LFG",IF(RNG!G7=1,"Manure-based AD Gas",IF(RNG!G8=1,"WWTP-based AD Gas","RNG")))))),"")&IF(Inputs!F217=1,"Solar","")&IF(Inputs!F219=1,"Nuclear","")&IF(Inputs!F220=1,"Electrolysis (Nuclear HTGR)","")&IF(Inputs!F221=1,"Coal","")&IF(Inputs!F222=1,"Biomass","")&IF(Inputs!F224=1,"Coke Oven Gas","")&IF(Inputs!F227=1,"Pet Coke","")&IF(MAX(Inputs!F216:F227)<1,"Mixed Sources",""),"Refueling Station, "&IF(Inputs!F231=1,IF(Inputs!F240=1,"NA NG",IF(Inputs!F240=2,"Non-NA NG",IF(Inputs!F240=3,"FG",IF(RNG!G6=1,"LFG",IF(RNG!G7=1,"Manure-based AD Gas",IF(RNG!G8=1,"WWTP-based AD Gas","RNG")))))),"")&IF(Inputs!F232=1,"Electrolysis","")&IF(Inputs!F233=1,"EtOH","")&IF(Inputs!F235=1,"MeOH","")&IF(MAX(Inputs!F231:F235)<1,"Mixed Sources",""))&") and Electricity ("&VLOOKUP(Inputs!$F$720,Inputs!$G$720:$H$756,2,FALSE)&")" -> Grid-Connected SI PHEV: G.H2 (Central Plants, NA NG) and Electricity (AKMS Mix) | AB13: ="Grid-Connected SI PHEV: L.H2 ("&IF(Inputs!G211=1,"Central Plants, "&IF(Inputs!G216=1,IF(Inputs!G239=1,"NA NG",IF(Inputs!G239=2,"Non-NA NG",IF(Inputs!G239=3,"FG",IF(RNG!H6=1,"LFG",IF(RNG!H7=1,"Manure-based AD Gas",IF(RNG!H8=1,"WWTP-based AD Gas","RNG")))))),"")&IF(Inputs!G217=1,"Solar","")&IF(Inputs!G219=1,"Nuclear","")&IF(Inputs!G220=1,"Electrolysis (Nuclear HTGR)","")&IF(Inputs!G221=1,"Coal","")&IF(Inputs!G222=1,"Biomass","")&IF(Inputs!G224=1,"Coke Oven Gas","")&IF(Inputs!G227=1,"Pet Coke","")&IF(MAX(Inputs!G216:G227)<1,"Mixed Sources",""),"Refueling Station, "&IF(Inputs!G231=1,IF(Inputs!G240=1,"NA NG",IF(Inputs!G240=2,"Non-NA NG",IF(Inputs!G240=3,"FG",IF(RNG!H6=1,"LFG",IF(RNG!H7=1,"Manure-based AD Gas",IF(RNG!H8=1,"WWTP-based AD Gas","RNG")))))),"")&IF(Inputs!G232=1,"Electrolysis","")&IF(Inputs!G233=1,"EtOH","")&IF(Inputs!G235=1,"MeOH","")&IF(MAX(Inputs!G231:G235)<1,"Mixed Sources",""))&") and Electricity ("&VLOOKUP(Inputs!$F$720,Inputs!$G$720:$H$756,2,FALSE)&")" -> Grid-Connected SI PHEV: L.H2 (Central Plants, NA NG) and Electricity (AKMS Mix) | AC13: ="DME: "&IF(Inputs!F153=1,"NA NG",IF(Inputs!F153=2,"Non-NA NG",IF(Inputs!F153=3,"FG",IF(Inputs!F153=4,IF(RNG!E6=1,"LFG",IF(RNG!E7=1,"AD Gas","RNG")),IF(Inputs!F153=5,"Biomass",IF(Inputs!F153=9,"Black Liquor",IF(Inputs!F153=10,"NG via Methanol","Coal"))))))) -> DME: NA NG | AD13: ="FTD"&TEXT(Vehicles!C13*100,"0")&": "&IF(Inputs!F154=1,"NA NG",IF(Inputs!F154=2,"Non-NA NG",IF(Inputs!F154=3,"FG",IF(Inputs!F154=4,IF(RNG!E6=1,"LFG",IF(RNG!E7=1,"AD Gas","RNG")),IF(Inputs!F154=5,"Biomass",IF(Inputs!F154=6,"Coal",IF(Inputs!F154=8,"NG/Biomass("&TEXT(Inputs!J187*100,"0")&"/"&TEXT(Inputs!J188*100,"0")&")","Coal/Biomass("&TEXT(Inputs!F187*100,"0")&"/"&TEXT(Inputs!F188*100,"0")&")"))))))) -> FTD100: NA NG | AE13: =IF(Inputs!$F$630=11, "UCO", IF(Inputs!$F$630=2,"Palm FFB",IF(Inputs!$F$630=3,"Canola",IF(Inputs!$F$630=4,"Jatropha",IF(Inputs!$F$630=5,"Camelina",IF(Inputs!$F$630=6,"Algae",IF(Inputs!$F$630=7,"Tallow",IF(Inputs!$F$630=8,"Corn Oil","Soybean"))))))))&"-based BD"&Vehicles!C14*100 -> Soybean-based BD20 | AF13: =IF(Inputs!E670=1,IF(Inputs!$G$630=2,"Palm FFB",IF(Inputs!$G$630=3,"Canola",IF(Inputs!$G$630=4,"Jatropha",IF(Inputs!$G$630=5,"Camelina",IF(Inputs!$G$630=6,"Algae",IF(Inputs!$G$630=7,"Tallow",IF(Inputs!$G$630=8,"Corn Oil","Soybean"))))))),IF(Inputs!E670=3,IF(Inputs!$I$630=2,"Palm FFB",IF(Inputs!$I$630=3,"Canola",IF(Inputs!$I$630=4,"Jatropha",IF(Inputs!$I$630=5,"Camelina",IF(Inputs!$I$630=6,"Algae",IF(Inputs!$I$630=7,"Tallow",IF(Inputs!$I$630=8,"Corn Oil","Soybean"))))))),IF(Inputs!$H$630=11,"UCO", IF(Inputs!$H$630=2,"Palm FFB",IF(Inputs!$H$630=3,"Canola",IF(Inputs!$H$630=4,"Jatropha",IF(Inputs!$H$630=5,"Camelina",IF(Inputs!$H$630=6,"Algae",IF(Inputs!$H$630=7,"Tallow",IF(Inputs!$H$630=8,"Corn Oil","Soybean"))))))))))&"-based RD"&IF(Inputs!$E$670=3,"III","II")&" "&Vehicles!C15*100 -> Soybean-based RDII 100 | AG13: =IF(Pyrolysis_IDL!$B$26=1,"Corn Stover","Forest Residue")&"-based RD"&IF(Inputs!E670=1,"I ","II ")&Vehicles!C15*100 -> Forest Residue-based RDII 100 | AH13: ="EtOH-Diesel, "&IF(EtOH!C6=1,"Corn"&IF(EtOH!C136=1,", dry",IF(EtOH!C136=0,", wet","")),IF(EtOH!D6=1,"Willow",IF(EtOH!E6=1,"Poplar",IF(EtOH!F6=1,"Switchgrass",IF(EtOH!G6=1,"Miscanthus",IF(EtOH!H6=1,"Corn Stover",IF(EtOH!I6=1,"Forest Residue",IF(EtOH!M6=1,"Sugarcane",IF(EtOH!J6=1,IF(EtOH!D233=1,"Grain",IF(EtOH!D233=3,"Forage","Sweet"))&" Sorghum",IF(EtOH!L6=1,"Solid Waste","Mixed Source")))))))))) -> EtOH-Diesel, Corn | AI13: ="Grid-Connected CIDI PHEV: Diesel and Electricity ("&VLOOKUP(Inputs!$F$720,Inputs!$G$720:$H$756,2,FALSE)&")" -> Grid-Connected CIDI PHEV: Diesel and Electricity (AKMS Mix) | AJ13: ="Grid-Connected CIDI PHEV: DME ("&IF(Inputs!F153=1,"NA NG",IF(Inputs!F153=2,"Non-NA NG",IF(Inputs!F153=3,"FG",IF(Inputs!F153=4,IF(RNG!E6=1,"LFG",IF(RNG!E7=1,"AD Gas","RNG")),IF(Inputs!F153=5,"Biomass",IF(Inputs!F153=9,"Black Liquor",IF(Inputs!F153=10,"NG via Methanol","Coal")))))))&") and Electricity ("&VLOOKUP(Inputs!$F$720,Inputs!$G$720:$H$756,2,FALSE)&")" -> Grid-Connected CIDI PHEV: DME (NA NG) and Electricity (AKMS Mix) | AK13: ="Grid-Connected CIDI PHEV: FTD"&Vehicles!C13*100&" ("&IF(Inputs!F154=1,"NA NG",IF(Inputs!F154=2,"Non-NA NG",IF(Inputs!F154=3,"FG",IF(Inputs!F154=4,IF(RNG!E6=1,"LFG",IF(RNG!E7=1,"AD Gas","RNG")),IF(Inputs!F154=5,"Biomass",IF(Inputs!F154=6,"Coal","Coal/Biomass("&Inputs!F187*100&"/"&Inputs!F188*100&")"))))))&") and Electricity ("&VLOOKUP(Inputs!$F$720,Inputs!$G$720:$H$756,2,FALSE)&")" -> Grid-Connected CIDI PHEV: FTD100 (NA NG) and Electricity (AKMS Mix) | AL13: ="Grid-Connected CIDI PHEV: BD"&Vehicles!C14*100&" ("&IF(Inputs!$F$630=11,"UCO", IF(Inputs!$F$630=2,"Palm FFB",IF(Inputs!$F$630=3,"Canola",IF(Inputs!$F$630=4,"Jatropha",IF(Inputs!$F$630=5,"Camelina",IF(Inputs!$F$630=6,"Algae",IF(Inputs!$F$630=7,"Tallow",IF(Inputs!$F$630=8,"Corn Oil","Soybean"))))))))&") and Electricity ("&VLOOKUP(Inputs!$F$720,Inputs!$G$720:$H$756,2,FALSE)&")" -> Grid-Connected CIDI PHEV: BD20 (Soybean) and Electricity (AKMS Mix) | AM13: ="Grid-Connected CIDI PHEV: EtOH-Diesel ("&IF(EtOH!C6=1,"Corn"&IF(EtOH!C136=1,", dry",IF(EtOH!C136=0,", wet","")),IF(EtOH!D6=1,"Willow",IF(EtOH!E6=1,"Poplar",IF(EtOH!F6=1,"Switchgrass",IF(EtOH!G6=1,"Miscanthus",IF(EtOH!H6=1,"Corn Stover",IF(EtOH!I6=1,"Forest Residue",IF(EtOH!M6=1,"Sugarcane",IF(EtOH!J6=1,IF(EtOH!D233=1,"Grain",IF(EtOH!D233=3,"Forage","Sweet"))&" Sorghum",IF(EtOH!L6=1,"Solid Waste","Mixed Source"))))))))))&") and Electricity ("&VLOOKUP(Inputs!$F$720,Inputs!$G$720:$H$756,2,FALSE)&")" -> Grid-Connected CIDI PHEV: EtOH-Diesel (Corn) and Electricity (AKMS Mix) | AN13: ="Electricity ("&VLOOKUP(Inputs!$F$720,Inputs!$G$720:$H$756,2,FALSE)&")" -> Electricity (AKMS Mix) | AO13: ="FCV: G.H2"&IF(Inputs!F211=1,", Central Plants, "&IF(Inputs!F216=1,IF(Inputs!F239=1,"NA NG",IF(Inputs!F239=2,"Non-NA NG",IF(Inputs!F239=3,"FG",IF(RNG!G6=1,"LFG",IF(RNG!G7=1,"Manure-based AD Gas",IF(RNG!G8=1,"WWTP-based AD Gas","RNG")))))),"")&IF(Inputs!F217=1,"Solar","")&IF(Inputs!F219=1,"Nuclear","")&IF(Inputs!F220=1,"Electrolysis (Nuclear HTGR)","")&IF(Inputs!F221=1,"Coal","")&IF(Inputs!F222=1,"Biomass","")&IF(Inputs!F224=1,"Coke Oven Gas","")&IF(Inputs!F227=1,"Pet Coke","")&IF(MAX(Inputs!F216:F227)<1,"Mixed Sources",""),", Refueling Station, "&IF(Inputs!F231=1,IF(Inputs!F240=1,"NA NG",IF(Inputs!F240=2,"Non-NA NG",IF(Inputs!F240=3,"FG",IF(RNG!G6=1,"LFG",IF(RNG!G7=1,"Manure-based AD Gas",IF(RNG!G8=1,"WWTP-based AD Gas","RNG")))))),"")&IF(Inputs!F232=1,"Electrolysis","")&IF(Inputs!F233=1,"EtOH","")&IF(Inputs!F235=1,"MeOH","")&IF(MAX(Inputs!F231:F235)<1,"Mixed Sources","")) -> FCV: G.H2, Central Plants, NA NG | AP13: ="FCV: L.H2"&IF(Inputs!G211=1,", Central Plants, "&IF(Inputs!G216=1,IF(Inputs!G239=1,"NA NG",IF(Inputs!G239=2,"Non-NA NG",IF(Inputs!G239=3,"FG",IF(RNG!H6=1,"LFG",IF(RNG!H7=1,"Manure-based AD Gas",IF(RNG!H8=1,"WWTP-based AD Gas","RNG")))))),"")&IF(Inputs!G217=1,"Solar","")&IF(Inputs!G219=1,"Nuclear","")&IF(Inputs!G220=1,"Electrolysis (Nuclear HTGR)","")&IF(Inputs!G221=1,"Coal","")&IF(Inputs!G222=1,"Biomass","")&IF(Inputs!G224=1,"Coke Oven Gas","")&IF(Inputs!G227=1,"Pet Coke","")&IF(MAX(Inputs!G216:G227)<1,"Mixed Sources",""),", Refueling Station, "&IF(Inputs!G231=1,IF(Inputs!G240=1,"NA NG",IF(Inputs!G240=2,"Non-NA NG",IF(Inputs!G240=3,"FG",IF(RNG!H6=1,"LFG",IF(RNG!H7=1,"Manure-based AD Gas",IF(RNG!H8=1,"WWTP-based AD Gas","RNG")))))),"")&IF(Inputs!G232=1,"Electrolysis","")&IF(Inputs!G233=1,"EtOH","")&IF(Inputs!G235=1,"MeOH","")&IF(MAX(Inputs!G231:G235)<1,"Mixed Sources","")) -> FCV: L.H2, Central Plants, NA NG | AQ13: ="Grid-Connected FC PHEV: G.H2 ("&IF(Inputs!F211=1,"Central Plants, "&IF(Inputs!F216=1,IF(Inputs!F239=1,"NA NG",IF(Inputs!F239=2,"Non-NA NG",IF(Inputs!F239=3,"FG",IF(RNG!G6=1,"LFG",IF(RNG!G7=1,"Manure-based AD Gas",IF(RNG!G8=1,"WWTP-based AD Gas","RNG")))))),"")&IF(Inputs!F217=1,"Solar","")&IF(Inputs!F219=1,"Nuclear","")&IF(Inputs!F220=1,"Electrolysis (Nuclear HTGR)","")&IF(Inputs!F221=1,"Coal","")&IF(Inputs!F222=1,"Biomass","")&IF(Inputs!F224=1,"Coke Oven Gas","")&IF(Inputs!F227=1,"Pet Coke","")&IF(MAX(Inputs!F216:F227)<1,"Mixed Sources",""),"Refueling Station, "&IF(Inputs!F231=1,IF(Inputs!F240=1,"NA NG",IF(Inputs!F240=2,"Non-NA NG",IF(Inputs!F240=3,"FG",IF(RNG!G6=1,"LFG",IF(RNG!G7=1,"Manure-based AD Gas",IF(RNG!G8=1,"WWTP-based AD Gas","RNG")))))),"")&IF(Inputs!F232=1,"Electrolysis","")&IF(Inputs!F233=1,"EtOH","")&IF(Inputs!F235=1,"MeOH","")&IF(MAX(Inputs!F231:F235)<1,"Mixed Sources",""))&") and Electricity ("&VLOOKUP(Inputs!$F$720,Inputs!$G$720:$H$756,2,FALSE)&")" -> Grid-Connected FC PHEV: G.H2 (Central Plants, NA NG) and Electricity (AKMS Mix) | AR13: ="Grid-Connected FC PHEV: L.H2 ("&IF(Inputs!G211=1,"Central Plants, "&IF(Inputs!G216=1,IF(Inputs!G239=1,"NA NG",IF(Inputs!G239=2,"Non-NA NG",IF(Inputs!G239=3,"FG",IF(RNG!H6=1,"LFG",IF(RNG!H7=1,"Manure-based AD Gas",IF(RNG!H8=1,"WWTP-based AD Gas","RNG")))))),"")&IF(Inputs!G217=1,"Solar","")&IF(Inputs!G219=1,"Nuclear","")&IF(Inputs!G220=1,"Electrolysis (Nuclear HTGR)","")&IF(Inputs!G221=1,"Coal","")&IF(Inputs!G222=1,"Biomass","")&IF(Inputs!G224=1,"Coke Oven Gas","")&IF(Inputs!G227=1,"Pet Coke","")&IF(MAX(Inputs!G216:G227)<1,"Mixed Sources",""),"Refueling Station, "&IF(Inputs!G231=1,IF(Inputs!G240=1,"NA NG",IF(Inputs!G240=2,"Non-NA NG",IF(Inputs!G240=3,"FG",IF(RNG!H6=1,"LFG",IF(RNG!H7=1,"Manure-based AD Gas",IF(RNG!H8=1,"WWTP-based AD Gas","RNG")))))),"")&IF(Inputs!G232=1,"Electrolysis","")&IF(Inputs!G233=1,"EtOH","")&IF(Inputs!G235=1,"MeOH","")&IF(MAX(Inputs!G231:G235)<1,"Mixed Sources",""))&") and Electricity ("&VLOOKUP(Inputs!$F$720,Inputs!$G$720:$H$756,2,FALSE)&")" -> Grid-Connected FC PHEV: L.H2 (Central Plants, NA NG) and Electricity (AKMS Mix) | AS13: ="Blended feedstock-based RG"&Vehicles!C16*100&" via Indirect Liquefaction (IDL)" -> Blended feedstock-based RG100 via Indirect Liquefaction (IDL) | AT13: Low Octane Gasoline-Like Fuel | AU13: Boosted Spark Ignition (BSI) Isobutanol-gasoline blend | AV13: Boosted Spark Ignition (BSI) ARHC-gasoline blend
A14: Total Energy | B14: =(Inputs!$E$1518*(Petroleum!$B263*Petroleum!$F$262+Petroleum!$F263)+(1-Inputs!$E$1518)*(Petroleum!$B263*Petroleum!$D$262+Petroleum!$D263))/1000000*HLOOKUP($H$10,$Z$3:$AD$4,2,FALSE)/HLOOKUP($J$11,$Z$7:$AD$8,2,FALSE) -> 263503.9994 | C14: =(Petroleum!$C263*Petroleum!$G$262+Petroleum!$G263)/1000000*HLOOKUP($H$10,$Z$3:$AD$4,2,FALSE)/HLOOKUP($J$11,$Z$7:$AD$8,2,FALSE) -> 251878.0064 | D14: =((1-Vehicles!$C$35)*(1-Vehicles!$C$7)*Fuel_Specs!$B$15/((1-Vehicles!$C$35)*(1-Vehicles!$C$7)*Fuel_Specs!$B$15+Vehicles!$C$35*(1-Vehicles!$C$7)*Fuel_Specs!$B$17+Vehicles!$C$7*Fuel_Specs!$B$33)*(Petroleum!$B263*Petroleum!$D$262+(Petroleum!$D263-'T&D'!G215))+Vehicles!$C$35*(1-Vehicles!$C$7)*Fuel_Specs!$B$17/((1-Vehicles!$C$35)*(1-Vehicles!$C$7)*Fuel_Specs!$B$15+Vehicles!$C$35*(1-Vehicles!$C$7)*Fuel_Specs!$B$17+Vehicles!$C$7*Fuel_Specs!$B$33)*(Petroleum!B263*Petroleum!$F$262+Petroleum!$F263)+Vehicles!$C$7*Fuel_Specs!$B$33/((1-Vehicles!$C$35)*(1-Vehicles!$C$7)*Fuel_Specs!$B$15+Vehicles!$C$35*(1-Vehicles!$C$7)*Fuel_Specs!$B$17+Vehicles!$C$7*Fuel_Specs!$B$33)*(EtOH!BV547*EtOH!$BW$546+EtOH!$BW547)+Petroleum!AS124+Petroleum!AT124)/1000000*HLOOKUP($H$10,$Z$3:$AD$4,2,FALSE)/HLOOKUP($J$11,$Z$7:$AD$8,2,FALSE) -> 264595.7233 | E14: =(Inputs!$E$97*(IF(Inputs!F$102=1,Petroleum!$B263,Petroleum!$C263)*IF(Inputs!F$102=1,Petroleum!$K$262,Petroleum!$L$262)+IF(Inputs!F$102=1,Petroleum!$K263,Petroleum!$L263))+(1-Inputs!$E$97)*(IF(Inputs!F$101=1,Petroleum!$B263,Petroleum!$C263)*Petroleum!$J$262+Petroleum!$J263))/1000000*HLOOKUP($H$10,$Z$3:$AD$4,2,FALSE)/HLOOKUP($J$11,$Z$7:$AD$8,2,FALSE) -> 183948.8747 | F14: =(NG!$J85*NG!$K$84+NG!$K85)/1000000*HLOOKUP($H$10,$Z$3:$AD$4,2,FALSE)/HLOOKUP($J$11,$Z$7:$AD$8,2,FALSE) -> 199858.4446 | G14: =(NG!$R85*NG!$S$84+NG!$S85)/1000000*HLOOKUP($H$10,$Z$3:$AD$4,2,FALSE)/HLOOKUP($J$11,$Z$7:$AD$8,2,FALSE) -> 216186.6396 | H14: =(NG!$X85*NG!$Y$84+NG!$Y85)/1000000*HLOOKUP($H$10,$Z$3:$AD$4,2,FALSE)/HLOOKUP($J$11,$Z$7:$AD$8,2,FALSE) -> 163354.6534 | I14: =(MeOH_FTD!BJ163*MeOH_FTD!BK$162+MeOH_FTD!BK163)/1000000*HLOOKUP($H$10,$Z$3:$AD$4,2,FALSE)/HLOOKUP($J$11,$Z$7:$AD$8,2,FALSE) -> 792681.8524 | J14: =((1-Vehicles!$C$34)*(1-Vehicles!$C$5)*Fuel_Specs!$B$15/((1-Vehicles!$C$34)*(1-Vehicles!$C$5)*Fuel_Specs!$B$15+Vehicles!$C$34*(1-Vehicles!$C$5)*Fuel_Specs!$B$17+Vehicles!$C$5*Fuel_Specs!$B$32)*(Petroleum!$B263*Petroleum!$D$262+Petroleum!$D263)+Vehicles!$C$34*(1-Vehicles!$C$5)*Fuel_Specs!$B$17/((1-Vehicles!$C$34)*(1-Vehicles!$C$5)*Fuel_Specs!$B$15+Vehicles!$C$34*(1-Vehicles!$C$5)*Fuel_Specs!$B$17+Vehicles!$C$5*Fuel_Specs!$B$32)*(Petroleum!B263*Petroleum!$F$262+Petroleum!$F263)+Vehicles!$C$5*Fuel_Specs!$B$32/((1-Vehicles!$C$34)*(1-Vehicles!$C$5)*Fuel_Specs!$B$15+Vehicles!$C$34*(1-Vehicles!$C$5)*Fuel_Specs!$B$17+Vehicles!$C$5*Fuel_Specs!$B$32)*(MeOH_FTD!$N163*MeOH_FTD!$O$162+MeOH_FTD!$O163))/1000000*HLOOKUP($H$10,$Z$3:$AD$4,2,FALSE)/HLOOKUP($J$11,$Z$7:$AD$8,2,FALSE) -> 465404.691 | K14: =((1-Vehicles!$C$34)*(1-Vehicles!$C$6)*Fuel_Specs!$B$15/((1-Vehicles!$C$34)*(1-Vehicles!$C$6)*Fuel_Specs!$B$15+Vehicles!$C$34*(1-Vehicles!$C$6)*Fuel_Specs!$B$17+Vehicles!$C$6*Fuel_Specs!$B$32)*(Petroleum!$B263*Petroleum!$D$262+Petroleum!$D263)+Vehicles!$C$34*(1-Vehicles!$C$6)*Fuel_Specs!$B$17/((1-Vehicles!$C$34)*(1-Vehicles!$C$6)*Fuel_Specs!$B$15+Vehicles!$C$34*(1-Vehicles!$C$6)*Fuel_Specs!$B$17+Vehicles!$C$6*Fuel_Specs!$B$32)*(Petroleum!B263*Petroleum!$F$262+Petroleum!$F263)+Vehicles!$C$6*Fuel_Specs!$B$32/((1-Vehicles!$C$34)*(1-Vehicles!$C$6)*Fuel_Specs!$B$15+Vehicles!$C$34*(1-Vehicles!$C$6)*Fuel_Specs!$B$17+Vehicles!$C$6*Fuel_Specs!$B$32)*(MeOH_FTD!$N163*MeOH_FTD!$O$162+MeOH_FTD!$O163))/1000000*HLOOKUP($H$10,$Z$3:$AD$4,2,FALSE)/HLOOKUP($J$11,$Z$7:$AD$8,2,FALSE) -> 490687.0231 | L14: =(MeOH_FTD!$N163*MeOH_FTD!$O$162+MeOH_FTD!$O163)/1000000*HLOOKUP($H$10,$Z$3:$AD$4,2,FALSE)/HLOOKUP($J$11,$Z$7:$AD$8,2,FALSE) -> 549047.036 | M14: =((1-Vehicles!$C$36)*(1-Vehicles!$C$8)*Fuel_Specs!$B$15/((1-Vehicles!$C$36)*(1-Vehicles!$C$8)*Fuel_Specs!$B$15+Vehicles!$C$36*(1-Vehicles!$C$8)*Fuel_Specs!$B$17+Vehicles!$C$8*Fuel_Specs!$B$33)*(Petroleum!$B263*Petroleum!$D$262+(Petroleum!$D263-'T&D'!G215))+Vehicles!$C$36*(1-Vehicles!$C$8)*Fuel_Specs!$B$17/((1-Vehicles!$C$36)*(1-Vehicles!$C$8)*Fuel_Specs!$B$15+Vehicles!$C$36*(1-Vehicles!$C$8)*Fuel_Specs!$B$17+Vehicles!$C$8*Fuel_Specs!$B$33)*(Petroleum!B263*Petroleum!$F$262+Petroleum!$F263)+Vehicles!$C$8*Fuel_Specs!$B$33/((1-Vehicles!$C$36)*(1-Vehicles!$C$8)*Fuel_Specs!$B$15+Vehicles!$C$36*(1-Vehicles!$C$8)*Fuel_Specs!$B$17+Vehicles!$C$8*Fuel_Specs!$B$33)*(EtOH!BV547*EtOH!$BW$546+EtOH!$BW547)+Petroleum!AS124+Petroleum!AT124)/1000000*HLOOKUP($H$10,$Z$3:$AD$4,2,FALSE)/HLOOKUP($J$11,$Z$7:$AD$8,2,FALSE) -> 609426.5972 | N14: =((1-Vehicles!$C$37)*(1-Vehicles!$C$12)*Fuel_Specs!$B$15/((1-Vehicles!$C$37)*(1-Vehicles!$C$12)*Fuel_Specs!$B$15+Vehicles!$C$37*(1-Vehicles!$C$12)*Fuel_Specs!$B$17+Vehicles!$C$12*Fuel_Specs!$B$34)*(Petroleum!$B263*Petroleum!$D$262+Petroleum!$D263)+Vehicles!$C$37*(1-Vehicles!$C$12)*Fuel_Specs!$B$17/((1-Vehicles!$C$37)*(1-Vehicles!$C$12)*Fuel_Specs!$B$15+Vehicles!$C$37*(1-Vehicles!$C$12)*Fuel_Specs!$B$17+Vehicles!$C$12*Fuel_Specs!$B$34)*(Petroleum!B263*Petroleum!$F$262+Petroleum!$F263)+Vehicles!$C$12*Fuel_Specs!$B$34/((1-Vehicles!$C$37)*(1-Vehicles!$C$12)*Fuel_Specs!$B$15+Vehicles!$C$37*(1-Vehicles!$C$12)*Fuel_Specs!$B$17+Vehicles!$C$12*Fuel_Specs!$B$34)*(EtOH!$BX547*EtOH!$BY$546+EtOH!$BY547))/1000000*HLOOKUP($H$10,$Z$3:$AD$4,2,FALSE)/HLOOKUP($J$11,$Z$7:$AD$8,2,FALSE) -> 714383.0393 | O14: =((1-Vehicles!$C$36)*(1-Vehicles!$C$9)*Fuel_Specs!$B$15/((1-Vehicles!$C$36)*(1-Vehicles!$C$9)*Fuel_Specs!$B$15+Vehicles!$C$36*(1-Vehicles!$C$9)*Fuel_Specs!$B$17+Vehicles!$C$9*Fuel_Specs!$B$33)*(Petroleum!$B263*Petroleum!$D$262+(Petroleum!$D263-'T&D'!G215))+Vehicles!$C$36*(1-Vehicles!$C$9)*Fuel_Specs!$B$17/((1-Vehicles!$C$36)*(1-Vehicles!$C$9)*Fuel_Specs!$B$15+Vehicles!$C$36*(1-Vehicles!$C$9)*Fuel_Specs!$B$17+Vehicles!$C$9*Fuel_Specs!$B$33)*(Petroleum!B263*Petroleum!$F$262+Petroleum!$F263)+Vehicles!$C$9*Fuel_Specs!$B$33/((1-Vehicles!$C$36)*(1-Vehicles!$C$9)*Fuel_Specs!$B$15+Vehicles!$C$36*(1-Vehicles!$C$9)*Fuel_Specs!$B$17+Vehicles!$C$9*Fuel_Specs!$B$33)*(EtOH!BV547*EtOH!$BW$546+EtOH!$BW547)+Petroleum!AS124+Petroleum!AT124)/1000000*HLOOKUP($H$10,$Z$3:$AD$4,2,FALSE)/HLOOKUP($J$11,$Z$7:$AD$8,2,FALSE) -> 609426.5972 | P14: =(EtOH!$BT547*EtOH!$BU$546+EtOH!$BU547)/1000000*HLOOKUP($H$10,$Z$3:$AD$4,2,FALSE)/HLOOKUP($J$11,$Z$7:$AD$8,2,FALSE) -> 725590.547 | Q14: =((1-Vehicles!$C$40)*(1-Vehicles!$C$16)*Fuel_Specs!$B$15/((1-Vehicles!$C$40)*(1-Vehicles!$C$16)*Fuel_Specs!$B$15+Vehicles!$C$40*(1-Vehicles!$C$16)*Fuel_Specs!$B$17+Vehicles!$C$16*Fuel_Specs!$B$47)*(Petroleum!$B263*Petroleum!$D$262+Petroleum!$D263)+Vehicles!$C$40*(1-Vehicles!$C$16)*Fuel_Specs!$B$17/((1-Vehicles!$C$40)*(1-Vehicles!$C$16)*Fuel_Specs!$B$15+Vehicles!$C$40*(1-Vehicles!$C$16)*Fuel_Specs!$B$17+Vehicles!$C$16*Fuel_Specs!$B$47)*(Petroleum!B263*Petroleum!$F$262+Petroleum!$F263)+Vehicles!$C$16*Fuel_Specs!$B$47/((1-Vehicles!$C$40)*(1-Vehicles!$C$16)*Fuel_Specs!$B$15+Vehicles!$C$40*(1-Vehicles!$C$16)*Fuel_Specs!$B$17+Vehicles!$C$16*Fuel_Specs!$B$47)*(BioOil!$CE433*BioOil!$CF$431+BioOil!$CF433))/1000000*HLOOKUP($H$10,$Z$3:$AD$4,2,FALSE)/HLOOKUP($J$11,$Z$7:$AD$8,2,FALSE) -> 425559.0872 | R14: =((1-Vehicles!$C$40)*(1-Vehicles!$C$16)*Fuel_Specs!$B$15/((1-Vehicles!$C$40)*(1-Vehicles!$C$16)*Fuel_Specs!$B$15+Vehicles!$C$40*(1-Vehicles!$C$16)*Fuel_Specs!$B$17+Vehicles!$C$16*Fuel_Specs!$B$47)*(Petroleum!$B263*Petroleum!$D$262+Petroleum!$D263)+Vehicles!$C$40*(1-Vehicles!$C$16)*Fuel_Specs!$B$17/((1-Vehicles!$C$40)*(1-Vehicles!$C$16)*Fuel_Specs!$B$15+Vehicles!$C$40*(1-Vehicles!$C$16)*Fuel_Specs!$B$17+Vehicles!$C$16*Fuel_Specs!$B$47)*(Petroleum!B263*Petroleum!$F$262+Petroleum!$F263)+Vehicles!$C$16*Fuel_Specs!$B$47/((1-Vehicles!$C$40)*(1-Vehicles!$C$16)*Fuel_Specs!$B$15+Vehicles!$C$40*(1-Vehicles!$C$16)*Fuel_Specs!$B$17+Vehicles!$C$16*Fuel_Specs!$B$47)*(Pyrolysis_IDL!$AD298*Pyrolysis_IDL!$AE$297+Pyrolysis_IDL!$AE298))/1000000*HLOOKUP($H$10,$Z$3:$AD$4,2,FALSE)/HLOOKUP($J$11,$Z$7:$AD$8,2,FALSE) -> 945776.6983 | S14: =AN14*(Vehicles!$C$30/Vehicles!$AT$72)/(Vehicles!$C$30*(1/Vehicles!$AT$72+1/Vehicles!$AU$72)+Vehicles!$C$31/Vehicles!$AV$72)+B14*(Vehicles!$C$30/Vehicles!$AU$72+Vehicles!$C$31/Vehicles!$AV$72)/(Vehicles!$C$30*(1/Vehicles!$AT$72+1/Vehicles!$AU$72)+Vehicles!$C$31/Vehicles!$AV$72) ->  | T14: =AN14*(Vehicles!$D$30/Vehicles!$AX$72)/(Vehicles!$D$30*(1/Vehicles!$AX$72+1/Vehicles!$AY$72)+Vehicles!$D$31/Vehicles!$AZ$72)+C14*(Vehicles!$D$30/Vehicles!$AY$72+Vehicles!$D$31/Vehicles!$AZ$72)/(Vehicles!$D$30*(1/Vehicles!$AX$72+1/Vehicles!$AY$72)+Vehicles!$D$31/Vehicles!$AZ$72) ->  | U14: =AN14*(Vehicles!$F$30/Vehicles!$BF$72)/(Vehicles!$F$30*(1/Vehicles!$BF$72+1/Vehicles!$BG$72)+Vehicles!$F$31/Vehicles!$BH$72)+D14*(Vehicles!$F$30/Vehicles!$BG$72+Vehicles!$F$31/Vehicles!$BH$72)/(Vehicles!$F$30*(1/Vehicles!$BF$72+1/Vehicles!$BG$72)+Vehicles!$F$31/Vehicles!$BH$72) ->  | V14: =AN14*(Vehicles!$G$30/Vehicles!$BJ$72)/(Vehicles!$G$30*(1/Vehicles!$BJ$72+1/Vehicles!$BK$72)+Vehicles!$G$31/Vehicles!$BL$72)+F14*(Vehicles!$G$30/Vehicles!$BK$72+Vehicles!$G$31/Vehicles!$BL$72)/(Vehicles!$G$30*(1/Vehicles!$BJ$72+1/Vehicles!$BK$72)+Vehicles!$G$31/Vehicles!$BL$72) ->  | W14: =AN14*(Vehicles!$H$30/Vehicles!$BN$72)/(Vehicles!$H$30*(1/Vehicles!$BN$72+1/Vehicles!$BO$72)+Vehicles!$H$31/Vehicles!$BP$72)+G14*(Vehicles!$H$30/Vehicles!$BO$72+Vehicles!$H$31/Vehicles!$BP$72)/(Vehicles!$H$30*(1/Vehicles!$BN$72+1/Vehicles!$BO$72)+Vehicles!$H$31/Vehicles!$BP$72) ->  | X14: =AN14*(Vehicles!$I$30/Vehicles!$BR$72)/(Vehicles!$I$30*(1/Vehicles!$BR$72+1/Vehicles!$BS$72)+Vehicles!$I$31/Vehicles!$BT$72)+H14*(Vehicles!$I$30/Vehicles!$BS$72+Vehicles!$I$31/Vehicles!$BT$72)/(Vehicles!$I$30*(1/Vehicles!$BR$72+1/Vehicles!$BS$72)+Vehicles!$I$31/Vehicles!$BT$72) ->  | Y14: =AN14*(Vehicles!$J$30/Vehicles!$BV$72)/(Vehicles!$J$30*(1/Vehicles!$BV$72+1/Vehicles!$BW$72)+Vehicles!$J$31/Vehicles!$BX$72)+K14*(Vehicles!$J$30/Vehicles!$BW$72+Vehicles!$J$31/Vehicles!$BX$72)/(Vehicles!$J$30*(1/Vehicles!$BV$72+1/Vehicles!$BW$72)+Vehicles!$J$31/Vehicles!$BX$72) ->  | Z14: =AN14*(Vehicles!$K$30/Vehicles!$BZ$72)/(Vehicles!$K$30*(1/Vehicles!$BZ$72+1/Vehicles!$CA$72)+Vehicles!$K$31/Vehicles!$CB$72)+O14*(Vehicles!$K$30/Vehicles!$CA$72+Vehicles!$K$31/Vehicles!$CB$72)/(Vehicles!$K$30*(1/Vehicles!$BZ$72+1/Vehicles!$CA$72)+Vehicles!$K$31/Vehicles!$CB$72) ->  | AA14: =AN14*(Vehicles!$L$30/Vehicles!$CD$72)/(Vehicles!$L$30*(1/Vehicles!$CD$72+1/Vehicles!$CE$72)+Vehicles!$L$31/Vehicles!$CF$72)+AO14*(Vehicles!$L$30/Vehicles!$CE$72+Vehicles!$L$31/Vehicles!$CF$72)/(Vehicles!$L$30*(1/Vehicles!$CD$72+1/Vehicles!$CE$72)+Vehicles!$L$31/Vehicles!$CF$72) ->  | AB14: =AN14*(Vehicles!$L$30/Vehicles!$CD$72)/(Vehicles!$L$30*(1/Vehicles!$CD$72+1/Vehicles!$CE$72)+Vehicles!$L$31/Vehicles!$CG$72)+AP14*(Vehicles!$L$30/Vehicles!$CE$72+Vehicles!$L$31/Vehicles!$CG$72)/(Vehicles!$L$30*(1/Vehicles!$CD$72+1/Vehicles!$CE$72)+Vehicles!$L$31/Vehicles!$CG$72) ->  | AC14: =(MeOH_FTD!$AJ163*MeOH_FTD!$AK$162+MeOH_FTD!$AK163)/1000000*HLOOKUP($H$10,$Z$3:$AD$4,2,FALSE)/HLOOKUP($J$11,$Z$7:$AD$8,2,FALSE) -> 643211.6116 | AD14: =((1-Vehicles!$C$41)*(1-Vehicles!$C$13)*Fuel_Specs!$B$21/((1-Vehicles!$C$41)*(1-Vehicles!$C$13)*Fuel_Specs!$B$21+Vehicles!$C$41*(1-Vehicles!$C$13)*Fuel_Specs!$B$24+Vehicles!$C$13*Fuel_Specs!$B$42)*(Petroleum!B263*Petroleum!$J$262+Petroleum!$J263)+Vehicles!$C$41*(1-Vehicles!$C$13)*Fuel_Specs!$B$24/((1-Vehicles!$C$41)*(1-Vehicles!$C$13)*Fuel_Specs!$B$21+Vehicles!$C$41*(1-Vehicles!$C$13)*Fuel_Specs!$B$24+Vehicles!$C$13*Fuel_Specs!$B$42)*(Petroleum!B263*IF(Inputs!F$102=1,Petroleum!$K$262,Petroleum!$L$262)+IF(Inputs!F$102=1,Petroleum!$K263,Petroleum!$L263))+Vehicles!$C$13*Fuel_Specs!$B$42/((1-Vehicles!$C$41)*(1-Vehicles!$C$13)*Fuel_Specs!$B$21+Vehicles!$C$41*(1-Vehicles!$C$13)*Fuel_Specs!$B$24+Vehicles!$C$13*Fuel_Specs!$B$42)*(MeOH_FTD!$AZ163*MeOH_FTD!$BA$162+MeOH_FTD!$BA163))/1000000*HLOOKUP($H$10,$Z$3:$AD$4,2,FALSE)/HLOOKUP($J$11,$Z$7:$AD$8,2,FALSE) -> 689894.6779 | AE14: =((1-Vehicles!$C$42)*(1-Vehicles!$C$14)*Fuel_Specs!$B$21/((1-Vehicles!$C$42)*(1-Vehicles!$C$14)*Fuel_Specs!$B$21+Vehicles!$C$42*(1-Vehicles!$C$14)*Fuel_Specs!$B$24+Vehicles!$C$14*Fuel_Specs!$B$41)*(Petroleum!B263*Petroleum!$J$262+Petroleum!$J263)+Vehicles!$C$42*(1-Vehicles!$C$14)*Fuel_Specs!$B$24/((1-Vehicles!$C$42)*(1-Vehicles!$C$14)*Fuel_Specs!$B$21+Vehicles!$C$42*(1-Vehicles!$C$14)*Fuel_Specs!$B$24+Vehicles!$C$14*Fuel_Specs!$B$41)*(Petroleum!B263*IF(Inputs!F$102=1,Petroleum!$K$262,Petroleum!$L$262)+IF(Inputs!F$102=1,Petroleum!$K263,Petroleum!$L263))+Vehicles!$C$14*Fuel_Specs!$B$41/((1-Vehicles!$C$42)*(1-Vehicles!$C$14)*Fuel_Specs!$B$21+Vehicles!$C$42*(1-Vehicles!$C$14)*Fuel_Specs!$B$24+Vehicles!$C$14*Fuel_Specs!$B$41)*(BioOil!$Y433*BioOil!$Z$431+BioOil!$Z433))/1000000*HLOOKUP($H$10,$Z$3:$AD$4,2,FALSE)/HLOOKUP($J$11,$Z$7:$AD$8,2,FALSE) -> 242427.7603 | AF14: =((1-Vehicles!$C$43)*(1-Vehicles!$C$15)*Fuel_Specs!$B$21/((1-Vehicles!$C$43)*(1-Vehicles!$C$15)*Fuel_Specs!$B$21+Vehicles!$C$43*(1-Vehicles!$C$15)*Fuel_Specs!$B$24+Vehicles!$C$15*IF(Inputs!$E$670=1,IF(Inputs!$E$670=1,Fuel_Specs!$B$43,IF(Inputs!$E$670=3,Fuel_Specs!$B$45,Fuel_Specs!$B$44)),Fuel_Specs!$B$44))*(Petroleum!B263*Petroleum!$J$262+Petroleum!$J263)+Vehicles!$C$43*(1-Vehicles!$C$15)*Fuel_Specs!$B$24/((1-Vehicles!$C$43)*(1-Vehicles!$C$15)*Fuel_Specs!$B$21+Vehicles!$C$43*(1-Vehicles!$C$15)*Fuel_Specs!$B$24+Vehicles!$C$15*IF(Inputs!$E$670=1,IF(Inputs!$E$670=1,Fuel_Specs!$B$43,IF(Inputs!$E$670=3,Fuel_Specs!$B$45,Fuel_Specs!$B$44)),Fuel_Specs!$B$44))*(Petroleum!B263*IF(Inputs!F$102=1,Petroleum!$K$262,Petroleum!$L$262)+IF(Inputs!F$102=1,Petroleum!$K263,Petroleum!$L263))+Vehicles!$C$15*IF(Inputs!$E$670=1,IF(Inputs!$E$670=1,Fuel_Specs!$B$43,IF(Inputs!$E$670=3,Fuel_Specs!$B$45,Fuel_Specs!$B$44)),Fuel_Specs!$B$44)/((1-Vehicles!$C$43)*(1-Vehicles!$C$15)*Fuel_Specs!$B$21+Vehicles!$C$43*(1-Vehicles!$C$15)*Fuel_Specs!$B$24+Vehicles!$C$15*IF(Inputs!$E$670=1,IF(Inputs!$E$670=1,Fuel_Specs!$B$43,IF(Inputs!$E$670=3,Fuel_Specs!$B$45,Fuel_Specs!$B$44)),Fuel_Specs!$B$44))*(BioOil!$BQ433*BioOil!$BR$431+BioOil!$BR433))/1000000*HLOOKUP($H$10,$Z$3:$AD$4,2,FALSE)/HLOOKUP($J$11,$Z$7:$AD$8,2,FALSE) -> 518545.5849 | AG14: =((1-Vehicles!$C$43)*(1-Vehicles!$C$15)*Fuel_Specs!$B$21/((1-Vehicles!$C$43)*(1-Vehicles!$C$15)*Fuel_Specs!$B$21+Vehicles!$C$43*(1-Vehicles!$C$15)*Fuel_Specs!$B$24+Vehicles!$C$15*IF(Inputs!$E$670=1,Fuel_Specs!$B$43,Fuel_Specs!$B$44))*(Petroleum!B263*Petroleum!$J$262+Petroleum!$J263)+Vehicles!$C$43*(1-Vehicles!$C$15)*Fuel_Specs!$B$24/((1-Vehicles!$C$43)*(1-Vehicles!$C$15)*Fuel_Specs!$B$21+Vehicles!$C$43*(1-Vehicles!$C$15)*Fuel_Specs!$B$24+Vehicles!$C$15*IF(Inputs!$E$670=1,Fuel_Specs!$B$43,Fuel_Specs!$B$44))*(Petroleum!B263*IF(Inputs!F$102=1,Petroleum!$K$262,Petroleum!$L$262)+IF(Inputs!F$102=1,Petroleum!$K263,Petroleum!$L263))+Vehicles!$C$15*IF(Inputs!$E$670=1,Fuel_Specs!$B$43,Fuel_Specs!$B$44)/((1-Vehicles!$C$43)*(1-Vehicles!$C$15)*Fuel_Specs!$B$21+Vehicles!$C$43*(1-Vehicles!$C$15)*Fuel_Specs!$B$24+Vehicles!$C$15*IF(Inputs!$E$670=1,Fuel_Specs!$B$43,Fuel_Specs!$B$44))*(Pyrolysis_IDL!$AF298*Pyrolysis_IDL!$AG$297+Pyrolysis_IDL!$AG298))/1000000*HLOOKUP($H$10,$Z$3:$AD$4,2,FALSE)/HLOOKUP($J$11,$Z$7:$AD$8,2,FALSE) -> 947311.3859 | AH14: =(((1-Vehicles!$C$44)*(1-Vehicles!$C$17-Vehicles!$C$18)*Fuel_Specs!$B$21*(Petroleum!B263*Petroleum!$J$262+Petroleum!$J263)+Vehicles!$C$44*(1-Vehicles!$C$17-Vehicles!$C$18)*Fuel_Specs!$B$24*(Petroleum!B263*IF(Inputs!F$102=1,Petroleum!$K$262,Petroleum!$L$262)+IF(Inputs!F$102=1,Petroleum!$K263,Petroleum!$L263))+Vehicles!$C$17*Fuel_Specs!$B$33*(EtOH!BT547*EtOH!$BU$546+EtOH!$BU547)+Vehicles!$C$18*Fuel_Specs!$B$36*('EtOH-Diesel Additives'!$B54*'EtOH-Diesel Additives'!$B$53))/((1-Vehicles!$C$44)*(1-Vehicles!$C$17-Vehicles!$C$18)*Fuel_Specs!$B$21+Vehicles!$C$44*(1-Vehicles!$C$17-Vehicles!$C$18)*Fuel_Specs!$B$24+Vehicles!$C$17*Fuel_Specs!$B$33+Vehicles!$C$18*Fuel_Specs!$B$36))/1000000*HLOOKUP($H$10,$Z$3:$AD$4,2,FALSE)/HLOOKUP($J$11,$Z$7:$AD$8,2,FALSE) -> 219819.8472 | AI14: =AN14*(Vehicles!$M$30/Vehicles!$CO$72)/(Vehicles!$M$30*(1/Vehicles!$CO$72+1/Vehicles!$CP$72)+Vehicles!$M$31/Vehicles!$CQ$72)+E14*(Vehicles!$M$30/Vehicles!$CP$72+Vehicles!$M$31/Vehicles!$CQ$72)/(Vehicles!$M$30*(1/Vehicles!$CO$72+1/Vehicles!$CP$72)+Vehicles!$M$31/Vehicles!$CQ$72) ->  | AJ14: =AN14*(Vehicles!$N$30/Vehicles!$CS$72)/(Vehicles!$N$30*(1/Vehicles!$CS$72+1/Vehicles!$CT$72)+Vehicles!$N$31/Vehicles!$CU$72)+AC14*(Vehicles!$N$30/Vehicles!$CT$72+Vehicles!$N$31/Vehicles!$CU$72)/(Vehicles!$N$30*(1/Vehicles!$CS$72+1/Vehicles!$CT$72)+Vehicles!$N$31/Vehicles!$CU$72) ->  | AK14: =AN14*(Vehicles!$O$30/Vehicles!$CW$72)/(Vehicles!$O$30*(1/Vehicles!$CW$72+1/Vehicles!$CX$72)+Vehicles!$O$31/Vehicles!$CY$72)+AD14*(Vehicles!$O$30/Vehicles!$CX$72+Vehicles!$O$31/Vehicles!$CY$72)/(Vehicles!$O$30*(1/Vehicles!$CW$72+1/Vehicles!$CX$72)+Vehicles!$O$31/Vehicles!$CY$72) ->  | AL14: =AN14*(Vehicles!$P$30/Vehicles!$DA$72)/(Vehicles!$P$30*(1/Vehicles!$DA$72+1/Vehicles!$DB$72)+Vehicles!$P$31/Vehicles!$DC$72)+AE14*(Vehicles!$P$30/Vehicles!$DB$72+Vehicles!$P$31/Vehicles!$DC$72)/(Vehicles!$P$30*(1/Vehicles!$DA$72+1/Vehicles!$DB$72)+Vehicles!$P$31/Vehicles!$DC$72) ->  | AM14: =AN14*(Vehicles!$R$30/Vehicles!$DI$72)/(Vehicles!$R$30*(1/Vehicles!$DI$72+1/Vehicles!$DJ$72)+Vehicles!$R$31/Vehicles!$DK$72)+AH14*(Vehicles!$R$30/Vehicles!$DJ$72+Vehicles!$R$31/Vehicles!$DK$72)/(Vehicles!$R$30*(1/Vehicles!$DI$72+1/Vehicles!$DJ$72)+Vehicles!$R$31/Vehicles!$DK$72) ->  | AN14: =(Electric!$G204+Electric!$F204-1000000)/1000000*HLOOKUP($H$10,$Z$3:$AD$4,2,FALSE)/HLOOKUP($J$11,$Z$7:$AD$8,2,FALSE) -> 803063.5278 | AO14: =((Hydrogen!$AJ306*Hydrogen!$AK$305+Hydrogen!$AK306)-1000000*(Hydrogen!$O$7+Hydrogen!$C$7+Hydrogen!$D$7+Hydrogen!$E$7))/1000000*HLOOKUP($H$10,$Z$3:$AD$4,2,FALSE)/HLOOKUP($J$11,$Z$7:$AD$8,2,FALSE) -> 573270.7991 | AP14: =((Hydrogen!$BT306*Hydrogen!$BU$305+Hydrogen!$BU306)-1000000*(Hydrogen!$O$8+Hydrogen!$C$8+Hydrogen!$D$8+Hydrogen!$E$8))/1000000*HLOOKUP($H$10,$Z$3:$AD$4,2,FALSE)/HLOOKUP($J$11,$Z$7:$AD$8,2,FALSE) -> 1067935.244 | AQ14: =AN14*(Vehicles!$S$30/Vehicles!$DY$72)/(Vehicles!$S$30*(1/Vehicles!$DY$72+1/Vehicles!$DZ$72)+Vehicles!$S$31/Vehicles!$EA$72)+AO14*(Vehicles!$S$30/Vehicles!$DZ$72+Vehicles!$S$31/Vehicles!$EA$72)/(Vehicles!$S$30*(1/Vehicles!$DY$72+1/Vehicles!$DZ$72)+Vehicles!$S$31/Vehicles!$EA$72) ->  | AR14: =AN14*(Vehicles!$S$30/Vehicles!$DY$72)/(Vehicles!$S$30*(1/Vehicles!$DY$72+1/Vehicles!$DZ$72)+Vehicles!$S$31/Vehicles!$EA$72)+AP14*(Vehicles!$S$30/Vehicles!$DZ$72+Vehicles!$S$31/Vehicles!$EA$72)/(Vehicles!$S$30*(1/Vehicles!$DY$72+1/Vehicles!$DZ$72)+Vehicles!$S$31/Vehicles!$EA$72) ->  | AS14: =((1-Vehicles!$C$40)*(1-Vehicles!$C$16)*Fuel_Specs!$B$15/((1-Vehicles!$C$40)*(1-Vehicles!$C$16)*Fuel_Specs!$B$15+Vehicles!$C$40*(1-Vehicles!$C$16)*Fuel_Specs!$B$17+Vehicles!$C$16*Fuel_Specs!$B$48)*(Petroleum!$B263*Petroleum!$D$262+Petroleum!$D263)+Vehicles!$C$40*(1-Vehicles!$C$16)*Fuel_Specs!$B$17/((1-Vehicles!$C$40)*(1-Vehicles!$C$16)*Fuel_Specs!$B$15+Vehicles!$C$40*(1-Vehicles!$C$16)*Fuel_Specs!$B$17+Vehicles!$C$16*Fuel_Specs!$B$48)*(Petroleum!B263*Petroleum!$F$262+Petroleum!$F263)+Vehicles!$C$16*Fuel_Specs!$B$48/((1-Vehicles!$C$40)*(1-Vehicles!$C$16)*Fuel_Specs!$B$15+Vehicles!$C$40*(1-Vehicles!$C$16)*Fuel_Specs!$B$17+Vehicles!$C$16*Fuel_Specs!$B$48)*(Pyrolysis_IDL!$AP298*Pyrolysis_IDL!$AQ$297+Pyrolysis_IDL!$AQ298))/1000000*HLOOKUP($H$10,$Z$3:$AD$4,2,FALSE)/HLOOKUP($J$11,$Z$7:$AD$8,2,FALSE) -> 1728789.55 | AT14: =(Petroleum!$B263*Petroleum!$S$262+Petroleum!$S263)/1000000*HLOOKUP($H$10,$Z$3:$AD$4,2,FALSE)/HLOOKUP($J$11,$Z$7:$AD$8,2,FALSE) -> 194230.473 | AU14: =F2537+G2537 -> 286413.8662 | AV14: =F2568+G2568 -> 234327.5258 | BB14: Select Fuels | BE14: Select Fuels | BH14: Select Fuels | BK14: Select Fuels | BN14: Select Fuels | BQ14: Select Fuels | BT14: Select Fuels | BW14: Select Fuels | BZ14: Select Fuels | CB14: Selct Fuels
A15: WTP Efficiency | B15: =HLOOKUP($H$10,$Z$3:$AD$4,2,FALSE)/HLOOKUP($J$11,$Z$7:$AD$8,2,FALSE)/(HLOOKUP($H$10,$Z$3:$AD$4,2,FALSE)/HLOOKUP($J$11,$Z$7:$AD$8,2,FALSE)+B14) -> 0.7914498098 | C15: 0.798799879 | D15: 0.7907665522 | E15: 0.8446310659 | F15: 0.8334316473 | G15: 0.822242218 | H15: 0.8595831006 | I15: 0.5578234636 | J15: 0.6824053493 | K15: 0.6708316263 | L15: 0.6455581895 | M15: 0.6213393029 | N15: 0.5833002177 | O15: 0.6213393029 | P15: 0.5795117514 | Q15: 0.7014791663 | R15: 0.513933588 | AC15: 0.6085643462 | AD15: 0.5917528548 | AE15: 0.8048757698 | AF15: 0.6585248477 | AG15: 0.5135285539 | AH15: 0.8197931869 | AN15: 0.5546116288 | AO15: 0.6356184839 | AP15: 0.4835741366 | AS15: 0.3664628516 | AT15: 0.8373593059 | AU15: =HLOOKUP($H$10,$Z$3:$AD$4,2,FALSE)/HLOOKUP($J$11,$Z$7:$AD$8,2,FALSE)/(HLOOKUP($H$10,$Z$3:$AD$4,2,FALSE)/HLOOKUP($J$11,$Z$7:$AD$8,2,FALSE)+AU14) -> 0.7773548049 | AV15: =HLOOKUP($H$10,$Z$3:$AD$4,2,FALSE)/HLOOKUP($J$11,$Z$7:$AD$8,2,FALSE)/(HLOOKUP($H$10,$Z$3:$AD$4,2,FALSE)/HLOOKUP($J$11,$Z$7:$AD$8,2,FALSE)+AV14) -> 0.810157741 | BB15: SI - Gasoline | BC15: RNAVGASCRFG | BE15: SIDI - Gasoline | BF15: RNAVGASCRFGSIDI | BH15: CIDI - Diesel | BI15: RNAVDIESELCIDI | BK15: SI HEV - Gasoline | BL15: RNAVHEV | BN15: SI PHEV - Gasoline and Electricity | BO15: RNAVPHEV | BQ15: CIDI HEV - Diesel | BR15: RNAVHEVDIESEL | BT15: CIDI PHEV - Diesel and Electricity | BU15: RNAVPHEVDIESEL | BW15: BEV - Electricity | BX15: RNAVPHEVELECTRIC | BZ15: GCI - Low Octane Fuel (LOF) | CA15: RNAVGCILOF | CB15: BSI - Isobutanol | CC15: RNAVCOOPISOBUOH
A16: Fossil Fuels | B16: =(Inputs!$E$1518*(Petroleum!$B264*Petroleum!$F$262+Petroleum!$F264)+(1-Inputs!$E$1518)*(Petroleum!$B264*Petroleum!$D$262+Petroleum!$D264))/1000000*HLOOKUP($H$10,$Z$3:$AD$4,2,FALSE)/HLOOKUP($J$11,$Z$7:$AD$8,2,FALSE) -> 241259.9665 | C16: =(Petroleum!$C264*Petroleum!$G$262+Petroleum!$G264)/1000000*HLOOKUP($H$10,$Z$3:$AD$4,2,FALSE)/HLOOKUP($J$11,$Z$7:$AD$8,2,FALSE) -> 232785.0345 | D16: =((1-Vehicles!$C$35)*(1-Vehicles!$C$7)*Fuel_Specs!$B$15/((1-Vehicles!$C$35)*(1-Vehicles!$C$7)*Fuel_Specs!$B$15+Vehicles!$C$35*(1-Vehicles!$C$7)*Fuel_Specs!$B$17+Vehicles!$C$7*Fuel_Specs!$B$33)*(Petroleum!$B264*Petroleum!$D$262+(Petroleum!$D264-'T&D'!G216))+Vehicles!$C$35*(1-Vehicles!$C$7)*Fuel_Specs!$B$17/((1-Vehicles!$C$35)*(1-Vehicles!$C$7)*Fuel_Specs!$B$15+Vehicles!$C$35*(1-Vehicles!$C$7)*Fuel_Specs!$B$17+Vehicles!$C$7*Fuel_Specs!$B$33)*(Petroleum!B264*Petroleum!$F$262+Petroleum!$F264)+Vehicles!$C$7*Fuel_Specs!$B$33/((1-Vehicles!$C$35)*(1-Vehicles!$C$7)*Fuel_Specs!$B$15+Vehicles!$C$35*(1-Vehicles!$C$7)*Fuel_Specs!$B$17+Vehicles!$C$7*Fuel_Specs!$B$33)*(EtOH!BV548*EtOH!$BW$546+EtOH!$BW548)+Petroleum!AS125+Petroleum!AT125)/1000000*HLOOKUP($H$10,$Z$3:$AD$4,2,FALSE)/HLOOKUP($J$11,$Z$7:$AD$8,2,FALSE) -> 242342.1609 | E16: =(Inputs!$E$97*(IF(Inputs!F$102=1,Petroleum!$B264,Petroleum!$C264)*IF(Inputs!F$102=1,Petroleum!$K$262,Petroleum!$L$262)+IF(Inputs!F$102=1,Petroleum!$K264,Petroleum!$L264))+(1-Inputs!$E$97)*(IF(Inputs!F$101=1,Petroleum!$B264,Petroleum!$C264)*Petroleum!$J$262+Petroleum!$J264))/1000000*HLOOKUP($H$10,$Z$3:$AD$4,2,FALSE)/HLOOKUP($J$11,$Z$7:$AD$8,2,FALSE) -> 173606.1283 | F16: =(NG!$J86*NG!$K$84+NG!$K86)/1000000*HLOOKUP($H$10,$Z$3:$AD$4,2,FALSE)/HLOOKUP($J$11,$Z$7:$AD$8,2,FALSE) -> 174729.3643 | G16: =(NG!$R86*NG!$S$84+NG!$S86)/1000000*HLOOKUP($H$10,$Z$3:$AD$4,2,FALSE)/HLOOKUP($J$11,$Z$7:$AD$8,2,FALSE) -> 213606.0175 | H16: =(NG!$X86*NG!$Y$84+NG!$Y86)/1000000*HLOOKUP($H$10,$Z$3:$AD$4,2,FALSE)/HLOOKUP($J$11,$Z$7:$AD$8,2,FALSE) -> 159341.1618 | I16: =(MeOH_FTD!BJ164*MeOH_FTD!BK$162+MeOH_FTD!BK164)/1000000*HLOOKUP($H$10,$Z$3:$AD$4,2,FALSE)/HLOOKUP($J$11,$Z$7:$AD$8,2,FALSE) -> 832662.0774 | J16: =((1-Vehicles!$C$34)*(1-Vehicles!$C$5)*Fuel_Specs!$B$15/((1-Vehicles!$C$34)*(1-Vehicles!$C$5)*Fuel_Specs!$B$15+Vehicles!$C$34*(1-Vehicles!$C$5)*Fuel_Specs!$B$17+Vehicles!$C$5*Fuel_Specs!$B$32)*(Petroleum!$B264*Petroleum!$D$262+Petroleum!$D264)+Vehicles!$C$34*(1-Vehicles!$C$5)*Fuel_Specs!$B$17/((1-Vehicles!$C$34)*(1-Vehicles!$C$5)*Fuel_Specs!$B$15+Vehicles!$C$34*(1-Vehicles!$C$5)*Fuel_Specs!$B$17+Vehicles!$C$5*Fuel_Specs!$B$32)*(Petroleum!B264*Petroleum!$F$262+Petroleum!$F264)+Vehicles!$C$5*Fuel_Specs!$B$32/((1-Vehicles!$C$34)*(1-Vehicles!$C$5)*Fuel_Specs!$B$15+Vehicles!$C$34*(1-Vehicles!$C$5)*Fuel_Specs!$B$17+Vehicles!$C$5*Fuel_Specs!$B$32)*(MeOH_FTD!$N164*MeOH_FTD!$O$162+MeOH_FTD!$O164))/1000000*HLOOKUP($H$10,$Z$3:$AD$4,2,FALSE)/HLOOKUP($J$11,$Z$7:$AD$8,2,FALSE) -> 437548.3321 | K16: =((1-Vehicles!$C$34)*(1-Vehicles!$C$6)*Fuel_Specs!$B$15/((1-Vehicles!$C$34)*(1-Vehicles!$C$6)*Fuel_Specs!$B$15+Vehicles!$C$34*(1-Vehicles!$C$6)*Fuel_Specs!$B$17+Vehicles!$C$6*Fuel_Specs!$B$32)*(Petroleum!$B264*Petroleum!$D$262+Petroleum!$D264)+Vehicles!$C$34*(1-Vehicles!$C$6)*Fuel_Specs!$B$17/((1-Vehicles!$C$34)*(1-Vehicles!$C$6)*Fuel_Specs!$B$15+Vehicles!$C$34*(1-Vehicles!$C$6)*Fuel_Specs!$B$17+Vehicles!$C$6*Fuel_Specs!$B$32)*(Petroleum!B264*Petroleum!$F$262+Petroleum!$F264)+Vehicles!$C$6*Fuel_Specs!$B$32/((1-Vehicles!$C$34)*(1-Vehicles!$C$6)*Fuel_Specs!$B$15+Vehicles!$C$34*(1-Vehicles!$C$6)*Fuel_Specs!$B$17+Vehicles!$C$6*Fuel_Specs!$B$32)*(MeOH_FTD!$N164*MeOH_FTD!$O$162+MeOH_FTD!$O164))/1000000*HLOOKUP($H$10,$Z$3:$AD$4,2,FALSE)/HLOOKUP($J$11,$Z$7:$AD$8,2,FALSE) -> 461073.9472 | L16: =(MeOH_FTD!$N164*MeOH_FTD!$O$162+MeOH_FTD!$O164)/1000000*HLOOKUP($H$10,$Z$3:$AD$4,2,FALSE)/HLOOKUP($J$11,$Z$7:$AD$8,2,FALSE) -> 515378.8745 | M16: =((1-Vehicles!$C$36)*(1-Vehicles!$C$8)*Fuel_Specs!$B$15/((1-Vehicles!$C$36)*(1-Vehicles!$C$8)*Fuel_Specs!$B$15+Vehicles!$C$36*(1-Vehicles!$C$8)*Fuel_Specs!$B$17+Vehicles!$C$8*Fuel_Specs!$B$33)*(Petroleum!$B264*Petroleum!$D$262+(Petroleum!$D264-'T&D'!G216))+Vehicles!$C$36*(1-Vehicles!$C$8)*Fuel_Specs!$B$17/((1-Vehicles!$C$36)*(1-Vehicles!$C$8)*Fuel_Specs!$B$15+Vehicles!$C$36*(1-Vehicles!$C$8)*Fuel_Specs!$B$17+Vehicles!$C$8*Fuel_Specs!$B$33)*(Petroleum!B264*Petroleum!$F$262+Petroleum!$F264)+Vehicles!$C$8*Fuel_Specs!$B$33/((1-Vehicles!$C$36)*(1-Vehicles!$C$8)*Fuel_Specs!$B$15+Vehicles!$C$36*(1-Vehicles!$C$8)*Fuel_Specs!$B$17+Vehicles!$C$8*Fuel_Specs!$B$33)*(EtOH!BV548*EtOH!$BW$546+EtOH!$BW548)+Petroleum!AS125+Petroleum!AT125)/1000000*HLOOKUP($H$10,$Z$3:$AD$4,2,FALSE)/HLOOKUP($J$11,$Z$7:$AD$8,2,FALSE) -> 475541.2172 | N16: =((1-Vehicles!$C$37)*(1-Vehicles!$C$12)*Fuel_Specs!$B$15/((1-Vehicles!$C$37)*(1-Vehicles!$C$12)*Fuel_Specs!$B$15+Vehicles!$C$37*(1-Vehicles!$C$12)*Fuel_Specs!$B$17+Vehicles!$C$12*Fuel_Specs!$B$34)*(Petroleum!$B264*Petroleum!$D$262+Petroleum!$D264)+Vehicles!$C$37*(1-Vehicles!$C$12)*Fuel_Specs!$B$17/((1-Vehicles!$C$37)*(1-Vehicles!$C$12)*Fuel_Specs!$B$15+Vehicles!$C$37*(1-Vehicles!$C$12)*Fuel_Specs!$B$17+Vehicles!$C$12*Fuel_Specs!$B$34)*(Petroleum!B264*Petroleum!$F$262+Petroleum!$F264)+Vehicles!$C$12*Fuel_Specs!$B$34/((1-Vehicles!$C$37)*(1-Vehicles!$C$12)*Fuel_Specs!$B$15+Vehicles!$C$37*(1-Vehicles!$C$12)*Fuel_Specs!$B$17+Vehicles!$C$12*Fuel_Specs!$B$34)*(EtOH!$BX548*EtOH!$BY$546+EtOH!$BY548))/1000000*HLOOKUP($H$10,$Z$3:$AD$4,2,FALSE)/HLOOKUP($J$11,$Z$7:$AD$8,2,FALSE) -> 667578.2129 | O16: =((1-Vehicles!$C$36)*(1-Vehicles!$C$9)*Fuel_Specs!$B$15/((1-Vehicles!$C$36)*(1-Vehicles!$C$9)*Fuel_Specs!$B$15+Vehicles!$C$36*(1-Vehicles!$C$9)*Fuel_Specs!$B$17+Vehicles!$C$9*Fuel_Specs!$B$33)*(Petroleum!$B264*Petroleum!$D$262+(Petroleum!$D264-'T&D'!G216))+Vehicles!$C$36*(1-Vehicles!$C$9)*Fuel_Specs!$B$17/((1-Vehicles!$C$36)*(1-Vehicles!$C$9)*Fuel_Specs!$B$15+Vehicles!$C$36*(1-Vehicles!$C$9)*Fuel_Specs!$B$17+Vehicles!$C$9*Fuel_Specs!$B$33)*(Petroleum!B264*Petroleum!$F$262+Petroleum!$F264)+Vehicles!$C$9*Fuel_Specs!$B$33/((1-Vehicles!$C$36)*(1-Vehicles!$C$9)*Fuel_Specs!$B$15+Vehicles!$C$36*(1-Vehicles!$C$9)*Fuel_Specs!$B$17+Vehicles!$C$9*Fuel_Specs!$B$33)*(EtOH!BV548*EtOH!$BW$546+EtOH!$BW548)+Petroleum!AS125+Petroleum!AT125)/1000000*HLOOKUP($H$10,$Z$3:$AD$4,2,FALSE)/HLOOKUP($J$11,$Z$7:$AD$8,2,FALSE) -> 475541.2172 | P16: =(EtOH!$BT548*EtOH!$BU$546+EtOH!$BU548)/1000000*HLOOKUP($H$10,$Z$3:$AD$4,2,FALSE)/HLOOKUP($J$11,$Z$7:$AD$8,2,FALSE) -> 554415.2388 | Q16: =((1-Vehicles!$C$40)*(1-Vehicles!$C$16)*Fuel_Specs!$B$15/((1-Vehicles!$C$40)*(1-Vehicles!$C$16)*Fuel_Specs!$B$15+Vehicles!$C$40*(1-Vehicles!$C$16)*Fuel_Specs!$B$17+Vehicles!$C$16*Fuel_Specs!$B$47)*(Petroleum!$B264*Petroleum!$D$262+Petroleum!$D264)+Vehicles!$C$40*(1-Vehicles!$C$16)*Fuel_Specs!$B$17/((1-Vehicles!$C$40)*(1-Vehicles!$C$16)*Fuel_Specs!$B$15+Vehicles!$C$40*(1-Vehicles!$C$16)*Fuel_Specs!$B$17+Vehicles!$C$16*Fuel_Specs!$B$47)*(Petroleum!B264*Petroleum!$F$262+Petroleum!$F264)+Vehicles!$C$16*Fuel_Specs!$B$47/((1-Vehicles!$C$40)*(1-Vehicles!$C$16)*Fuel_Specs!$B$15+Vehicles!$C$40*(1-Vehicles!$C$16)*Fuel_Specs!$B$17+Vehicles!$C$16*Fuel_Specs!$B$47)*(BioOil!$CE434*BioOil!$CF$431+BioOil!$CF434))/1000000*HLOOKUP($H$10,$Z$3:$AD$4,2,FALSE)/HLOOKUP($J$11,$Z$7:$AD$8,2,FALSE) -> 109007.2627 | R16: =((1-Vehicles!$C$40)*(1-Vehicles!$C$16)*Fuel_Specs!$B$15/((1-Vehicles!$C$40)*(1-Vehicles!$C$16)*Fuel_Specs!$B$15+Vehicles!$C$40*(1-Vehicles!$C$16)*Fuel_Specs!$B$17+Vehicles!$C$16*Fuel_Specs!$B$47)*(Petroleum!$B264*Petroleum!$D$262+Petroleum!$D264)+Vehicles!$C$40*(1-Vehicles!$C$16)*Fuel_Specs!$B$17/((1-Vehicles!$C$40)*(1-Vehicles!$C$16)*Fuel_Specs!$B$15+Vehicles!$C$40*(1-Vehicles!$C$16)*Fuel_Specs!$B$17+Vehicles!$C$16*Fuel_Specs!$B$47)*(Petroleum!B264*Petroleum!$F$262+Petroleum!$F264)+Vehicles!$C$16*Fuel_Specs!$B$47/((1-Vehicles!$C$40)*(1-Vehicles!$C$16)*Fuel_Specs!$B$15+Vehicles!$C$40*(1-Vehicles!$C$16)*Fuel_Specs!$B$17+Vehicles!$C$16*Fuel_Specs!$B$47)*(Pyrolysis_IDL!$AD299*Pyrolysis_IDL!$AE$297+Pyrolysis_IDL!$AE299))/1000000*HLOOKUP($H$10,$Z$3:$AD$4,2,FALSE)/HLOOKUP($J$11,$Z$7:$AD$8,2,FALSE) -> 331015.5793 | S16: =AN16*(Vehicles!$C$30/Vehicles!$AT$72)/(Vehicles!$C$30*(1/Vehicles!$AT$72+1/Vehicles!$AU$72)+Vehicles!$C$31/Vehicles!$AV$72)+B16*(Vehicles!$C$30/Vehicles!$AU$72+Vehicles!$C$31/Vehicles!$AV$72)/(Vehicles!$C$30*(1/Vehicles!$AT$72+1/Vehicles!$AU$72)+Vehicles!$C$31/Vehicles!$AV$72) ->  | T16: =AN16*(Vehicles!$D$30/Vehicles!$AX$72)/(Vehicles!$D$30*(1/Vehicles!$AX$72+1/Vehicles!$AY$72)+Vehicles!$D$31/Vehicles!$AZ$72)+C16*(Vehicles!$D$30/Vehicles!$AY$72+Vehicles!$D$31/Vehicles!$AZ$72)/(Vehicles!$D$30*(1/Vehicles!$AX$72+1/Vehicles!$AY$72)+Vehicles!$D$31/Vehicles!$AZ$72) ->  | U16: =AN16*(Vehicles!$F$30/Vehicles!$BF$72)/(Vehicles!$F$30*(1/Vehicles!$BF$72+1/Vehicles!$BG$72)+Vehicles!$F$31/Vehicles!$BH$72)+D16*(Vehicles!$F$30/Vehicles!$BG$72+Vehicles!$F$31/Vehicles!$BH$72)/(Vehicles!$F$30*(1/Vehicles!$BF$72+1/Vehicles!$BG$72)+Vehicles!$F$31/Vehicles!$BH$72) ->  | V16: =AN16*(Vehicles!$G$30/Vehicles!$BJ$72)/(Vehicles!$G$30*(1/Vehicles!$BJ$72+1/Vehicles!$BK$72)+Vehicles!$G$31/Vehicles!$BL$72)+F16*(Vehicles!$G$30/Vehicles!$BK$72+Vehicles!$G$31/Vehicles!$BL$72)/(Vehicles!$G$30*(1/Vehicles!$BJ$72+1/Vehicles!$BK$72)+Vehicles!$G$31/Vehicles!$BL$72) ->  | W16: =AN16*(Vehicles!$H$30/Vehicles!$BN$72)/(Vehicles!$H$30*(1/Vehicles!$BN$72+1/Vehicles!$BO$72)+Vehicles!$H$31/Vehicles!$BP$72)+G16*(Vehicles!$H$30/Vehicles!$BO$72+Vehicles!$H$31/Vehicles!$BP$72)/(Vehicles!$H$30*(1/Vehicles!$BN$72+1/Vehicles!$BO$72)+Vehicles!$H$31/Vehicles!$BP$72) ->  | X16: =AN16*(Vehicles!$I$30/Vehicles!$BR$72)/(Vehicles!$I$30*(1/Vehicles!$BR$72+1/Vehicles!$BS$72)+Vehicles!$I$31/Vehicles!$BT$72)+H16*(Vehicles!$I$30/Vehicles!$BS$72+Vehicles!$I$31/Vehicles!$BT$72)/(Vehicles!$I$30*(1/Vehicles!$BR$72+1/Vehicles!$BS$72)+Vehicles!$I$31/Vehicles!$BT$72) ->  | Y16: =AN16*(Vehicles!$J$30/Vehicles!$BV$72)/(Vehicles!$J$30*(1/Vehicles!$BV$72+1/Vehicles!$BW$72)+Vehicles!$J$31/Vehicles!$BX$72)+K16*(Vehicles!$J$30/Vehicles!$BW$72+Vehicles!$J$31/Vehicles!$BX$72)/(Vehicles!$J$30*(1/Vehicles!$BV$72+1/Vehicles!$BW$72)+Vehicles!$J$31/Vehicles!$BX$72) ->  | Z16: =AN16*(Vehicles!$K$30/Vehicles!$BZ$72)/(Vehicles!$K$30*(1/Vehicles!$BZ$72+1/Vehicles!$CA$72)+Vehicles!$K$31/Vehicles!$CB$72)+O16*(Vehicles!$K$30/Vehicles!$CA$72+Vehicles!$K$31/Vehicles!$CB$72)/(Vehicles!$K$30*(1/Vehicles!$BZ$72+1/Vehicles!$CA$72)+Vehicles!$K$31/Vehicles!$CB$72) ->  | AA16: =AN16*(Vehicles!$L$30/Vehicles!$CD$72)/(Vehicles!$L$30*(1/Vehicles!$CD$72+1/Vehicles!$CE$72)+Vehicles!$L$31/Vehicles!$CF$72)+AO16*(Vehicles!$L$30/Vehicles!$CE$72+Vehicles!$L$31/Vehicles!$CF$72)/(Vehicles!$L$30*(1/Vehicles!$CD$72+1/Vehicles!$CE$72)+Vehicles!$L$31/Vehicles!$CF$72) ->  | AB16: =AN16*(Vehicles!$L$30/Vehicles!$CD$72)/(Vehicles!$L$30*(1/Vehicles!$CD$72+1/Vehicles!$CE$72)+Vehicles!$L$31/Vehicles!$CG$72)+AP16*(Vehicles!$L$30/Vehicles!$CE$72+Vehicles!$L$31/Vehicles!$CG$72)/(Vehicles!$L$30*(1/Vehicles!$CD$72+1/Vehicles!$CE$72)+Vehicles!$L$31/Vehicles!$CG$72) ->  | AC16: =(MeOH_FTD!$AJ164*MeOH_FTD!$AK$162+MeOH_FTD!$AK164)/1000000*HLOOKUP($H$10,$Z$3:$AD$4,2,FALSE)/HLOOKUP($J$11,$Z$7:$AD$8,2,FALSE) -> 608355.5317 | AD16: =((1-Vehicles!$C$41)*(1-Vehicles!$C$13)*Fuel_Specs!$B$21/((1-Vehicles!$C$41)*(1-Vehicles!$C$13)*Fuel_Specs!$B$21+Vehicles!$C$41*(1-Vehicles!$C$13)*Fuel_Specs!$B$24+Vehicles!$C$13*Fuel_Specs!$B$42)*(Petroleum!B264*Petroleum!$J$262+Petroleum!$J264)+Vehicles!$C$41*(1-Vehicles!$C$13)*Fuel_Specs!$B$24/((1-Vehicles!$C$41)*(1-Vehicles!$C$13)*Fuel_Specs!$B$21+Vehicles!$C$41*(1-Vehicles!$C$13)*Fuel_Specs!$B$24+Vehicles!$C$13*Fuel_Specs!$B$42)*(Petroleum!B264*IF(Inputs!F$102=1,Petroleum!$K$262,Petroleum!$L$262)+IF(Inputs!F$102=1,Petroleum!$K264,Petroleum!$L264))+Vehicles!$C$13*Fuel_Specs!$B$42/((1-Vehicles!$C$41)*(1-Vehicles!$C$13)*Fuel_Specs!$B$21+Vehicles!$C$41*(1-Vehicles!$C$13)*Fuel_Specs!$B$24+Vehicles!$C$13*Fuel_Specs!$B$42)*(MeOH_FTD!$AZ164*MeOH_FTD!$BA$162+MeOH_FTD!$BA164))/1000000*HLOOKUP($H$10,$Z$3:$AD$4,2,FALSE)/HLOOKUP($J$11,$Z$7:$AD$8,2,FALSE) -> 687903.0282 | AE16: =((1-Vehicles!$C$42)*(1-Vehicles!$C$14)*Fuel_Specs!$B$21/((1-Vehicles!$C$42)*(1-Vehicles!$C$14)*Fuel_Specs!$B$21+Vehicles!$C$42*(1-Vehicles!$C$14)*Fuel_Specs!$B$24+Vehicles!$C$14*Fuel_Specs!$B$41)*(Petroleum!B264*Petroleum!$J$262+Petroleum!$J264)+Vehicles!$C$42*(1-Vehicles!$C$14)*Fuel_Specs!$B$24/((1-Vehicles!$C$42)*(1-Vehicles!$C$14)*Fuel_Specs!$B$21+Vehicles!$C$42*(1-Vehicles!$C$14)*Fuel_Specs!$B$24+Vehicles!$C$14*Fuel_Specs!$B$41)*(Petroleum!B264*IF(Inputs!F$102=1,Petroleum!$K$262,Petroleum!$L$262)+IF(Inputs!F$102=1,Petroleum!$K264,Petroleum!$L264))+Vehicles!$C$14*Fuel_Specs!$B$41/((1-Vehicles!$C$42)*(1-Vehicles!$C$14)*Fuel_Specs!$B$21+Vehicles!$C$42*(1-Vehicles!$C$14)*Fuel_Specs!$B$24+Vehicles!$C$14*Fuel_Specs!$B$41)*(BioOil!$Y434*BioOil!$Z$431+BioOil!$Z434))/1000000*HLOOKUP($H$10,$Z$3:$AD$4,2,FALSE)/HLOOKUP($J$11,$Z$7:$AD$8,2,FALSE) -> 182504.9563 | AF16: =((1-Vehicles!$C$43)*(1-Vehicles!$C$15)*Fuel_Specs!$B$21/((1-Vehicles!$C$43)*(1-Vehicles!$C$15)*Fuel_Specs!$B$21+Vehicles!$C$43*(1-Vehicles!$C$15)*Fuel_Specs!$B$24+Vehicles!$C$15*IF(Inputs!$E$670=1,IF(Inputs!$E$670=1,Fuel_Specs!$B$43,IF(Inputs!$E$670=3,Fuel_Specs!$B$45,Fuel_Specs!$B$44)),Fuel_Specs!$B$44))*(Petroleum!B264*Petroleum!$J$262+Petroleum!$J264)+Vehicles!$C$43*(1-Vehicles!$C$15)*Fuel_Specs!$B$24/((1-Vehicles!$C$43)*(1-Vehicles!$C$15)*Fuel_Specs!$B$21+Vehicles!$C$43*(1-Vehicles!$C$15)*Fuel_Specs!$B$24+Vehicles!$C$15*IF(Inputs!$E$670=1,IF(Inputs!$E$670=1,Fuel_Specs!$B$43,IF(Inputs!$E$670=3,Fuel_Specs!$B$45,Fuel_Specs!$B$44)),Fuel_Specs!$B$44))*(Petroleum!B264*IF(Inputs!F$102=1,Petroleum!$K$262,Petroleum!$L$262)+IF(Inputs!F$102=1,Petroleum!$K264,Petroleum!$L264))+Vehicles!$C$15*IF(Inputs!$E$670=1,IF(Inputs!$E$670=1,Fuel_Specs!$B$43,IF(Inputs!$E$670=3,Fuel_Specs!$B$45,Fuel_Specs!$B$44)),Fuel_Specs!$B$44)/((1-Vehicles!$C$43)*(1-Vehicles!$C$15)*Fuel_Specs!$B$21+Vehicles!$C$43*(1-Vehicles!$C$15)*Fuel_Specs!$B$24+Vehicles!$C$15*IF(Inputs!$E$670=1,IF(Inputs!$E$670=1,Fuel_Specs!$B$43,IF(Inputs!$E$670=3,Fuel_Specs!$B$45,Fuel_Specs!$B$44)),Fuel_Specs!$B$44))*(BioOil!$BQ434*BioOil!$BR$431+BioOil!$BR434))/1000000*HLOOKUP($H$10,$Z$3:$AD$4,2,FALSE)/HLOOKUP($J$11,$Z$7:$AD$8,2,FALSE) -> 254010.1029 | AG16: =((1-Vehicles!$C$43)*(1-Vehicles!$C$15)*Fuel_Specs!$B$21/((1-Vehicles!$C$43)*(1-Vehicles!$C$15)*Fuel_Specs!$B$21+Vehicles!$C$43*(1-Vehicles!$C$15)*Fuel_Specs!$B$24+Vehicles!$C$15*IF(Inputs!$E$670=1,Fuel_Specs!$B$43,Fuel_Specs!$B$44))*(Petroleum!B264*Petroleum!$J$262+Petroleum!$J264)+Vehicles!$C$43*(1-Vehicles!$C$15)*Fuel_Specs!$B$24/((1-Vehicles!$C$43)*(1-Vehicles!$C$15)*Fuel_Specs!$B$21+Vehicles!$C$43*(1-Vehicles!$C$15)*Fuel_Specs!$B$24+Vehicles!$C$15*IF(Inputs!$E$670=1,Fuel_Specs!$B$43,Fuel_Specs!$B$44))*(Petroleum!B264*IF(Inputs!F$102=1,Petroleum!$K$262,Petroleum!$L$262)+IF(Inputs!F$102=1,Petroleum!$K264,Petroleum!$L264))+Vehicles!$C$15*IF(Inputs!$E$670=1,Fuel_Specs!$B$43,Fuel_Specs!$B$44)/((1-Vehicles!$C$43)*(1-Vehicles!$C$15)*Fuel_Specs!$B$21+Vehicles!$C$43*(1-Vehicles!$C$15)*Fuel_Specs!$B$24+Vehicles!$C$15*IF(Inputs!$E$670=1,Fuel_Specs!$B$43,Fuel_Specs!$B$44))*(Pyrolysis_IDL!$AF299*Pyrolysis_IDL!$AG$297+Pyrolysis_IDL!$AG299))/1000000*HLOOKUP($H$10,$Z$3:$AD$4,2,FALSE)/HLOOKUP($J$11,$Z$7:$AD$8,2,FALSE) -> 380634.9053 | AH16: =(((1-Vehicles!$C$44)*(1-Vehicles!$C$17-Vehicles!$C$18)*Fuel_Specs!$B$21*(Petroleum!B264*Petroleum!$J$262+Petroleum!$J264)+Vehicles!$C$44*(1-Vehicles!$C$17-Vehicles!$C$18)*Fuel_Specs!$B$24*(Petroleum!B264*IF(Inputs!F$102=1,Petroleum!$K$262,Petroleum!$L$262)+IF(Inputs!F$102=1,Petroleum!$K264,Petroleum!$L264))+Vehicles!$C$17*Fuel_Specs!$B$33*(EtOH!BT548*EtOH!$BU$546+EtOH!$BU548)+Vehicles!$C$18*Fuel_Specs!$B$36*('EtOH-Diesel Additives'!$B55*'EtOH-Diesel Additives'!$B$53))/((1-Vehicles!$C$44)*(1-Vehicles!$C$17-Vehicles!$C$18)*Fuel_Specs!$B$21+Vehicles!$C$44*(1-Vehicles!$C$17-Vehicles!$C$18)*Fuel_Specs!$B$24+Vehicles!$C$17*Fuel_Specs!$B$33+Vehicles!$C$18*Fuel_Specs!$B$36))/1000000*HLOOKUP($H$10,$Z$3:$AD$4,2,FALSE)/HLOOKUP($J$11,$Z$7:$AD$8,2,FALSE) -> 199094.1636 | AI16: =AN16*(Vehicles!$M$30/Vehicles!$CO$72)/(Vehicles!$M$30*(1/Vehicles!$CO$72+1/Vehicles!$CP$72)+Vehicles!$M$31/Vehicles!$CQ$72)+E16*(Vehicles!$M$30/Vehicles!$CP$72+Vehicles!$M$31/Vehicles!$CQ$72)/(Vehicles!$M$30*(1/Vehicles!$CO$72+1/Vehicles!$CP$72)+Vehicles!$M$31/Vehicles!$CQ$72) ->  | AJ16: =AN16*(Vehicles!$N$30/Vehicles!$CS$72)/(Vehicles!$N$30*(1/Vehicles!$CS$72+1/Vehicles!$CT$72)+Vehicles!$N$31/Vehicles!$CU$72)+AC16*(Vehicles!$N$30/Vehicles!$CT$72+Vehicles!$N$31/Vehicles!$CU$72)/(Vehicles!$N$30*(1/Vehicles!$CS$72+1/Vehicles!$CT$72)+Vehicles!$N$31/Vehicles!$CU$72) ->  | AK16: =AN16*(Vehicles!$O$30/Vehicles!$CW$72)/(Vehicles!$O$30*(1/Vehicles!$CW$72+1/Vehicles!$CX$72)+Vehicles!$O$31/Vehicles!$CY$72)+AD16*(Vehicles!$O$30/Vehicles!$CX$72+Vehicles!$O$31/Vehicles!$CY$72)/(Vehicles!$O$30*(1/Vehicles!$CW$72+1/Vehicles!$CX$72)+Vehicles!$O$31/Vehicles!$CY$72) ->  | AL16: =AN16*(Vehicles!$P$30/Vehicles!$DA$72)/(Vehicles!$P$30*(1/Vehicles!$DA$72+1/Vehicles!$DB$72)+Vehicles!$P$31/Vehicles!$DC$72)+AE16*(Vehicles!$P$30/Vehicles!$DB$72+Vehicles!$P$31/Vehicles!$DC$72)/(Vehicles!$P$30*(1/Vehicles!$DA$72+1/Vehicles!$DB$72)+Vehicles!$P$31/Vehicles!$DC$72) ->  | AM16: =AN16*(Vehicles!$R$30/Vehicles!$DI$72)/(Vehicles!$R$30*(1/Vehicles!$DI$72+1/Vehicles!$DJ$72)+Vehicles!$R$31/Vehicles!$DK$72)+AH16*(Vehicles!$R$30/Vehicles!$DJ$72+Vehicles!$R$31/Vehicles!$DK$72)/(Vehicles!$R$30*(1/Vehicles!$DI$72+1/Vehicles!$DJ$72)+Vehicles!$R$31/Vehicles!$DK$72) ->  | AN16: =(Electric!$G205+Electric!$F205-1000000*(Electric!$F205+Electric!$G205)/(Electric!$F$204+Electric!$G$204))/1000000*HLOOKUP($H$10,$Z$3:$AD$4,2,FALSE)/HLOOKUP($J$11,$Z$7:$AD$8,2,FALSE) -> 472004.5823 | AO16: =((Hydrogen!$AJ307*Hydrogen!$AK$305+Hydrogen!$AK307)-1000000*(Hydrogen!$O$7+Hydrogen!$C$7+Hydrogen!$D$7+Hydrogen!$E$7))/1000000*HLOOKUP($H$10,$Z$3:$AD$4,2,FALSE)/HLOOKUP($J$11,$Z$7:$AD$8,2,FALSE) -> 497494.9439 | AP16: =((Hydrogen!$BT307*Hydrogen!$BU$305+Hydrogen!$BU307)-1000000*(Hydrogen!$O$8+Hydrogen!$C$8+Hydrogen!$D$8+Hydrogen!$E$8))/1000000*HLOOKUP($H$10,$Z$3:$AD$4,2,FALSE)/HLOOKUP($J$11,$Z$7:$AD$8,2,FALSE) -> 782288.9552 | AQ16: =AN16*(Vehicles!$S$30/Vehicles!$DY$72)/(Vehicles!$S$30*(1/Vehicles!$DY$72+1/Vehicles!$DZ$72)+Vehicles!$S$31/Vehicles!$EA$72)+AO16*(Vehicles!$S$30/Vehicles!$DZ$72+Vehicles!$S$31/Vehicles!$EA$72)/(Vehicles!$S$30*(1/Vehicles!$DY$72+1/Vehicles!$DZ$72)+Vehicles!$S$31/Vehicles!$EA$72) ->  | AR16: =AN16*(Vehicles!$S$30/Vehicles!$DY$72)/(Vehicles!$S$30*(1/Vehicles!$DY$72+1/Vehicles!$DZ$72)+Vehicles!$S$31/Vehicles!$EA$72)+AP16*(Vehicles!$S$30/Vehicles!$DZ$72+Vehicles!$S$31/Vehicles!$EA$72)/(Vehicles!$S$30*(1/Vehicles!$DY$72+1/Vehicles!$DZ$72)+Vehicles!$S$31/Vehicles!$EA$72) ->  | AS16: =((1-Vehicles!$C$40)*(1-Vehicles!$C$16)*Fuel_Specs!$B$15/((1-Vehicles!$C$40)*(1-Vehicles!$C$16)*Fuel_Specs!$B$15+Vehicles!$C$40*(1-Vehicles!$C$16)*Fuel_Specs!$B$17+Vehicles!$C$16*Fuel_Specs!$B$48)*(Petroleum!$B264*Petroleum!$D$262+Petroleum!$D264)+Vehicles!$C$40*(1-Vehicles!$C$16)*Fuel_Specs!$B$17/((1-Vehicles!$C$40)*(1-Vehicles!$C$16)*Fuel_Specs!$B$15+Vehicles!$C$40*(1-Vehicles!$C$16)*Fuel_Specs!$B$17+Vehicles!$C$16*Fuel_Specs!$B$48)*(Petroleum!B264*Petroleum!$F$262+Petroleum!$F264)+Vehicles!$C$16*Fuel_Specs!$B$48/((1-Vehicles!$C$40)*(1-Vehicles!$C$16)*Fuel_Specs!$B$15+Vehicles!$C$40*(1-Vehicles!$C$16)*Fuel_Specs!$B$17+Vehicles!$C$16*Fuel_Specs!$B$48)*(Pyrolysis_IDL!$AP299*Pyrolysis_IDL!$AQ$297+Pyrolysis_IDL!$AQ299))/1000000*HLOOKUP($H$10,$Z$3:$AD$4,2,FALSE)/HLOOKUP($J$11,$Z$7:$AD$8,2,FALSE) -> 199242.3188 | AT16: =(Petroleum!$B264*Petroleum!$S$262+Petroleum!$S264)/1000000*HLOOKUP($H$10,$Z$3:$AD$4,2,FALSE)/HLOOKUP($J$11,$Z$7:$AD$8,2,FALSE) -> 183195.4613 | AU16: =F2538+G2538 -> 234867.3982 | AV16: =F2569+G2569 -> 214657.2961 | BB16: SI - CA gasoline | BC16: RNAVGASCARFG | BE16: SIDI - CA gasoline | BF16: RNAVGASCARFGSIDI | BH16: CIDI - DME | BI16: RNAVDMECIDI | BK16: SI HEV - CA gasoline | BL16: RNAVHEVCRFG | BN16: SI PHEV - CA gasoline and Electricity | BO16: RNAVPHEVCRFG | BQ16: CIDI HEV - DME | BR16: RNAVHEVDMETHER | BT16: CIDI PHEV - DME and Electricity | BU16: RNAVPHEVDMETHER | BW16: FCV - Gaseous H2 | BX16: RNAVFCVGH2 | CB16: BSI - ARHC | CC16: RNAVCOOPARHC
A17: Coal | B17: =(Inputs!$E$1518*(Petroleum!$B265*Petroleum!$F$262+Petroleum!$F265)+(1-Inputs!$E$1518)*(Petroleum!$B265*Petroleum!$D$262+Petroleum!$D265))/1000000*HLOOKUP($H$10,$Z$3:$AD$4,2,FALSE)/HLOOKUP($J$11,$Z$7:$AD$8,2,FALSE) -> 2069.762614 | C17: =(Petroleum!$C265*Petroleum!$G$262+Petroleum!$G265)/1000000*HLOOKUP($H$10,$Z$3:$AD$4,2,FALSE)/HLOOKUP($J$11,$Z$7:$AD$8,2,FALSE) -> 2450.458716 | D17: =((1-Vehicles!$C$35)*(1-Vehicles!$C$7)*Fuel_Specs!$B$15/((1-Vehicles!$C$35)*(1-Vehicles!$C$7)*Fuel_Specs!$B$15+Vehicles!$C$35*(1-Vehicles!$C$7)*Fuel_Specs!$B$17+Vehicles!$C$7*Fuel_Specs!$B$33)*(Petroleum!$B265*Petroleum!$D$262+(Petroleum!$D265-'T&D'!G217))+Vehicles!$C$35*(1-Vehicles!$C$7)*Fuel_Specs!$B$17/((1-Vehicles!$C$35)*(1-Vehicles!$C$7)*Fuel_Specs!$B$15+Vehicles!$C$35*(1-Vehicles!$C$7)*Fuel_Specs!$B$17+Vehicles!$C$7*Fuel_Specs!$B$33)*(Petroleum!B265*Petroleum!$F$262+Petroleum!$F265)+Vehicles!$C$7*Fuel_Specs!$B$33/((1-Vehicles!$C$35)*(1-Vehicles!$C$7)*Fuel_Specs!$B$15+Vehicles!$C$35*(1-Vehicles!$C$7)*Fuel_Specs!$B$17+Vehicles!$C$7*Fuel_Specs!$B$33)*(EtOH!BV549*EtOH!$BW$546+EtOH!$BW549)+Petroleum!AS126+Petroleum!AT126)/1000000*HLOOKUP($H$10,$Z$3:$AD$4,2,FALSE)/HLOOKUP($J$11,$Z$7:$AD$8,2,FALSE) -> 2069.292516 | E17: =(Inputs!$E$97*(IF(Inputs!F$102=1,Petroleum!$B265,Petroleum!$C265)*IF(Inputs!F$102=1,Petroleum!$K$262,Petroleum!$L$262)+IF(Inputs!F$102=1,Petroleum!$K265,Petroleum!$L265))+(1-Inputs!$E$97)*(IF(Inputs!F$101=1,Petroleum!$B265,Petroleum!$C265)*Petroleum!$J$262+Petroleum!$J265))/1000000*HLOOKUP($H$10,$Z$3:$AD$4,2,FALSE)/HLOOKUP($J$11,$Z$7:$AD$8,2,FALSE) -> -509.8060039 | F17: =(NG!$J87*NG!$K$84+NG!$K87)/1000000*HLOOKUP($H$10,$Z$3:$AD$4,2,FALSE)/HLOOKUP($J$11,$Z$7:$AD$8,2,FALSE) -> -15.8261498 | G17: =(NG!$R87*NG!$S$84+NG!$S87)/1000000*HLOOKUP($H$10,$Z$3:$AD$4,2,FALSE)/HLOOKUP($J$11,$Z$7:$AD$8,2,FALSE) -> -7.436661416 | H17: =(NG!$X87*NG!$Y$84+NG!$Y87)/1000000*HLOOKUP($H$10,$Z$3:$AD$4,2,FALSE)/HLOOKUP($J$11,$Z$7:$AD$8,2,FALSE) -> -137.9750464 | I17: =(MeOH_FTD!BJ165*MeOH_FTD!BK$162+MeOH_FTD!BK165)/1000000*HLOOKUP($H$10,$Z$3:$AD$4,2,FALSE)/HLOOKUP($J$11,$Z$7:$AD$8,2,FALSE) -> 15.44380466 | J17: =((1-Vehicles!$C$34)*(1-Vehicles!$C$5)*Fuel_Specs!$B$15/((1-Vehicles!$C$34)*(1-Vehicles!$C$5)*Fuel_Specs!$B$15+Vehicles!$C$34*(1-Vehicles!$C$5)*Fuel_Specs!$B$17+Vehicles!$C$5*Fuel_Specs!$B$32)*(Petroleum!$B265*Petroleum!$D$262+Petroleum!$D265)+Vehicles!$C$34*(1-Vehicles!$C$5)*Fuel_Specs!$B$17/((1-Vehicles!$C$34)*(1-Vehicles!$C$5)*Fuel_Specs!$B$15+Vehicles!$C$34*(1-Vehicles!$C$5)*Fuel_Specs!$B$17+Vehicles!$C$5*Fuel_Specs!$B$32)*(Petroleum!B265*Petroleum!$F$262+Petroleum!$F265)+Vehicles!$C$5*Fuel_Specs!$B$32/((1-Vehicles!$C$34)*(1-Vehicles!$C$5)*Fuel_Specs!$B$15+Vehicles!$C$34*(1-Vehicles!$C$5)*Fuel_Specs!$B$17+Vehicles!$C$5*Fuel_Specs!$B$32)*(MeOH_FTD!$N165*MeOH_FTD!$O$162+MeOH_FTD!$O165))/1000000*HLOOKUP($H$10,$Z$3:$AD$4,2,FALSE)/HLOOKUP($J$11,$Z$7:$AD$8,2,FALSE) -> -158.1100823 | K17: =((1-Vehicles!$C$34)*(1-Vehicles!$C$6)*Fuel_Specs!$B$15/((1-Vehicles!$C$34)*(1-Vehicles!$C$6)*Fuel_Specs!$B$15+Vehicles!$C$34*(1-Vehicles!$C$6)*Fuel_Specs!$B$17+Vehicles!$C$6*Fuel_Specs!$B$32)*(Petroleum!$B265*Petroleum!$D$262+Petroleum!$D265)+Vehicles!$C$34*(1-Vehicles!$C$6)*Fuel_Specs!$B$17/((1-Vehicles!$C$34)*(1-Vehicles!$C$6)*Fuel_Specs!$B$15+Vehicles!$C$34*(1-Vehicles!$C$6)*Fuel_Specs!$B$17+Vehicles!$C$6*Fuel_Specs!$B$32)*(Petroleum!B265*Petroleum!$F$262+Petroleum!$F265)+Vehicles!$C$6*Fuel_Specs!$B$32/((1-Vehicles!$C$34)*(1-Vehicles!$C$6)*Fuel_Specs!$B$15+Vehicles!$C$34*(1-Vehicles!$C$6)*Fuel_Specs!$B$17+Vehicles!$C$6*Fuel_Specs!$B$32)*(MeOH_FTD!$N165*MeOH_FTD!$O$162+MeOH_FTD!$O165))/1000000*HLOOKUP($H$10,$Z$3:$AD$4,2,FALSE)/HLOOKUP($J$11,$Z$7:$AD$8,2,FALSE) -> -118.6226736 | L17: =(MeOH_FTD!$N165*MeOH_FTD!$O$162+MeOH_FTD!$O165)/1000000*HLOOKUP($H$10,$Z$3:$AD$4,2,FALSE)/HLOOKUP($J$11,$Z$7:$AD$8,2,FALSE) -> -27.47262924 | M17: =((1-Vehicles!$C$36)*(1-Vehicles!$C$8)*Fuel_Specs!$B$15/((1-Vehicles!$C$36)*(1-Vehicles!$C$8)*Fuel_Specs!$B$15+Vehicles!$C$36*(1-Vehicles!$C$8)*Fuel_Specs!$B$17+Vehicles!$C$8*Fuel_Specs!$B$33)*(Petroleum!$B265*Petroleum!$D$262+(Petroleum!$D265-'T&D'!G217))+Vehicles!$C$36*(1-Vehicles!$C$8)*Fuel_Specs!$B$17/((1-Vehicles!$C$36)*(1-Vehicles!$C$8)*Fuel_Specs!$B$15+Vehicles!$C$36*(1-Vehicles!$C$8)*Fuel_Specs!$B$17+Vehicles!$C$8*Fuel_Specs!$B$33)*(Petroleum!B265*Petroleum!$F$262+Petroleum!$F265)+Vehicles!$C$8*Fuel_Specs!$B$33/((1-Vehicles!$C$36)*(1-Vehicles!$C$8)*Fuel_Specs!$B$15+Vehicles!$C$36*(1-Vehicles!$C$8)*Fuel_Specs!$B$17+Vehicles!$C$8*Fuel_Specs!$B$33)*(EtOH!BV549*EtOH!$BW$546+EtOH!$BW549)+Petroleum!AS126+Petroleum!AT126)/1000000*HLOOKUP($H$10,$Z$3:$AD$4,2,FALSE)/HLOOKUP($J$11,$Z$7:$AD$8,2,FALSE) -> 29274.66834 | N17: =((1-Vehicles!$C$37)*(1-Vehicles!$C$12)*Fuel_Specs!$B$15/((1-Vehicles!$C$37)*(1-Vehicles!$C$12)*Fuel_Specs!$B$15+Vehicles!$C$37*(1-Vehicles!$C$12)*Fuel_Specs!$B$17+Vehicles!$C$12*Fuel_Specs!$B$34)*(Petroleum!$B265*Petroleum!$D$262+Petroleum!$D265)+Vehicles!$C$37*(1-Vehicles!$C$12)*Fuel_Specs!$B$17/((1-Vehicles!$C$37)*(1-Vehicles!$C$12)*Fuel_Specs!$B$15+Vehicles!$C$37*(1-Vehicles!$C$12)*Fuel_Specs!$B$17+Vehicles!$C$12*Fuel_Specs!$B$34)*(Petroleum!B265*Petroleum!$F$262+Petroleum!$F265)+Vehicles!$C$12*Fuel_Specs!$B$34/((1-Vehicles!$C$37)*(1-Vehicles!$C$12)*Fuel_Specs!$B$15+Vehicles!$C$37*(1-Vehicles!$C$12)*Fuel_Specs!$B$17+Vehicles!$C$12*Fuel_Specs!$B$34)*(EtOH!$BX549*EtOH!$BY$546+EtOH!$BY549))/1000000*HLOOKUP($H$10,$Z$3:$AD$4,2,FALSE)/HLOOKUP($J$11,$Z$7:$AD$8,2,FALSE) -> -21.70440922 | O17: =((1-Vehicles!$C$36)*(1-Vehicles!$C$9)*Fuel_Specs!$B$15/((1-Vehicles!$C$36)*(1-Vehicles!$C$9)*Fuel_Specs!$B$15+Vehicles!$C$36*(1-Vehicles!$C$9)*Fuel_Specs!$B$17+Vehicles!$C$9*Fuel_Specs!$B$33)*(Petroleum!$B265*Petroleum!$D$262+(Petroleum!$D265-'T&D'!G217))+Vehicles!$C$36*(1-Vehicles!$C$9)*Fuel_Specs!$B$17/((1-Vehicles!$C$36)*(1-Vehicles!$C$9)*Fuel_Specs!$B$15+Vehicles!$C$36*(1-Vehicles!$C$9)*Fuel_Specs!$B$17+Vehicles!$C$9*Fuel_Specs!$B$33)*(Petroleum!B265*Petroleum!$F$262+Petroleum!$F265)+Vehicles!$C$9*Fuel_Specs!$B$33/((1-Vehicles!$C$36)*(1-Vehicles!$C$9)*Fuel_Specs!$B$15+Vehicles!$C$36*(1-Vehicles!$C$9)*Fuel_Specs!$B$17+Vehicles!$C$9*Fuel_Specs!$B$33)*(EtOH!BV549*EtOH!$BW$546+EtOH!$BW549)+Petroleum!AS126+Petroleum!AT126)/1000000*HLOOKUP($H$10,$Z$3:$AD$4,2,FALSE)/HLOOKUP($J$11,$Z$7:$AD$8,2,FALSE) -> 29274.66834 | P17: =(EtOH!$BT549*EtOH!$BU$546+EtOH!$BU549)/1000000*HLOOKUP($H$10,$Z$3:$AD$4,2,FALSE)/HLOOKUP($J$11,$Z$7:$AD$8,2,FALSE) -> 38359.89449 | Q17: =((1-Vehicles!$C$40)*(1-Vehicles!$C$16)*Fuel_Specs!$B$15/((1-Vehicles!$C$40)*(1-Vehicles!$C$16)*Fuel_Specs!$B$15+Vehicles!$C$40*(1-Vehicles!$C$16)*Fuel_Specs!$B$17+Vehicles!$C$16*Fuel_Specs!$B$47)*(Petroleum!$B265*Petroleum!$D$262+Petroleum!$D265)+Vehicles!$C$40*(1-Vehicles!$C$16)*Fuel_Specs!$B$17/((1-Vehicles!$C$40)*(1-Vehicles!$C$16)*Fuel_Specs!$B$15+Vehicles!$C$40*(1-Vehicles!$C$16)*Fuel_Specs!$B$17+Vehicles!$C$16*Fuel_Specs!$B$47)*(Petroleum!B265*Petroleum!$F$262+Petroleum!$F265)+Vehicles!$C$16*Fuel_Specs!$B$47/((1-Vehicles!$C$40)*(1-Vehicles!$C$16)*Fuel_Specs!$B$15+Vehicles!$C$40*(1-Vehicles!$C$16)*Fuel_Specs!$B$17+Vehicles!$C$16*Fuel_Specs!$B$47)*(BioOil!$CE435*BioOil!$CF$431+BioOil!$CF435))/1000000*HLOOKUP($H$10,$Z$3:$AD$4,2,FALSE)/HLOOKUP($J$11,$Z$7:$AD$8,2,FALSE) -> 11639.59369 | R17: =((1-Vehicles!$C$40)*(1-Vehicles!$C$16)*Fuel_Specs!$B$15/((1-Vehicles!$C$40)*(1-Vehicles!$C$16)*Fuel_Specs!$B$15+Vehicles!$C$40*(1-Vehicles!$C$16)*Fuel_Specs!$B$17+Vehicles!$C$16*Fuel_Specs!$B$47)*(Petroleum!$B265*Petroleum!$D$262+Petroleum!$D265)+Vehicles!$C$40*(1-Vehicles!$C$16)*Fuel_Specs!$B$17/((1-Vehicles!$C$40)*(1-Vehicles!$C$16)*Fuel_Specs!$B$15+Vehicles!$C$40*(1-Vehicles!$C$16)*Fuel_Specs!$B$17+Vehicles!$C$16*Fuel_Specs!$B$47)*(Petroleum!B265*Petroleum!$F$262+Petroleum!$F265)+Vehicles!$C$16*Fuel_Specs!$B$47/((1-Vehicles!$C$40)*(1-Vehicles!$C$16)*Fuel_Specs!$B$15+Vehicles!$C$40*(1-Vehicles!$C$16)*Fuel_Specs!$B$17+Vehicles!$C$16*Fuel_Specs!$B$47)*(Pyrolysis_IDL!$AD300*Pyrolysis_IDL!$AE$297+Pyrolysis_IDL!$AE300))/1000000*HLOOKUP($H$10,$Z$3:$AD$4,2,FALSE)/HLOOKUP($J$11,$Z$7:$AD$8,2,FALSE) -> -67.64296471 | S17: =AN17*(Vehicles!$C$30/Vehicles!$AT$72)/(Vehicles!$C$30*(1/Vehicles!$AT$72+1/Vehicles!$AU$72)+Vehicles!$C$31/Vehicles!$AV$72)+B17*(Vehicles!$C$30/Vehicles!$AU$72+Vehicles!$C$31/Vehicles!$AV$72)/(Vehicles!$C$30*(1/Vehicles!$AT$72+1/Vehicles!$AU$72)+Vehicles!$C$31/Vehicles!$AV$72) ->  | T17: =AN17*(Vehicles!$D$30/Vehicles!$AX$72)/(Vehicles!$D$30*(1/Vehicles!$AX$72+1/Vehicles!$AY$72)+Vehicles!$D$31/Vehicles!$AZ$72)+C17*(Vehicles!$D$30/Vehicles!$AY$72+Vehicles!$D$31/Vehicles!$AZ$72)/(Vehicles!$D$30*(1/Vehicles!$AX$72+1/Vehicles!$AY$72)+Vehicles!$D$31/Vehicles!$AZ$72) ->  | U17: =AN17*(Vehicles!$F$30/Vehicles!$BF$72)/(Vehicles!$F$30*(1/Vehicles!$BF$72+1/Vehicles!$BG$72)+Vehicles!$F$31/Vehicles!$BH$72)+D17*(Vehicles!$F$30/Vehicles!$BG$72+Vehicles!$F$31/Vehicles!$BH$72)/(Vehicles!$F$30*(1/Vehicles!$BF$72+1/Vehicles!$BG$72)+Vehicles!$F$31/Vehicles!$BH$72) ->  | V17: =AN17*(Vehicles!$G$30/Vehicles!$BJ$72)/(Vehicles!$G$30*(1/Vehicles!$BJ$72+1/Vehicles!$BK$72)+Vehicles!$G$31/Vehicles!$BL$72)+F17*(Vehicles!$G$30/Vehicles!$BK$72+Vehicles!$G$31/Vehicles!$BL$72)/(Vehicles!$G$30*(1/Vehicles!$BJ$72+1/Vehicles!$BK$72)+Vehicles!$G$31/Vehicles!$BL$72) ->  | W17: =AN17*(Vehicles!$H$30/Vehicles!$BN$72)/(Vehicles!$H$30*(1/Vehicles!$BN$72+1/Vehicles!$BO$72)+Vehicles!$H$31/Vehicles!$BP$72)+G17*(Vehicles!$H$30/Vehicles!$BO$72+Vehicles!$H$31/Vehicles!$BP$72)/(Vehicles!$H$30*(1/Vehicles!$BN$72+1/Vehicles!$BO$72)+Vehicles!$H$31/Vehicles!$BP$72) ->  | X17: =AN17*(Vehicles!$I$30/Vehicles!$BR$72)/(Vehicles!$I$30*(1/Vehicles!$BR$72+1/Vehicles!$BS$72)+Vehicles!$I$31/Vehicles!$BT$72)+H17*(Vehicles!$I$30/Vehicles!$BS$72+Vehicles!$I$31/Vehicles!$BT$72)/(Vehicles!$I$30*(1/Vehicles!$BR$72+1/Vehicles!$BS$72)+Vehicles!$I$31/Vehicles!$BT$72) ->  | Y17: =AN17*(Vehicles!$J$30/Vehicles!$BV$72)/(Vehicles!$J$30*(1/Vehicles!$BV$72+1/Vehicles!$BW$72)+Vehicles!$J$31/Vehicles!$BX$72)+K17*(Vehicles!$J$30/Vehicles!$BW$72+Vehicles!$J$31/Vehicles!$BX$72)/(Vehicles!$J$30*(1/Vehicles!$BV$72+1/Vehicles!$BW$72)+Vehicles!$J$31/Vehicles!$BX$72) ->  | Z17: =AN17*(Vehicles!$K$30/Vehicles!$BZ$72)/(Vehicles!$K$30*(1/Vehicles!$BZ$72+1/Vehicles!$CA$72)+Vehicles!$K$31/Vehicles!$CB$72)+O17*(Vehicles!$K$30/Vehicles!$CA$72+Vehicles!$K$31/Vehicles!$CB$72)/(Vehicles!$K$30*(1/Vehicles!$BZ$72+1/Vehicles!$CA$72)+Vehicles!$K$31/Vehicles!$CB$72) ->  | AA17: =AN17*(Vehicles!$L$30/Vehicles!$CD$72)/(Vehicles!$L$30*(1/Vehicles!$CD$72+1/Vehicles!$CE$72)+Vehicles!$L$31/Vehicles!$CF$72)+AO17*(Vehicles!$L$30/Vehicles!$CE$72+Vehicles!$L$31/Vehicles!$CF$72)/(Vehicles!$L$30*(1/Vehicles!$CD$72+1/Vehicles!$CE$72)+Vehicles!$L$31/Vehicles!$CF$72) ->  | AB17: =AN17*(Vehicles!$L$30/Vehicles!$CD$72)/(Vehicles!$L$30*(1/Vehicles!$CD$72+1/Vehicles!$CE$72)+Vehicles!$L$31/Vehicles!$CG$72)+AP17*(Vehicles!$L$30/Vehicles!$CE$72+Vehicles!$L$31/Vehicles!$CG$72)/(Vehicles!$L$30*(1/Vehicles!$CD$72+1/Vehicles!$CE$72)+Vehicles!$L$31/Vehicles!$CG$72) ->  | AC17: =(MeOH_FTD!$AJ165*MeOH_FTD!$AK$162+MeOH_FTD!$AK165)/1000000*HLOOKUP($H$10,$Z$3:$AD$4,2,FALSE)/HLOOKUP($J$11,$Z$7:$AD$8,2,FALSE) -> -25.59148529 | AD17: =((1-Vehicles!$C$41)*(1-Vehicles!$C$13)*Fuel_Specs!$B$21/((1-Vehicles!$C$41)*(1-Vehicles!$C$13)*Fuel_Specs!$B$21+Vehicles!$C$41*(1-Vehicles!$C$13)*Fuel_Specs!$B$24+Vehicles!$C$13*Fuel_Specs!$B$42)*(Petroleum!B265*Petroleum!$J$262+Petroleum!$J265)+Vehicles!$C$41*(1-Vehicles!$C$13)*Fuel_Specs!$B$24/((1-Vehicles!$C$41)*(1-Vehicles!$C$13)*Fuel_Specs!$B$21+Vehicles!$C$41*(1-Vehicles!$C$13)*Fuel_Specs!$B$24+Vehicles!$C$13*Fuel_Specs!$B$42)*(Petroleum!B265*IF(Inputs!F$102=1,Petroleum!$K$262,Petroleum!$L$262)+IF(Inputs!F$102=1,Petroleum!$K265,Petroleum!$L265))+Vehicles!$C$13*Fuel_Specs!$B$42/((1-Vehicles!$C$41)*(1-Vehicles!$C$13)*Fuel_Specs!$B$21+Vehicles!$C$41*(1-Vehicles!$C$13)*Fuel_Specs!$B$24+Vehicles!$C$13*Fuel_Specs!$B$42)*(MeOH_FTD!$AZ165*MeOH_FTD!$BA$162+MeOH_FTD!$BA165))/1000000*HLOOKUP($H$10,$Z$3:$AD$4,2,FALSE)/HLOOKUP($J$11,$Z$7:$AD$8,2,FALSE) -> -6.510907732 | AE17: =((1-Vehicles!$C$42)*(1-Vehicles!$C$14)*Fuel_Specs!$B$21/((1-Vehicles!$C$42)*(1-Vehicles!$C$14)*Fuel_Specs!$B$21+Vehicles!$C$42*(1-Vehicles!$C$14)*Fuel_Specs!$B$24+Vehicles!$C$14*Fuel_Specs!$B$41)*(Petroleum!B265*Petroleum!$J$262+Petroleum!$J265)+Vehicles!$C$42*(1-Vehicles!$C$14)*Fuel_Specs!$B$24/((1-Vehicles!$C$42)*(1-Vehicles!$C$14)*Fuel_Specs!$B$21+Vehicles!$C$42*(1-Vehicles!$C$14)*Fuel_Specs!$B$24+Vehicles!$C$14*Fuel_Specs!$B$41)*(Petroleum!B265*IF(Inputs!F$102=1,Petroleum!$K$262,Petroleum!$L$262)+IF(Inputs!F$102=1,Petroleum!$K265,Petroleum!$L265))+Vehicles!$C$14*Fuel_Specs!$B$41/((1-Vehicles!$C$42)*(1-Vehicles!$C$14)*Fuel_Specs!$B$21+Vehicles!$C$42*(1-Vehicles!$C$14)*Fuel_Specs!$B$24+Vehicles!$C$14*Fuel_Specs!$B$41)*(BioOil!$Y435*BioOil!$Z$431+BioOil!$Z435))/1000000*HLOOKUP($H$10,$Z$3:$AD$4,2,FALSE)/HLOOKUP($J$11,$Z$7:$AD$8,2,FALSE) -> 1694.421675 | AF17: =((1-Vehicles!$C$43)*(1-Vehicles!$C$15)*Fuel_Specs!$B$21/((1-Vehicles!$C$43)*(1-Vehicles!$C$15)*Fuel_Specs!$B$21+Vehicles!$C$43*(1-Vehicles!$C$15)*Fuel_Specs!$B$24+Vehicles!$C$15*IF(Inputs!$E$670=1,IF(Inputs!$E$670=1,Fuel_Specs!$B$43,IF(Inputs!$E$670=3,Fuel_Specs!$B$45,Fuel_Specs!$B$44)),Fuel_Specs!$B$44))*(Petroleum!B265*Petroleum!$J$262+Petroleum!$J265)+Vehicles!$C$43*(1-Vehicles!$C$15)*Fuel_Specs!$B$24/((1-Vehicles!$C$43)*(1-Vehicles!$C$15)*Fuel_Specs!$B$21+Vehicles!$C$43*(1-Vehicles!$C$15)*Fuel_Specs!$B$24+Vehicles!$C$15*IF(Inputs!$E$670=1,IF(Inputs!$E$670=1,Fuel_Specs!$B$43,IF(Inputs!$E$670=3,Fuel_Specs!$B$45,Fuel_Specs!$B$44)),Fuel_Specs!$B$44))*(Petroleum!B265*IF(Inputs!F$102=1,Petroleum!$K$262,Petroleum!$L$262)+IF(Inputs!F$102=1,Petroleum!$K265,Petroleum!$L265))+Vehicles!$C$15*IF(Inputs!$E$670=1,IF(Inputs!$E$670=1,Fuel_Specs!$B$43,IF(Inputs!$E$670=3,Fuel_Specs!$B$45,Fuel_Specs!$B$44)),Fuel_Specs!$B$44)/((1-Vehicles!$C$43)*(1-Vehicles!$C$15)*Fuel_Specs!$B$21+Vehicles!$C$43*(1-Vehicles!$C$15)*Fuel_Specs!$B$24+Vehicles!$C$15*IF(Inputs!$E$670=1,IF(Inputs!$E$670=1,Fuel_Specs!$B$43,IF(Inputs!$E$670=3,Fuel_Specs!$B$45,Fuel_Specs!$B$44)),Fuel_Specs!$B$44))*(BioOil!$BQ435*BioOil!$BR$431+BioOil!$BR435))/1000000*HLOOKUP($H$10,$Z$3:$AD$4,2,FALSE)/HLOOKUP($J$11,$Z$7:$AD$8,2,FALSE) -> 11160.80593 | AG17: =((1-Vehicles!$C$43)*(1-Vehicles!$C$15)*Fuel_Specs!$B$21/((1-Vehicles!$C$43)*(1-Vehicles!$C$15)*Fuel_Specs!$B$21+Vehicles!$C$43*(1-Vehicles!$C$15)*Fuel_Specs!$B$24+Vehicles!$C$15*IF(Inputs!$E$670=1,Fuel_Specs!$B$43,Fuel_Specs!$B$44))*(Petroleum!B265*Petroleum!$J$262+Petroleum!$J265)+Vehicles!$C$43*(1-Vehicles!$C$15)*Fuel_Specs!$B$24/((1-Vehicles!$C$43)*(1-Vehicles!$C$15)*Fuel_Specs!$B$21+Vehicles!$C$43*(1-Vehicles!$C$15)*Fuel_Specs!$B$24+Vehicles!$C$15*IF(Inputs!$E$670=1,Fuel_Specs!$B$43,Fuel_Specs!$B$44))*(Petroleum!B265*IF(Inputs!F$102=1,Petroleum!$K$262,Petroleum!$L$262)+IF(Inputs!F$102=1,Petroleum!$K265,Petroleum!$L265))+Vehicles!$C$15*IF(Inputs!$E$670=1,Fuel_Specs!$B$43,Fuel_Specs!$B$44)/((1-Vehicles!$C$43)*(1-Vehicles!$C$15)*Fuel_Specs!$B$21+Vehicles!$C$43*(1-Vehicles!$C$15)*Fuel_Specs!$B$24+Vehicles!$C$15*IF(Inputs!$E$670=1,Fuel_Specs!$B$43,Fuel_Specs!$B$44))*(Pyrolysis_IDL!$AF300*Pyrolysis_IDL!$AG$297+Pyrolysis_IDL!$AG300))/1000000*HLOOKUP($H$10,$Z$3:$AD$4,2,FALSE)/HLOOKUP($J$11,$Z$7:$AD$8,2,FALSE) -> -52.22299565 | AH17: =(((1-Vehicles!$C$44)*(1-Vehicles!$C$17-Vehicles!$C$18)*Fuel_Specs!$B$21*(Petroleum!B265*Petroleum!$J$262+Petroleum!$J265)+Vehicles!$C$44*(1-Vehicles!$C$17-Vehicles!$C$18)*Fuel_Specs!$B$24*(Petroleum!B265*IF(Inputs!F$102=1,Petroleum!$K$262,Petroleum!$L$262)+IF(Inputs!F$102=1,Petroleum!$K265,Petroleum!$L265))+Vehicles!$C$17*Fuel_Specs!$B$33*(EtOH!BT549*EtOH!$BU$546+EtOH!$BU549)+Vehicles!$C$18*Fuel_Specs!$B$36*('EtOH-Diesel Additives'!$B56*'EtOH-Diesel Additives'!$B$53))/((1-Vehicles!$C$44)*(1-Vehicles!$C$17-Vehicles!$C$18)*Fuel_Specs!$B$21+Vehicles!$C$44*(1-Vehicles!$C$17-Vehicles!$C$18)*Fuel_Specs!$B$24+Vehicles!$C$17*Fuel_Specs!$B$33+Vehicles!$C$18*Fuel_Specs!$B$36))/1000000*HLOOKUP($H$10,$Z$3:$AD$4,2,FALSE)/HLOOKUP($J$11,$Z$7:$AD$8,2,FALSE) -> 1922.140995 | AI17: =AN17*(Vehicles!$M$30/Vehicles!$CO$72)/(Vehicles!$M$30*(1/Vehicles!$CO$72+1/Vehicles!$CP$72)+Vehicles!$M$31/Vehicles!$CQ$72)+E17*(Vehicles!$M$30/Vehicles!$CP$72+Vehicles!$M$31/Vehicles!$CQ$72)/(Vehicles!$M$30*(1/Vehicles!$CO$72+1/Vehicles!$CP$72)+Vehicles!$M$31/Vehicles!$CQ$72) ->  | AJ17: =AN17*(Vehicles!$N$30/Vehicles!$CS$72)/(Vehicles!$N$30*(1/Vehicles!$CS$72+1/Vehicles!$CT$72)+Vehicles!$N$31/Vehicles!$CU$72)+AC17*(Vehicles!$N$30/Vehicles!$CT$72+Vehicles!$N$31/Vehicles!$CU$72)/(Vehicles!$N$30*(1/Vehicles!$CS$72+1/Vehicles!$CT$72)+Vehicles!$N$31/Vehicles!$CU$72) ->  | AK17: =AN17*(Vehicles!$O$30/Vehicles!$CW$72)/(Vehicles!$O$30*(1/Vehicles!$CW$72+1/Vehicles!$CX$72)+Vehicles!$O$31/Vehicles!$CY$72)+AD17*(Vehicles!$O$30/Vehicles!$CX$72+Vehicles!$O$31/Vehicles!$CY$72)/(Vehicles!$O$30*(1/Vehicles!$CW$72+1/Vehicles!$CX$72)+Vehicles!$O$31/Vehicles!$CY$72) ->  | AL17: =AN17*(Vehicles!$P$30/Vehicles!$DA$72)/(Vehicles!$P$30*(1/Vehicles!$DA$72+1/Vehicles!$DB$72)+Vehicles!$P$31/Vehicles!$DC$72)+AE17*(Vehicles!$P$30/Vehicles!$DB$72+Vehicles!$P$31/Vehicles!$DC$72)/(Vehicles!$P$30*(1/Vehicles!$DA$72+1/Vehicles!$DB$72)+Vehicles!$P$31/Vehicles!$DC$72) ->  | AM17: =AN17*(Vehicles!$R$30/Vehicles!$DI$72)/(Vehicles!$R$30*(1/Vehicles!$DI$72+1/Vehicles!$DJ$72)+Vehicles!$R$31/Vehicles!$DK$72)+AH17*(Vehicles!$R$30/Vehicles!$DJ$72+Vehicles!$R$31/Vehicles!$DK$72)/(Vehicles!$R$30*(1/Vehicles!$DI$72+1/Vehicles!$DJ$72)+Vehicles!$R$31/Vehicles!$DK$72) ->  | AN17: =(Electric!$G206+Electric!$F206-1000000*(Electric!$F206+Electric!$G206)/(Electric!$F$204+Electric!$G$204))/1000000*HLOOKUP($H$10,$Z$3:$AD$4,2,FALSE)/HLOOKUP($J$11,$Z$7:$AD$8,2,FALSE) -> -177.5173355 | AO17: =((Hydrogen!$AJ308*Hydrogen!$AK$305+Hydrogen!$AK308)-1000000*(Hydrogen!$O$7+Hydrogen!$C$7+Hydrogen!$D$7+Hydrogen!$E$7))/1000000*HLOOKUP($H$10,$Z$3:$AD$4,2,FALSE)/HLOOKUP($J$11,$Z$7:$AD$8,2,FALSE) -> -99.96234451 | AP17: =((Hydrogen!$BT308*Hydrogen!$BU$305+Hydrogen!$BU308)-1000000*(Hydrogen!$O$8+Hydrogen!$C$8+Hydrogen!$D$8+Hydrogen!$E$8))/1000000*HLOOKUP($H$10,$Z$3:$AD$4,2,FALSE)/HLOOKUP($J$11,$Z$7:$AD$8,2,FALSE) -> -162.3936519 | AQ17: =AN17*(Vehicles!$S$30/Vehicles!$DY$72)/(Vehicles!$S$30*(1/Vehicles!$DY$72+1/Vehicles!$DZ$72)+Vehicles!$S$31/Vehicles!$EA$72)+AO17*(Vehicles!$S$30/Vehicles!$DZ$72+Vehicles!$S$31/Vehicles!$EA$72)/(Vehicles!$S$30*(1/Vehicles!$DY$72+1/Vehicles!$DZ$72)+Vehicles!$S$31/Vehicles!$EA$72) ->  | AR17: =AN17*(Vehicles!$S$30/Vehicles!$DY$72)/(Vehicles!$S$30*(1/Vehicles!$DY$72+1/Vehicles!$DZ$72)+Vehicles!$S$31/Vehicles!$EA$72)+AP17*(Vehicles!$S$30/Vehicles!$DZ$72+Vehicles!$S$31/Vehicles!$EA$72)/(Vehicles!$S$30*(1/Vehicles!$DY$72+1/Vehicles!$DZ$72)+Vehicles!$S$31/Vehicles!$EA$72) ->  | AS17: =((1-Vehicles!$C$40)*(1-Vehicles!$C$16)*Fuel_Specs!$B$15/((1-Vehicles!$C$40)*(1-Vehicles!$C$16)*Fuel_Specs!$B$15+Vehicles!$C$40*(1-Vehicles!$C$16)*Fuel_Specs!$B$17+Vehicles!$C$16*Fuel_Specs!$B$48)*(Petroleum!$B265*Petroleum!$D$262+Petroleum!$D265)+Vehicles!$C$40*(1-Vehicles!$C$16)*Fuel_Specs!$B$17/((1-Vehicles!$C$40)*(1-Vehicles!$C$16)*Fuel_Specs!$B$15+Vehicles!$C$40*(1-Vehicles!$C$16)*Fuel_Specs!$B$17+Vehicles!$C$16*Fuel_Specs!$B$48)*(Petroleum!B265*Petroleum!$F$262+Petroleum!$F265)+Vehicles!$C$16*Fuel_Specs!$B$48/((1-Vehicles!$C$40)*(1-Vehicles!$C$16)*Fuel_Specs!$B$15+Vehicles!$C$40*(1-Vehicles!$C$16)*Fuel_Specs!$B$17+Vehicles!$C$16*Fuel_Specs!$B$48)*(Pyrolysis_IDL!$AP300*Pyrolysis_IDL!$AQ$297+Pyrolysis_IDL!$AQ300))/1000000*HLOOKUP($H$10,$Z$3:$AD$4,2,FALSE)/HLOOKUP($J$11,$Z$7:$AD$8,2,FALSE) -> 1149.068522 | AT17: =(Petroleum!$B265*Petroleum!$S$262+Petroleum!$S265)/1000000*HLOOKUP($H$10,$Z$3:$AD$4,2,FALSE)/HLOOKUP($J$11,$Z$7:$AD$8,2,FALSE) -> -507.7188504 | AU17: -28.41915041 | AV17: -367.7148895 | BB17: ="SI - E"&TEXT(Vehicles_EtOH_LLBlend_EtOHShare*100,"0") -> SI - E10 | BC17: RNAVGASLLETOH | BE17: ="SIDI - E"&TEXT(Vehicles_EtOH_LLBlend_EtOHShare*100,"0") -> SIDI - E10 | BF17: RNAVGASLLETOHSIDI | BH17: CIDI - FT Diesel | BI17: RNAVFTDCIDI | BK17: SI HEV - RG from Pyrolysis | BL17: RNAVHEVRENGAS | BN17: SI PHEV - RG and Electricity | BO17: RNAVPHEVRENGAS | BQ17: CIDI HEV - FT Diesel | BR17: RNAVHEVFTDIESEL | BT17: CIDI PHEV - FTD and Electricity | BU17: RNAVPHEVFTDIESEL | BW17: FCV - Liquid H2 | BX17: RNAVFCVLH2 | CB17: MM - BioMethanol | CC17: RNAVCOOPBIOMEOH
A18: Natural Gas | B18: =B16-B17-B19 -> 152509.9104 | C18: 155745.619 | D18: 152616.8103 | E18: 115930.99 | F18: 141894.8591 | G18: 198176.8034 | H18: 123089.1194 | I18: 864701.7312 | J18: 372644.7049 | K18: 398560.1718 | L18: 458381.6702 | M18: 357870.2589 | N18: 591484.1612 | O18: 357870.2589 | P18: 426515.9817 | Q18: 43692.94681 | R18: 226876.2722 | AC18: 555261.0125 | AD18: 674394.1856 | AE18: 123854.3677 | AF18: 186941.1002 | AG18: =AG16-AG17-AG19 -> 272289.8415 | AH18: 136994.586 | AN18: 103716.1161 | AO18: 290106.2032 | AP18: 445376.3022 | AS18: 49711.95748 | AT18: =AT16-AT17-AT19 -> 129850.4637 | AU18: 135930.2569 | AV18: 113503.0744 | BB18: SI - EtOH FFV | BC18: RNAVETOHFFV | BE18: SIDI - Dedi. MeOH | BF18: RNAVMEOHSIDI | BH18: CIDI - Biodiesel | BI18: RNAVBIODIESELCIDI | BK18: ="SI HEV - E"&TEXT(Vehicles_EtOH_LLBlend_EtOHShare*100,"0") -> SI HEV - E10 | BL18: RNAVHEVLLETOH | BN18: ="SI PHEV - E"&TEXT(Vehicles_EtOH_LLBlend_EtOHShare*100,"0") -> SI PHEV - E10 | BO18: RNAVPHEVLLETOH | BQ18: CIDI HEV - Biodiesel | BR18: RNAVHEVBIODIESEL | BT18: CIDI PHEV - BD and Electricity | BU18: RNAVPHEVBIODIESEL
A19: Petroleum | B19: =(Inputs!$E$1518*(Petroleum!$B267*Petroleum!$F$262+Petroleum!$F267)+(1-Inputs!$E$1518)*(Petroleum!$B267*Petroleum!$D$262+Petroleum!$D267))/1000000*HLOOKUP($H$10,$Z$3:$AD$4,2,FALSE)/HLOOKUP($J$11,$Z$7:$AD$8,2,FALSE) -> 86680.29348 | C19: =(Petroleum!$C267*Petroleum!$G$262+Petroleum!$G267)/1000000*HLOOKUP($H$10,$Z$3:$AD$4,2,FALSE)/HLOOKUP($J$11,$Z$7:$AD$8,2,FALSE) -> 74588.95676 | D19: =((1-Vehicles!$C$35)*(1-Vehicles!$C$7)*Fuel_Specs!$B$15/((1-Vehicles!$C$35)*(1-Vehicles!$C$7)*Fuel_Specs!$B$15+Vehicles!$C$35*(1-Vehicles!$C$7)*Fuel_Specs!$B$17+Vehicles!$C$7*Fuel_Specs!$B$33)*(Petroleum!$B267*Petroleum!$D$262+(Petroleum!$D267-'T&D'!G219))+Vehicles!$C$35*(1-Vehicles!$C$7)*Fuel_Specs!$B$17/((1-Vehicles!$C$35)*(1-Vehicles!$C$7)*Fuel_Specs!$B$15+Vehicles!$C$35*(1-Vehicles!$C$7)*Fuel_Specs!$B$17+Vehicles!$C$7*Fuel_Specs!$B$33)*(Petroleum!B267*Petroleum!$F$262+Petroleum!$F267)+Vehicles!$C$7*Fuel_Specs!$B$33/((1-Vehicles!$C$35)*(1-Vehicles!$C$7)*Fuel_Specs!$B$15+Vehicles!$C$35*(1-Vehicles!$C$7)*Fuel_Specs!$B$17+Vehicles!$C$7*Fuel_Specs!$B$33)*(EtOH!BV551*EtOH!$BW$546+EtOH!$BW551)+Petroleum!AS128+Petroleum!AT128)/1000000*HLOOKUP($H$10,$Z$3:$AD$4,2,FALSE)/HLOOKUP($J$11,$Z$7:$AD$8,2,FALSE) -> 87656.05808 | E19: =(Inputs!$E$97*(IF(Inputs!F$102=1,Petroleum!$B267,Petroleum!$C267)*IF(Inputs!F$102=1,Petroleum!$K$262,Petroleum!$L$262)+IF(Inputs!F$102=1,Petroleum!$K267,Petroleum!$L267))+(1-Inputs!$E$97)*(IF(Inputs!F$101=1,Petroleum!$B267,Petroleum!$C267)*Petroleum!$J$262+Petroleum!$J267))/1000000*HLOOKUP($H$10,$Z$3:$AD$4,2,FALSE)/HLOOKUP($J$11,$Z$7:$AD$8,2,FALSE) -> 58184.94434 | F19: =(NG!$J89*NG!$K$84+NG!$K89)/1000000*HLOOKUP($H$10,$Z$3:$AD$4,2,FALSE)/HLOOKUP($J$11,$Z$7:$AD$8,2,FALSE) -> 32850.33137 | G19: =(NG!$R89*NG!$S$84+NG!$S89)/1000000*HLOOKUP($H$10,$Z$3:$AD$4,2,FALSE)/HLOOKUP($J$11,$Z$7:$AD$8,2,FALSE) -> 15436.65076 | H19: =(NG!$X89*NG!$Y$84+NG!$Y89)/1000000*HLOOKUP($H$10,$Z$3:$AD$4,2,FALSE)/HLOOKUP($J$11,$Z$7:$AD$8,2,FALSE) -> 36390.01742 | I19: =(MeOH_FTD!BJ167*MeOH_FTD!BK$162+MeOH_FTD!BK167)/1000000*HLOOKUP($H$10,$Z$3:$AD$4,2,FALSE)/HLOOKUP($J$11,$Z$7:$AD$8,2,FALSE) -> -32055.09755 | J19: =((1-Vehicles!$C$34)*(1-Vehicles!$C$5)*Fuel_Specs!$B$15/((1-Vehicles!$C$34)*(1-Vehicles!$C$5)*Fuel_Specs!$B$15+Vehicles!$C$34*(1-Vehicles!$C$5)*Fuel_Specs!$B$17+Vehicles!$C$5*Fuel_Specs!$B$32)*(Petroleum!$B267*Petroleum!$D$262+Petroleum!$D267)+Vehicles!$C$34*(1-Vehicles!$C$5)*Fuel_Specs!$B$17/((1-Vehicles!$C$34)*(1-Vehicles!$C$5)*Fuel_Specs!$B$15+Vehicles!$C$34*(1-Vehicles!$C$5)*Fuel_Specs!$B$17+Vehicles!$C$5*Fuel_Specs!$B$32)*(Petroleum!B267*Petroleum!$F$262+Petroleum!$F267)+Vehicles!$C$5*Fuel_Specs!$B$32/((1-Vehicles!$C$34)*(1-Vehicles!$C$5)*Fuel_Specs!$B$15+Vehicles!$C$34*(1-Vehicles!$C$5)*Fuel_Specs!$B$17+Vehicles!$C$5*Fuel_Specs!$B$32)*(MeOH_FTD!$N167*MeOH_FTD!$O$162+MeOH_FTD!$O167))/1000000*HLOOKUP($H$10,$Z$3:$AD$4,2,FALSE)/HLOOKUP($J$11,$Z$7:$AD$8,2,FALSE) -> 65061.73731 | K19: =((1-Vehicles!$C$34)*(1-Vehicles!$C$6)*Fuel_Specs!$B$15/((1-Vehicles!$C$34)*(1-Vehicles!$C$6)*Fuel_Specs!$B$15+Vehicles!$C$34*(1-Vehicles!$C$6)*Fuel_Specs!$B$17+Vehicles!$C$6*Fuel_Specs!$B$32)*(Petroleum!$B267*Petroleum!$D$262+Petroleum!$D267)+Vehicles!$C$34*(1-Vehicles!$C$6)*Fuel_Specs!$B$17/((1-Vehicles!$C$34)*(1-Vehicles!$C$6)*Fuel_Specs!$B$15+Vehicles!$C$34*(1-Vehicles!$C$6)*Fuel_Specs!$B$17+Vehicles!$C$6*Fuel_Specs!$B$32)*(Petroleum!B267*Petroleum!$F$262+Petroleum!$F267)+Vehicles!$C$6*Fuel_Specs!$B$32/((1-Vehicles!$C$34)*(1-Vehicles!$C$6)*Fuel_Specs!$B$15+Vehicles!$C$34*(1-Vehicles!$C$6)*Fuel_Specs!$B$17+Vehicles!$C$6*Fuel_Specs!$B$32)*(MeOH_FTD!$N167*MeOH_FTD!$O$162+MeOH_FTD!$O167))/1000000*HLOOKUP($H$10,$Z$3:$AD$4,2,FALSE)/HLOOKUP($J$11,$Z$7:$AD$8,2,FALSE) -> 62632.39809 | L19: =(MeOH_FTD!$N167*MeOH_FTD!$O$162+MeOH_FTD!$O167)/1000000*HLOOKUP($H$10,$Z$3:$AD$4,2,FALSE)/HLOOKUP($J$11,$Z$7:$AD$8,2,FALSE) -> 57024.67692 | M19: =((1-Vehicles!$C$36)*(1-Vehicles!$C$8)*Fuel_Specs!$B$15/((1-Vehicles!$C$36)*(1-Vehicles!$C$8)*Fuel_Specs!$B$15+Vehicles!$C$36*(1-Vehicles!$C$8)*Fuel_Specs!$B$17+Vehicles!$C$8*Fuel_Specs!$B$33)*(Petroleum!$B267*Petroleum!$D$262+(Petroleum!$D267-'T&D'!G219))+Vehicles!$C$36*(1-Vehicles!$C$8)*Fuel_Specs!$B$17/((1-Vehicles!$C$36)*(1-Vehicles!$C$8)*Fuel_Specs!$B$15+Vehicles!$C$36*(1-Vehicles!$C$8)*Fuel_Specs!$B$17+Vehicles!$C$8*Fuel_Specs!$B$33)*(Petroleum!B267*Petroleum!$F$262+Petroleum!$F267)+Vehicles!$C$8*Fuel_Specs!$B$33/((1-Vehicles!$C$36)*(1-Vehicles!$C$8)*Fuel_Specs!$B$15+Vehicles!$C$36*(1-Vehicles!$C$8)*Fuel_Specs!$B$17+Vehicles!$C$8*Fuel_Specs!$B$33)*(EtOH!BV551*EtOH!$BW$546+EtOH!$BW551)+Petroleum!AS128+Petroleum!AT128)/1000000*HLOOKUP($H$10,$Z$3:$AD$4,2,FALSE)/HLOOKUP($J$11,$Z$7:$AD$8,2,FALSE) -> 88396.28998 | N19: =((1-Vehicles!$C$37)*(1-Vehicles!$C$12)*Fuel_Specs!$B$15/((1-Vehicles!$C$37)*(1-Vehicles!$C$12)*Fuel_Specs!$B$15+Vehicles!$C$37*(1-Vehicles!$C$12)*Fuel_Specs!$B$17+Vehicles!$C$12*Fuel_Specs!$B$34)*(Petroleum!$B267*Petroleum!$D$262+Petroleum!$D267)+Vehicles!$C$37*(1-Vehicles!$C$12)*Fuel_Specs!$B$17/((1-Vehicles!$C$37)*(1-Vehicles!$C$12)*Fuel_Specs!$B$15+Vehicles!$C$37*(1-Vehicles!$C$12)*Fuel_Specs!$B$17+Vehicles!$C$12*Fuel_Specs!$B$34)*(Petroleum!B267*Petroleum!$F$262+Petroleum!$F267)+Vehicles!$C$12*Fuel_Specs!$B$34/((1-Vehicles!$C$37)*(1-Vehicles!$C$12)*Fuel_Specs!$B$15+Vehicles!$C$37*(1-Vehicles!$C$12)*Fuel_Specs!$B$17+Vehicles!$C$12*Fuel_Specs!$B$34)*(EtOH!$BX551*EtOH!$BY$546+EtOH!$BY551))/1000000*HLOOKUP($H$10,$Z$3:$AD$4,2,FALSE)/HLOOKUP($J$11,$Z$7:$AD$8,2,FALSE) -> 76115.75609 | O19: =((1-Vehicles!$C$36)*(1-Vehicles!$C$9)*Fuel_Specs!$B$15/((1-Vehicles!$C$36)*(1-Vehicles!$C$9)*Fuel_Specs!$B$15+Vehicles!$C$36*(1-Vehicles!$C$9)*Fuel_Specs!$B$17+Vehicles!$C$9*Fuel_Specs!$B$33)*(Petroleum!$B267*Petroleum!$D$262+(Petroleum!$D267-'T&D'!G219))+Vehicles!$C$36*(1-Vehicles!$C$9)*Fuel_Specs!$B$17/((1-Vehicles!$C$36)*(1-Vehicles!$C$9)*Fuel_Specs!$B$15+Vehicles!$C$36*(1-Vehicles!$C$9)*Fuel_Specs!$B$17+Vehicles!$C$9*Fuel_Specs!$B$33)*(Petroleum!B267*Petroleum!$F$262+Petroleum!$F267)+Vehicles!$C$9*Fuel_Specs!$B$33/((1-Vehicles!$C$36)*(1-Vehicles!$C$9)*Fuel_Specs!$B$15+Vehicles!$C$36*(1-Vehicles!$C$9)*Fuel_Specs!$B$17+Vehicles!$C$9*Fuel_Specs!$B$33)*(EtOH!BV551*EtOH!$BW$546+EtOH!$BW551)+Petroleum!AS128+Petroleum!AT128)/1000000*HLOOKUP($H$10,$Z$3:$AD$4,2,FALSE)/HLOOKUP($J$11,$Z$7:$AD$8,2,FALSE) -> 88396.28998 | P19: =(EtOH!$BT551*EtOH!$BU$546+EtOH!$BU551)/1000000*HLOOKUP($H$10,$Z$3:$AD$4,2,FALSE)/HLOOKUP($J$11,$Z$7:$AD$8,2,FALSE) -> 89539.36264 | Q19: =((1-Vehicles!$C$40)*(1-Vehicles!$C$16)*Fuel_Specs!$B$15/((1-Vehicles!$C$40)*(1-Vehicles!$C$16)*Fuel_Specs!$B$15+Vehicles!$C$40*(1-Vehicles!$C$16)*Fuel_Specs!$B$17+Vehicles!$C$16*Fuel_Specs!$B$47)*(Petroleum!$B267*Petroleum!$D$262+Petroleum!$D267)+Vehicles!$C$40*(1-Vehicles!$C$16)*Fuel_Specs!$B$17/((1-Vehicles!$C$40)*(1-Vehicles!$C$16)*Fuel_Specs!$B$15+Vehicles!$C$40*(1-Vehicles!$C$16)*Fuel_Specs!$B$17+Vehicles!$C$16*Fuel_Specs!$B$47)*(Petroleum!B267*Petroleum!$F$262+Petroleum!$F267)+Vehicles!$C$16*Fuel_Specs!$B$47/((1-Vehicles!$C$40)*(1-Vehicles!$C$16)*Fuel_Specs!$B$15+Vehicles!$C$40*(1-Vehicles!$C$16)*Fuel_Specs!$B$17+Vehicles!$C$16*Fuel_Specs!$B$47)*(BioOil!$CE437*BioOil!$CF$431+BioOil!$CF437))/1000000*HLOOKUP($H$10,$Z$3:$AD$4,2,FALSE)/HLOOKUP($J$11,$Z$7:$AD$8,2,FALSE) -> 53674.72224 | R19: =((1-Vehicles!$C$40)*(1-Vehicles!$C$16)*Fuel_Specs!$B$15/((1-Vehicles!$C$40)*(1-Vehicles!$C$16)*Fuel_Specs!$B$15+Vehicles!$C$40*(1-Vehicles!$C$16)*Fuel_Specs!$B$17+Vehicles!$C$16*Fuel_Specs!$B$47)*(Petroleum!$B267*Petroleum!$D$262+Petroleum!$D267)+Vehicles!$C$40*(1-Vehicles!$C$16)*Fuel_Specs!$B$17/((1-Vehicles!$C$40)*(1-Vehicles!$C$16)*Fuel_Specs!$B$15+Vehicles!$C$40*(1-Vehicles!$C$16)*Fuel_Specs!$B$17+Vehicles!$C$16*Fuel_Specs!$B$47)*(Petroleum!B267*Petroleum!$F$262+Petroleum!$F267)+Vehicles!$C$16*Fuel_Specs!$B$47/((1-Vehicles!$C$40)*(1-Vehicles!$C$16)*Fuel_Specs!$B$15+Vehicles!$C$40*(1-Vehicles!$C$16)*Fuel_Specs!$B$17+Vehicles!$C$16*Fuel_Specs!$B$47)*(Pyrolysis_IDL!$AD302*Pyrolysis_IDL!$AE$297+Pyrolysis_IDL!$AE302))/1000000*HLOOKUP($H$10,$Z$3:$AD$4,2,FALSE)/HLOOKUP($J$11,$Z$7:$AD$8,2,FALSE) -> 104206.9501 | S19: =AN19*(Vehicles!$C$30/Vehicles!$AT$72)/(Vehicles!$C$30*(1/Vehicles!$AT$72+1/Vehicles!$AU$72)+Vehicles!$C$31/Vehicles!$AV$72)+B19*(Vehicles!$C$30/Vehicles!$AU$72+Vehicles!$C$31/Vehicles!$AV$72)/(Vehicles!$C$30*(1/Vehicles!$AT$72+1/Vehicles!$AU$72)+Vehicles!$C$31/Vehicles!$AV$72) ->  | T19: =AN19*(Vehicles!$D$30/Vehicles!$AX$72)/(Vehicles!$D$30*(1/Vehicles!$AX$72+1/Vehicles!$AY$72)+Vehicles!$D$31/Vehicles!$AZ$72)+C19*(Vehicles!$D$30/Vehicles!$AY$72+Vehicles!$D$31/Vehicles!$AZ$72)/(Vehicles!$D$30*(1/Vehicles!$AX$72+1/Vehicles!$AY$72)+Vehicles!$D$31/Vehicles!$AZ$72) ->  | U19: =AN19*(Vehicles!$F$30/Vehicles!$BF$72)/(Vehicles!$F$30*(1/Vehicles!$BF$72+1/Vehicles!$BG$72)+Vehicles!$F$31/Vehicles!$BH$72)+D19*(Vehicles!$F$30/Vehicles!$BG$72+Vehicles!$F$31/Vehicles!$BH$72)/(Vehicles!$F$30*(1/Vehicles!$BF$72+1/Vehicles!$BG$72)+Vehicles!$F$31/Vehicles!$BH$72) ->  | V19: =AN19*(Vehicles!$G$30/Vehicles!$BJ$72)/(Vehicles!$G$30*(1/Vehicles!$BJ$72+1/Vehicles!$BK$72)+Vehicles!$G$31/Vehicles!$BL$72)+F19*(Vehicles!$G$30/Vehicles!$BK$72+Vehicles!$G$31/Vehicles!$BL$72)/(Vehicles!$G$30*(1/Vehicles!$BJ$72+1/Vehicles!$BK$72)+Vehicles!$G$31/Vehicles!$BL$72) ->  | W19: =AN19*(Vehicles!$H$30/Vehicles!$BN$72)/(Vehicles!$H$30*(1/Vehicles!$BN$72+1/Vehicles!$BO$72)+Vehicles!$H$31/Vehicles!$BP$72)+G19*(Vehicles!$H$30/Vehicles!$BO$72+Vehicles!$H$31/Vehicles!$BP$72)/(Vehicles!$H$30*(1/Vehicles!$BN$72+1/Vehicles!$BO$72)+Vehicles!$H$31/Vehicles!$BP$72) ->  | X19: =AN19*(Vehicles!$I$30/Vehicles!$BR$72)/(Vehicles!$I$30*(1/Vehicles!$BR$72+1/Vehicles!$BS$72)+Vehicles!$I$31/Vehicles!$BT$72)+H19*(Vehicles!$I$30/Vehicles!$BS$72+Vehicles!$I$31/Vehicles!$BT$72)/(Vehicles!$I$30*(1/Vehicles!$BR$72+1/Vehicles!$BS$72)+Vehicles!$I$31/Vehicles!$BT$72) ->  | Y19: =AN19*(Vehicles!$J$30/Vehicles!$BV$72)/(Vehicles!$J$30*(1/Vehicles!$BV$72+1/Vehicles!$BW$72)+Vehicles!$J$31/Vehicles!$BX$72)+K19*(Vehicles!$J$30/Vehicles!$BW$72+Vehicles!$J$31/Vehicles!$BX$72)/(Vehicles!$J$30*(1/Vehicles!$BV$72+1/Vehicles!$BW$72)+Vehicles!$J$31/Vehicles!$BX$72) ->  | Z19: =AN19*(Vehicles!$K$30/Vehicles!$BZ$72)/(Vehicles!$K$30*(1/Vehicles!$BZ$72+1/Vehicles!$CA$72)+Vehicles!$K$31/Vehicles!$CB$72)+O19*(Vehicles!$K$30/Vehicles!$CA$72+Vehicles!$K$31/Vehicles!$CB$72)/(Vehicles!$K$30*(1/Vehicles!$BZ$72+1/Vehicles!$CA$72)+Vehicles!$K$31/Vehicles!$CB$72) ->  | AA19: =AN19*(Vehicles!$L$30/Vehicles!$CD$72)/(Vehicles!$L$30*(1/Vehicles!$CD$72+1/Vehicles!$CE$72)+Vehicles!$L$31/Vehicles!$CF$72)+AO19*(Vehicles!$L$30/Vehicles!$CE$72+Vehicles!$L$31/Vehicles!$CF$72)/(Vehicles!$L$30*(1/Vehicles!$CD$72+1/Vehicles!$CE$72)+Vehicles!$L$31/Vehicles!$CF$72) ->  | AB19: =AN19*(Vehicles!$L$30/Vehicles!$CD$72)/(Vehicles!$L$30*(1/Vehicles!$CD$72+1/Vehicles!$CE$72)+Vehicles!$L$31/Vehicles!$CG$72)+AP19*(Vehicles!$L$30/Vehicles!$CE$72+Vehicles!$L$31/Vehicles!$CG$72)/(Vehicles!$L$30*(1/Vehicles!$CD$72+1/Vehicles!$CE$72)+Vehicles!$L$31/Vehicles!$CG$72) ->  | AC19: =(MeOH_FTD!$AJ167*MeOH_FTD!$AK$162+MeOH_FTD!$AK167)/1000000*HLOOKUP($H$10,$Z$3:$AD$4,2,FALSE)/HLOOKUP($J$11,$Z$7:$AD$8,2,FALSE) -> 53120.11063 | AD19: =((1-Vehicles!$C$41)*(1-Vehicles!$C$13)*Fuel_Specs!$B$21/((1-Vehicles!$C$41)*(1-Vehicles!$C$13)*Fuel_Specs!$B$21+Vehicles!$C$41*(1-Vehicles!$C$13)*Fuel_Specs!$B$24+Vehicles!$C$13*Fuel_Specs!$B$42)*(Petroleum!B267*Petroleum!$J$262+Petroleum!$J267)+Vehicles!$C$41*(1-Vehicles!$C$13)*Fuel_Specs!$B$24/((1-Vehicles!$C$41)*(1-Vehicles!$C$13)*Fuel_Specs!$B$21+Vehicles!$C$41*(1-Vehicles!$C$13)*Fuel_Specs!$B$24+Vehicles!$C$13*Fuel_Specs!$B$42)*(Petroleum!B267*IF(Inputs!F$102=1,Petroleum!$K$262,Petroleum!$L$262)+IF(Inputs!F$102=1,Petroleum!$K267,Petroleum!$L267))+Vehicles!$C$13*Fuel_Specs!$B$42/((1-Vehicles!$C$41)*(1-Vehicles!$C$13)*Fuel_Specs!$B$21+Vehicles!$C$41*(1-Vehicles!$C$13)*Fuel_Specs!$B$24+Vehicles!$C$13*Fuel_Specs!$B$42)*(MeOH_FTD!$AZ167*MeOH_FTD!$BA$162+MeOH_FTD!$BA167))/1000000*HLOOKUP($H$10,$Z$3:$AD$4,2,FALSE)/HLOOKUP($J$11,$Z$7:$AD$8,2,FALSE) -> 13515.35357 | AE19: =((1-Vehicles!$C$42)*(1-Vehicles!$C$14)*Fuel_Specs!$B$21/((1-Vehicles!$C$42)*(1-Vehicles!$C$14)*Fuel_Specs!$B$21+Vehicles!$C$42*(1-Vehicles!$C$14)*Fuel_Specs!$B$24+Vehicles!$C$14*Fuel_Specs!$B$41)*(Petroleum!B267*Petroleum!$J$262+Petroleum!$J267)+Vehicles!$C$42*(1-Vehicles!$C$14)*Fuel_Specs!$B$24/((1-Vehicles!$C$42)*(1-Vehicles!$C$14)*Fuel_Specs!$B$21+Vehicles!$C$42*(1-Vehicles!$C$14)*Fuel_Specs!$B$24+Vehicles!$C$14*Fuel_Specs!$B$41)*(Petroleum!B267*IF(Inputs!F$102=1,Petroleum!$K$262,Petroleum!$L$262)+IF(Inputs!F$102=1,Petroleum!$K267,Petroleum!$L267))+Vehicles!$C$14*Fuel_Specs!$B$41/((1-Vehicles!$C$42)*(1-Vehicles!$C$14)*Fuel_Specs!$B$21+Vehicles!$C$42*(1-Vehicles!$C$14)*Fuel_Specs!$B$24+Vehicles!$C$14*Fuel_Specs!$B$41)*(BioOil!$Y437*BioOil!$Z$431+BioOil!$Z437))/1000000*HLOOKUP($H$10,$Z$3:$AD$4,2,FALSE)/HLOOKUP($J$11,$Z$7:$AD$8,2,FALSE) -> 56956.16687 | AF19: =((1-Vehicles!$C$43)*(1-Vehicles!$C$15)*Fuel_Specs!$B$21/((1-Vehicles!$C$43)*(1-Vehicles!$C$15)*Fuel_Specs!$B$21+Vehicles!$C$43*(1-Vehicles!$C$15)*Fuel_Specs!$B$24+Vehicles!$C$15*IF(Inputs!$E$670=1,IF(Inputs!$E$670=1,Fuel_Specs!$B$43,IF(Inputs!$E$670=3,Fuel_Specs!$B$45,Fuel_Specs!$B$44)),Fuel_Specs!$B$44))*(Petroleum!B267*Petroleum!$J$262+Petroleum!$J267)+Vehicles!$C$43*(1-Vehicles!$C$15)*Fuel_Specs!$B$24/((1-Vehicles!$C$43)*(1-Vehicles!$C$15)*Fuel_Specs!$B$21+Vehicles!$C$43*(1-Vehicles!$C$15)*Fuel_Specs!$B$24+Vehicles!$C$15*IF(Inputs!$E$670=1,IF(Inputs!$E$670=1,Fuel_Specs!$B$43,IF(Inputs!$E$670=3,Fuel_Specs!$B$45,Fuel_Specs!$B$44)),Fuel_Specs!$B$44))*(Petroleum!B267*IF(Inputs!F$102=1,Petroleum!$K$262,Petroleum!$L$262)+IF(Inputs!F$102=1,Petroleum!$K267,Petroleum!$L267))+Vehicles!$C$15*IF(Inputs!$E$670=1,IF(Inputs!$E$670=1,Fuel_Specs!$B$43,IF(Inputs!$E$670=3,Fuel_Specs!$B$45,Fuel_Specs!$B$44)),Fuel_Specs!$B$44)/((1-Vehicles!$C$43)*(1-Vehicles!$C$15)*Fuel_Specs!$B$21+Vehicles!$C$43*(1-Vehicles!$C$15)*Fuel_Specs!$B$24+Vehicles!$C$15*IF(Inputs!$E$670=1,IF(Inputs!$E$670=1,Fuel_Specs!$B$43,IF(Inputs!$E$670=3,Fuel_Specs!$B$45,Fuel_Specs!$B$44)),Fuel_Specs!$B$44))*(BioOil!$BQ437*BioOil!$BR$431+BioOil!$BR437))/1000000*HLOOKUP($H$10,$Z$3:$AD$4,2,FALSE)/HLOOKUP($J$11,$Z$7:$AD$8,2,FALSE) -> 55908.19674 | AG19: =((1-Vehicles!$C$43)*(1-Vehicles!$C$15)*Fuel_Specs!$B$21/((1-Vehicles!$C$43)*(1-Vehicles!$C$15)*Fuel_Specs!$B$21+Vehicles!$C$43*(1-Vehicles!$C$15)*Fuel_Specs!$B$24+Vehicles!$C$15*IF(Inputs!$E$670=1,Fuel_Specs!$B$43,Fuel_Specs!$B$44))*(Petroleum!B267*Petroleum!$J$262+Petroleum!$J267)+Vehicles!$C$43*(1-Vehicles!$C$15)*Fuel_Specs!$B$24/((1-Vehicles!$C$43)*(1-Vehicles!$C$15)*Fuel_Specs!$B$21+Vehicles!$C$43*(1-Vehicles!$C$15)*Fuel_Specs!$B$24+Vehicles!$C$15*IF(Inputs!$E$670=1,Fuel_Specs!$B$43,Fuel_Specs!$B$44))*(Petroleum!B267*IF(Inputs!F$102=1,Petroleum!$K$262,Petroleum!$L$262)+IF(Inputs!F$102=1,Petroleum!$K267,Petroleum!$L267))+Vehicles!$C$15*IF(Inputs!$E$670=1,Fuel_Specs!$B$43,Fuel_Specs!$B$44)/((1-Vehicles!$C$43)*(1-Vehicles!$C$15)*Fuel_Specs!$B$21+Vehicles!$C$43*(1-Vehicles!$C$15)*Fuel_Specs!$B$24+Vehicles!$C$15*IF(Inputs!$E$670=1,Fuel_Specs!$B$43,Fuel_Specs!$B$44))*(Pyrolysis_IDL!$AF302*Pyrolysis_IDL!$AG$297+Pyrolysis_IDL!$AG302))/1000000*HLOOKUP($H$10,$Z$3:$AD$4,2,FALSE)/HLOOKUP($J$11,$Z$7:$AD$8,2,FALSE) -> 108397.2868 | AH19: =(((1-Vehicles!$C$44)*(1-Vehicles!$C$17-Vehicles!$C$18)*Fuel_Specs!$B$21*(Petroleum!B267*Petroleum!$J$262+Petroleum!$J267)+Vehicles!$C$44*(1-Vehicles!$C$17-Vehicles!$C$18)*Fuel_Specs!$B$24*(Petroleum!B267*IF(Inputs!F$102=1,Petroleum!$K$262,Petroleum!$L$262)+IF(Inputs!F$102=1,Petroleum!$K267,Petroleum!$L267))+Vehicles!$C$17*Fuel_Specs!$B$33*(EtOH!BT551*EtOH!$BU$546+EtOH!$BU551)+Vehicles!$C$18*Fuel_Specs!$B$36*('EtOH-Diesel Additives'!$B58*'EtOH-Diesel Additives'!$B$53))/((1-Vehicles!$C$44)*(1-Vehicles!$C$17-Vehicles!$C$18)*Fuel_Specs!$B$21+Vehicles!$C$44*(1-Vehicles!$C$17-Vehicles!$C$18)*Fuel_Specs!$B$24+Vehicles!$C$17*Fuel_Specs!$B$33+Vehicles!$C$18*Fuel_Specs!$B$36))/1000000*HLOOKUP($H$10,$Z$3:$AD$4,2,FALSE)/HLOOKUP($J$11,$Z$7:$AD$8,2,FALSE) -> 60177.43657 | AI19: =AN19*(Vehicles!$M$30/Vehicles!$CO$72)/(Vehicles!$M$30*(1/Vehicles!$CO$72+1/Vehicles!$CP$72)+Vehicles!$M$31/Vehicles!$CQ$72)+E19*(Vehicles!$M$30/Vehicles!$CP$72+Vehicles!$M$31/Vehicles!$CQ$72)/(Vehicles!$M$30*(1/Vehicles!$CO$72+1/Vehicles!$CP$72)+Vehicles!$M$31/Vehicles!$CQ$72) ->  | AJ19: =AN19*(Vehicles!$N$30/Vehicles!$CS$72)/(Vehicles!$N$30*(1/Vehicles!$CS$72+1/Vehicles!$CT$72)+Vehicles!$N$31/Vehicles!$CU$72)+AC19*(Vehicles!$N$30/Vehicles!$CT$72+Vehicles!$N$31/Vehicles!$CU$72)/(Vehicles!$N$30*(1/Vehicles!$CS$72+1/Vehicles!$CT$72)+Vehicles!$N$31/Vehicles!$CU$72) ->  | AK19: =AN19*(Vehicles!$O$30/Vehicles!$CW$72)/(Vehicles!$O$30*(1/Vehicles!$CW$72+1/Vehicles!$CX$72)+Vehicles!$O$31/Vehicles!$CY$72)+AD19*(Vehicles!$O$30/Vehicles!$CX$72+Vehicles!$O$31/Vehicles!$CY$72)/(Vehicles!$O$30*(1/Vehicles!$CW$72+1/Vehicles!$CX$72)+Vehicles!$O$31/Vehicles!$CY$72) ->  | AL19: =AN19*(Vehicles!$P$30/Vehicles!$DA$72)/(Vehicles!$P$30*(1/Vehicles!$DA$72+1/Vehicles!$DB$72)+Vehicles!$P$31/Vehicles!$DC$72)+AE19*(Vehicles!$P$30/Vehicles!$DB$72+Vehicles!$P$31/Vehicles!$DC$72)/(Vehicles!$P$30*(1/Vehicles!$DA$72+1/Vehicles!$DB$72)+Vehicles!$P$31/Vehicles!$DC$72) ->  | AM19: =AN19*(Vehicles!$R$30/Vehicles!$DI$72)/(Vehicles!$R$30*(1/Vehicles!$DI$72+1/Vehicles!$DJ$72)+Vehicles!$R$31/Vehicles!$DK$72)+AH19*(Vehicles!$R$30/Vehicles!$DJ$72+Vehicles!$R$31/Vehicles!$DK$72)/(Vehicles!$R$30*(1/Vehicles!$DI$72+1/Vehicles!$DJ$72)+Vehicles!$R$31/Vehicles!$DK$72) ->  | AN19: =(Electric!$G208+Electric!$F208-1000000*(Electric!$F208+Electric!$G208)/(Electric!$F$204+Electric!$G$204))/1000000*HLOOKUP($H$10,$Z$3:$AD$4,2,FALSE)/HLOOKUP($J$11,$Z$7:$AD$8,2,FALSE) -> 368465.9836 | AO19: =((Hydrogen!$AJ310*Hydrogen!$AK$305+Hydrogen!$AK310)-1000000*(Hydrogen!$O$7+Hydrogen!$C$7+Hydrogen!$D$7+Hydrogen!$E$7))/1000000*HLOOKUP($H$10,$Z$3:$AD$4,2,FALSE)/HLOOKUP($J$11,$Z$7:$AD$8,2,FALSE) -> 207488.703 | AP19: =((Hydrogen!$BT310*Hydrogen!$BU$305+Hydrogen!$BU310)-1000000*(Hydrogen!$O$8+Hydrogen!$C$8+Hydrogen!$D$8+Hydrogen!$E$8))/1000000*HLOOKUP($H$10,$Z$3:$AD$4,2,FALSE)/HLOOKUP($J$11,$Z$7:$AD$8,2,FALSE) -> 337075.0467 | AQ19: =AN19*(Vehicles!$S$30/Vehicles!$DY$72)/(Vehicles!$S$30*(1/Vehicles!$DY$72+1/Vehicles!$DZ$72)+Vehicles!$S$31/Vehicles!$EA$72)+AO19*(Vehicles!$S$30/Vehicles!$DZ$72+Vehicles!$S$31/Vehicles!$EA$72)/(Vehicles!$S$30*(1/Vehicles!$DY$72+1/Vehicles!$DZ$72)+Vehicles!$S$31/Vehicles!$EA$72) ->  | AR19: =AN19*(Vehicles!$S$30/Vehicles!$DY$72)/(Vehicles!$S$30*(1/Vehicles!$DY$72+1/Vehicles!$DZ$72)+Vehicles!$S$31/Vehicles!$EA$72)+AP19*(Vehicles!$S$30/Vehicles!$DZ$72+Vehicles!$S$31/Vehicles!$EA$72)/(Vehicles!$S$30*(1/Vehicles!$DY$72+1/Vehicles!$DZ$72)+Vehicles!$S$31/Vehicles!$EA$72) ->  | AS19: =((1-Vehicles!$C$40)*(1-Vehicles!$C$16)*Fuel_Specs!$B$15/((1-Vehicles!$C$40)*(1-Vehicles!$C$16)*Fuel_Specs!$B$15+Vehicles!$C$40*(1-Vehicles!$C$16)*Fuel_Specs!$B$17+Vehicles!$C$16*Fuel_Specs!$B$48)*(Petroleum!$B267*Petroleum!$D$262+Petroleum!$D267)+Vehicles!$C$40*(1-Vehicles!$C$16)*Fuel_Specs!$B$17/((1-Vehicles!$C$40)*(1-Vehicles!$C$16)*Fuel_Specs!$B$15+Vehicles!$C$40*(1-Vehicles!$C$16)*Fuel_Specs!$B$17+Vehicles!$C$16*Fuel_Specs!$B$48)*(Petroleum!B267*Petroleum!$F$262+Petroleum!$F267)+Vehicles!$C$16*Fuel_Specs!$B$48/((1-Vehicles!$C$40)*(1-Vehicles!$C$16)*Fuel_Specs!$B$15+Vehicles!$C$40*(1-Vehicles!$C$16)*Fuel_Specs!$B$17+Vehicles!$C$16*Fuel_Specs!$B$48)*(Pyrolysis_IDL!$AP302*Pyrolysis_IDL!$AQ$297+Pyrolysis_IDL!$AQ302))/1000000*HLOOKUP($H$10,$Z$3:$AD$4,2,FALSE)/HLOOKUP($J$11,$Z$7:$AD$8,2,FALSE) -> 148381.2928 | AT19: =(Petroleum!$B267*Petroleum!$S$262+Petroleum!$S267)/1000000*HLOOKUP($H$10,$Z$3:$AD$4,2,FALSE)/HLOOKUP($J$11,$Z$7:$AD$8,2,FALSE) -> 53852.71641 | AU19: 98965.56039 | AV19: 101521.9366 | BB19: SI - BtOH FFV | BC19: RNAVBTOHFFV | BE19: SIDI - Dedi. EtOH | BF19: RNAVETOHSIDI | BH19: CIDI - RD from Bio Oil | BI19: RNAVRENDIESEL1CIDI | BK19: SI HEV - CNG | BL19: RNAVHEVCNG | BN19: SI PHEV - CNG and Electricity | BO19: RNAVPHEVCNG | BQ19: CIDI HEV - RD from Pyrolysis | BR19: RNAVHEVRENDIESEL | BT19: CIDI PHEV - RD from Pyrolysis and Electricity | BU19: RNAVPHEVRENDIESEL
A20: Water consumption | B20: =(Inputs!$E$1518*(Petroleum!$B268*Petroleum!$F$262+Petroleum!$F268)+(1-Inputs!$E$1518)*(Petroleum!$B268*Petroleum!$D$262+Petroleum!$D268))/1000000/HLOOKUP(Results_EnergyFunctionalUnit,$Z$7:$AD$8,2,0) -> 62.6289507 | C20: =(Petroleum!$C268*Petroleum!$G$262+Petroleum!$G268)/1000000/HLOOKUP(Results_EnergyFunctionalUnit,$Z$7:$AD$8,2,0) -> 61.03687653 | D20: =((1-Vehicles!$C$35)*(1-Vehicles!$C$7)*Fuel_Specs!$B$15/((1-Vehicles!$C$35)*(1-Vehicles!$C$7)*Fuel_Specs!$B$15+Vehicles!$C$35*(1-Vehicles!$C$7)*Fuel_Specs!$B$17+Vehicles!$C$7*Fuel_Specs!$B$33)*(Petroleum!$B268*Petroleum!$D$262+(Petroleum!$D268-'T&D'!G220))+Vehicles!$C$35*(1-Vehicles!$C$7)*Fuel_Specs!$B$17/((1-Vehicles!$C$35)*(1-Vehicles!$C$7)*Fuel_Specs!$B$15+Vehicles!$C$35*(1-Vehicles!$C$7)*Fuel_Specs!$B$17+Vehicles!$C$7*Fuel_Specs!$B$33)*(Petroleum!B268*Petroleum!$F$262+Petroleum!$F268)+Vehicles!$C$7*Fuel_Specs!$B$33/((1-Vehicles!$C$35)*(1-Vehicles!$C$7)*Fuel_Specs!$B$15+Vehicles!$C$35*(1-Vehicles!$C$7)*Fuel_Specs!$B$17+Vehicles!$C$7*Fuel_Specs!$B$33)*(EtOH!BV552*EtOH!$BW$546+EtOH!$BW552)+Petroleum!AS129+Petroleum!AT129)/1000000/HLOOKUP(Results_EnergyFunctionalUnit,$Z$7:$AD$8,2,0) -> 62.66038442 | E20: =(Inputs!$E$97*(IF(Inputs!F$102=1,Petroleum!$B268,Petroleum!$C268)*IF(Inputs!F$102=1,Petroleum!$K$262,Petroleum!$L$262)+IF(Inputs!F$102=1,Petroleum!$K268,Petroleum!$L268))+(1-Inputs!$E$97)*(IF(Inputs!F$101=1,Petroleum!$B268,Petroleum!$C268)*Petroleum!$J$262+Petroleum!$J268))/1000000/HLOOKUP(Results_EnergyFunctionalUnit,$Z$7:$AD$8,2,0) -> 34.09935288 | F20: =(NG!$J90*NG!$K$84+NG!$K90)/1000000/HLOOKUP(Results_EnergyFunctionalUnit,$Z$7:$AD$8,2,0) -> 34.51330823 | G20: =(NG!$R90*NG!$S$84+NG!$S90)/1000000/HLOOKUP(Results_EnergyFunctionalUnit,$Z$7:$AD$8,2,0) -> 6.57403096 | H20: =(NG!$X90*NG!$Y$84+NG!$Y90)/1000000/HLOOKUP(Results_EnergyFunctionalUnit,$Z$7:$AD$8,2,0) -> 13.36171076 | I20: =(MeOH_FTD!BJ168*MeOH_FTD!BK$162+MeOH_FTD!BK168)/1000000/HLOOKUP(Results_EnergyFunctionalUnit,$Z$7:$AD$8,2,0) -> -46.3283539 | J20: =((1-Vehicles!$C$34)*(1-Vehicles!$C$5)*Fuel_Specs!$B$15/((1-Vehicles!$C$34)*(1-Vehicles!$C$5)*Fuel_Specs!$B$15+Vehicles!$C$34*(1-Vehicles!$C$5)*Fuel_Specs!$B$17+Vehicles!$C$5*Fuel_Specs!$B$32)*(Petroleum!$B268*Petroleum!$D$262+Petroleum!$D268)+Vehicles!$C$34*(1-Vehicles!$C$5)*Fuel_Specs!$B$17/((1-Vehicles!$C$34)*(1-Vehicles!$C$5)*Fuel_Specs!$B$15+Vehicles!$C$34*(1-Vehicles!$C$5)*Fuel_Specs!$B$17+Vehicles!$C$5*Fuel_Specs!$B$32)*(Petroleum!B268*Petroleum!$F$262+Petroleum!$F268)+Vehicles!$C$5*Fuel_Specs!$B$32/((1-Vehicles!$C$34)*(1-Vehicles!$C$5)*Fuel_Specs!$B$15+Vehicles!$C$34*(1-Vehicles!$C$5)*Fuel_Specs!$B$17+Vehicles!$C$5*Fuel_Specs!$B$32)*(MeOH_FTD!$N168*MeOH_FTD!$O$162+MeOH_FTD!$O168))/1000000/HLOOKUP(Results_EnergyFunctionalUnit,$Z$7:$AD$8,2,0) -> 45.1557293 | K20: =((1-Vehicles!$C$34)*(1-Vehicles!$C$6)*Fuel_Specs!$B$15/((1-Vehicles!$C$34)*(1-Vehicles!$C$6)*Fuel_Specs!$B$15+Vehicles!$C$34*(1-Vehicles!$C$6)*Fuel_Specs!$B$17+Vehicles!$C$6*Fuel_Specs!$B$32)*(Petroleum!$B268*Petroleum!$D$262+Petroleum!$D268)+Vehicles!$C$34*(1-Vehicles!$C$6)*Fuel_Specs!$B$17/((1-Vehicles!$C$34)*(1-Vehicles!$C$6)*Fuel_Specs!$B$15+Vehicles!$C$34*(1-Vehicles!$C$6)*Fuel_Specs!$B$17+Vehicles!$C$6*Fuel_Specs!$B$32)*(Petroleum!B268*Petroleum!$F$262+Petroleum!$F268)+Vehicles!$C$6*Fuel_Specs!$B$32/((1-Vehicles!$C$34)*(1-Vehicles!$C$6)*Fuel_Specs!$B$15+Vehicles!$C$34*(1-Vehicles!$C$6)*Fuel_Specs!$B$17+Vehicles!$C$6*Fuel_Specs!$B$32)*(MeOH_FTD!$N168*MeOH_FTD!$O$162+MeOH_FTD!$O168))/1000000/HLOOKUP(Results_EnergyFunctionalUnit,$Z$7:$AD$8,2,0) -> 45.76980576 | L20: =(MeOH_FTD!$N168*MeOH_FTD!$O$162+MeOH_FTD!$O168)/1000000/HLOOKUP(Results_EnergyFunctionalUnit,$Z$7:$AD$8,2,0) -> 47.18729803 | M20: =((1-Vehicles!$C$36)*(1-Vehicles!$C$8)*Fuel_Specs!$B$15/((1-Vehicles!$C$36)*(1-Vehicles!$C$8)*Fuel_Specs!$B$15+Vehicles!$C$36*(1-Vehicles!$C$8)*Fuel_Specs!$B$17+Vehicles!$C$8*Fuel_Specs!$B$33)*(Petroleum!$B268*Petroleum!$D$262+(Petroleum!$D268-'T&D'!G220))+Vehicles!$C$36*(1-Vehicles!$C$8)*Fuel_Specs!$B$17/((1-Vehicles!$C$36)*(1-Vehicles!$C$8)*Fuel_Specs!$B$15+Vehicles!$C$36*(1-Vehicles!$C$8)*Fuel_Specs!$B$17+Vehicles!$C$8*Fuel_Specs!$B$33)*(Petroleum!B268*Petroleum!$F$262+Petroleum!$F268)+Vehicles!$C$8*Fuel_Specs!$B$33/((1-Vehicles!$C$36)*(1-Vehicles!$C$8)*Fuel_Specs!$B$15+Vehicles!$C$36*(1-Vehicles!$C$8)*Fuel_Specs!$B$17+Vehicles!$C$8*Fuel_Specs!$B$33)*(EtOH!BV552*EtOH!$BW$546+EtOH!$BW552)+Petroleum!AS129+Petroleum!AT129)/1000000/HLOOKUP(Results_EnergyFunctionalUnit,$Z$7:$AD$8,2,0) -> 305.9067471 | N20: =((1-Vehicles!$C$37)*(1-Vehicles!$C$12)*Fuel_Specs!$B$15/((1-Vehicles!$C$37)*(1-Vehicles!$C$12)*Fuel_Specs!$B$15+Vehicles!$C$37*(1-Vehicles!$C$12)*Fuel_Specs!$B$17+Vehicles!$C$12*Fuel_Specs!$B$34)*(Petroleum!$B268*Petroleum!$D$262+Petroleum!$D268)+Vehicles!$C$37*(1-Vehicles!$C$12)*Fuel_Specs!$B$17/((1-Vehicles!$C$37)*(1-Vehicles!$C$12)*Fuel_Specs!$B$15+Vehicles!$C$37*(1-Vehicles!$C$12)*Fuel_Specs!$B$17+Vehicles!$C$12*Fuel_Specs!$B$34)*(Petroleum!B268*Petroleum!$F$262+Petroleum!$F268)+Vehicles!$C$12*Fuel_Specs!$B$34/((1-Vehicles!$C$37)*(1-Vehicles!$C$12)*Fuel_Specs!$B$15+Vehicles!$C$37*(1-Vehicles!$C$12)*Fuel_Specs!$B$17+Vehicles!$C$12*Fuel_Specs!$B$34)*(EtOH!$BX552*EtOH!$BY$546+EtOH!$BY552))/1000000/HLOOKUP(Results_EnergyFunctionalUnit,$Z$7:$AD$8,2,0) -> 435.575001 | O20: =((1-Vehicles!$C$36)*(1-Vehicles!$C$9)*Fuel_Specs!$B$15/((1-Vehicles!$C$36)*(1-Vehicles!$C$9)*Fuel_Specs!$B$15+Vehicles!$C$36*(1-Vehicles!$C$9)*Fuel_Specs!$B$17+Vehicles!$C$9*Fuel_Specs!$B$33)*(Petroleum!$B268*Petroleum!$D$262+(Petroleum!$D268-'T&D'!G220))+Vehicles!$C$36*(1-Vehicles!$C$9)*Fuel_Specs!$B$17/((1-Vehicles!$C$36)*(1-Vehicles!$C$9)*Fuel_Specs!$B$15+Vehicles!$C$36*(1-Vehicles!$C$9)*Fuel_Specs!$B$17+Vehicles!$C$9*Fuel_Specs!$B$33)*(Petroleum!B268*Petroleum!$F$262+Petroleum!$F268)+Vehicles!$C$9*Fuel_Specs!$B$33/((1-Vehicles!$C$36)*(1-Vehicles!$C$9)*Fuel_Specs!$B$15+Vehicles!$C$36*(1-Vehicles!$C$9)*Fuel_Specs!$B$17+Vehicles!$C$9*Fuel_Specs!$B$33)*(EtOH!BV552*EtOH!$BW$546+EtOH!$BW552)+Petroleum!AS129+Petroleum!AT129)/1000000/HLOOKUP(Results_EnergyFunctionalUnit,$Z$7:$AD$8,2,0) -> 305.9067471 | P20: =(EtOH!$BT552*EtOH!$BU$546+EtOH!$BU552)/1000000/HLOOKUP(Results_EnergyFunctionalUnit,$Z$7:$AD$8,2,0) -> 387.1715072 | Q20: =((1-Vehicles!$C$40)*(1-Vehicles!$C$16)*Fuel_Specs!$B$15/((1-Vehicles!$C$40)*(1-Vehicles!$C$16)*Fuel_Specs!$B$15+Vehicles!$C$40*(1-Vehicles!$C$16)*Fuel_Specs!$B$17+Vehicles!$C$16*Fuel_Specs!$B$47)*(Petroleum!$B268*Petroleum!$D$262+Petroleum!$D268)+Vehicles!$C$40*(1-Vehicles!$C$16)*Fuel_Specs!$B$17/((1-Vehicles!$C$40)*(1-Vehicles!$C$16)*Fuel_Specs!$B$15+Vehicles!$C$40*(1-Vehicles!$C$16)*Fuel_Specs!$B$17+Vehicles!$C$16*Fuel_Specs!$B$47)*(Petroleum!B268*Petroleum!$F$262+Petroleum!$F268)+Vehicles!$C$16*Fuel_Specs!$B$47/((1-Vehicles!$C$40)*(1-Vehicles!$C$16)*Fuel_Specs!$B$15+Vehicles!$C$40*(1-Vehicles!$C$16)*Fuel_Specs!$B$17+Vehicles!$C$16*Fuel_Specs!$B$47)*(BioOil!$CE438*BioOil!$CF$431+BioOil!$CF438))/1000000/HLOOKUP(Results_EnergyFunctionalUnit,$Z$7:$AD$8,2,0) -> 671.690504 | R20: =((1-Vehicles!$C$40)*(1-Vehicles!$C$16)*Fuel_Specs!$B$15/((1-Vehicles!$C$40)*(1-Vehicles!$C$16)*Fuel_Specs!$B$15+Vehicles!$C$40*(1-Vehicles!$C$16)*Fuel_Specs!$B$17+Vehicles!$C$16*Fuel_Specs!$B$47)*(Petroleum!$B268*Petroleum!$D$262+Petroleum!$D268)+Vehicles!$C$40*(1-Vehicles!$C$16)*Fuel_Specs!$B$17/((1-Vehicles!$C$40)*(1-Vehicles!$C$16)*Fuel_Specs!$B$15+Vehicles!$C$40*(1-Vehicles!$C$16)*Fuel_Specs!$B$17+Vehicles!$C$16*Fuel_Specs!$B$47)*(Petroleum!B268*Petroleum!$F$262+Petroleum!$F268)+Vehicles!$C$16*Fuel_Specs!$B$47/((1-Vehicles!$C$40)*(1-Vehicles!$C$16)*Fuel_Specs!$B$15+Vehicles!$C$40*(1-Vehicles!$C$16)*Fuel_Specs!$B$17+Vehicles!$C$16*Fuel_Specs!$B$47)*(Pyrolysis_IDL!$AD303*Pyrolysis_IDL!$AE$297+Pyrolysis_IDL!$AE303))/1000000/HLOOKUP(Results_EnergyFunctionalUnit,$Z$7:$AD$8,2,0) -> 49.39500229 | S20: =AN20*(Vehicles!$C$30/Vehicles!$AT$72)/(Vehicles!$C$30*(1/Vehicles!$AT$72+1/Vehicles!$AU$72)+Vehicles!$C$31/Vehicles!$AV$72)+B20*(Vehicles!$C$30/Vehicles!$AU$72+Vehicles!$C$31/Vehicles!$AV$72)/(Vehicles!$C$30*(1/Vehicles!$AT$72+1/Vehicles!$AU$72)+Vehicles!$C$31/Vehicles!$AV$72) ->  | T20: =AN20*(Vehicles!$D$30/Vehicles!$AX$72)/(Vehicles!$D$30*(1/Vehicles!$AX$72+1/Vehicles!$AY$72)+Vehicles!$D$31/Vehicles!$AZ$72)+C20*(Vehicles!$D$30/Vehicles!$AY$72+Vehicles!$D$31/Vehicles!$AZ$72)/(Vehicles!$D$30*(1/Vehicles!$AX$72+1/Vehicles!$AY$72)+Vehicles!$D$31/Vehicles!$AZ$72) ->  | U20: =AN20*(Vehicles!$F$30/Vehicles!$BF$72)/(Vehicles!$F$30*(1/Vehicles!$BF$72+1/Vehicles!$BG$72)+Vehicles!$F$31/Vehicles!$BH$72)+D20*(Vehicles!$F$30/Vehicles!$BG$72+Vehicles!$F$31/Vehicles!$BH$72)/(Vehicles!$F$30*(1/Vehicles!$BF$72+1/Vehicles!$BG$72)+Vehicles!$F$31/Vehicles!$BH$72) ->  | V20: =AN20*(Vehicles!$G$30/Vehicles!$BJ$72)/(Vehicles!$G$30*(1/Vehicles!$BJ$72+1/Vehicles!$BK$72)+Vehicles!$G$31/Vehicles!$BL$72)+F20*(Vehicles!$G$30/Vehicles!$BK$72+Vehicles!$G$31/Vehicles!$BL$72)/(Vehicles!$G$30*(1/Vehicles!$BJ$72+1/Vehicles!$BK$72)+Vehicles!$G$31/Vehicles!$BL$72) ->  | W20: =AN20*(Vehicles!$H$30/Vehicles!$BN$72)/(Vehicles!$H$30*(1/Vehicles!$BN$72+1/Vehicles!$BO$72)+Vehicles!$H$31/Vehicles!$BP$72)+G20*(Vehicles!$H$30/Vehicles!$BO$72+Vehicles!$H$31/Vehicles!$BP$72)/(Vehicles!$H$30*(1/Vehicles!$BN$72+1/Vehicles!$BO$72)+Vehicles!$H$31/Vehicles!$BP$72) ->  | X20: =AN20*(Vehicles!$I$30/Vehicles!$BR$72)/(Vehicles!$I$30*(1/Vehicles!$BR$72+1/Vehicles!$BS$72)+Vehicles!$I$31/Vehicles!$BT$72)+H20*(Vehicles!$I$30/Vehicles!$BS$72+Vehicles!$I$31/Vehicles!$BT$72)/(Vehicles!$I$30*(1/Vehicles!$BR$72+1/Vehicles!$BS$72)+Vehicles!$I$31/Vehicles!$BT$72) ->  | Y20: =AN20*(Vehicles!$J$30/Vehicles!$BV$72)/(Vehicles!$J$30*(1/Vehicles!$BV$72+1/Vehicles!$BW$72)+Vehicles!$J$31/Vehicles!$BX$72)+K20*(Vehicles!$J$30/Vehicles!$BW$72+Vehicles!$J$31/Vehicles!$BX$72)/(Vehicles!$J$30*(1/Vehicles!$BV$72+1/Vehicles!$BW$72)+Vehicles!$J$31/Vehicles!$BX$72) ->  | Z20: =AN20*(Vehicles!$K$30/Vehicles!$BZ$72)/(Vehicles!$K$30*(1/Vehicles!$BZ$72+1/Vehicles!$CA$72)+Vehicles!$K$31/Vehicles!$CB$72)+O20*(Vehicles!$K$30/Vehicles!$CA$72+Vehicles!$K$31/Vehicles!$CB$72)/(Vehicles!$K$30*(1/Vehicles!$BZ$72+1/Vehicles!$CA$72)+Vehicles!$K$31/Vehicles!$CB$72) ->  | AA20: =AN20*(Vehicles!$L$30/Vehicles!$CD$72)/(Vehicles!$L$30*(1/Vehicles!$CD$72+1/Vehicles!$CE$72)+Vehicles!$L$31/Vehicles!$CF$72)+AO20*(Vehicles!$L$30/Vehicles!$CE$72+Vehicles!$L$31/Vehicles!$CF$72)/(Vehicles!$L$30*(1/Vehicles!$CD$72+1/Vehicles!$CE$72)+Vehicles!$L$31/Vehicles!$CF$72) ->  | AB20: =AN20*(Vehicles!$L$30/Vehicles!$CD$72)/(Vehicles!$L$30*(1/Vehicles!$CD$72+1/Vehicles!$CE$72)+Vehicles!$L$31/Vehicles!$CG$72)+AP20*(Vehicles!$L$30/Vehicles!$CE$72+Vehicles!$L$31/Vehicles!$CG$72)/(Vehicles!$L$30*(1/Vehicles!$CD$72+1/Vehicles!$CE$72)+Vehicles!$L$31/Vehicles!$CG$72) ->  | AC20: =(MeOH_FTD!$AJ168*MeOH_FTD!$AK$162+MeOH_FTD!$AK168)/1000000/HLOOKUP(Results_EnergyFunctionalUnit,$Z$7:$AD$8,2,0) -> 48.84976765 | AD20: =((1-Vehicles!$C$41)*(1-Vehicles!$C$13)*Fuel_Specs!$B$21/((1-Vehicles!$C$41)*(1-Vehicles!$C$13)*Fuel_Specs!$B$21+Vehicles!$C$41*(1-Vehicles!$C$13)*Fuel_Specs!$B$24+Vehicles!$C$13*Fuel_Specs!$B$42)*(Petroleum!B268*Petroleum!$J$262+Petroleum!$J268)+Vehicles!$C$41*(1-Vehicles!$C$13)*Fuel_Specs!$B$24/((1-Vehicles!$C$41)*(1-Vehicles!$C$13)*Fuel_Specs!$B$21+Vehicles!$C$41*(1-Vehicles!$C$13)*Fuel_Specs!$B$24+Vehicles!$C$13*Fuel_Specs!$B$42)*(Petroleum!B268*IF(Inputs!F$102=1,Petroleum!$K$262,Petroleum!$L$262)+IF(Inputs!F$102=1,Petroleum!$K268,Petroleum!$L268))+Vehicles!$C$13*Fuel_Specs!$B$42/((1-Vehicles!$C$41)*(1-Vehicles!$C$13)*Fuel_Specs!$B$21+Vehicles!$C$41*(1-Vehicles!$C$13)*Fuel_Specs!$B$24+Vehicles!$C$13*Fuel_Specs!$B$42)*(MeOH_FTD!$AZ168*MeOH_FTD!$BA$162+MeOH_FTD!$BA168))/1000000/HLOOKUP(Results_EnergyFunctionalUnit,$Z$7:$AD$8,2,0) -> 33.16699773 | AE20: =((1-Vehicles!$C$42)*(1-Vehicles!$C$14)*Fuel_Specs!$B$21/((1-Vehicles!$C$42)*(1-Vehicles!$C$14)*Fuel_Specs!$B$21+Vehicles!$C$42*(1-Vehicles!$C$14)*Fuel_Specs!$B$24+Vehicles!$C$14*Fuel_Specs!$B$41)*(Petroleum!B268*Petroleum!$J$262+Petroleum!$J268)+Vehicles!$C$42*(1-Vehicles!$C$14)*Fuel_Specs!$B$24/((1-Vehicles!$C$42)*(1-Vehicles!$C$14)*Fuel_Specs!$B$21+Vehicles!$C$42*(1-Vehicles!$C$14)*Fuel_Specs!$B$24+Vehicles!$C$14*Fuel_Specs!$B$41)*(Petroleum!B268*IF(Inputs!F$102=1,Petroleum!$K$262,Petroleum!$L$262)+IF(Inputs!F$102=1,Petroleum!$K268,Petroleum!$L268))+Vehicles!$C$14*Fuel_Specs!$B$41/((1-Vehicles!$C$42)*(1-Vehicles!$C$14)*Fuel_Specs!$B$21+Vehicles!$C$42*(1-Vehicles!$C$14)*Fuel_Specs!$B$24+Vehicles!$C$14*Fuel_Specs!$B$41)*(BioOil!$Y438*BioOil!$Z$431+BioOil!$Z438))/1000000/HLOOKUP(Results_EnergyFunctionalUnit,$Z$7:$AD$8,2,0) -> 148.9716921 | AF20: =((1-Vehicles!$C$43)*(1-Vehicles!$C$15)*Fuel_Specs!$B$21/((1-Vehicles!$C$43)*(1-Vehicles!$C$15)*Fuel_Specs!$B$21+Vehicles!$C$43*(1-Vehicles!$C$15)*Fuel_Specs!$B$24+Vehicles!$C$15*IF(Inputs!$E$670=1,IF(Inputs!$E$670=1,Fuel_Specs!$B$43,IF(Inputs!$E$670=3,Fuel_Specs!$B$45,Fuel_Specs!$B$44)),Fuel_Specs!$B$44))*(Petroleum!B268*Petroleum!$J$262+Petroleum!$J268)+Vehicles!$C$43*(1-Vehicles!$C$15)*Fuel_Specs!$B$24/((1-Vehicles!$C$43)*(1-Vehicles!$C$15)*Fuel_Specs!$B$21+Vehicles!$C$43*(1-Vehicles!$C$15)*Fuel_Specs!$B$24+Vehicles!$C$15*IF(Inputs!$E$670=1,IF(Inputs!$E$670=1,Fuel_Specs!$B$43,IF(Inputs!$E$670=3,Fuel_Specs!$B$45,Fuel_Specs!$B$44)),Fuel_Specs!$B$44))*(Petroleum!B268*IF(Inputs!F$102=1,Petroleum!$K$262,Petroleum!$L$262)+IF(Inputs!F$102=1,Petroleum!$K268,Petroleum!$L268))+Vehicles!$C$15*IF(Inputs!$E$670=1,IF(Inputs!$E$670=1,Fuel_Specs!$B$43,IF(Inputs!$E$670=3,Fuel_Specs!$B$45,Fuel_Specs!$B$44)),Fuel_Specs!$B$44)/((1-Vehicles!$C$43)*(1-Vehicles!$C$15)*Fuel_Specs!$B$21+Vehicles!$C$43*(1-Vehicles!$C$15)*Fuel_Specs!$B$24+Vehicles!$C$15*IF(Inputs!$E$670=1,IF(Inputs!$E$670=1,Fuel_Specs!$B$43,IF(Inputs!$E$670=3,Fuel_Specs!$B$45,Fuel_Specs!$B$44)),Fuel_Specs!$B$44))*(BioOil!$BQ438*BioOil!$BR$431+BioOil!$BR438))/1000000/HLOOKUP(Results_EnergyFunctionalUnit,$Z$7:$AD$8,2,0) -> 650.6872498 | AG20: =((1-Vehicles!$C$43)*(1-Vehicles!$C$15)*Fuel_Specs!$B$21/((1-Vehicles!$C$43)*(1-Vehicles!$C$15)*Fuel_Specs!$B$21+Vehicles!$C$43*(1-Vehicles!$C$15)*Fuel_Specs!$B$24+Vehicles!$C$15*IF(Inputs!$E$670=1,Fuel_Specs!$B$43,Fuel_Specs!$B$44))*(Petroleum!B268*Petroleum!$J$262+Petroleum!$J268)+Vehicles!$C$43*(1-Vehicles!$C$15)*Fuel_Specs!$B$24/((1-Vehicles!$C$43)*(1-Vehicles!$C$15)*Fuel_Specs!$B$21+Vehicles!$C$43*(1-Vehicles!$C$15)*Fuel_Specs!$B$24+Vehicles!$C$15*IF(Inputs!$E$670=1,Fuel_Specs!$B$43,Fuel_Specs!$B$44))*(Petroleum!B268*IF(Inputs!F$102=1,Petroleum!$K$262,Petroleum!$L$262)+IF(Inputs!F$102=1,Petroleum!$K268,Petroleum!$L268))+Vehicles!$C$15*IF(Inputs!$E$670=1,Fuel_Specs!$B$43,Fuel_Specs!$B$44)/((1-Vehicles!$C$43)*(1-Vehicles!$C$15)*Fuel_Specs!$B$21+Vehicles!$C$43*(1-Vehicles!$C$15)*Fuel_Specs!$B$24+Vehicles!$C$15*IF(Inputs!$E$670=1,Fuel_Specs!$B$43,Fuel_Specs!$B$44))*(Pyrolysis_IDL!$AF303*Pyrolysis_IDL!$AG$297+Pyrolysis_IDL!$AG303))/1000000/HLOOKUP(Results_EnergyFunctionalUnit,$Z$7:$AD$8,2,0) -> 45.64382587 | AH20: =(((1-Vehicles!$C$44)*(1-Vehicles!$C$17-Vehicles!$C$18)*Fuel_Specs!$B$21*(Petroleum!B268*Petroleum!$J$262+Petroleum!$J268)+Vehicles!$C$44*(1-Vehicles!$C$17-Vehicles!$C$18)*Fuel_Specs!$B$24*(Petroleum!B268*IF(Inputs!F$102=1,Petroleum!$K$262,Petroleum!$L$262)+IF(Inputs!F$102=1,Petroleum!$K268,Petroleum!$L268))+Vehicles!$C$17*Fuel_Specs!$B$33*(EtOH!BT552*EtOH!$BU$546+EtOH!$BU552)+Vehicles!$C$18*Fuel_Specs!$B$36*('EtOH-Diesel Additives'!$B59*'EtOH-Diesel Additives'!$B$53))/((1-Vehicles!$C$44)*(1-Vehicles!$C$17-Vehicles!$C$18)*Fuel_Specs!$B$21+Vehicles!$C$44*(1-Vehicles!$C$17-Vehicles!$C$18)*Fuel_Specs!$B$24+Vehicles!$C$17*Fuel_Specs!$B$33+Vehicles!$C$18*Fuel_Specs!$B$36))/1000000/HLOOKUP(Results_EnergyFunctionalUnit,$Z$7:$AD$8,2,0) -> 56.39392891 | AI20: =AN20*(Vehicles!$M$30/Vehicles!$CO$72)/(Vehicles!$M$30*(1/Vehicles!$CO$72+1/Vehicles!$CP$72)+Vehicles!$M$31/Vehicles!$CQ$72)+E20*(Vehicles!$M$30/Vehicles!$CP$72+Vehicles!$M$31/Vehicles!$CQ$72)/(Vehicles!$M$30*(1/Vehicles!$CO$72+1/Vehicles!$CP$72)+Vehicles!$M$31/Vehicles!$CQ$72) ->  | AJ20: =AN20*(Vehicles!$N$30/Vehicles!$CS$72)/(Vehicles!$N$30*(1/Vehicles!$CS$72+1/Vehicles!$CT$72)+Vehicles!$N$31/Vehicles!$CU$72)+AC20*(Vehicles!$N$30/Vehicles!$CT$72+Vehicles!$N$31/Vehicles!$CU$72)/(Vehicles!$N$30*(1/Vehicles!$CS$72+1/Vehicles!$CT$72)+Vehicles!$N$31/Vehicles!$CU$72) ->  | AK20: =AN20*(Vehicles!$O$30/Vehicles!$CW$72)/(Vehicles!$O$30*(1/Vehicles!$CW$72+1/Vehicles!$CX$72)+Vehicles!$O$31/Vehicles!$CY$72)+AD20*(Vehicles!$O$30/Vehicles!$CX$72+Vehicles!$O$31/Vehicles!$CY$72)/(Vehicles!$O$30*(1/Vehicles!$CW$72+1/Vehicles!$CX$72)+Vehicles!$O$31/Vehicles!$CY$72) ->  | AL20: =AN20*(Vehicles!$P$30/Vehicles!$DA$72)/(Vehicles!$P$30*(1/Vehicles!$DA$72+1/Vehicles!$DB$72)+Vehicles!$P$31/Vehicles!$DC$72)+AE20*(Vehicles!$P$30/Vehicles!$DB$72+Vehicles!$P$31/Vehicles!$DC$72)/(Vehicles!$P$30*(1/Vehicles!$DA$72+1/Vehicles!$DB$72)+Vehicles!$P$31/Vehicles!$DC$72) ->  | AM20: =AN20*(Vehicles!$R$30/Vehicles!$DI$72)/(Vehicles!$R$30*(1/Vehicles!$DI$72+1/Vehicles!$DJ$72)+Vehicles!$R$31/Vehicles!$DK$72)+AH20*(Vehicles!$R$30/Vehicles!$DJ$72+Vehicles!$R$31/Vehicles!$DK$72)/(Vehicles!$R$30*(1/Vehicles!$DI$72+1/Vehicles!$DJ$72)+Vehicles!$R$31/Vehicles!$DK$72) ->  | AN20: =(Electric!$G209+Electric!$F209)/1000000/HLOOKUP(Results_EnergyFunctionalUnit,$Z$7:$AD$8,2,0) -> 953.2590619 | AO20: =(Hydrogen!$AJ311*Hydrogen!$AK$305+Hydrogen!$AK311)/1000000*HLOOKUP($H$10,$Z$3:$AD$4,2,FALSE)/HLOOKUP($J$11,$Z$7:$AD$8,2,FALSE) -> 139.4460637 | AP20: =(Hydrogen!$BT311*Hydrogen!$BU$305+Hydrogen!$BU311)/1000000/HLOOKUP(Results_EnergyFunctionalUnit,$Z$7:$AD$8,2,0) -> 409.7254947 | AQ20: =AN20*(Vehicles!$S$30/Vehicles!$DY$72)/(Vehicles!$S$30*(1/Vehicles!$DY$72+1/Vehicles!$DZ$72)+Vehicles!$S$31/Vehicles!$EA$72)+AO20*(Vehicles!$S$30/Vehicles!$DZ$72+Vehicles!$S$31/Vehicles!$EA$72)/(Vehicles!$S$30*(1/Vehicles!$DY$72+1/Vehicles!$DZ$72)+Vehicles!$S$31/Vehicles!$EA$72) ->  | AR20: =AN20*(Vehicles!$S$30/Vehicles!$DY$72)/(Vehicles!$S$30*(1/Vehicles!$DY$72+1/Vehicles!$DZ$72)+Vehicles!$S$31/Vehicles!$EA$72)+AP20*(Vehicles!$S$30/Vehicles!$DZ$72+Vehicles!$S$31/Vehicles!$EA$72)/(Vehicles!$S$30*(1/Vehicles!$DY$72+1/Vehicles!$DZ$72)+Vehicles!$S$31/Vehicles!$EA$72) ->  | AS20: =((1-Vehicles!$C$40)*(1-Vehicles!$C$16)*Fuel_Specs!$B$15/((1-Vehicles!$C$40)*(1-Vehicles!$C$16)*Fuel_Specs!$B$15+Vehicles!$C$40*(1-Vehicles!$C$16)*Fuel_Specs!$B$17+Vehicles!$C$16*Fuel_Specs!$B$48)*(Petroleum!$B268*Petroleum!$D$262+Petroleum!$D268)+Vehicles!$C$40*(1-Vehicles!$C$16)*Fuel_Specs!$B$17/((1-Vehicles!$C$40)*(1-Vehicles!$C$16)*Fuel_Specs!$B$15+Vehicles!$C$40*(1-Vehicles!$C$16)*Fuel_Specs!$B$17+Vehicles!$C$16*Fuel_Specs!$B$48)*(Petroleum!B268*Petroleum!$F$262+Petroleum!$F268)+Vehicles!$C$16*Fuel_Specs!$B$48/((1-Vehicles!$C$40)*(1-Vehicles!$C$16)*Fuel_Specs!$B$15+Vehicles!$C$40*(1-Vehicles!$C$16)*Fuel_Specs!$B$17+Vehicles!$C$16*Fuel_Specs!$B$48)*(Pyrolysis_IDL!$AP303*Pyrolysis_IDL!$AQ$297+Pyrolysis_IDL!$AQ303))/1000000/HLOOKUP(Results_EnergyFunctionalUnit,$Z$7:$AD$8,2,0) -> 75.6441558 | AT20: =(Petroleum!$B268*Petroleum!$S$262+Petroleum!$S268)/1000000/HLOOKUP(Results_EnergyFunctionalUnit,$Z$7:$AD$8,2,0) -> 33.45412313 | AU20: 71.54303735 | AV20: 55.01184046 | BB20: SI - MeOH FFV | BC20: RNAVMEOHFFV | BH20: CIDI - RD from Pyrolysis | BI20: RNAVRENDIESEL2CIDI | BK20: SI HEV - LNG | BL20: RNAVHEVLNG | BN20: SI PHEV - LNG and Electricity | BO20: RNAVPHEVLNG | BQ20: CIDI HEV - EtOH-Diesel | BR20: RNAVHEVEDIESEL | BT20: CIDI PHEV - EtOH-Diesel and Electricity | BU20: RNAVPHEVEDIESEL
A21: CO2 (w/ C in VOC & CO) | B21: =(Inputs!$E$1518*(Petroleum!$B279*Petroleum!$F$262+Petroleum!$F279)+(1-Inputs!$E$1518)*(Petroleum!$B279*Petroleum!$D$262+Petroleum!$D279)+Vehicles!B95/Vehicles!B73*1000000)/1000000*HLOOKUP($J$10,$Z$5:$AD$6,2,FALSE)/HLOOKUP($J$11,$Z$7:$AD$8,2,FALSE)+B25*Fuel_Specs!$B$154/Fuel_Specs!$B$157+B26*Fuel_Specs!$B$155/Fuel_Specs!$B$157 ->  | C21: =((Petroleum!$C279*Petroleum!$G$262+Petroleum!$G279)+Vehicles!C95/Vehicles!C73*1000000)/1000000*HLOOKUP($J$10,$Z$5:$AD$6,2,FALSE)/HLOOKUP($J$11,$Z$7:$AD$8,2,FALSE)+C25*Fuel_Specs!$B$154/Fuel_Specs!$B$157+C26*Fuel_Specs!$B$155/Fuel_Specs!$B$157 ->  | D21: =((1-Vehicles!$C$35)*(1-Vehicles!$C$7)*Fuel_Specs!$B$15/((1-Vehicles!$C$35)*(1-Vehicles!$C$7)*Fuel_Specs!$B$15+Vehicles!$C$35*(1-Vehicles!$C$7)*Fuel_Specs!$B$17+Vehicles!$C$7*Fuel_Specs!$B$33)*(Petroleum!$B279*Petroleum!$D$262+(Petroleum!$D279-'T&D'!G232))+Vehicles!$C$35*(1-Vehicles!$C$7)*Fuel_Specs!$B$17/((1-Vehicles!$C$35)*(1-Vehicles!$C$7)*Fuel_Specs!$B$15+Vehicles!$C$35*(1-Vehicles!$C$7)*Fuel_Specs!$B$17+Vehicles!$C$7*Fuel_Specs!$B$33)*(Petroleum!B279*Petroleum!$F$262+Petroleum!$F279)+Vehicles!$C$7*Fuel_Specs!$B$33/((1-Vehicles!$C$35)*(1-Vehicles!$C$7)*Fuel_Specs!$B$15+Vehicles!$C$35*(1-Vehicles!$C$7)*Fuel_Specs!$B$17+Vehicles!$C$7*Fuel_Specs!$B$33)*(EtOH!BV563*EtOH!$BW$546+EtOH!$BW563)+Petroleum!AS141+Petroleum!AT141+Vehicles!D95/Vehicles!D73*1000000)/1000000*HLOOKUP($J$10,$Z$5:$AD$6,2,FALSE)/HLOOKUP($J$11,$Z$7:$AD$8,2,FALSE)+D25*Fuel_Specs!$B$154/Fuel_Specs!$B$157+D26*Fuel_Specs!$B$155/Fuel_Specs!$B$157 ->  | E21: =(Inputs!$E$97*(IF(Inputs!F$102=1,Petroleum!$B279,Petroleum!$C279)*IF(Inputs!F$102=1,Petroleum!$K$262,Petroleum!$L$262)+IF(Inputs!F$102=1,Petroleum!$K279,Petroleum!$L279))+(1-Inputs!$E$97)*(IF(Inputs!F$101=1,Petroleum!$B279,Petroleum!$C279)*Petroleum!$J$262+Petroleum!$J279))/1000000*HLOOKUP($J$10,$Z$5:$AD$6,2,FALSE)/HLOOKUP($J$11,$Z$7:$AD$8,2,FALSE)+E25*Fuel_Specs!$B$154/Fuel_Specs!$B$157+E26*Fuel_Specs!$B$155/Fuel_Specs!$B$157 -> 12508.88006 | F21: =(NG!$J101*NG!$K$84+NG!$K101)/1000000*HLOOKUP($J$10,$Z$5:$AD$6,2,FALSE)/HLOOKUP($J$11,$Z$7:$AD$8,2,FALSE)+F25*Fuel_Specs!$B$154/Fuel_Specs!$B$157+F26*Fuel_Specs!$B$155/Fuel_Specs!$B$157 -> 10866.52287 | G21: =(NG!$R101*NG!$S$84+NG!$S101)/1000000*HLOOKUP($J$10,$Z$5:$AD$6,2,FALSE)/HLOOKUP($J$11,$Z$7:$AD$8,2,FALSE)+G25*Fuel_Specs!$B$154/Fuel_Specs!$B$157+G26*Fuel_Specs!$B$155/Fuel_Specs!$B$157 -> 12613.60524 | H21: =(NG!$X101*NG!$Y$84+NG!$Y101)/1000000*HLOOKUP($J$10,$Z$5:$AD$6,2,FALSE)/HLOOKUP($J$11,$Z$7:$AD$8,2,FALSE)+H25*Fuel_Specs!$B$154/Fuel_Specs!$B$157+H26*Fuel_Specs!$B$155/Fuel_Specs!$B$157 -> 11049.81766 | I21: =(MeOH_FTD!BJ179*MeOH_FTD!BK$162+MeOH_FTD!BK179)/1000000*HLOOKUP($J$10,$Z$5:$AD$6,2,FALSE)/HLOOKUP($J$11,$Z$7:$AD$8,2,FALSE)+I25*Fuel_Specs!$B$154/Fuel_Specs!$B$157+I26*Fuel_Specs!$B$155/Fuel_Specs!$B$157 -> 34263.43625 | J21: =((1-Vehicles!$C$34)*(1-Vehicles!$C$5)*Fuel_Specs!$B$15/((1-Vehicles!$C$34)*(1-Vehicles!$C$5)*Fuel_Specs!$B$15+Vehicles!$C$34*(1-Vehicles!$C$5)*Fuel_Specs!$B$17+Vehicles!$C$5*Fuel_Specs!$B$32)*(Petroleum!$B279*Petroleum!$D$262+Petroleum!$D279)+Vehicles!$C$34*(1-Vehicles!$C$5)*Fuel_Specs!$B$17/((1-Vehicles!$C$34)*(1-Vehicles!$C$5)*Fuel_Specs!$B$15+Vehicles!$C$34*(1-Vehicles!$C$5)*Fuel_Specs!$B$17+Vehicles!$C$5*Fuel_Specs!$B$32)*(Petroleum!B279*Petroleum!$F$262+Petroleum!$F279)+Vehicles!$C$5*Fuel_Specs!$B$32/((1-Vehicles!$C$34)*(1-Vehicles!$C$5)*Fuel_Specs!$B$15+Vehicles!$C$34*(1-Vehicles!$C$5)*Fuel_Specs!$B$17+Vehicles!$C$5*Fuel_Specs!$B$32)*(MeOH_FTD!$N179*MeOH_FTD!$O$162+MeOH_FTD!$O179)+Vehicles!I95/Vehicles!I73*1000000)/1000000*HLOOKUP($J$10,$Z$5:$AD$6,2,FALSE)/HLOOKUP($J$11,$Z$7:$AD$8,2,FALSE)+J25*Fuel_Specs!$B$154/Fuel_Specs!$B$157+J26*Fuel_Specs!$B$155/Fuel_Specs!$B$157 ->  | K21: =((1-Vehicles!$C$34)*(1-Vehicles!$C$6)*Fuel_Specs!$B$15/((1-Vehicles!$C$34)*(1-Vehicles!$C$6)*Fuel_Specs!$B$15+Vehicles!$C$34*(1-Vehicles!$C$6)*Fuel_Specs!$B$17+Vehicles!$C$6*Fuel_Specs!$B$32)*(Petroleum!$B279*Petroleum!$D$262+Petroleum!$D279)+Vehicles!$C$34*(1-Vehicles!$C$6)*Fuel_Specs!$B$17/((1-Vehicles!$C$34)*(1-Vehicles!$C$6)*Fuel_Specs!$B$15+Vehicles!$C$34*(1-Vehicles!$C$6)*Fuel_Specs!$B$17+Vehicles!$C$6*Fuel_Specs!$B$32)*(Petroleum!B279*Petroleum!$F$262+Petroleum!$F279)+Vehicles!$C$6*Fuel_Specs!$B$32/((1-Vehicles!$C$34)*(1-Vehicles!$C$6)*Fuel_Specs!$B$15+Vehicles!$C$34*(1-Vehicles!$C$6)*Fuel_Specs!$B$17+Vehicles!$C$6*Fuel_Specs!$B$32)*(MeOH_FTD!$N179*MeOH_FTD!$O$162+MeOH_FTD!$O179)+Vehicles!J95/Vehicles!J73*1000000)/1000000*HLOOKUP($J$10,$Z$5:$AD$6,2,FALSE)/HLOOKUP($J$11,$Z$7:$AD$8,2,FALSE)+K25*Fuel_Specs!$B$154/Fuel_Specs!$B$157+K26*Fuel_Specs!$B$155/Fuel_Specs!$B$157 ->  | L21: =(MeOH_FTD!$N179*MeOH_FTD!$O$162+MeOH_FTD!$O179)/1000000*HLOOKUP($J$10,$Z$5:$AD$6,2,FALSE)/HLOOKUP($J$11,$Z$7:$AD$8,2,FALSE)+L25*Fuel_Specs!$B$154/Fuel_Specs!$B$157+L26*Fuel_Specs!$B$155/Fuel_Specs!$B$157 -> 19089.36551 | M21: =((1-Vehicles!$C$36)*(1-Vehicles!$C$8)*Fuel_Specs!$B$15/((1-Vehicles!$C$36)*(1-Vehicles!$C$8)*Fuel_Specs!$B$15+Vehicles!$C$36*(1-Vehicles!$C$8)*Fuel_Specs!$B$17+Vehicles!$C$8*Fuel_Specs!$B$33)*(Petroleum!$B279*Petroleum!$D$262+(Petroleum!$D279-'T&D'!G232))+Vehicles!$C$36*(1-Vehicles!$C$8)*Fuel_Specs!$B$17/((1-Vehicles!$C$36)*(1-Vehicles!$C$8)*Fuel_Specs!$B$15+Vehicles!$C$36*(1-Vehicles!$C$8)*Fuel_Specs!$B$17+Vehicles!$C$8*Fuel_Specs!$B$33)*(Petroleum!B279*Petroleum!$F$262+Petroleum!$F279)+Vehicles!$C$8*Fuel_Specs!$B$33/((1-Vehicles!$C$36)*(1-Vehicles!$C$8)*Fuel_Specs!$B$15+Vehicles!$C$36*(1-Vehicles!$C$8)*Fuel_Specs!$B$17+Vehicles!$C$8*Fuel_Specs!$B$33)*(EtOH!BV563*EtOH!$BW$546+EtOH!$BW563)+Petroleum!AS141+Petroleum!AT141+Vehicles!K95/Vehicles!K73*1000000)/1000000*HLOOKUP($J$10,$Z$5:$AD$6,2,FALSE)/HLOOKUP($J$11,$Z$7:$AD$8,2,FALSE)+M25*Fuel_Specs!$B$154/Fuel_Specs!$B$157+M26*Fuel_Specs!$B$155/Fuel_Specs!$B$157 ->  | N21: =((1-Vehicles!$C$37)*(1-Vehicles!$C$12)*Fuel_Specs!$B$15/((1-Vehicles!$C$37)*(1-Vehicles!$C$12)*Fuel_Specs!$B$15+Vehicles!$C$37*(1-Vehicles!$C$12)*Fuel_Specs!$B$17+Vehicles!$C$12*Fuel_Specs!$B$34)*(Petroleum!$B279*Petroleum!$D$262+Petroleum!$D279)+Vehicles!$C$37*(1-Vehicles!$C$12)*Fuel_Specs!$B$17/((1-Vehicles!$C$37)*(1-Vehicles!$C$12)*Fuel_Specs!$B$15+Vehicles!$C$37*(1-Vehicles!$C$12)*Fuel_Specs!$B$17+Vehicles!$C$12*Fuel_Specs!$B$34)*(Petroleum!B279*Petroleum!$F$262+Petroleum!$F279)+Vehicles!$C$12*Fuel_Specs!$B$34/((1-Vehicles!$C$37)*(1-Vehicles!$C$12)*Fuel_Specs!$B$15+Vehicles!$C$37*(1-Vehicles!$C$12)*Fuel_Specs!$B$17+Vehicles!$C$12*Fuel_Specs!$B$34)*(EtOH!$BX563*EtOH!$BY$546+EtOH!$BY563)+Vehicles!L95/Vehicles!L73*1000000)/1000000*HLOOKUP($J$10,$Z$5:$AD$6,2,FALSE)/HLOOKUP($J$11,$Z$7:$AD$8,2,FALSE)+N25*Fuel_Specs!$B$154/Fuel_Specs!$B$157+N26*Fuel_Specs!$B$155/Fuel_Specs!$B$157 ->  | O21: =((1-Vehicles!$C$36)*(1-Vehicles!$C$9)*Fuel_Specs!$B$15/((1-Vehicles!$C$36)*(1-Vehicles!$C$9)*Fuel_Specs!$B$15+Vehicles!$C$36*(1-Vehicles!$C$9)*Fuel_Specs!$B$17+Vehicles!$C$9*Fuel_Specs!$B$33)*(Petroleum!$B279*Petroleum!$D$262+(Petroleum!$D279-'T&D'!G232))+Vehicles!$C$36*(1-Vehicles!$C$9)*Fuel_Specs!$B$17/((1-Vehicles!$C$36)*(1-Vehicles!$C$9)*Fuel_Specs!$B$15+Vehicles!$C$36*(1-Vehicles!$C$9)*Fuel_Specs!$B$17+Vehicles!$C$9*Fuel_Specs!$B$33)*(Petroleum!B279*Petroleum!$F$262+Petroleum!$F279)+Vehicles!$C$9*Fuel_Specs!$B$33/((1-Vehicles!$C$36)*(1-Vehicles!$C$9)*Fuel_Specs!$B$15+Vehicles!$C$36*(1-Vehicles!$C$9)*Fuel_Specs!$B$17+Vehicles!$C$9*Fuel_Specs!$B$33)*(EtOH!BV563*EtOH!$BW$546+EtOH!$BW563)+Petroleum!AS141+Petroleum!AT141+Vehicles!M95/Vehicles!M73*1000000)/1000000*HLOOKUP($J$10,$Z$5:$AD$6,2,FALSE)/HLOOKUP($J$11,$Z$7:$AD$8,2,FALSE)+O25*Fuel_Specs!$B$154/Fuel_Specs!$B$157+O26*Fuel_Specs!$B$155/Fuel_Specs!$B$157 ->  | P21: =(EtOH!$BT563*EtOH!$BU$546+EtOH!$BU563+Vehicles!DS95/Vehicles!DS73*1000000)/1000000*HLOOKUP($J$10,$Z$5:$AD$6,2,FALSE)/HLOOKUP($J$11,$Z$7:$AD$8,2,FALSE)+P25*Fuel_Specs!$B$154/Fuel_Specs!$B$157+P26*Fuel_Specs!$B$155/Fuel_Specs!$B$157 ->  | Q21: =((1-Vehicles!$C$40)*(1-Vehicles!$C$16)*Fuel_Specs!$B$15/((1-Vehicles!$C$40)*(1-Vehicles!$C$16)*Fuel_Specs!$B$15+Vehicles!$C$40*(1-Vehicles!$C$16)*Fuel_Specs!$B$17+Vehicles!$C$16*Fuel_Specs!$B47)*(Petroleum!$B279*Petroleum!$D$262+Petroleum!$D279)+Vehicles!$C$40*(1-Vehicles!$C$16)*Fuel_Specs!$B$17/((1-Vehicles!$C$40)*(1-Vehicles!$C$16)*Fuel_Specs!$B$15+Vehicles!$C$40*(1-Vehicles!$C$16)*Fuel_Specs!$B$17+Vehicles!$C$16*Fuel_Specs!$B47)*(Petroleum!B279*Petroleum!$F$262+Petroleum!$F279)+Vehicles!$C$16*Fuel_Specs!$B47/((1-Vehicles!$C$40)*(1-Vehicles!$C$16)*Fuel_Specs!$B$15+Vehicles!$C$40*(1-Vehicles!$C$16)*Fuel_Specs!$B$17+Vehicles!$C$16*Fuel_Specs!$B47)*(BioOil!$CE449*BioOil!$CF$431+BioOil!$CF449)+Vehicles!P95/Vehicles!P73*1000000)/1000000*HLOOKUP($J$10,$Z$5:$AD$6,2,FALSE)/HLOOKUP($J$11,$Z$7:$AD$8,2,FALSE)+Q25*Fuel_Specs!$B$154/Fuel_Specs!$B$157+Q26*Fuel_Specs!$B$155/Fuel_Specs!$B$157 ->  | R21: =((1-Vehicles!$C$40)*(1-Vehicles!$C$16)*Fuel_Specs!$B$15/((1-Vehicles!$C$40)*(1-Vehicles!$C$16)*Fuel_Specs!$B$15+Vehicles!$C$40*(1-Vehicles!$C$16)*Fuel_Specs!$B$17+Vehicles!$C$16*Fuel_Specs!$B47)*(Petroleum!$B279*Petroleum!$D$262+Petroleum!$D279)+Vehicles!$C$40*(1-Vehicles!$C$16)*Fuel_Specs!$B$17/((1-Vehicles!$C$40)*(1-Vehicles!$C$16)*Fuel_Specs!$B$15+Vehicles!$C$40*(1-Vehicles!$C$16)*Fuel_Specs!$B$17+Vehicles!$C$16*Fuel_Specs!$B47)*(Petroleum!B279*Petroleum!$F$262+Petroleum!$F279)+Vehicles!$C$16*Fuel_Specs!$B47/((1-Vehicles!$C$40)*(1-Vehicles!$C$16)*Fuel_Specs!$B$15+Vehicles!$C$40*(1-Vehicles!$C$16)*Fuel_Specs!$B$17+Vehicles!$C$16*Fuel_Specs!$B47)*(Pyrolysis_IDL!$AD314*Pyrolysis_IDL!$AE$297+Pyrolysis_IDL!$AE314)+Vehicles!P95/Vehicles!P73*1000000)/1000000*HLOOKUP($J$10,$Z$5:$AD$6,2,FALSE)/HLOOKUP($J$11,$Z$7:$AD$8,2,FALSE)+R25*Fuel_Specs!$B$154/Fuel_Specs!$B$157+R26*Fuel_Specs!$B$155/Fuel_Specs!$B$157 ->  | S21: =AN21*(Vehicles!$C$30/Vehicles!$AT$72)/(Vehicles!$C$30*(1/Vehicles!$AT$72+1/Vehicles!$AU$72)+Vehicles!$C$31/Vehicles!$AV$72)+B21*(Vehicles!$C$30/Vehicles!$AU$72+Vehicles!$C$31/Vehicles!$AV$72)/(Vehicles!$C$30*(1/Vehicles!$AT$72+1/Vehicles!$AU$72)+Vehicles!$C$31/Vehicles!$AV$72) ->  | T21: =AN21*(Vehicles!$D$30/Vehicles!$AX$72)/(Vehicles!$D$30*(1/Vehicles!$AX$72+1/Vehicles!$AY$72)+Vehicles!$D$31/Vehicles!$AZ$72)+C21*(Vehicles!$D$30/Vehicles!$AY$72+Vehicles!$D$31/Vehicles!$AZ$72)/(Vehicles!$D$30*(1/Vehicles!$AX$72+1/Vehicles!$AY$72)+Vehicles!$D$31/Vehicles!$AZ$72) ->  | U21: =AN21*(Vehicles!$F$30/Vehicles!$BF$72)/(Vehicles!$F$30*(1/Vehicles!$BF$72+1/Vehicles!$BG$72)+Vehicles!$F$31/Vehicles!$BH$72)+D21*(Vehicles!$F$30/Vehicles!$BG$72+Vehicles!$F$31/Vehicles!$BH$72)/(Vehicles!$F$30*(1/Vehicles!$BF$72+1/Vehicles!$BG$72)+Vehicles!$F$31/Vehicles!$BH$72) ->  | V21: =AN21*(Vehicles!$G$30/Vehicles!$BJ$72)/(Vehicles!$G$30*(1/Vehicles!$BJ$72+1/Vehicles!$BK$72)+Vehicles!$G$31/Vehicles!$BL$72)+F21*(Vehicles!$G$30/Vehicles!$BK$72+Vehicles!$G$31/Vehicles!$BL$72)/(Vehicles!$G$30*(1/Vehicles!$BJ$72+1/Vehicles!$BK$72)+Vehicles!$G$31/Vehicles!$BL$72) ->  | W21: =AN21*(Vehicles!$H$30/Vehicles!$BN$72)/(Vehicles!$H$30*(1/Vehicles!$BN$72+1/Vehicles!$BO$72)+Vehicles!$H$31/Vehicles!$BP$72)+G21*(Vehicles!$H$30/Vehicles!$BO$72+Vehicles!$H$31/Vehicles!$BP$72)/(Vehicles!$H$30*(1/Vehicles!$BN$72+1/Vehicles!$BO$72)+Vehicles!$H$31/Vehicles!$BP$72) ->  | X21: =AN21*(Vehicles!$I$30/Vehicles!$BR$72)/(Vehicles!$I$30*(1/Vehicles!$BR$72+1/Vehicles!$BS$72)+Vehicles!$I$31/Vehicles!$BT$72)+H21*(Vehicles!$I$30/Vehicles!$BS$72+Vehicles!$I$31/Vehicles!$BT$72)/(Vehicles!$I$30*(1/Vehicles!$BR$72+1/Vehicles!$BS$72)+Vehicles!$I$31/Vehicles!$BT$72) ->  | Y21: =AN21*(Vehicles!$J$30/Vehicles!$BV$72)/(Vehicles!$J$30*(1/Vehicles!$BV$72+1/Vehicles!$BW$72)+Vehicles!$J$31/Vehicles!$BX$72)+K21*(Vehicles!$J$30/Vehicles!$BW$72+Vehicles!$J$31/Vehicles!$BX$72)/(Vehicles!$J$30*(1/Vehicles!$BV$72+1/Vehicles!$BW$72)+Vehicles!$J$31/Vehicles!$BX$72) ->  | Z21: =AN21*(Vehicles!$K$30/Vehicles!$BZ$72)/(Vehicles!$K$30*(1/Vehicles!$BZ$72+1/Vehicles!$CA$72)+Vehicles!$K$31/Vehicles!$CB$72)+O21*(Vehicles!$K$30/Vehicles!$CA$72+Vehicles!$K$31/Vehicles!$CB$72)/(Vehicles!$K$30*(1/Vehicles!$BZ$72+1/Vehicles!$CA$72)+Vehicles!$K$31/Vehicles!$CB$72) ->  | AA21: =AN21*(Vehicles!$L$30/Vehicles!$CD$72)/(Vehicles!$L$30*(1/Vehicles!$CD$72+1/Vehicles!$CE$72)+Vehicles!$L$31/Vehicles!$CF$72)+AO21*(Vehicles!$L$30/Vehicles!$CE$72+Vehicles!$L$31/Vehicles!$CF$72)/(Vehicles!$L$30*(1/Vehicles!$CD$72+1/Vehicles!$CE$72)+Vehicles!$L$31/Vehicles!$CF$72) ->  | AB21: =AN21*(Vehicles!$L$30/Vehicles!$CD$72)/(Vehicles!$L$30*(1/Vehicles!$CD$72+1/Vehicles!$CE$72)+Vehicles!$L$31/Vehicles!$CG$72)+AP21*(Vehicles!$L$30/Vehicles!$CE$72+Vehicles!$L$31/Vehicles!$CG$72)/(Vehicles!$L$30*(1/Vehicles!$CD$72+1/Vehicles!$CE$72)+Vehicles!$L$31/Vehicles!$CG$72) ->  | AC21: =(MeOH_FTD!$AJ179*MeOH_FTD!$AK$162+MeOH_FTD!$AK179+Vehicles!AB95/Vehicles!AB73*1000000)/1000000*HLOOKUP($J$10,$Z$5:$AD$6,2,FALSE)/HLOOKUP($J$11,$Z$7:$AD$8,2,FALSE)+AC25*Fuel_Specs!$B$154/Fuel_Specs!$B$157+AC26*Fuel_Specs!$B$155/Fuel_Specs!$B$157 ->  | AD21: =((1-Vehicles!$C$41)*(1-Vehicles!$C$13)*Fuel_Specs!$B$21/((1-Vehicles!$C$41)*(1-Vehicles!$C$13)*Fuel_Specs!$B$21+Vehicles!$C$41*(1-Vehicles!$C$13)*Fuel_Specs!$B$24+Vehicles!$C$13*Fuel_Specs!$B$42)*(Petroleum!B279*Petroleum!$J$262+Petroleum!$J279)+Vehicles!$C$41*(1-Vehicles!$C$13)*Fuel_Specs!$B$24/((1-Vehicles!$C$41)*(1-Vehicles!$C$13)*Fuel_Specs!$B$21+Vehicles!$C$41*(1-Vehicles!$C$13)*Fuel_Specs!$B$24+Vehicles!$C$13*Fuel_Specs!$B$42)*(Petroleum!B279*IF(Inputs!F$102=1,Petroleum!$K$262,Petroleum!$L$262)+IF(Inputs!F$102=1,Petroleum!$K279,Petroleum!$L279))+Vehicles!$C$13*Fuel_Specs!$B$42/((1-Vehicles!$C$41)*(1-Vehicles!$C$13)*Fuel_Specs!$B$21+Vehicles!$C$41*(1-Vehicles!$C$13)*Fuel_Specs!$B$24+Vehicles!$C$13*Fuel_Specs!$B$42)*(MeOH_FTD!$AZ179*MeOH_FTD!$BA$162+MeOH_FTD!$BA179)+Vehicles!AC95/Vehicles!AC73*1000000)/1000000*HLOOKUP($J$10,$Z$5:$AD$6,2,FALSE)/HLOOKUP($J$11,$Z$7:$AD$8,2,FALSE)+AD25*Fuel_Specs!$B$154/Fuel_Specs!$B$157+AD26*Fuel_Specs!$B$155/Fuel_Specs!$B$157 ->  | AE21: =((1-Vehicles!$C$42)*(1-Vehicles!$C$14)*Fuel_Specs!$B$21/((1-Vehicles!$C$42)*(1-Vehicles!$C$14)*Fuel_Specs!$B$21+Vehicles!$C$42*(1-Vehicles!$C$14)*Fuel_Specs!$B$24+Vehicles!$C$14*Fuel_Specs!$B41)*(Petroleum!B279*Petroleum!$J$262+Petroleum!$J279)+Vehicles!$C$42*(1-Vehicles!$C$14)*Fuel_Specs!$B$24/((1-Vehicles!$C$42)*(1-Vehicles!$C$14)*Fuel_Specs!$B$21+Vehicles!$C$42*(1-Vehicles!$C$14)*Fuel_Specs!$B$24+Vehicles!$C$14*Fuel_Specs!$B41)*(Petroleum!B279*IF(Inputs!F$102=1,Petroleum!$K$262,Petroleum!$L$262)+IF(Inputs!F$102=1,Petroleum!$K279,Petroleum!$L279))+Vehicles!$C$14*Fuel_Specs!$B41/((1-Vehicles!$C$42)*(1-Vehicles!$C$14)*Fuel_Specs!$B$21+Vehicles!$C$42*(1-Vehicles!$C$14)*Fuel_Specs!$B$24+Vehicles!$C$14*Fuel_Specs!$B41)*(BioOil!$Y449*BioOil!$Z$431+BioOil!$Z449)+Vehicles!AD95/Vehicles!AD73*1000000)/1000000*HLOOKUP($J$10,$Z$5:$AD$6,2,FALSE)/HLOOKUP($J$11,$Z$7:$AD$8,2,FALSE)+AE25*Fuel_Specs!$B$154/Fuel_Specs!$B$157+AE26*Fuel_Specs!$B$155/Fuel_Specs!$B$157 ->  | AF21: =((1-Vehicles!$C$43)*(1-Vehicles!$C$15)*Fuel_Specs!$B$21/((1-Vehicles!$C$43)*(1-Vehicles!$C$15)*Fuel_Specs!$B$21+Vehicles!$C$43*(1-Vehicles!$C$15)*Fuel_Specs!$B$24+Vehicles!$C$15*IF(Inputs!$E$670=1,Fuel_Specs!$B$43,Fuel_Specs!$B$44))*(Petroleum!B279*Petroleum!$J$262+Petroleum!$J279)+Vehicles!$C$43*(1-Vehicles!$C$15)*Fuel_Specs!$B$24/((1-Vehicles!$C$43)*(1-Vehicles!$C$15)*Fuel_Specs!$B$21+Vehicles!$C$43*(1-Vehicles!$C$15)*Fuel_Specs!$B$24+Vehicles!$C$15*IF(Inputs!$E$670=1,Fuel_Specs!$B$43,Fuel_Specs!$B$44))*(Petroleum!B279*IF(Inputs!F$102=1,Petroleum!$K$262,Petroleum!$L$262)+IF(Inputs!F$102=1,Petroleum!$K279,Petroleum!$L279))+Vehicles!$C$15*IF(Inputs!$E$670=1,Fuel_Specs!$B$43,Fuel_Specs!$B$44)/((1-Vehicles!$C$43)*(1-Vehicles!$C$15)*Fuel_Specs!$B$21+Vehicles!$C$43*(1-Vehicles!$C$15)*Fuel_Specs!$B$24+Vehicles!$C$15*IF(Inputs!$E$670=1,Fuel_Specs!$B$43,Fuel_Specs!$B$44))*(BioOil!$BQ449*BioOil!$BR$431+BioOil!$BR449)+Vehicles!AE95/Vehicles!AE73*1000000)/1000000*HLOOKUP($J$10,$Z$5:$AD$6,2,FALSE)/HLOOKUP($J$11,$Z$7:$AD$8,2,FALSE)+AF25*Fuel_Specs!$B$154/Fuel_Specs!$B$157+AF26*Fuel_Specs!$B$155/Fuel_Specs!$B$157 ->  | AG21: =((1-Vehicles!$C$43)*(1-Vehicles!$C$15)*Fuel_Specs!$B$21/((1-Vehicles!$C$43)*(1-Vehicles!$C$15)*Fuel_Specs!$B$21+Vehicles!$C$43*(1-Vehicles!$C$15)*Fuel_Specs!$B$24+Vehicles!$C$15*IF(Inputs!$E$670=1,Fuel_Specs!$B$43,Fuel_Specs!$B$44))*(Petroleum!B279*Petroleum!$J$262+Petroleum!$J279)+Vehicles!$C$43*(1-Vehicles!$C$15)*Fuel_Specs!$B$24/((1-Vehicles!$C$43)*(1-Vehicles!$C$15)*Fuel_Specs!$B$21+Vehicles!$C$43*(1-Vehicles!$C$15)*Fuel_Specs!$B$24+Vehicles!$C$15*IF(Inputs!$E$670=1,Fuel_Specs!$B$43,Fuel_Specs!$B$44))*(Petroleum!B279*IF(Inputs!F$102=1,Petroleum!$K$262,Petroleum!$L$262)+IF(Inputs!F$102=1,Petroleum!$K279,Petroleum!$L279))+Vehicles!$C$15*IF(Inputs!$E$670=1,Fuel_Specs!$B$43,Fuel_Specs!$B$44)/((1-Vehicles!$C$43)*(1-Vehicles!$C$15)*Fuel_Specs!$B$21+Vehicles!$C$43*(1-Vehicles!$C$15)*Fuel_Specs!$B$24+Vehicles!$C$15*IF(Inputs!$E$670=1,Fuel_Specs!$B$43,Fuel_Specs!$B$44))*(Pyrolysis_IDL!$AF314*Pyrolysis_IDL!$AG$297+Pyrolysis_IDL!$AG314)+Vehicles!AE95/Vehicles!AE73*1000000)/1000000*HLOOKUP($J$10,$Z$5:$AD$6,2,FALSE)/HLOOKUP($J$11,$Z$7:$AD$8,2,FALSE)+AG25*Fuel_Specs!$B$154/Fuel_Specs!$B$157+AG26*Fuel_Specs!$B$155/Fuel_Specs!$B$157 ->  | AH21: =(((1-Vehicles!$C$44)*(1-Vehicles!$C$17-Vehicles!$C$18)*Fuel_Specs!$B$21*(Petroleum!B279*Petroleum!$J$262+Petroleum!$J279)+Vehicles!$C$44*(1-Vehicles!$C$17-Vehicles!$C$18)*Fuel_Specs!$B$24*(Petroleum!B279*IF(Inputs!F$102=1,Petroleum!$K$262,Petroleum!$L$262)+IF(Inputs!F$102=1,Petroleum!$K279,Petroleum!$L279))+Vehicles!$C$17*Fuel_Specs!$B$33*(EtOH!BT563*EtOH!$BU$546+EtOH!$BU563)+Vehicles!$C$18*Fuel_Specs!$B$36*('EtOH-Diesel Additives'!$B70*'EtOH-Diesel Additives'!$B$53))/((1-Vehicles!$C$44)*(1-Vehicles!$C$17-Vehicles!$C$18)*Fuel_Specs!$B$21+Vehicles!$C$44*(1-Vehicles!$C$17-Vehicles!$C$18)*Fuel_Specs!$B$24+Vehicles!$C$17*Fuel_Specs!$B$33+Vehicles!$C$18*Fuel_Specs!$B$36)+Vehicles!AF95/Vehicles!AF73*1000000)/1000000*HLOOKUP($J$10,$Z$5:$AD$6,2,FALSE)/HLOOKUP($J$11,$Z$7:$AD$8,2,FALSE)+AH25*Fuel_Specs!$B$154/Fuel_Specs!$B$157+AH26*Fuel_Specs!$B$155/Fuel_Specs!$B$157 ->  | AI21: =AN21*(Vehicles!$M$30/Vehicles!$CO$72)/(Vehicles!$M$30*(1/Vehicles!$CO$72+1/Vehicles!$CP$72)+Vehicles!$M$31/Vehicles!$CQ$72)+E21*(Vehicles!$M$30/Vehicles!$CP$72+Vehicles!$M$31/Vehicles!$CQ$72)/(Vehicles!$M$30*(1/Vehicles!$CO$72+1/Vehicles!$CP$72)+Vehicles!$M$31/Vehicles!$CQ$72) ->  | AJ21: =AN21*(Vehicles!$N$30/Vehicles!$CS$72)/(Vehicles!$N$30*(1/Vehicles!$CS$72+1/Vehicles!$CT$72)+Vehicles!$N$31/Vehicles!$CU$72)+AC21*(Vehicles!$N$30/Vehicles!$CT$72+Vehicles!$N$31/Vehicles!$CU$72)/(Vehicles!$N$30*(1/Vehicles!$CS$72+1/Vehicles!$CT$72)+Vehicles!$N$31/Vehicles!$CU$72) ->  | AK21: =AN21*(Vehicles!$O$30/Vehicles!$CW$72)/(Vehicles!$O$30*(1/Vehicles!$CW$72+1/Vehicles!$CX$72)+Vehicles!$O$31/Vehicles!$CY$72)+AD21*(Vehicles!$O$30/Vehicles!$CX$72+Vehicles!$O$31/Vehicles!$CY$72)/(Vehicles!$O$30*(1/Vehicles!$CW$72+1/Vehicles!$CX$72)+Vehicles!$O$31/Vehicles!$CY$72) ->  | AL21: =AN21*(Vehicles!$P$30/Vehicles!$DA$72)/(Vehicles!$P$30*(1/Vehicles!$DA$72+1/Vehicles!$DB$72)+Vehicles!$P$31/Vehicles!$DC$72)+AE21*(Vehicles!$P$30/Vehicles!$DB$72+Vehicles!$P$31/Vehicles!$DC$72)/(Vehicles!$P$30*(1/Vehicles!$DA$72+1/Vehicles!$DB$72)+Vehicles!$P$31/Vehicles!$DC$72) ->  | AM21: =AN21*(Vehicles!$R$30/Vehicles!$DI$72)/(Vehicles!$R$30*(1/Vehicles!$DI$72+1/Vehicles!$DJ$72)+Vehicles!$R$31/Vehicles!$DK$72)+AH21*(Vehicles!$R$30/Vehicles!$DJ$72+Vehicles!$R$31/Vehicles!$DK$72)/(Vehicles!$R$30*(1/Vehicles!$DI$72+1/Vehicles!$DJ$72)+Vehicles!$R$31/Vehicles!$DK$72) ->  | AN21: =(Electric!$G220+Electric!$F220)/1000000*HLOOKUP($J$10,$Z$5:$AD$6,2,FALSE)/HLOOKUP($J$11,$Z$7:$AD$8,2,FALSE)+AN25*Fuel_Specs!$B$154/Fuel_Specs!$B$157+AN26*Fuel_Specs!$B$155/Fuel_Specs!$B$157 -> 84843.54211 | AO21: =(Hydrogen!$AJ322*Hydrogen!$AK$305+Hydrogen!$AK322)/1000000*HLOOKUP($J$10,$Z$5:$AD$6,2,FALSE)/HLOOKUP($J$11,$Z$7:$AD$8,2,FALSE)+AO25*Fuel_Specs!$B$154/Fuel_Specs!$B$157+AO26*Fuel_Specs!$B$155/Fuel_Specs!$B$157 -> 93344.35586 | AP21: =(Hydrogen!$BT322*Hydrogen!$BU$305+Hydrogen!$BU322)/1000000*HLOOKUP($J$10,$Z$5:$AD$6,2,FALSE)/HLOOKUP($J$11,$Z$7:$AD$8,2,FALSE)+AP25*Fuel_Specs!$B$154/Fuel_Specs!$B$157+AP26*Fuel_Specs!$B$155/Fuel_Specs!$B$157 -> 114362.688 | AQ21: =AN21*(Vehicles!$S$30/Vehicles!$DY$72)/(Vehicles!$S$30*(1/Vehicles!$DY$72+1/Vehicles!$DZ$72)+Vehicles!$S$31/Vehicles!$EA$72)+AO21*(Vehicles!$S$30/Vehicles!$DZ$72+Vehicles!$S$31/Vehicles!$EA$72)/(Vehicles!$S$30*(1/Vehicles!$DY$72+1/Vehicles!$DZ$72)+Vehicles!$S$31/Vehicles!$EA$72) ->  | AR21: =AN21*(Vehicles!$S$30/Vehicles!$DY$72)/(Vehicles!$S$30*(1/Vehicles!$DY$72+1/Vehicles!$DZ$72)+Vehicles!$S$31/Vehicles!$EA$72)+AP21*(Vehicles!$S$30/Vehicles!$DZ$72+Vehicles!$S$31/Vehicles!$EA$72)/(Vehicles!$S$30*(1/Vehicles!$DY$72+1/Vehicles!$DZ$72)+Vehicles!$S$31/Vehicles!$EA$72) ->  | AS21: =((1-Vehicles!$C$40)*(1-Vehicles!$C$16)*Fuel_Specs!$B$15/((1-Vehicles!$C$40)*(1-Vehicles!$C$16)*Fuel_Specs!$B$15+Vehicles!$C$40*(1-Vehicles!$C$16)*Fuel_Specs!$B$17+Vehicles!$C$16*Fuel_Specs!$B$48)*(Petroleum!$B279*Petroleum!$D$262+Petroleum!$D279)+Vehicles!$C$40*(1-Vehicles!$C$16)*Fuel_Specs!$B$17/((1-Vehicles!$C$40)*(1-Vehicles!$C$16)*Fuel_Specs!$B$15+Vehicles!$C$40*(1-Vehicles!$C$16)*Fuel_Specs!$B$17+Vehicles!$C$16*Fuel_Specs!$B$48)*(Petroleum!B279*Petroleum!$F$262+Petroleum!$F279)+Vehicles!$C$16*Fuel_Specs!$B$48/((1-Vehicles!$C$40)*(1-Vehicles!$C$16)*Fuel_Specs!$B$15+Vehicles!$C$40*(1-Vehicles!$C$16)*Fuel_Specs!$B$17+Vehicles!$C$16*Fuel_Specs!$B$48)*(Pyrolysis_IDL!$AP314*Pyrolysis_IDL!$AQ$297+Pyrolysis_IDL!$AQ314)+Vehicles!Q95/Vehicles!Q73*1000000)/1000000*HLOOKUP($J$10,$Z$5:$AD$6,2,FALSE)/HLOOKUP($J$11,$Z$7:$AD$8,2,FALSE)+AS25*Fuel_Specs!$B$154/Fuel_Specs!$B$157+AS26*Fuel_Specs!$B$155/Fuel_Specs!$B$157 ->  | AT21: =(Petroleum!$B279*Petroleum!$S$262+Petroleum!$S279)/1000000*HLOOKUP($J$10,$Z$5:$AD$6,2,FALSE)/HLOOKUP($J$11,$Z$7:$AD$8,2,FALSE)+AT25*Fuel_Specs!$B$154/Fuel_Specs!$B$157+AT26*Fuel_Specs!$B$155/Fuel_Specs!$B$157 -> 12438.83599 | AU21: 4410.21323 | AV21: 1217.203364 | BB21: SI - CNG Vehicle | BC21: RNAVCNG | BH21: CIDI - EtOH-Diesel | BI21: RNAVEDIESELCIDI | BK21: SI HEV - LPG | BL21: RNAVHEVLPG | BN21: SI PHEV - LPG and Electricity | BO21: RNAVPHEVLPG
A22: CH4 | B22: =(Inputs!$E$1518*(Petroleum!$B277*Petroleum!$F$262+Petroleum!$F277)+(1-Inputs!$E$1518)*(Petroleum!$B277*Petroleum!$D$262+Petroleum!$D277))/1000000*HLOOKUP($J$10,$Z$5:$AD$6,2,FALSE)/HLOOKUP($J$11,$Z$7:$AD$8,2,FALSE) -> 124.2179833 | C22: =(Petroleum!$C277*Petroleum!$G$262+Petroleum!$G277)/1000000*HLOOKUP($J$10,$Z$5:$AD$6,2,FALSE)/HLOOKUP($J$11,$Z$7:$AD$8,2,FALSE) -> 125.7430523 | D22: =((1-Vehicles!$C$35)*(1-Vehicles!$C$7)*Fuel_Specs!$B$15/((1-Vehicles!$C$35)*(1-Vehicles!$C$7)*Fuel_Specs!$B$15+Vehicles!$C$35*(1-Vehicles!$C$7)*Fuel_Specs!$B$17+Vehicles!$C$7*Fuel_Specs!$B$33)*(Petroleum!$B277*Petroleum!$D$262+(Petroleum!$D277-'T&D'!G230))+Vehicles!$C$35*(1-Vehicles!$C$7)*Fuel_Specs!$B$17/((1-Vehicles!$C$35)*(1-Vehicles!$C$7)*Fuel_Specs!$B$15+Vehicles!$C$35*(1-Vehicles!$C$7)*Fuel_Specs!$B$17+Vehicles!$C$7*Fuel_Specs!$B$33)*(Petroleum!B277*Petroleum!$F$262+Petroleum!$F277)+Vehicles!$C$7*Fuel_Specs!$B$33/((1-Vehicles!$C$35)*(1-Vehicles!$C$7)*Fuel_Specs!$B$15+Vehicles!$C$35*(1-Vehicles!$C$7)*Fuel_Specs!$B$17+Vehicles!$C$7*Fuel_Specs!$B$33)*(EtOH!BV561*EtOH!$BW$546+EtOH!$BW561)+Petroleum!AS139+Petroleum!AT139)/1000000*HLOOKUP($J$10,$Z$5:$AD$6,2,FALSE)/HLOOKUP($J$11,$Z$7:$AD$8,2,FALSE) -> 124.3252207 | E22: =(Inputs!$E$97*(IF(Inputs!F$102=1,Petroleum!$B277,Petroleum!$C277)*IF(Inputs!F$102=1,Petroleum!$K$262,Petroleum!$L$262)+IF(Inputs!F$102=1,Petroleum!$K277,Petroleum!$L277))+(1-Inputs!$E$97)*(IF(Inputs!F$101=1,Petroleum!$B277,Petroleum!$C277)*Petroleum!$J$262+Petroleum!$J277))/1000000*HLOOKUP($J$10,$Z$5:$AD$6,2,FALSE)/HLOOKUP($J$11,$Z$7:$AD$8,2,FALSE) -> 115.6768773 | F22: =(NG!$J99*NG!$K$84+NG!$K99)/1000000*HLOOKUP($J$10,$Z$5:$AD$6,2,FALSE)/HLOOKUP($J$11,$Z$7:$AD$8,2,FALSE) -> 363.4701964 | G22: =(NG!$R99*NG!$S$84+NG!$S99)/1000000*HLOOKUP($J$10,$Z$5:$AD$6,2,FALSE)/HLOOKUP($J$11,$Z$7:$AD$8,2,FALSE) -> 385.3786932 | H22: =(NG!$X99*NG!$Y$84+NG!$Y99)/1000000*HLOOKUP($J$10,$Z$5:$AD$6,2,FALSE)/HLOOKUP($J$11,$Z$7:$AD$8,2,FALSE) -> 231.5628164 | I22: =(MeOH_FTD!BJ177*MeOH_FTD!BK$162+MeOH_FTD!BK177)/1000000*HLOOKUP($J$10,$Z$5:$AD$6,2,FALSE)/HLOOKUP($J$11,$Z$7:$AD$8,2,FALSE) -> 397.0200081 | J22: =((1-Vehicles!$C$34)*(1-Vehicles!$C$5)*Fuel_Specs!$B$15/((1-Vehicles!$C$34)*(1-Vehicles!$C$5)*Fuel_Specs!$B$15+Vehicles!$C$34*(1-Vehicles!$C$5)*Fuel_Specs!$B$17+Vehicles!$C$5*Fuel_Specs!$B$32)*(Petroleum!$B277*Petroleum!$D$262+Petroleum!$D277)+Vehicles!$C$34*(1-Vehicles!$C$5)*Fuel_Specs!$B$17/((1-Vehicles!$C$34)*(1-Vehicles!$C$5)*Fuel_Specs!$B$15+Vehicles!$C$34*(1-Vehicles!$C$5)*Fuel_Specs!$B$17+Vehicles!$C$5*Fuel_Specs!$B$32)*(Petroleum!B277*Petroleum!$F$262+Petroleum!$F277)+Vehicles!$C$5*Fuel_Specs!$B$32/((1-Vehicles!$C$34)*(1-Vehicles!$C$5)*Fuel_Specs!$B$15+Vehicles!$C$34*(1-Vehicles!$C$5)*Fuel_Specs!$B$17+Vehicles!$C$5*Fuel_Specs!$B$32)*(MeOH_FTD!$N177*MeOH_FTD!$O$162+MeOH_FTD!$O177))/1000000*HLOOKUP($J$10,$Z$5:$AD$6,2,FALSE)/HLOOKUP($J$11,$Z$7:$AD$8,2,FALSE) -> 271.0405555 | K22: =((1-Vehicles!$C$34)*(1-Vehicles!$C$6)*Fuel_Specs!$B$15/((1-Vehicles!$C$34)*(1-Vehicles!$C$6)*Fuel_Specs!$B$15+Vehicles!$C$34*(1-Vehicles!$C$6)*Fuel_Specs!$B$17+Vehicles!$C$6*Fuel_Specs!$B$32)*(Petroleum!$B277*Petroleum!$D$262+Petroleum!$D277)+Vehicles!$C$34*(1-Vehicles!$C$6)*Fuel_Specs!$B$17/((1-Vehicles!$C$34)*(1-Vehicles!$C$6)*Fuel_Specs!$B$15+Vehicles!$C$34*(1-Vehicles!$C$6)*Fuel_Specs!$B$17+Vehicles!$C$6*Fuel_Specs!$B$32)*(Petroleum!B277*Petroleum!$F$262+Petroleum!$F277)+Vehicles!$C$6*Fuel_Specs!$B$32/((1-Vehicles!$C$34)*(1-Vehicles!$C$6)*Fuel_Specs!$B$15+Vehicles!$C$34*(1-Vehicles!$C$6)*Fuel_Specs!$B$17+Vehicles!$C$6*Fuel_Specs!$B$32)*(MeOH_FTD!$N177*MeOH_FTD!$O$162+MeOH_FTD!$O177))/1000000*HLOOKUP($J$10,$Z$5:$AD$6,2,FALSE)/HLOOKUP($J$11,$Z$7:$AD$8,2,FALSE) -> 287.1048206 | L22: =(MeOH_FTD!$N177*MeOH_FTD!$O$162+MeOH_FTD!$O177)/1000000*HLOOKUP($J$10,$Z$5:$AD$6,2,FALSE)/HLOOKUP($J$11,$Z$7:$AD$8,2,FALSE) -> 324.1864759 | M22: =((1-Vehicles!$C$36)*(1-Vehicles!$C$8)*Fuel_Specs!$B$15/((1-Vehicles!$C$36)*(1-Vehicles!$C$8)*Fuel_Specs!$B$15+Vehicles!$C$36*(1-Vehicles!$C$8)*Fuel_Specs!$B$17+Vehicles!$C$8*Fuel_Specs!$B$33)*(Petroleum!$B277*Petroleum!$D$262+(Petroleum!$D277-'T&D'!G230))+Vehicles!$C$36*(1-Vehicles!$C$8)*Fuel_Specs!$B$17/((1-Vehicles!$C$36)*(1-Vehicles!$C$8)*Fuel_Specs!$B$15+Vehicles!$C$36*(1-Vehicles!$C$8)*Fuel_Specs!$B$17+Vehicles!$C$8*Fuel_Specs!$B$33)*(Petroleum!B277*Petroleum!$F$262+Petroleum!$F277)+Vehicles!$C$8*Fuel_Specs!$B$33/((1-Vehicles!$C$36)*(1-Vehicles!$C$8)*Fuel_Specs!$B$15+Vehicles!$C$36*(1-Vehicles!$C$8)*Fuel_Specs!$B$17+Vehicles!$C$8*Fuel_Specs!$B$33)*(EtOH!BV561*EtOH!$BW$546+EtOH!$BW561)+Petroleum!AS139+Petroleum!AT139)/1000000*HLOOKUP($J$10,$Z$5:$AD$6,2,FALSE)/HLOOKUP($J$11,$Z$7:$AD$8,2,FALSE) -> 143.1654196 | N22: =((1-Vehicles!$C$37)*(1-Vehicles!$C$12)*Fuel_Specs!$B$15/((1-Vehicles!$C$37)*(1-Vehicles!$C$12)*Fuel_Specs!$B$15+Vehicles!$C$37*(1-Vehicles!$C$12)*Fuel_Specs!$B$17+Vehicles!$C$12*Fuel_Specs!$B$34)*(Petroleum!$B277*Petroleum!$D$262+Petroleum!$D277)+Vehicles!$C$37*(1-Vehicles!$C$12)*Fuel_Specs!$B$17/((1-Vehicles!$C$37)*(1-Vehicles!$C$12)*Fuel_Specs!$B$15+Vehicles!$C$37*(1-Vehicles!$C$12)*Fuel_Specs!$B$17+Vehicles!$C$12*Fuel_Specs!$B$34)*(Petroleum!B277*Petroleum!$F$262+Petroleum!$F277)+Vehicles!$C$12*Fuel_Specs!$B$34/((1-Vehicles!$C$37)*(1-Vehicles!$C$12)*Fuel_Specs!$B$15+Vehicles!$C$37*(1-Vehicles!$C$12)*Fuel_Specs!$B$17+Vehicles!$C$12*Fuel_Specs!$B$34)*(EtOH!$BX561*EtOH!$BY$546+EtOH!$BY561))/1000000*HLOOKUP($J$10,$Z$5:$AD$6,2,FALSE)/HLOOKUP($J$11,$Z$7:$AD$8,2,FALSE) -> 183.3770421 | O22: =((1-Vehicles!$C$36)*(1-Vehicles!$C$9)*Fuel_Specs!$B$15/((1-Vehicles!$C$36)*(1-Vehicles!$C$9)*Fuel_Specs!$B$15+Vehicles!$C$36*(1-Vehicles!$C$9)*Fuel_Specs!$B$17+Vehicles!$C$9*Fuel_Specs!$B$33)*(Petroleum!$B277*Petroleum!$D$262+(Petroleum!$D277-'T&D'!G230))+Vehicles!$C$36*(1-Vehicles!$C$9)*Fuel_Specs!$B$17/((1-Vehicles!$C$36)*(1-Vehicles!$C$9)*Fuel_Specs!$B$15+Vehicles!$C$36*(1-Vehicles!$C$9)*Fuel_Specs!$B$17+Vehicles!$C$9*Fuel_Specs!$B$33)*(Petroleum!B277*Petroleum!$F$262+Petroleum!$F277)+Vehicles!$C$9*Fuel_Specs!$B$33/((1-Vehicles!$C$36)*(1-Vehicles!$C$9)*Fuel_Specs!$B$15+Vehicles!$C$36*(1-Vehicles!$C$9)*Fuel_Specs!$B$17+Vehicles!$C$9*Fuel_Specs!$B$33)*(EtOH!BV561*EtOH!$BW$546+EtOH!$BW561)+Petroleum!AS139+Petroleum!AT139)/1000000*HLOOKUP($J$10,$Z$5:$AD$6,2,FALSE)/HLOOKUP($J$11,$Z$7:$AD$8,2,FALSE) -> 143.1654196 | P22: =(EtOH!$BT561*EtOH!$BU$546+EtOH!$BU561)/1000000*HLOOKUP($J$10,$Z$5:$AD$6,2,FALSE)/HLOOKUP($J$11,$Z$7:$AD$8,2,FALSE) -> 149.5558525 | Q22: =((1-Vehicles!$C$40)*(1-Vehicles!$C$16)*Fuel_Specs!$B$15/((1-Vehicles!$C$40)*(1-Vehicles!$C$16)*Fuel_Specs!$B$15+Vehicles!$C$40*(1-Vehicles!$C$16)*Fuel_Specs!$B$17+Vehicles!$C$16*Fuel_Specs!$B$47)*(Petroleum!$B277*Petroleum!$D$262+Petroleum!$D277)+Vehicles!$C$40*(1-Vehicles!$C$16)*Fuel_Specs!$B$17/((1-Vehicles!$C$40)*(1-Vehicles!$C$16)*Fuel_Specs!$B$15+Vehicles!$C$40*(1-Vehicles!$C$16)*Fuel_Specs!$B$17+Vehicles!$C$16*Fuel_Specs!$B$47)*(Petroleum!B277*Petroleum!$F$262+Petroleum!$F277)+Vehicles!$C$16*Fuel_Specs!$B$47/((1-Vehicles!$C$40)*(1-Vehicles!$C$16)*Fuel_Specs!$B$15+Vehicles!$C$40*(1-Vehicles!$C$16)*Fuel_Specs!$B$17+Vehicles!$C$16*Fuel_Specs!$B$47)*(BioOil!$CE447*BioOil!$CF$431+BioOil!$CF447))/1000000*HLOOKUP($J$10,$Z$5:$AD$6,2,FALSE)/HLOOKUP($J$11,$Z$7:$AD$8,2,FALSE) -> 19.55254428 | R22: =((1-Vehicles!$C$40)*(1-Vehicles!$C$16)*Fuel_Specs!$B$15/((1-Vehicles!$C$40)*(1-Vehicles!$C$16)*Fuel_Specs!$B$15+Vehicles!$C$40*(1-Vehicles!$C$16)*Fuel_Specs!$B$17+Vehicles!$C$16*Fuel_Specs!$B$47)*(Petroleum!$B277*Petroleum!$D$262+Petroleum!$D277)+Vehicles!$C$40*(1-Vehicles!$C$16)*Fuel_Specs!$B$17/((1-Vehicles!$C$40)*(1-Vehicles!$C$16)*Fuel_Specs!$B$15+Vehicles!$C$40*(1-Vehicles!$C$16)*Fuel_Specs!$B$17+Vehicles!$C$16*Fuel_Specs!$B$47)*(Petroleum!B277*Petroleum!$F$262+Petroleum!$F277)+Vehicles!$C$16*Fuel_Specs!$B$47/((1-Vehicles!$C$40)*(1-Vehicles!$C$16)*Fuel_Specs!$B$15+Vehicles!$C$40*(1-Vehicles!$C$16)*Fuel_Specs!$B$17+Vehicles!$C$16*Fuel_Specs!$B$47)*(Pyrolysis_IDL!$AD312*Pyrolysis_IDL!$AE$297+Pyrolysis_IDL!$AE312))/1000000*HLOOKUP($J$10,$Z$5:$AD$6,2,FALSE)/HLOOKUP($J$11,$Z$7:$AD$8,2,FALSE) -> 71.86573399 | S22: =AN22*(Vehicles!$C$30/Vehicles!$AT$72)/(Vehicles!$C$30*(1/Vehicles!$AT$72+1/Vehicles!$AU$72)+Vehicles!$C$31/Vehicles!$AV$72)+B22*(Vehicles!$C$30/Vehicles!$AU$72+Vehicles!$C$31/Vehicles!$AV$72)/(Vehicles!$C$30*(1/Vehicles!$AT$72+1/Vehicles!$AU$72)+Vehicles!$C$31/Vehicles!$AV$72) ->  | T22: =AN22*(Vehicles!$D$30/Vehicles!$AX$72)/(Vehicles!$D$30*(1/Vehicles!$AX$72+1/Vehicles!$AY$72)+Vehicles!$D$31/Vehicles!$AZ$72)+C22*(Vehicles!$D$30/Vehicles!$AY$72+Vehicles!$D$31/Vehicles!$AZ$72)/(Vehicles!$D$30*(1/Vehicles!$AX$72+1/Vehicles!$AY$72)+Vehicles!$D$31/Vehicles!$AZ$72) ->  | U22: =AN22*(Vehicles!$F$30/Vehicles!$BF$72)/(Vehicles!$F$30*(1/Vehicles!$BF$72+1/Vehicles!$BG$72)+Vehicles!$F$31/Vehicles!$BH$72)+D22*(Vehicles!$F$30/Vehicles!$BG$72+Vehicles!$F$31/Vehicles!$BH$72)/(Vehicles!$F$30*(1/Vehicles!$BF$72+1/Vehicles!$BG$72)+Vehicles!$F$31/Vehicles!$BH$72) ->  | V22: =AN22*(Vehicles!$G$30/Vehicles!$BJ$72)/(Vehicles!$G$30*(1/Vehicles!$BJ$72+1/Vehicles!$BK$72)+Vehicles!$G$31/Vehicles!$BL$72)+F22*(Vehicles!$G$30/Vehicles!$BK$72+Vehicles!$G$31/Vehicles!$BL$72)/(Vehicles!$G$30*(1/Vehicles!$BJ$72+1/Vehicles!$BK$72)+Vehicles!$G$31/Vehicles!$BL$72) ->  | W22: =AN22*(Vehicles!$H$30/Vehicles!$BN$72)/(Vehicles!$H$30*(1/Vehicles!$BN$72+1/Vehicles!$BO$72)+Vehicles!$H$31/Vehicles!$BP$72)+G22*(Vehicles!$H$30/Vehicles!$BO$72+Vehicles!$H$31/Vehicles!$BP$72)/(Vehicles!$H$30*(1/Vehicles!$BN$72+1/Vehicles!$BO$72)+Vehicles!$H$31/Vehicles!$BP$72) ->  | X22: =AN22*(Vehicles!$I$30/Vehicles!$BR$72)/(Vehicles!$I$30*(1/Vehicles!$BR$72+1/Vehicles!$BS$72)+Vehicles!$I$31/Vehicles!$BT$72)+H22*(Vehicles!$I$30/Vehicles!$BS$72+Vehicles!$I$31/Vehicles!$BT$72)/(Vehicles!$I$30*(1/Vehicles!$BR$72+1/Vehicles!$BS$72)+Vehicles!$I$31/Vehicles!$BT$72) ->  | Y22: =AN22*(Vehicles!$J$30/Vehicles!$BV$72)/(Vehicles!$J$30*(1/Vehicles!$BV$72+1/Vehicles!$BW$72)+Vehicles!$J$31/Vehicles!$BX$72)+K22*(Vehicles!$J$30/Vehicles!$BW$72+Vehicles!$J$31/Vehicles!$BX$72)/(Vehicles!$J$30*(1/Vehicles!$BV$72+1/Vehicles!$BW$72)+Vehicles!$J$31/Vehicles!$BX$72) ->  | Z22: =AN22*(Vehicles!$K$30/Vehicles!$BZ$72)/(Vehicles!$K$30*(1/Vehicles!$BZ$72+1/Vehicles!$CA$72)+Vehicles!$K$31/Vehicles!$CB$72)+O22*(Vehicles!$K$30/Vehicles!$CA$72+Vehicles!$K$31/Vehicles!$CB$72)/(Vehicles!$K$30*(1/Vehicles!$BZ$72+1/Vehicles!$CA$72)+Vehicles!$K$31/Vehicles!$CB$72) ->  | AA22: =AN22*(Vehicles!$L$30/Vehicles!$CD$72)/(Vehicles!$L$30*(1/Vehicles!$CD$72+1/Vehicles!$CE$72)+Vehicles!$L$31/Vehicles!$CF$72)+AO22*(Vehicles!$L$30/Vehicles!$CE$72+Vehicles!$L$31/Vehicles!$CF$72)/(Vehicles!$L$30*(1/Vehicles!$CD$72+1/Vehicles!$CE$72)+Vehicles!$L$31/Vehicles!$CF$72) ->  | AB22: =AN22*(Vehicles!$L$30/Vehicles!$CD$72)/(Vehicles!$L$30*(1/Vehicles!$CD$72+1/Vehicles!$CE$72)+Vehicles!$L$31/Vehicles!$CG$72)+AP22*(Vehicles!$L$30/Vehicles!$CE$72+Vehicles!$L$31/Vehicles!$CG$72)/(Vehicles!$L$30*(1/Vehicles!$CD$72+1/Vehicles!$CE$72)+Vehicles!$L$31/Vehicles!$CG$72) ->  | AC22: =(MeOH_FTD!$AJ177*MeOH_FTD!$AK$162+MeOH_FTD!$AK177)/1000000*HLOOKUP($J$10,$Z$5:$AD$6,2,FALSE)/HLOOKUP($J$11,$Z$7:$AD$8,2,FALSE) -> 345.1880143 | AD22: =((1-Vehicles!$C$41)*(1-Vehicles!$C$13)*Fuel_Specs!$B$21/((1-Vehicles!$C$41)*(1-Vehicles!$C$13)*Fuel_Specs!$B$21+Vehicles!$C$41*(1-Vehicles!$C$13)*Fuel_Specs!$B$24+Vehicles!$C$13*Fuel_Specs!$B$42)*(Petroleum!B277*Petroleum!$J$262+Petroleum!$J277)+Vehicles!$C$41*(1-Vehicles!$C$13)*Fuel_Specs!$B$24/((1-Vehicles!$C$41)*(1-Vehicles!$C$13)*Fuel_Specs!$B$21+Vehicles!$C$41*(1-Vehicles!$C$13)*Fuel_Specs!$B$24+Vehicles!$C$13*Fuel_Specs!$B$42)*(Petroleum!B277*IF(Inputs!F$102=1,Petroleum!$K$262,Petroleum!$L$262)+IF(Inputs!F$102=1,Petroleum!$K277,Petroleum!$L277))+Vehicles!$C$13*Fuel_Specs!$B$42/((1-Vehicles!$C$41)*(1-Vehicles!$C$13)*Fuel_Specs!$B$21+Vehicles!$C$41*(1-Vehicles!$C$13)*Fuel_Specs!$B$24+Vehicles!$C$13*Fuel_Specs!$B$42)*(MeOH_FTD!$AZ177*MeOH_FTD!$BA$162+MeOH_FTD!$BA177))/1000000*HLOOKUP($J$10,$Z$5:$AD$6,2,FALSE)/HLOOKUP($J$11,$Z$7:$AD$8,2,FALSE) -> 360.5498876 | AE22: =((1-Vehicles!$C$42)*(1-Vehicles!$C$14)*Fuel_Specs!$B$21/((1-Vehicles!$C$42)*(1-Vehicles!$C$14)*Fuel_Specs!$B$21+Vehicles!$C$42*(1-Vehicles!$C$14)*Fuel_Specs!$B$24+Vehicles!$C$14*Fuel_Specs!$B$41)*(Petroleum!B277*Petroleum!$J$262+Petroleum!$J277)+Vehicles!$C$42*(1-Vehicles!$C$14)*Fuel_Specs!$B$24/((1-Vehicles!$C$42)*(1-Vehicles!$C$14)*Fuel_Specs!$B$21+Vehicles!$C$42*(1-Vehicles!$C$14)*Fuel_Specs!$B$24+Vehicles!$C$14*Fuel_Specs!$B$41)*(Petroleum!B277*IF(Inputs!F$102=1,Petroleum!$K$262,Petroleum!$L$262)+IF(Inputs!F$102=1,Petroleum!$K277,Petroleum!$L277))+Vehicles!$C$14*Fuel_Specs!$B$41/((1-Vehicles!$C$42)*(1-Vehicles!$C$14)*Fuel_Specs!$B$21+Vehicles!$C$42*(1-Vehicles!$C$14)*Fuel_Specs!$B$24+Vehicles!$C$14*Fuel_Specs!$B$41)*(BioOil!$Y447*BioOil!$Z$431+BioOil!$Z447))/1000000*HLOOKUP($J$10,$Z$5:$AD$6,2,FALSE)/HLOOKUP($J$11,$Z$7:$AD$8,2,FALSE) -> 102.3647298 | AF22: =((1-Vehicles!$C$43)*(1-Vehicles!$C$15)*Fuel_Specs!$B$21/((1-Vehicles!$C$43)*(1-Vehicles!$C$15)*Fuel_Specs!$B$21+Vehicles!$C$43*(1-Vehicles!$C$15)*Fuel_Specs!$B$24+Vehicles!$C$15*IF(Inputs!$E$670=1,IF(Inputs!$E$670=1,Fuel_Specs!$B$43,IF(Inputs!$E$670=3,Fuel_Specs!$B$45,Fuel_Specs!$B$44)),Fuel_Specs!$B$44))*(Petroleum!B277*Petroleum!$J$262+Petroleum!$J277)+Vehicles!$C$43*(1-Vehicles!$C$15)*Fuel_Specs!$B$24/((1-Vehicles!$C$43)*(1-Vehicles!$C$15)*Fuel_Specs!$B$21+Vehicles!$C$43*(1-Vehicles!$C$15)*Fuel_Specs!$B$24+Vehicles!$C$15*IF(Inputs!$E$670=1,IF(Inputs!$E$670=1,Fuel_Specs!$B$43,IF(Inputs!$E$670=3,Fuel_Specs!$B$45,Fuel_Specs!$B$44)),Fuel_Specs!$B$44))*(Petroleum!B277*IF(Inputs!F$102=1,Petroleum!$K$262,Petroleum!$L$262)+IF(Inputs!F$102=1,Petroleum!$K277,Petroleum!$L277))+Vehicles!$C$15*IF(Inputs!$E$670=1,IF(Inputs!$E$670=1,Fuel_Specs!$B$43,IF(Inputs!$E$670=3,Fuel_Specs!$B$45,Fuel_Specs!$B$44)),Fuel_Specs!$B$44)/((1-Vehicles!$C$43)*(1-Vehicles!$C$15)*Fuel_Specs!$B$21+Vehicles!$C$43*(1-Vehicles!$C$15)*Fuel_Specs!$B$24+Vehicles!$C$15*IF(Inputs!$E$670=1,IF(Inputs!$E$670=1,Fuel_Specs!$B$43,IF(Inputs!$E$670=3,Fuel_Specs!$B$45,Fuel_Specs!$B$44)),Fuel_Specs!$B$44))*(BioOil!$BQ447*BioOil!$BR$431+BioOil!$BR447))/1000000*HLOOKUP($J$10,$Z$5:$AD$6,2,FALSE)/HLOOKUP($J$11,$Z$7:$AD$8,2,FALSE) -> 57.71086858 | AG22: =((1-Vehicles!$C$43)*(1-Vehicles!$C$15)*Fuel_Specs!$B$21/((1-Vehicles!$C$43)*(1-Vehicles!$C$15)*Fuel_Specs!$B$21+Vehicles!$C$43*(1-Vehicles!$C$15)*Fuel_Specs!$B$24+Vehicles!$C$15*IF(Inputs!$E$670=1,Fuel_Specs!$B$43,Fuel_Specs!$B$44))*(Petroleum!B277*Petroleum!$J$262+Petroleum!$J277)+Vehicles!$C$43*(1-Vehicles!$C$15)*Fuel_Specs!$B$24/((1-Vehicles!$C$43)*(1-Vehicles!$C$15)*Fuel_Specs!$B$21+Vehicles!$C$43*(1-Vehicles!$C$15)*Fuel_Specs!$B$24+Vehicles!$C$15*IF(Inputs!$E$670=1,Fuel_Specs!$B$43,Fuel_Specs!$B$44))*(Petroleum!B277*IF(Inputs!F$102=1,Petroleum!$K$262,Petroleum!$L$262)+IF(Inputs!F$102=1,Petroleum!$K277,Petroleum!$L277))+Vehicles!$C$15*IF(Inputs!$E$670=1,Fuel_Specs!$B$43,Fuel_Specs!$B$44)/((1-Vehicles!$C$43)*(1-Vehicles!$C$15)*Fuel_Specs!$B$21+Vehicles!$C$43*(1-Vehicles!$C$15)*Fuel_Specs!$B$24+Vehicles!$C$15*IF(Inputs!$E$670=1,Fuel_Specs!$B$43,Fuel_Specs!$B$44))*(Pyrolysis_IDL!$AF312*Pyrolysis_IDL!$AG$297+Pyrolysis_IDL!$AG312))/1000000*HLOOKUP($J$10,$Z$5:$AD$6,2,FALSE)/HLOOKUP($J$11,$Z$7:$AD$8,2,FALSE) -> 81.33584394 | AH22: =(((1-Vehicles!$C$44)*(1-Vehicles!$C$17-Vehicles!$C$18)*Fuel_Specs!$B$21*(Petroleum!B277*Petroleum!$J$262+Petroleum!$J277)+Vehicles!$C$44*(1-Vehicles!$C$17-Vehicles!$C$18)*Fuel_Specs!$B$24*(Petroleum!B277*IF(Inputs!F$102=1,Petroleum!$K$262,Petroleum!$L$262)+IF(Inputs!F$102=1,Petroleum!$K277,Petroleum!$L277))+Vehicles!$C$17*Fuel_Specs!$B$33*(EtOH!BT561*EtOH!$BU$546+EtOH!$BU561)+Vehicles!$C$18*Fuel_Specs!$B$36*('EtOH-Diesel Additives'!$B68*'EtOH-Diesel Additives'!$B$53))/((1-Vehicles!$C$44)*(1-Vehicles!$C$17-Vehicles!$C$18)*Fuel_Specs!$B$21+Vehicles!$C$44*(1-Vehicles!$C$17-Vehicles!$C$18)*Fuel_Specs!$B$24+Vehicles!$C$17*Fuel_Specs!$B$33+Vehicles!$C$18*Fuel_Specs!$B$36))/1000000*HLOOKUP($J$10,$Z$5:$AD$6,2,FALSE)/HLOOKUP($J$11,$Z$7:$AD$8,2,FALSE) -> 117.4818976 | AI22: =AN22*(Vehicles!$M$30/Vehicles!$CO$72)/(Vehicles!$M$30*(1/Vehicles!$CO$72+1/Vehicles!$CP$72)+Vehicles!$M$31/Vehicles!$CQ$72)+E22*(Vehicles!$M$30/Vehicles!$CP$72+Vehicles!$M$31/Vehicles!$CQ$72)/(Vehicles!$M$30*(1/Vehicles!$CO$72+1/Vehicles!$CP$72)+Vehicles!$M$31/Vehicles!$CQ$72) ->  | AJ22: =AN22*(Vehicles!$N$30/Vehicles!$CS$72)/(Vehicles!$N$30*(1/Vehicles!$CS$72+1/Vehicles!$CT$72)+Vehicles!$N$31/Vehicles!$CU$72)+AC22*(Vehicles!$N$30/Vehicles!$CT$72+Vehicles!$N$31/Vehicles!$CU$72)/(Vehicles!$N$30*(1/Vehicles!$CS$72+1/Vehicles!$CT$72)+Vehicles!$N$31/Vehicles!$CU$72) ->  | AK22: =AN22*(Vehicles!$O$30/Vehicles!$CW$72)/(Vehicles!$O$30*(1/Vehicles!$CW$72+1/Vehicles!$CX$72)+Vehicles!$O$31/Vehicles!$CY$72)+AD22*(Vehicles!$O$30/Vehicles!$CX$72+Vehicles!$O$31/Vehicles!$CY$72)/(Vehicles!$O$30*(1/Vehicles!$CW$72+1/Vehicles!$CX$72)+Vehicles!$O$31/Vehicles!$CY$72) ->  | AL22: =AN22*(Vehicles!$P$30/Vehicles!$DA$72)/(Vehicles!$P$30*(1/Vehicles!$DA$72+1/Vehicles!$DB$72)+Vehicles!$P$31/Vehicles!$DC$72)+AE22*(Vehicles!$P$30/Vehicles!$DB$72+Vehicles!$P$31/Vehicles!$DC$72)/(Vehicles!$P$30*(1/Vehicles!$DA$72+1/Vehicles!$DB$72)+Vehicles!$P$31/Vehicles!$DC$72) ->  | AM22: =AN22*(Vehicles!$R$30/Vehicles!$DI$72)/(Vehicles!$R$30*(1/Vehicles!$DI$72+1/Vehicles!$DJ$72)+Vehicles!$R$31/Vehicles!$DK$72)+AH22*(Vehicles!$R$30/Vehicles!$DJ$72+Vehicles!$R$31/Vehicles!$DK$72)/(Vehicles!$R$30*(1/Vehicles!$DI$72+1/Vehicles!$DJ$72)+Vehicles!$R$31/Vehicles!$DK$72) ->  | AN22: =(Electric!$G218+Electric!$F218)/1000000*HLOOKUP($J$10,$Z$5:$AD$6,2,FALSE)/HLOOKUP($J$11,$Z$7:$AD$8,2,FALSE) -> 129.1877012 | AO22: =(Hydrogen!$AJ320*Hydrogen!$AK$305+Hydrogen!$AK320)/1000000*HLOOKUP($J$10,$Z$5:$AD$6,2,FALSE)/HLOOKUP($J$11,$Z$7:$AD$8,2,FALSE) -> 359.9051468 | AP22: =(Hydrogen!$BT320*Hydrogen!$BU$305+Hydrogen!$BU320)/1000000*HLOOKUP($J$10,$Z$5:$AD$6,2,FALSE)/HLOOKUP($J$11,$Z$7:$AD$8,2,FALSE) -> 411.7791966 | AQ22: =AN22*(Vehicles!$S$30/Vehicles!$DY$72)/(Vehicles!$S$30*(1/Vehicles!$DY$72+1/Vehicles!$DZ$72)+Vehicles!$S$31/Vehicles!$EA$72)+AO22*(Vehicles!$S$30/Vehicles!$DZ$72+Vehicles!$S$31/Vehicles!$EA$72)/(Vehicles!$S$30*(1/Vehicles!$DY$72+1/Vehicles!$DZ$72)+Vehicles!$S$31/Vehicles!$EA$72) ->  | AR22: =AN22*(Vehicles!$S$30/Vehicles!$DY$72)/(Vehicles!$S$30*(1/Vehicles!$DY$72+1/Vehicles!$DZ$72)+Vehicles!$S$31/Vehicles!$EA$72)+AP22*(Vehicles!$S$30/Vehicles!$DZ$72+Vehicles!$S$31/Vehicles!$EA$72)/(Vehicles!$S$30*(1/Vehicles!$DY$72+1/Vehicles!$DZ$72)+Vehicles!$S$31/Vehicles!$EA$72) ->  | AS22: =((1-Vehicles!$C$40)*(1-Vehicles!$C$16)*Fuel_Specs!$B$15/((1-Vehicles!$C$40)*(1-Vehicles!$C$16)*Fuel_Specs!$B$15+Vehicles!$C$40*(1-Vehicles!$C$16)*Fuel_Specs!$B$17+Vehicles!$C$16*Fuel_Specs!$B$48)*(Petroleum!$B277*Petroleum!$D$262+Petroleum!$D277)+Vehicles!$C$40*(1-Vehicles!$C$16)*Fuel_Specs!$B$17/((1-Vehicles!$C$40)*(1-Vehicles!$C$16)*Fuel_Specs!$B$15+Vehicles!$C$40*(1-Vehicles!$C$16)*Fuel_Specs!$B$17+Vehicles!$C$16*Fuel_Specs!$B$48)*(Petroleum!B277*Petroleum!$F$262+Petroleum!$F277)+Vehicles!$C$16*Fuel_Specs!$B$48/((1-Vehicles!$C$40)*(1-Vehicles!$C$16)*Fuel_Specs!$B$15+Vehicles!$C$40*(1-Vehicles!$C$16)*Fuel_Specs!$B$17+Vehicles!$C$16*Fuel_Specs!$B$48)*(Pyrolysis_IDL!$AP312*Pyrolysis_IDL!$AQ$297+Pyrolysis_IDL!$AQ312))/1000000*HLOOKUP($J$10,$Z$5:$AD$6,2,FALSE)/HLOOKUP($J$11,$Z$7:$AD$8,2,FALSE) -> 32.21493511 | AT22: =(Petroleum!$B277*Petroleum!$S$262+Petroleum!$S277)/1000000*HLOOKUP($J$10,$Z$5:$AD$6,2,FALSE)/HLOOKUP($J$11,$Z$7:$AD$8,2,FALSE) -> 119.0947126 | AU22: 115.0616942 | AV22: 55.83882857 | BB22: SI - LNG Vehicle | BC22: RNAVLNG | BH22: CIDI - PUP-derived Diesel | BI22: RNAVNRPDIESELCIDI | BK22: SI HEV - MeOH | BL22: RNAVHEVMEOH | BN22: SI PHEV - MeOH and Electricity | BO22: RNAVPHEVMEOH
A23: N2O | B23: =(Inputs!$E$1518*(Petroleum!$B278*Petroleum!$F$262+Petroleum!$F278)+(1-Inputs!$E$1518)*(Petroleum!$B278*Petroleum!$D$262+Petroleum!$D278))/1000000*HLOOKUP($J$10,$Z$5:$AD$6,2,FALSE)/HLOOKUP($J$11,$Z$7:$AD$8,2,FALSE) -> 2.745696967 | C23: =(Petroleum!$C278*Petroleum!$G$262+Petroleum!$G278)/1000000*HLOOKUP($J$10,$Z$5:$AD$6,2,FALSE)/HLOOKUP($J$11,$Z$7:$AD$8,2,FALSE) -> 2.667051515 | D23: =((1-Vehicles!$C$35)*(1-Vehicles!$C$7)*Fuel_Specs!$B$15/((1-Vehicles!$C$35)*(1-Vehicles!$C$7)*Fuel_Specs!$B$15+Vehicles!$C$35*(1-Vehicles!$C$7)*Fuel_Specs!$B$17+Vehicles!$C$7*Fuel_Specs!$B$33)*(Petroleum!$B278*Petroleum!$D$262+(Petroleum!$D278-'T&D'!G231))+Vehicles!$C$35*(1-Vehicles!$C$7)*Fuel_Specs!$B$17/((1-Vehicles!$C$35)*(1-Vehicles!$C$7)*Fuel_Specs!$B$15+Vehicles!$C$35*(1-Vehicles!$C$7)*Fuel_Specs!$B$17+Vehicles!$C$7*Fuel_Specs!$B$33)*(Petroleum!B278*Petroleum!$F$262+Petroleum!$F278)+Vehicles!$C$7*Fuel_Specs!$B$33/((1-Vehicles!$C$35)*(1-Vehicles!$C$7)*Fuel_Specs!$B$15+Vehicles!$C$35*(1-Vehicles!$C$7)*Fuel_Specs!$B$17+Vehicles!$C$7*Fuel_Specs!$B$33)*(EtOH!BV562*EtOH!$BW$546+EtOH!$BW562)+Petroleum!AS140+Petroleum!AT140)/1000000*HLOOKUP($J$10,$Z$5:$AD$6,2,FALSE)/HLOOKUP($J$11,$Z$7:$AD$8,2,FALSE) -> 2.746023406 | E23: =(Inputs!$E$97*(IF(Inputs!F$102=1,Petroleum!$B278,Petroleum!$C278)*IF(Inputs!F$102=1,Petroleum!$K$262,Petroleum!$L$262)+IF(Inputs!F$102=1,Petroleum!$K278,Petroleum!$L278))+(1-Inputs!$E$97)*(IF(Inputs!F$101=1,Petroleum!$B278,Petroleum!$C278)*Petroleum!$J$262+Petroleum!$J278))/1000000*HLOOKUP($J$10,$Z$5:$AD$6,2,FALSE)/HLOOKUP($J$11,$Z$7:$AD$8,2,FALSE) -> 0.2710394701 | F23: =(NG!$J100*NG!$K$84+NG!$K100)/1000000*HLOOKUP($J$10,$Z$5:$AD$6,2,FALSE)/HLOOKUP($J$11,$Z$7:$AD$8,2,FALSE) -> 2.227992234 | G23: =(NG!$R100*NG!$S$84+NG!$S100)/1000000*HLOOKUP($J$10,$Z$5:$AD$6,2,FALSE)/HLOOKUP($J$11,$Z$7:$AD$8,2,FALSE) -> 0.1951808916 | H23: =(NG!$X100*NG!$Y$84+NG!$Y100)/1000000*HLOOKUP($J$10,$Z$5:$AD$6,2,FALSE)/HLOOKUP($J$11,$Z$7:$AD$8,2,FALSE) -> 0.2030412963 | I23: =(MeOH_FTD!BJ178*MeOH_FTD!BK$162+MeOH_FTD!BK178)/1000000*HLOOKUP($J$10,$Z$5:$AD$6,2,FALSE)/HLOOKUP($J$11,$Z$7:$AD$8,2,FALSE) -> 0.008596203752 | J23: =((1-Vehicles!$C$34)*(1-Vehicles!$C$5)*Fuel_Specs!$B$15/((1-Vehicles!$C$34)*(1-Vehicles!$C$5)*Fuel_Specs!$B$15+Vehicles!$C$34*(1-Vehicles!$C$5)*Fuel_Specs!$B$17+Vehicles!$C$5*Fuel_Specs!$B$32)*(Petroleum!$B278*Petroleum!$D$262+Petroleum!$D278)+Vehicles!$C$34*(1-Vehicles!$C$5)*Fuel_Specs!$B$17/((1-Vehicles!$C$34)*(1-Vehicles!$C$5)*Fuel_Specs!$B$15+Vehicles!$C$34*(1-Vehicles!$C$5)*Fuel_Specs!$B$17+Vehicles!$C$5*Fuel_Specs!$B$32)*(Petroleum!B278*Petroleum!$F$262+Petroleum!$F278)+Vehicles!$C$5*Fuel_Specs!$B$32/((1-Vehicles!$C$34)*(1-Vehicles!$C$5)*Fuel_Specs!$B$15+Vehicles!$C$34*(1-Vehicles!$C$5)*Fuel_Specs!$B$17+Vehicles!$C$5*Fuel_Specs!$B$32)*(MeOH_FTD!$N178*MeOH_FTD!$O$162+MeOH_FTD!$O178))/1000000*HLOOKUP($J$10,$Z$5:$AD$6,2,FALSE)/HLOOKUP($J$11,$Z$7:$AD$8,2,FALSE) -> 0.416176348 | K23: =((1-Vehicles!$C$34)*(1-Vehicles!$C$6)*Fuel_Specs!$B$15/((1-Vehicles!$C$34)*(1-Vehicles!$C$6)*Fuel_Specs!$B$15+Vehicles!$C$34*(1-Vehicles!$C$6)*Fuel_Specs!$B$17+Vehicles!$C$6*Fuel_Specs!$B$32)*(Petroleum!$B278*Petroleum!$D$262+Petroleum!$D278)+Vehicles!$C$34*(1-Vehicles!$C$6)*Fuel_Specs!$B$17/((1-Vehicles!$C$34)*(1-Vehicles!$C$6)*Fuel_Specs!$B$15+Vehicles!$C$34*(1-Vehicles!$C$6)*Fuel_Specs!$B$17+Vehicles!$C$6*Fuel_Specs!$B$32)*(Petroleum!B278*Petroleum!$F$262+Petroleum!$F278)+Vehicles!$C$6*Fuel_Specs!$B$32/((1-Vehicles!$C$34)*(1-Vehicles!$C$6)*Fuel_Specs!$B$15+Vehicles!$C$34*(1-Vehicles!$C$6)*Fuel_Specs!$B$17+Vehicles!$C$6*Fuel_Specs!$B$32)*(MeOH_FTD!$N178*MeOH_FTD!$O$162+MeOH_FTD!$O178))/1000000*HLOOKUP($J$10,$Z$5:$AD$6,2,FALSE)/HLOOKUP($J$11,$Z$7:$AD$8,2,FALSE) -> 0.4250411121 | L23: =(MeOH_FTD!$N178*MeOH_FTD!$O$162+MeOH_FTD!$O178)/1000000*HLOOKUP($J$10,$Z$5:$AD$6,2,FALSE)/HLOOKUP($J$11,$Z$7:$AD$8,2,FALSE) -> 0.4455039296 | M23: =((1-Vehicles!$C$36)*(1-Vehicles!$C$8)*Fuel_Specs!$B$15/((1-Vehicles!$C$36)*(1-Vehicles!$C$8)*Fuel_Specs!$B$15+Vehicles!$C$36*(1-Vehicles!$C$8)*Fuel_Specs!$B$17+Vehicles!$C$8*Fuel_Specs!$B$33)*(Petroleum!$B278*Petroleum!$D$262+(Petroleum!$D278-'T&D'!G231))+Vehicles!$C$36*(1-Vehicles!$C$8)*Fuel_Specs!$B$17/((1-Vehicles!$C$36)*(1-Vehicles!$C$8)*Fuel_Specs!$B$15+Vehicles!$C$36*(1-Vehicles!$C$8)*Fuel_Specs!$B$17+Vehicles!$C$8*Fuel_Specs!$B$33)*(Petroleum!B278*Petroleum!$F$262+Petroleum!$F278)+Vehicles!$C$8*Fuel_Specs!$B$33/((1-Vehicles!$C$36)*(1-Vehicles!$C$8)*Fuel_Specs!$B$15+Vehicles!$C$36*(1-Vehicles!$C$8)*Fuel_Specs!$B$17+Vehicles!$C$8*Fuel_Specs!$B$33)*(EtOH!BV562*EtOH!$BW$546+EtOH!$BW562)+Petroleum!AS140+Petroleum!AT140)/1000000*HLOOKUP($J$10,$Z$5:$AD$6,2,FALSE)/HLOOKUP($J$11,$Z$7:$AD$8,2,FALSE) -> 28.05493798 | N23: =((1-Vehicles!$C$37)*(1-Vehicles!$C$12)*Fuel_Specs!$B$15/((1-Vehicles!$C$37)*(1-Vehicles!$C$12)*Fuel_Specs!$B$15+Vehicles!$C$37*(1-Vehicles!$C$12)*Fuel_Specs!$B$17+Vehicles!$C$12*Fuel_Specs!$B$34)*(Petroleum!$B278*Petroleum!$D$262+Petroleum!$D278)+Vehicles!$C$37*(1-Vehicles!$C$12)*Fuel_Specs!$B$17/((1-Vehicles!$C$37)*(1-Vehicles!$C$12)*Fuel_Specs!$B$15+Vehicles!$C$37*(1-Vehicles!$C$12)*Fuel_Specs!$B$17+Vehicles!$C$12*Fuel_Specs!$B$34)*(Petroleum!B278*Petroleum!$F$262+Petroleum!$F278)+Vehicles!$C$12*Fuel_Specs!$B$34/((1-Vehicles!$C$37)*(1-Vehicles!$C$12)*Fuel_Specs!$B$15+Vehicles!$C$37*(1-Vehicles!$C$12)*Fuel_Specs!$B$17+Vehicles!$C$12*Fuel_Specs!$B$34)*(EtOH!$BX562*EtOH!$BY$546+EtOH!$BY562))/1000000*HLOOKUP($J$10,$Z$5:$AD$6,2,FALSE)/HLOOKUP($J$11,$Z$7:$AD$8,2,FALSE) -> 34.06027275 | O23: =((1-Vehicles!$C$36)*(1-Vehicles!$C$9)*Fuel_Specs!$B$15/((1-Vehicles!$C$36)*(1-Vehicles!$C$9)*Fuel_Specs!$B$15+Vehicles!$C$36*(1-Vehicles!$C$9)*Fuel_Specs!$B$17+Vehicles!$C$9*Fuel_Specs!$B$33)*(Petroleum!$B278*Petroleum!$D$262+(Petroleum!$D278-'T&D'!G231))+Vehicles!$C$36*(1-Vehicles!$C$9)*Fuel_Specs!$B$17/((1-Vehicles!$C$36)*(1-Vehicles!$C$9)*Fuel_Specs!$B$15+Vehicles!$C$36*(1-Vehicles!$C$9)*Fuel_Specs!$B$17+Vehicles!$C$9*Fuel_Specs!$B$33)*(Petroleum!B278*Petroleum!$F$262+Petroleum!$F278)+Vehicles!$C$9*Fuel_Specs!$B$33/((1-Vehicles!$C$36)*(1-Vehicles!$C$9)*Fuel_Specs!$B$15+Vehicles!$C$36*(1-Vehicles!$C$9)*Fuel_Specs!$B$17+Vehicles!$C$9*Fuel_Specs!$B$33)*(EtOH!BV562*EtOH!$BW$546+EtOH!$BW562)+Petroleum!AS140+Petroleum!AT140)/1000000*HLOOKUP($J$10,$Z$5:$AD$6,2,FALSE)/HLOOKUP($J$11,$Z$7:$AD$8,2,FALSE) -> 28.05493798 | P23: =(EtOH!$BT562*EtOH!$BU$546+EtOH!$BU562)/1000000*HLOOKUP($J$10,$Z$5:$AD$6,2,FALSE)/HLOOKUP($J$11,$Z$7:$AD$8,2,FALSE) -> 36.50754276 | Q23: =((1-Vehicles!$C$40)*(1-Vehicles!$C$16)*Fuel_Specs!$B$15/((1-Vehicles!$C$40)*(1-Vehicles!$C$16)*Fuel_Specs!$B$15+Vehicles!$C$40*(1-Vehicles!$C$16)*Fuel_Specs!$B$17+Vehicles!$C$16*Fuel_Specs!$B$47)*(Petroleum!$B278*Petroleum!$D$262+Petroleum!$D278)+Vehicles!$C$40*(1-Vehicles!$C$16)*Fuel_Specs!$B$17/((1-Vehicles!$C$40)*(1-Vehicles!$C$16)*Fuel_Specs!$B$15+Vehicles!$C$40*(1-Vehicles!$C$16)*Fuel_Specs!$B$17+Vehicles!$C$16*Fuel_Specs!$B$47)*(Petroleum!B278*Petroleum!$F$262+Petroleum!$F278)+Vehicles!$C$16*Fuel_Specs!$B$47/((1-Vehicles!$C$40)*(1-Vehicles!$C$16)*Fuel_Specs!$B$15+Vehicles!$C$40*(1-Vehicles!$C$16)*Fuel_Specs!$B$17+Vehicles!$C$16*Fuel_Specs!$B$47)*(BioOil!$CE448*BioOil!$CF$431+BioOil!$CF448))/1000000*HLOOKUP($J$10,$Z$5:$AD$6,2,FALSE)/HLOOKUP($J$11,$Z$7:$AD$8,2,FALSE) -> 23.9247381 | R23: =((1-Vehicles!$C$40)*(1-Vehicles!$C$16)*Fuel_Specs!$B$15/((1-Vehicles!$C$40)*(1-Vehicles!$C$16)*Fuel_Specs!$B$15+Vehicles!$C$40*(1-Vehicles!$C$16)*Fuel_Specs!$B$17+Vehicles!$C$16*Fuel_Specs!$B$47)*(Petroleum!$B278*Petroleum!$D$262+Petroleum!$D278)+Vehicles!$C$40*(1-Vehicles!$C$16)*Fuel_Specs!$B$17/((1-Vehicles!$C$40)*(1-Vehicles!$C$16)*Fuel_Specs!$B$15+Vehicles!$C$40*(1-Vehicles!$C$16)*Fuel_Specs!$B$17+Vehicles!$C$16*Fuel_Specs!$B$47)*(Petroleum!B278*Petroleum!$F$262+Petroleum!$F278)+Vehicles!$C$16*Fuel_Specs!$B$47/((1-Vehicles!$C$40)*(1-Vehicles!$C$16)*Fuel_Specs!$B$15+Vehicles!$C$40*(1-Vehicles!$C$16)*Fuel_Specs!$B$17+Vehicles!$C$16*Fuel_Specs!$B$47)*(Pyrolysis_IDL!$AD313*Pyrolysis_IDL!$AE$297+Pyrolysis_IDL!$AE313))/1000000*HLOOKUP($J$10,$Z$5:$AD$6,2,FALSE)/HLOOKUP($J$11,$Z$7:$AD$8,2,FALSE) -> 0.5471746583 | S23: =AN23*(Vehicles!$C$30/Vehicles!$AT$72)/(Vehicles!$C$30*(1/Vehicles!$AT$72+1/Vehicles!$AU$72)+Vehicles!$C$31/Vehicles!$AV$72)+B23*(Vehicles!$C$30/Vehicles!$AU$72+Vehicles!$C$31/Vehicles!$AV$72)/(Vehicles!$C$30*(1/Vehicles!$AT$72+1/Vehicles!$AU$72)+Vehicles!$C$31/Vehicles!$AV$72) ->  | T23: =AN23*(Vehicles!$D$30/Vehicles!$AX$72)/(Vehicles!$D$30*(1/Vehicles!$AX$72+1/Vehicles!$AY$72)+Vehicles!$D$31/Vehicles!$AZ$72)+C23*(Vehicles!$D$30/Vehicles!$AY$72+Vehicles!$D$31/Vehicles!$AZ$72)/(Vehicles!$D$30*(1/Vehicles!$AX$72+1/Vehicles!$AY$72)+Vehicles!$D$31/Vehicles!$AZ$72) ->  | U23: =AN23*(Vehicles!$F$30/Vehicles!$BF$72)/(Vehicles!$F$30*(1/Vehicles!$BF$72+1/Vehicles!$BG$72)+Vehicles!$F$31/Vehicles!$BH$72)+D23*(Vehicles!$F$30/Vehicles!$BG$72+Vehicles!$F$31/Vehicles!$BH$72)/(Vehicles!$F$30*(1/Vehicles!$BF$72+1/Vehicles!$BG$72)+Vehicles!$F$31/Vehicles!$BH$72) ->  | V23: =AN23*(Vehicles!$G$30/Vehicles!$BJ$72)/(Vehicles!$G$30*(1/Vehicles!$BJ$72+1/Vehicles!$BK$72)+Vehicles!$G$31/Vehicles!$BL$72)+F23*(Vehicles!$G$30/Vehicles!$BK$72+Vehicles!$G$31/Vehicles!$BL$72)/(Vehicles!$G$30*(1/Vehicles!$BJ$72+1/Vehicles!$BK$72)+Vehicles!$G$31/Vehicles!$BL$72) ->  | W23: =AN23*(Vehicles!$H$30/Vehicles!$BN$72)/(Vehicles!$H$30*(1/Vehicles!$BN$72+1/Vehicles!$BO$72)+Vehicles!$H$31/Vehicles!$BP$72)+G23*(Vehicles!$H$30/Vehicles!$BO$72+Vehicles!$H$31/Vehicles!$BP$72)/(Vehicles!$H$30*(1/Vehicles!$BN$72+1/Vehicles!$BO$72)+Vehicles!$H$31/Vehicles!$BP$72) ->  | X23: =AN23*(Vehicles!$I$30/Vehicles!$BR$72)/(Vehicles!$I$30*(1/Vehicles!$BR$72+1/Vehicles!$BS$72)+Vehicles!$I$31/Vehicles!$BT$72)+H23*(Vehicles!$I$30/Vehicles!$BS$72+Vehicles!$I$31/Vehicles!$BT$72)/(Vehicles!$I$30*(1/Vehicles!$BR$72+1/Vehicles!$BS$72)+Vehicles!$I$31/Vehicles!$BT$72) ->  | Y23: =AN23*(Vehicles!$J$30/Vehicles!$BV$72)/(Vehicles!$J$30*(1/Vehicles!$BV$72+1/Vehicles!$BW$72)+Vehicles!$J$31/Vehicles!$BX$72)+K23*(Vehicles!$J$30/Vehicles!$BW$72+Vehicles!$J$31/Vehicles!$BX$72)/(Vehicles!$J$30*(1/Vehicles!$BV$72+1/Vehicles!$BW$72)+Vehicles!$J$31/Vehicles!$BX$72) ->  | Z23: =AN23*(Vehicles!$K$30/Vehicles!$BZ$72)/(Vehicles!$K$30*(1/Vehicles!$BZ$72+1/Vehicles!$CA$72)+Vehicles!$K$31/Vehicles!$CB$72)+O23*(Vehicles!$K$30/Vehicles!$CA$72+Vehicles!$K$31/Vehicles!$CB$72)/(Vehicles!$K$30*(1/Vehicles!$BZ$72+1/Vehicles!$CA$72)+Vehicles!$K$31/Vehicles!$CB$72) ->  | AA23: =AN23*(Vehicles!$L$30/Vehicles!$CD$72)/(Vehicles!$L$30*(1/Vehicles!$CD$72+1/Vehicles!$CE$72)+Vehicles!$L$31/Vehicles!$CF$72)+AO23*(Vehicles!$L$30/Vehicles!$CE$72+Vehicles!$L$31/Vehicles!$CF$72)/(Vehicles!$L$30*(1/Vehicles!$CD$72+1/Vehicles!$CE$72)+Vehicles!$L$31/Vehicles!$CF$72) ->  | AB23: =AN23*(Vehicles!$L$30/Vehicles!$CD$72)/(Vehicles!$L$30*(1/Vehicles!$CD$72+1/Vehicles!$CE$72)+Vehicles!$L$31/Vehicles!$CG$72)+AP23*(Vehicles!$L$30/Vehicles!$CE$72+Vehicles!$L$31/Vehicles!$CG$72)/(Vehicles!$L$30*(1/Vehicles!$CD$72+1/Vehicles!$CE$72)+Vehicles!$L$31/Vehicles!$CG$72) ->  | AC23: =(MeOH_FTD!$AJ178*MeOH_FTD!$AK$162+MeOH_FTD!$AK178)/1000000*HLOOKUP($J$10,$Z$5:$AD$6,2,FALSE)/HLOOKUP($J$11,$Z$7:$AD$8,2,FALSE) -> 0.5642193018 | AD23: =((1-Vehicles!$C$41)*(1-Vehicles!$C$13)*Fuel_Specs!$B$21/((1-Vehicles!$C$41)*(1-Vehicles!$C$13)*Fuel_Specs!$B$21+Vehicles!$C$41*(1-Vehicles!$C$13)*Fuel_Specs!$B$24+Vehicles!$C$13*Fuel_Specs!$B$42)*(Petroleum!B278*Petroleum!$J$262+Petroleum!$J278)+Vehicles!$C$41*(1-Vehicles!$C$13)*Fuel_Specs!$B$24/((1-Vehicles!$C$41)*(1-Vehicles!$C$13)*Fuel_Specs!$B$21+Vehicles!$C$41*(1-Vehicles!$C$13)*Fuel_Specs!$B$24+Vehicles!$C$13*Fuel_Specs!$B$42)*(Petroleum!B278*IF(Inputs!F$102=1,Petroleum!$K$262,Petroleum!$L$262)+IF(Inputs!F$102=1,Petroleum!$K278,Petroleum!$L278))+Vehicles!$C$13*Fuel_Specs!$B$42/((1-Vehicles!$C$41)*(1-Vehicles!$C$13)*Fuel_Specs!$B$21+Vehicles!$C$41*(1-Vehicles!$C$13)*Fuel_Specs!$B$24+Vehicles!$C$13*Fuel_Specs!$B$42)*(MeOH_FTD!$AZ178*MeOH_FTD!$BA$162+MeOH_FTD!$BA178))/1000000*HLOOKUP($J$10,$Z$5:$AD$6,2,FALSE)/HLOOKUP($J$11,$Z$7:$AD$8,2,FALSE) -> 0.2342100922 | AE23: =((1-Vehicles!$C$42)*(1-Vehicles!$C$14)*Fuel_Specs!$B$21/((1-Vehicles!$C$42)*(1-Vehicles!$C$14)*Fuel_Specs!$B$21+Vehicles!$C$42*(1-Vehicles!$C$14)*Fuel_Specs!$B$24+Vehicles!$C$14*Fuel_Specs!$B$41)*(Petroleum!B278*Petroleum!$J$262+Petroleum!$J278)+Vehicles!$C$42*(1-Vehicles!$C$14)*Fuel_Specs!$B$24/((1-Vehicles!$C$42)*(1-Vehicles!$C$14)*Fuel_Specs!$B$21+Vehicles!$C$42*(1-Vehicles!$C$14)*Fuel_Specs!$B$24+Vehicles!$C$14*Fuel_Specs!$B$41)*(Petroleum!B278*IF(Inputs!F$102=1,Petroleum!$K$262,Petroleum!$L$262)+IF(Inputs!F$102=1,Petroleum!$K278,Petroleum!$L278))+Vehicles!$C$14*Fuel_Specs!$B$41/((1-Vehicles!$C$42)*(1-Vehicles!$C$14)*Fuel_Specs!$B$21+Vehicles!$C$42*(1-Vehicles!$C$14)*Fuel_Specs!$B$24+Vehicles!$C$14*Fuel_Specs!$B$41)*(BioOil!$Y448*BioOil!$Z$431+BioOil!$Z448))/1000000*HLOOKUP($J$10,$Z$5:$AD$6,2,FALSE)/HLOOKUP($J$11,$Z$7:$AD$8,2,FALSE) -> 4.546022397 | AF23: =((1-Vehicles!$C$43)*(1-Vehicles!$C$15)*Fuel_Specs!$B$21/((1-Vehicles!$C$43)*(1-Vehicles!$C$15)*Fuel_Specs!$B$21+Vehicles!$C$43*(1-Vehicles!$C$15)*Fuel_Specs!$B$24+Vehicles!$C$15*IF(Inputs!$E$670=1,IF(Inputs!$E$670=1,Fuel_Specs!$B$43,IF(Inputs!$E$670=3,Fuel_Specs!$B$45,Fuel_Specs!$B$44)),Fuel_Specs!$B$44))*(Petroleum!B278*Petroleum!$J$262+Petroleum!$J278)+Vehicles!$C$43*(1-Vehicles!$C$15)*Fuel_Specs!$B$24/((1-Vehicles!$C$43)*(1-Vehicles!$C$15)*Fuel_Specs!$B$21+Vehicles!$C$43*(1-Vehicles!$C$15)*Fuel_Specs!$B$24+Vehicles!$C$15*IF(Inputs!$E$670=1,IF(Inputs!$E$670=1,Fuel_Specs!$B$43,IF(Inputs!$E$670=3,Fuel_Specs!$B$45,Fuel_Specs!$B$44)),Fuel_Specs!$B$44))*(Petroleum!B278*IF(Inputs!F$102=1,Petroleum!$K$262,Petroleum!$L$262)+IF(Inputs!F$102=1,Petroleum!$K278,Petroleum!$L278))+Vehicles!$C$15*IF(Inputs!$E$670=1,IF(Inputs!$E$670=1,Fuel_Specs!$B$43,IF(Inputs!$E$670=3,Fuel_Specs!$B$45,Fuel_Specs!$B$44)),Fuel_Specs!$B$44)/((1-Vehicles!$C$43)*(1-Vehicles!$C$15)*Fuel_Specs!$B$21+Vehicles!$C$43*(1-Vehicles!$C$15)*Fuel_Specs!$B$24+Vehicles!$C$15*IF(Inputs!$E$670=1,IF(Inputs!$E$670=1,Fuel_Specs!$B$43,IF(Inputs!$E$670=3,Fuel_Specs!$B$45,Fuel_Specs!$B$44)),Fuel_Specs!$B$44))*(BioOil!$BQ448*BioOil!$BR$431+BioOil!$BR448))/1000000*HLOOKUP($J$10,$Z$5:$AD$6,2,FALSE)/HLOOKUP($J$11,$Z$7:$AD$8,2,FALSE) -> 23.16224398 | AG23: =((1-Vehicles!$C$43)*(1-Vehicles!$C$15)*Fuel_Specs!$B$21/((1-Vehicles!$C$43)*(1-Vehicles!$C$15)*Fuel_Specs!$B$21+Vehicles!$C$43*(1-Vehicles!$C$15)*Fuel_Specs!$B$24+Vehicles!$C$15*IF(Inputs!$E$670=1,Fuel_Specs!$B$43,Fuel_Specs!$B$44))*(Petroleum!B278*Petroleum!$J$262+Petroleum!$J278)+Vehicles!$C$43*(1-Vehicles!$C$15)*Fuel_Specs!$B$24/((1-Vehicles!$C$43)*(1-Vehicles!$C$15)*Fuel_Specs!$B$21+Vehicles!$C$43*(1-Vehicles!$C$15)*Fuel_Specs!$B$24+Vehicles!$C$15*IF(Inputs!$E$670=1,Fuel_Specs!$B$43,Fuel_Specs!$B$44))*(Petroleum!B278*IF(Inputs!F$102=1,Petroleum!$K$262,Petroleum!$L$262)+IF(Inputs!F$102=1,Petroleum!$K278,Petroleum!$L278))+Vehicles!$C$15*IF(Inputs!$E$670=1,Fuel_Specs!$B$43,Fuel_Specs!$B$44)/((1-Vehicles!$C$43)*(1-Vehicles!$C$15)*Fuel_Specs!$B$21+Vehicles!$C$43*(1-Vehicles!$C$15)*Fuel_Specs!$B$24+Vehicles!$C$15*IF(Inputs!$E$670=1,Fuel_Specs!$B$43,Fuel_Specs!$B$44))*(Pyrolysis_IDL!$AF313*Pyrolysis_IDL!$AG$297+Pyrolysis_IDL!$AG313))/1000000*HLOOKUP($J$10,$Z$5:$AD$6,2,FALSE)/HLOOKUP($J$11,$Z$7:$AD$8,2,FALSE) -> 0.573332803 | AH23: =(((1-Vehicles!$C$44)*(1-Vehicles!$C$17-Vehicles!$C$18)*Fuel_Specs!$B$21*(Petroleum!B278*Petroleum!$J$262+Petroleum!$J278)+Vehicles!$C$44*(1-Vehicles!$C$17-Vehicles!$C$18)*Fuel_Specs!$B$24*(Petroleum!B278*IF(Inputs!F$102=1,Petroleum!$K$262,Petroleum!$L$262)+IF(Inputs!F$102=1,Petroleum!$K278,Petroleum!$L278))+Vehicles!$C$17*Fuel_Specs!$B$33*(EtOH!BT562*EtOH!$BU$546+EtOH!$BU562)+Vehicles!$C$18*Fuel_Specs!$B$36*('EtOH-Diesel Additives'!$B69*'EtOH-Diesel Additives'!$B$53))/((1-Vehicles!$C$44)*(1-Vehicles!$C$17-Vehicles!$C$18)*Fuel_Specs!$B$21+Vehicles!$C$44*(1-Vehicles!$C$17-Vehicles!$C$18)*Fuel_Specs!$B$24+Vehicles!$C$17*Fuel_Specs!$B$33+Vehicles!$C$18*Fuel_Specs!$B$36))/1000000*HLOOKUP($J$10,$Z$5:$AD$6,2,FALSE)/HLOOKUP($J$11,$Z$7:$AD$8,2,FALSE) -> 2.538698802 | AI23: =AN23*(Vehicles!$M$30/Vehicles!$CO$72)/(Vehicles!$M$30*(1/Vehicles!$CO$72+1/Vehicles!$CP$72)+Vehicles!$M$31/Vehicles!$CQ$72)+E23*(Vehicles!$M$30/Vehicles!$CP$72+Vehicles!$M$31/Vehicles!$CQ$72)/(Vehicles!$M$30*(1/Vehicles!$CO$72+1/Vehicles!$CP$72)+Vehicles!$M$31/Vehicles!$CQ$72) ->  | AJ23: =AN23*(Vehicles!$N$30/Vehicles!$CS$72)/(Vehicles!$N$30*(1/Vehicles!$CS$72+1/Vehicles!$CT$72)+Vehicles!$N$31/Vehicles!$CU$72)+AC23*(Vehicles!$N$30/Vehicles!$CT$72+Vehicles!$N$31/Vehicles!$CU$72)/(Vehicles!$N$30*(1/Vehicles!$CS$72+1/Vehicles!$CT$72)+Vehicles!$N$31/Vehicles!$CU$72) ->  | AK23: =AN23*(Vehicles!$O$30/Vehicles!$CW$72)/(Vehicles!$O$30*(1/Vehicles!$CW$72+1/Vehicles!$CX$72)+Vehicles!$O$31/Vehicles!$CY$72)+AD23*(Vehicles!$O$30/Vehicles!$CX$72+Vehicles!$O$31/Vehicles!$CY$72)/(Vehicles!$O$30*(1/Vehicles!$CW$72+1/Vehicles!$CX$72)+Vehicles!$O$31/Vehicles!$CY$72) ->  | AL23: =AN23*(Vehicles!$P$30/Vehicles!$DA$72)/(Vehicles!$P$30*(1/Vehicles!$DA$72+1/Vehicles!$DB$72)+Vehicles!$P$31/Vehicles!$DC$72)+AE23*(Vehicles!$P$30/Vehicles!$DB$72+Vehicles!$P$31/Vehicles!$DC$72)/(Vehicles!$P$30*(1/Vehicles!$DA$72+1/Vehicles!$DB$72)+Vehicles!$P$31/Vehicles!$DC$72) ->  | AM23: =AN23*(Vehicles!$R$30/Vehicles!$DI$72)/(Vehicles!$R$30*(1/Vehicles!$DI$72+1/Vehicles!$DJ$72)+Vehicles!$R$31/Vehicles!$DK$72)+AH23*(Vehicles!$R$30/Vehicles!$DJ$72+Vehicles!$R$31/Vehicles!$DK$72)/(Vehicles!$R$30*(1/Vehicles!$DI$72+1/Vehicles!$DJ$72)+Vehicles!$R$31/Vehicles!$DK$72) ->  | AN23: =(Electric!$G219+Electric!$F219)/1000000*HLOOKUP($J$10,$Z$5:$AD$6,2,FALSE)/HLOOKUP($J$11,$Z$7:$AD$8,2,FALSE) -> 4.466082386 | AO23: =(Hydrogen!$AJ321*Hydrogen!$AK$305+Hydrogen!$AK321)/1000000*HLOOKUP($J$10,$Z$5:$AD$6,2,FALSE)/HLOOKUP($J$11,$Z$7:$AD$8,2,FALSE) -> 2.208020789 | AP23: =(Hydrogen!$BT321*Hydrogen!$BU$305+Hydrogen!$BU321)/1000000*HLOOKUP($J$10,$Z$5:$AD$6,2,FALSE)/HLOOKUP($J$11,$Z$7:$AD$8,2,FALSE) -> 3.578069431 | AQ23: =AN23*(Vehicles!$S$30/Vehicles!$DY$72)/(Vehicles!$S$30*(1/Vehicles!$DY$72+1/Vehicles!$DZ$72)+Vehicles!$S$31/Vehicles!$EA$72)+AO23*(Vehicles!$S$30/Vehicles!$DZ$72+Vehicles!$S$31/Vehicles!$EA$72)/(Vehicles!$S$30*(1/Vehicles!$DY$72+1/Vehicles!$DZ$72)+Vehicles!$S$31/Vehicles!$EA$72) ->  | AR23: =AN23*(Vehicles!$S$30/Vehicles!$DY$72)/(Vehicles!$S$30*(1/Vehicles!$DY$72+1/Vehicles!$DZ$72)+Vehicles!$S$31/Vehicles!$EA$72)+AP23*(Vehicles!$S$30/Vehicles!$DZ$72+Vehicles!$S$31/Vehicles!$EA$72)/(Vehicles!$S$30*(1/Vehicles!$DY$72+1/Vehicles!$DZ$72)+Vehicles!$S$31/Vehicles!$EA$72) ->  | AS23: =((1-Vehicles!$C$40)*(1-Vehicles!$C$16)*Fuel_Specs!$B$15/((1-Vehicles!$C$40)*(1-Vehicles!$C$16)*Fuel_Specs!$B$15+Vehicles!$C$40*(1-Vehicles!$C$16)*Fuel_Specs!$B$17+Vehicles!$C$16*Fuel_Specs!$B$48)*(Petroleum!$B278*Petroleum!$D$262+Petroleum!$D278)+Vehicles!$C$40*(1-Vehicles!$C$16)*Fuel_Specs!$B$17/((1-Vehicles!$C$40)*(1-Vehicles!$C$16)*Fuel_Specs!$B$15+Vehicles!$C$40*(1-Vehicles!$C$16)*Fuel_Specs!$B$17+Vehicles!$C$16*Fuel_Specs!$B$48)*(Petroleum!B278*Petroleum!$F$262+Petroleum!$F278)+Vehicles!$C$16*Fuel_Specs!$B$48/((1-Vehicles!$C$40)*(1-Vehicles!$C$16)*Fuel_Specs!$B$15+Vehicles!$C$40*(1-Vehicles!$C$16)*Fuel_Specs!$B$17+Vehicles!$C$16*Fuel_Specs!$B$48)*(Pyrolysis_IDL!$AP313*Pyrolysis_IDL!$AQ$297+Pyrolysis_IDL!$AQ313))/1000000*HLOOKUP($J$10,$Z$5:$AD$6,2,FALSE)/HLOOKUP($J$11,$Z$7:$AD$8,2,FALSE) -> 8.833798828 | AT23: =(Petroleum!$B278*Petroleum!$S$262+Petroleum!$S278)/1000000*HLOOKUP($J$10,$Z$5:$AD$6,2,FALSE)/HLOOKUP($J$11,$Z$7:$AD$8,2,FALSE) -> 0.300656468 | AU23: -1.057879583 | AV23: 0.8922037809 | BB23: SI - LPG Vehicle | BC23: RNAVLPG | BK23: SI HEV - EtOH | BL23: RNAVHEVETOH | BN23: SI PHEV - EtOH and Electricity | BO23: RNAVPHEVETOH
A24: GHGs | B24: =B21+SUMPRODUCT(B22:B23,Fuel_Specs!$B$141:$B$142)+SUMPRODUCT(B25:B27,Fuel_Specs!$B$147:$B$149)+SUMPRODUCT(B31:B32,Fuel_Specs!$B$150:$B$151) ->  | C24: =C21+SUMPRODUCT(C22:C23,Fuel_Specs!$B$141:$B$142)+SUMPRODUCT(C25:C27,Fuel_Specs!$B$147:$B$149)+SUMPRODUCT(C31:C32,Fuel_Specs!$B$150:$B$151) ->  | D24: =D21+SUMPRODUCT(D22:D23,Fuel_Specs!$B$141:$B$142)+SUMPRODUCT(D25:D27,Fuel_Specs!$B$147:$B$149)+SUMPRODUCT(D31:D32,Fuel_Specs!$B$150:$B$151) ->  | E24: =E21+SUMPRODUCT(E22:E23,Fuel_Specs!$B$141:$B$142)+SUMPRODUCT(E25:E27,Fuel_Specs!$B$147:$B$149)+SUMPRODUCT(E31:E32,Fuel_Specs!$B$150:$B$151) -> 15481.57176 | F24: =F21+SUMPRODUCT(F22:F23,Fuel_Specs!$B$141:$B$142)+SUMPRODUCT(F25:F27,Fuel_Specs!$B$147:$B$149)+SUMPRODUCT(F31:F32,Fuel_Specs!$B$150:$B$151) -> 20617.21946 | G24: =G21+SUMPRODUCT(G22:G23,Fuel_Specs!$B$141:$B$142)+SUMPRODUCT(G25:G27,Fuel_Specs!$B$147:$B$149)+SUMPRODUCT(G31:G32,Fuel_Specs!$B$150:$B$151) -> 22306.23647 | H24: =H21+SUMPRODUCT(H22:H23,Fuel_Specs!$B$141:$B$142)+SUMPRODUCT(H25:H27,Fuel_Specs!$B$147:$B$149)+SUMPRODUCT(H31:H32,Fuel_Specs!$B$150:$B$151) -> 16899.39438 | I24: =I21+SUMPRODUCT(I22:I23,Fuel_Specs!$B$141:$B$142)+SUMPRODUCT(I25:I27,Fuel_Specs!$B$147:$B$149)+SUMPRODUCT(I31:I32,Fuel_Specs!$B$150:$B$151) -> 44191.49812 | J24: =J21+SUMPRODUCT(J22:J23,Fuel_Specs!$B$141:$B$142)+SUMPRODUCT(J25:J27,Fuel_Specs!$B$147:$B$149)+SUMPRODUCT(J31:J32,Fuel_Specs!$B$150:$B$151) ->  | K24: =K21+SUMPRODUCT(K22:K23,Fuel_Specs!$B$141:$B$142)+SUMPRODUCT(K25:K27,Fuel_Specs!$B$147:$B$149)+SUMPRODUCT(K31:K32,Fuel_Specs!$B$150:$B$151) ->  | L24: =L21+SUMPRODUCT(L22:L23,Fuel_Specs!$B$141:$B$142)+SUMPRODUCT(L25:L27,Fuel_Specs!$B$147:$B$149)+SUMPRODUCT(L31:L32,Fuel_Specs!$B$150:$B$151) -> 27326.78758 | M24: =M21+SUMPRODUCT(M22:M23,Fuel_Specs!$B$141:$B$142)+SUMPRODUCT(M25:M27,Fuel_Specs!$B$147:$B$149)+SUMPRODUCT(M31:M32,Fuel_Specs!$B$150:$B$151) ->  | N24: =N21+SUMPRODUCT(N22:N23,Fuel_Specs!$B$141:$B$142)+SUMPRODUCT(N25:N27,Fuel_Specs!$B$147:$B$149)+SUMPRODUCT(N31:N32,Fuel_Specs!$B$150:$B$151) ->  | O24: =O21+SUMPRODUCT(O22:O23,Fuel_Specs!$B$141:$B$142)+SUMPRODUCT(O25:O27,Fuel_Specs!$B$147:$B$149)+SUMPRODUCT(O31:O32,Fuel_Specs!$B$150:$B$151) ->  | P24: =P21+SUMPRODUCT(P22:P23,Fuel_Specs!$B$141:$B$142)+SUMPRODUCT(P25:P27,Fuel_Specs!$B$147:$B$149)+SUMPRODUCT(P31:P32,Fuel_Specs!$B$150:$B$151) ->  | Q24: =Q21+SUMPRODUCT(Q22:Q23,Fuel_Specs!$B$141:$B$142)+SUMPRODUCT(Q25:Q27,Fuel_Specs!$B$147:$B$149)+SUMPRODUCT(Q31:Q32,Fuel_Specs!$B$150:$B$151) ->  | R24: =R21+SUMPRODUCT(R22:R23,Fuel_Specs!$B$141:$B$142)+SUMPRODUCT(R25:R27,Fuel_Specs!$B$147:$B$149)+SUMPRODUCT(R31:R32,Fuel_Specs!$B$150:$B$151) ->  | S24: =S21+SUMPRODUCT(S22:S23,Fuel_Specs!$B$141:$B$142)+SUMPRODUCT(S25:S27,Fuel_Specs!$B$147:$B$149)+SUMPRODUCT(S31:S32,Fuel_Specs!$B$150:$B$151) ->  | T24: =T21+SUMPRODUCT(T22:T23,Fuel_Specs!$B$141:$B$142)+SUMPRODUCT(T25:T27,Fuel_Specs!$B$147:$B$149)+SUMPRODUCT(T31:T32,Fuel_Specs!$B$150:$B$151) ->  | U24: =U21+SUMPRODUCT(U22:U23,Fuel_Specs!$B$141:$B$142)+SUMPRODUCT(U25:U27,Fuel_Specs!$B$147:$B$149)+SUMPRODUCT(U31:U32,Fuel_Specs!$B$150:$B$151) ->  | V24: =V21+SUMPRODUCT(V22:V23,Fuel_Specs!$B$141:$B$142)+SUMPRODUCT(V25:V27,Fuel_Specs!$B$147:$B$149)+SUMPRODUCT(V31:V32,Fuel_Specs!$B$150:$B$151) ->  | W24: =W21+SUMPRODUCT(W22:W23,Fuel_Specs!$B$141:$B$142)+SUMPRODUCT(W25:W27,Fuel_Specs!$B$147:$B$149)+SUMPRODUCT(W31:W32,Fuel_Specs!$B$150:$B$151) ->  | X24: =X21+SUMPRODUCT(X22:X23,Fuel_Specs!$B$141:$B$142)+SUMPRODUCT(X25:X27,Fuel_Specs!$B$147:$B$149)+SUMPRODUCT(X31:X32,Fuel_Specs!$B$150:$B$151) ->  | Y24: =Y21+SUMPRODUCT(Y22:Y23,Fuel_Specs!$B$141:$B$142)+SUMPRODUCT(Y25:Y27,Fuel_Specs!$B$147:$B$149)+SUMPRODUCT(Y31:Y32,Fuel_Specs!$B$150:$B$151) ->  | Z24: =Z21+SUMPRODUCT(Z22:Z23,Fuel_Specs!$B$141:$B$142)+SUMPRODUCT(Z25:Z27,Fuel_Specs!$B$147:$B$149)+SUMPRODUCT(Z31:Z32,Fuel_Specs!$B$150:$B$151) ->  | AA24: =AA21+SUMPRODUCT(AA22:AA23,Fuel_Specs!$B$141:$B$142)+SUMPRODUCT(AA25:AA27,Fuel_Specs!$B$147:$B$149)+SUMPRODUCT(AA31:AA32,Fuel_Specs!$B$150:$B$151) ->  | AB24: =AB21+SUMPRODUCT(AB22:AB23,Fuel_Specs!$B$141:$B$142)+SUMPRODUCT(AB25:AB27,Fuel_Specs!$B$147:$B$149)+SUMPRODUCT(AB31:AB32,Fuel_Specs!$B$150:$B$151) ->  | AC24: =AC21+SUMPRODUCT(AC22:AC23,Fuel_Specs!$B$141:$B$142)+SUMPRODUCT(AC25:AC27,Fuel_Specs!$B$147:$B$149)+SUMPRODUCT(AC31:AC32,Fuel_Specs!$B$150:$B$151) ->  | AD24: =AD21+SUMPRODUCT(AD22:AD23,Fuel_Specs!$B$141:$B$142)+SUMPRODUCT(AD25:AD27,Fuel_Specs!$B$147:$B$149)+SUMPRODUCT(AD31:AD32,Fuel_Specs!$B$150:$B$151) ->  | AE24: =AE21+SUMPRODUCT(AE22:AE23,Fuel_Specs!$B$141:$B$142)+SUMPRODUCT(AE25:AE27,Fuel_Specs!$B$147:$B$149)+SUMPRODUCT(AE31:AE32,Fuel_Specs!$B$150:$B$151) ->  | AF24: =AF21+SUMPRODUCT(AF22:AF23,Fuel_Specs!$B$141:$B$142)+SUMPRODUCT(AF25:AF27,Fuel_Specs!$B$147:$B$149)+SUMPRODUCT(AF31:AF32,Fuel_Specs!$B$150:$B$151) ->  | AG24: =AG21+SUMPRODUCT(AG22:AG23,Fuel_Specs!$B$141:$B$142)+SUMPRODUCT(AG25:AG27,Fuel_Specs!$B$147:$B$149)+SUMPRODUCT(AG31:AG32,Fuel_Specs!$B$150:$B$151) ->  | AH24: =AH21+SUMPRODUCT(AH22:AH23,Fuel_Specs!$B$141:$B$142)+SUMPRODUCT(AH25:AH27,Fuel_Specs!$B$147:$B$149)+SUMPRODUCT(AH31:AH32,Fuel_Specs!$B$150:$B$151) ->  | AI24: =AI21+SUMPRODUCT(AI22:AI23,Fuel_Specs!$B$141:$B$142)+SUMPRODUCT(AI25:AI27,Fuel_Specs!$B$147:$B$149)+SUMPRODUCT(AI31:AI32,Fuel_Specs!$B$150:$B$151) ->  | AJ24: =AJ21+SUMPRODUCT(AJ22:AJ23,Fuel_Specs!$B$141:$B$142)+SUMPRODUCT(AJ25:AJ27,Fuel_Specs!$B$147:$B$149)+SUMPRODUCT(AJ31:AJ32,Fuel_Specs!$B$150:$B$151) ->  | AK24: =AK21+SUMPRODUCT(AK22:AK23,Fuel_Specs!$B$141:$B$142)+SUMPRODUCT(AK25:AK27,Fuel_Specs!$B$147:$B$149)+SUMPRODUCT(AK31:AK32,Fuel_Specs!$B$150:$B$151) ->  | AL24: =AL21+SUMPRODUCT(AL22:AL23,Fuel_Specs!$B$141:$B$142)+SUMPRODUCT(AL25:AL27,Fuel_Specs!$B$147:$B$149)+SUMPRODUCT(AL31:AL32,Fuel_Specs!$B$150:$B$151) ->  | AM24: =AM21+SUMPRODUCT(AM22:AM23,Fuel_Specs!$B$141:$B$142)+SUMPRODUCT(AM25:AM27,Fuel_Specs!$B$147:$B$149)+SUMPRODUCT(AM31:AM32,Fuel_Specs!$B$150:$B$151) ->  | AN24: =AN21+SUMPRODUCT(AN22:AN23,Fuel_Specs!$B$141:$B$142)+SUMPRODUCT(AN25:AN27,Fuel_Specs!$B$147:$B$149)+SUMPRODUCT(AN31:AN32,Fuel_Specs!$B$150:$B$151) -> 89404.12719 | AO24: =AO21+SUMPRODUCT(AO22:AO23,Fuel_Specs!$B$141:$B$142)+SUMPRODUCT(AO25:AO27,Fuel_Specs!$B$147:$B$149)+SUMPRODUCT(AO31:AO32,Fuel_Specs!$B$150:$B$151) -> 102999.9747 | AP24: =AP21+SUMPRODUCT(AP22:AP23,Fuel_Specs!$B$141:$B$142)+SUMPRODUCT(AP25:AP27,Fuel_Specs!$B$147:$B$149)+SUMPRODUCT(AP31:AP32,Fuel_Specs!$B$150:$B$151) -> 125723.4326 | AQ24: =AQ21+SUMPRODUCT(AQ22:AQ23,Fuel_Specs!$B$141:$B$142)+SUMPRODUCT(AQ25:AQ27,Fuel_Specs!$B$147:$B$149)+SUMPRODUCT(AQ31:AQ32,Fuel_Specs!$B$150:$B$151) ->  | AR24: =AR21+SUMPRODUCT(AR22:AR23,Fuel_Specs!$B$141:$B$142)+SUMPRODUCT(AR25:AR27,Fuel_Specs!$B$147:$B$149)+SUMPRODUCT(AR31:AR32,Fuel_Specs!$B$150:$B$151) ->  | AS24: =AS21+SUMPRODUCT(AS22:AS23,Fuel_Specs!$B$141:$B$142)+SUMPRODUCT(AS25:AS27,Fuel_Specs!$B$147:$B$149)+SUMPRODUCT(AS31:AS32,Fuel_Specs!$B$150:$B$151) ->  | AT24: =AT21+SUMPRODUCT(AT22:AT23,Fuel_Specs!$B$141:$B$142)+SUMPRODUCT(AT25:AT27,Fuel_Specs!$B$147:$B$149)+SUMPRODUCT(AT31:AT32,Fuel_Specs!$B$150:$B$151) -> 15505.79944 | AU24: 6971.507469 | AV24: 2879.050805 | BB24: SI - Dedi. MeOH Vehicle | BC24: RNAVMEOH | BN24: SI PHEV - Gaseous H2 and Electricity | BO24: RNAVPHEVGH2
A25: VOC: Total | B25: =(Inputs!$E$1518*(Petroleum!$B269*Petroleum!$F$262+Petroleum!$F269)+(1-Inputs!$E$1518)*(Petroleum!$B269*Petroleum!$D$262+Petroleum!$D269))/1000000*HLOOKUP($J$10,$Z$5:$AD$6,2,FALSE)/HLOOKUP($J$11,$Z$7:$AD$8,2,FALSE) -> 30.01274411 | C25: =(Petroleum!$C269*Petroleum!$G$262+Petroleum!$G269)/1000000*HLOOKUP($J$10,$Z$5:$AD$6,2,FALSE)/HLOOKUP($J$11,$Z$7:$AD$8,2,FALSE) -> 31.05828997 | D25: =((1-Vehicles!$C$35)*(1-Vehicles!$C$7)*Fuel_Specs!$B$15/((1-Vehicles!$C$35)*(1-Vehicles!$C$7)*Fuel_Specs!$B$15+Vehicles!$C$35*(1-Vehicles!$C$7)*Fuel_Specs!$B$17+Vehicles!$C$7*Fuel_Specs!$B$33)*(Petroleum!$B269*Petroleum!$D$262+(Petroleum!$D269-'T&D'!G222))+Vehicles!$C$35*(1-Vehicles!$C$7)*Fuel_Specs!$B$17/((1-Vehicles!$C$35)*(1-Vehicles!$C$7)*Fuel_Specs!$B$15+Vehicles!$C$35*(1-Vehicles!$C$7)*Fuel_Specs!$B$17+Vehicles!$C$7*Fuel_Specs!$B$33)*(Petroleum!B269*Petroleum!$F$262+Petroleum!$F269)+Vehicles!$C$7*Fuel_Specs!$B$33/((1-Vehicles!$C$35)*(1-Vehicles!$C$7)*Fuel_Specs!$B$15+Vehicles!$C$35*(1-Vehicles!$C$7)*Fuel_Specs!$B$17+Vehicles!$C$7*Fuel_Specs!$B$33)*(EtOH!BV553*EtOH!$BW$546+EtOH!$BW553)+Petroleum!AS131+Petroleum!AT131)/1000000*HLOOKUP($J$10,$Z$5:$AD$6,2,FALSE)/HLOOKUP($J$11,$Z$7:$AD$8,2,FALSE) -> 30.02426179 | E25: =(Inputs!$E$97*(IF(Inputs!F$102=1,Petroleum!$B269,Petroleum!$C269)*IF(Inputs!F$102=1,Petroleum!$K$262,Petroleum!$L$262)+IF(Inputs!F$102=1,Petroleum!$K269,Petroleum!$L269))+(1-Inputs!$E$97)*(IF(Inputs!F$101=1,Petroleum!$B269,Petroleum!$C269)*Petroleum!$J$262+Petroleum!$J269))/1000000*HLOOKUP($J$10,$Z$5:$AD$6,2,FALSE)/HLOOKUP($J$11,$Z$7:$AD$8,2,FALSE) -> 7.976786115 | F25: =(NG!$J91*NG!$K$84+NG!$K91)/1000000*HLOOKUP($J$10,$Z$5:$AD$6,2,FALSE)/HLOOKUP($J$11,$Z$7:$AD$8,2,FALSE) -> 14.53786407 | G25: =(NG!$R91*NG!$S$84+NG!$S91)/1000000*HLOOKUP($J$10,$Z$5:$AD$6,2,FALSE)/HLOOKUP($J$11,$Z$7:$AD$8,2,FALSE) -> 8.697234419 | H25: =(NG!$X91*NG!$Y$84+NG!$Y91)/1000000*HLOOKUP($J$10,$Z$5:$AD$6,2,FALSE)/HLOOKUP($J$11,$Z$7:$AD$8,2,FALSE) -> 12.5080813 | I25: =(MeOH_FTD!BJ169*MeOH_FTD!BK$162+MeOH_FTD!BK169)/1000000*HLOOKUP($J$10,$Z$5:$AD$6,2,FALSE)/HLOOKUP($J$11,$Z$7:$AD$8,2,FALSE) -> 31.23817202 | J25: =((1-Vehicles!$C$34)*(1-Vehicles!$C$5)*Fuel_Specs!$B$15/((1-Vehicles!$C$34)*(1-Vehicles!$C$5)*Fuel_Specs!$B$15+Vehicles!$C$34*(1-Vehicles!$C$5)*Fuel_Specs!$B$17+Vehicles!$C$5*Fuel_Specs!$B$32)*(Petroleum!$B269*Petroleum!$D$262+Petroleum!$D269)+Vehicles!$C$34*(1-Vehicles!$C$5)*Fuel_Specs!$B$17/((1-Vehicles!$C$34)*(1-Vehicles!$C$5)*Fuel_Specs!$B$15+Vehicles!$C$34*(1-Vehicles!$C$5)*Fuel_Specs!$B$17+Vehicles!$C$5*Fuel_Specs!$B$32)*(Petroleum!B269*Petroleum!$F$262+Petroleum!$F269)+Vehicles!$C$5*Fuel_Specs!$B$32/((1-Vehicles!$C$34)*(1-Vehicles!$C$5)*Fuel_Specs!$B$15+Vehicles!$C$34*(1-Vehicles!$C$5)*Fuel_Specs!$B$17+Vehicles!$C$5*Fuel_Specs!$B$32)*(MeOH_FTD!$N169*MeOH_FTD!$O$162+MeOH_FTD!$O169))/1000000*HLOOKUP($J$10,$Z$5:$AD$6,2,FALSE)/HLOOKUP($J$11,$Z$7:$AD$8,2,FALSE) -> 26.58726373 | K25: =((1-Vehicles!$C$34)*(1-Vehicles!$C$6)*Fuel_Specs!$B$15/((1-Vehicles!$C$34)*(1-Vehicles!$C$6)*Fuel_Specs!$B$15+Vehicles!$C$34*(1-Vehicles!$C$6)*Fuel_Specs!$B$17+Vehicles!$C$6*Fuel_Specs!$B$32)*(Petroleum!$B269*Petroleum!$D$262+Petroleum!$D269)+Vehicles!$C$34*(1-Vehicles!$C$6)*Fuel_Specs!$B$17/((1-Vehicles!$C$34)*(1-Vehicles!$C$6)*Fuel_Specs!$B$15+Vehicles!$C$34*(1-Vehicles!$C$6)*Fuel_Specs!$B$17+Vehicles!$C$6*Fuel_Specs!$B$32)*(Petroleum!B269*Petroleum!$F$262+Petroleum!$F269)+Vehicles!$C$6*Fuel_Specs!$B$32/((1-Vehicles!$C$34)*(1-Vehicles!$C$6)*Fuel_Specs!$B$15+Vehicles!$C$34*(1-Vehicles!$C$6)*Fuel_Specs!$B$17+Vehicles!$C$6*Fuel_Specs!$B$32)*(MeOH_FTD!$N169*MeOH_FTD!$O$162+MeOH_FTD!$O169))/1000000*HLOOKUP($J$10,$Z$5:$AD$6,2,FALSE)/HLOOKUP($J$11,$Z$7:$AD$8,2,FALSE) -> 26.44874901 | L25: =(MeOH_FTD!$N169*MeOH_FTD!$O$162+MeOH_FTD!$O169)/1000000*HLOOKUP($J$10,$Z$5:$AD$6,2,FALSE)/HLOOKUP($J$11,$Z$7:$AD$8,2,FALSE) -> 26.12901105 | M25: =((1-Vehicles!$C$36)*(1-Vehicles!$C$8)*Fuel_Specs!$B$15/((1-Vehicles!$C$36)*(1-Vehicles!$C$8)*Fuel_Specs!$B$15+Vehicles!$C$36*(1-Vehicles!$C$8)*Fuel_Specs!$B$17+Vehicles!$C$8*Fuel_Specs!$B$33)*(Petroleum!$B269*Petroleum!$D$262+(Petroleum!$D269-'T&D'!G222))+Vehicles!$C$36*(1-Vehicles!$C$8)*Fuel_Specs!$B$17/((1-Vehicles!$C$36)*(1-Vehicles!$C$8)*Fuel_Specs!$B$15+Vehicles!$C$36*(1-Vehicles!$C$8)*Fuel_Specs!$B$17+Vehicles!$C$8*Fuel_Specs!$B$33)*(Petroleum!B269*Petroleum!$F$262+Petroleum!$F269)+Vehicles!$C$8*Fuel_Specs!$B$33/((1-Vehicles!$C$36)*(1-Vehicles!$C$8)*Fuel_Specs!$B$15+Vehicles!$C$36*(1-Vehicles!$C$8)*Fuel_Specs!$B$17+Vehicles!$C$8*Fuel_Specs!$B$33)*(EtOH!BV553*EtOH!$BW$546+EtOH!$BW553)+Petroleum!AS131+Petroleum!AT131)/1000000*HLOOKUP($J$10,$Z$5:$AD$6,2,FALSE)/HLOOKUP($J$11,$Z$7:$AD$8,2,FALSE) -> 52.64528561 | N25: =((1-Vehicles!$C$37)*(1-Vehicles!$C$12)*Fuel_Specs!$B$15/((1-Vehicles!$C$37)*(1-Vehicles!$C$12)*Fuel_Specs!$B$15+Vehicles!$C$37*(1-Vehicles!$C$12)*Fuel_Specs!$B$17+Vehicles!$C$12*Fuel_Specs!$B$34)*(Petroleum!$B269*Petroleum!$D$262+Petroleum!$D269)+Vehicles!$C$37*(1-Vehicles!$C$12)*Fuel_Specs!$B$17/((1-Vehicles!$C$37)*(1-Vehicles!$C$12)*Fuel_Specs!$B$15+Vehicles!$C$37*(1-Vehicles!$C$12)*Fuel_Specs!$B$17+Vehicles!$C$12*Fuel_Specs!$B$34)*(Petroleum!B269*Petroleum!$F$262+Petroleum!$F269)+Vehicles!$C$12*Fuel_Specs!$B$34/((1-Vehicles!$C$37)*(1-Vehicles!$C$12)*Fuel_Specs!$B$15+Vehicles!$C$37*(1-Vehicles!$C$12)*Fuel_Specs!$B$17+Vehicles!$C$12*Fuel_Specs!$B$34)*(EtOH!$BX553*EtOH!$BY$546+EtOH!$BY553))/1000000*HLOOKUP($J$10,$Z$5:$AD$6,2,FALSE)/HLOOKUP($J$11,$Z$7:$AD$8,2,FALSE) -> 58.7820231 | O25: =((1-Vehicles!$C$36)*(1-Vehicles!$C$9)*Fuel_Specs!$B$15/((1-Vehicles!$C$36)*(1-Vehicles!$C$9)*Fuel_Specs!$B$15+Vehicles!$C$36*(1-Vehicles!$C$9)*Fuel_Specs!$B$17+Vehicles!$C$9*Fuel_Specs!$B$33)*(Petroleum!$B269*Petroleum!$D$262+(Petroleum!$D269-'T&D'!G222))+Vehicles!$C$36*(1-Vehicles!$C$9)*Fuel_Specs!$B$17/((1-Vehicles!$C$36)*(1-Vehicles!$C$9)*Fuel_Specs!$B$15+Vehicles!$C$36*(1-Vehicles!$C$9)*Fuel_Specs!$B$17+Vehicles!$C$9*Fuel_Specs!$B$33)*(Petroleum!B269*Petroleum!$F$262+Petroleum!$F269)+Vehicles!$C$9*Fuel_Specs!$B$33/((1-Vehicles!$C$36)*(1-Vehicles!$C$9)*Fuel_Specs!$B$15+Vehicles!$C$36*(1-Vehicles!$C$9)*Fuel_Specs!$B$17+Vehicles!$C$9*Fuel_Specs!$B$33)*(EtOH!BV553*EtOH!$BW$546+EtOH!$BW553)+Petroleum!AS131+Petroleum!AT131)/1000000*HLOOKUP($J$10,$Z$5:$AD$6,2,FALSE)/HLOOKUP($J$11,$Z$7:$AD$8,2,FALSE) -> 52.64528561 | P25: =(EtOH!$BT553*EtOH!$BU$546+EtOH!$BU553)/1000000*HLOOKUP($J$10,$Z$5:$AD$6,2,FALSE)/HLOOKUP($J$11,$Z$7:$AD$8,2,FALSE) -> 60.21050233 | Q25: =((1-Vehicles!$C$40)*(1-Vehicles!$C$16)*Fuel_Specs!$B$15/((1-Vehicles!$C$40)*(1-Vehicles!$C$16)*Fuel_Specs!$B$15+Vehicles!$C$40*(1-Vehicles!$C$16)*Fuel_Specs!$B$17+Vehicles!$C$16*Fuel_Specs!$B$47)*(Petroleum!$B269*Petroleum!$D$262+Petroleum!$D269)+Vehicles!$C$40*(1-Vehicles!$C$16)*Fuel_Specs!$B$17/((1-Vehicles!$C$40)*(1-Vehicles!$C$16)*Fuel_Specs!$B$15+Vehicles!$C$40*(1-Vehicles!$C$16)*Fuel_Specs!$B$17+Vehicles!$C$16*Fuel_Specs!$B$47)*(Petroleum!B269*Petroleum!$F$262+Petroleum!$F269)+Vehicles!$C$16*Fuel_Specs!$B$47/((1-Vehicles!$C$40)*(1-Vehicles!$C$16)*Fuel_Specs!$B$15+Vehicles!$C$40*(1-Vehicles!$C$16)*Fuel_Specs!$B$17+Vehicles!$C$16*Fuel_Specs!$B$47)*(BioOil!$CE439*BioOil!$CF$431+BioOil!$CF439))/1000000*HLOOKUP($J$10,$Z$5:$AD$6,2,FALSE)/HLOOKUP($J$11,$Z$7:$AD$8,2,FALSE) -> 20.15981602 | R25: =((1-Vehicles!$C$40)*(1-Vehicles!$C$16)*Fuel_Specs!$B$15/((1-Vehicles!$C$40)*(1-Vehicles!$C$16)*Fuel_Specs!$B$15+Vehicles!$C$40*(1-Vehicles!$C$16)*Fuel_Specs!$B$17+Vehicles!$C$16*Fuel_Specs!$B$47)*(Petroleum!$B269*Petroleum!$D$262+Petroleum!$D269)+Vehicles!$C$40*(1-Vehicles!$C$16)*Fuel_Specs!$B$17/((1-Vehicles!$C$40)*(1-Vehicles!$C$16)*Fuel_Specs!$B$15+Vehicles!$C$40*(1-Vehicles!$C$16)*Fuel_Specs!$B$17+Vehicles!$C$16*Fuel_Specs!$B$47)*(Petroleum!B269*Petroleum!$F$262+Petroleum!$F269)+Vehicles!$C$16*Fuel_Specs!$B$47/((1-Vehicles!$C$40)*(1-Vehicles!$C$16)*Fuel_Specs!$B$15+Vehicles!$C$40*(1-Vehicles!$C$16)*Fuel_Specs!$B$17+Vehicles!$C$16*Fuel_Specs!$B$47)*(Pyrolysis_IDL!$AD304*Pyrolysis_IDL!$AE$297+Pyrolysis_IDL!$AE304))/1000000*HLOOKUP($J$10,$Z$5:$AD$6,2,FALSE)/HLOOKUP($J$11,$Z$7:$AD$8,2,FALSE) -> 7.7061949 | S25: =AN25*(Vehicles!$C$30/Vehicles!$AT$72)/(Vehicles!$C$30*(1/Vehicles!$AT$72+1/Vehicles!$AU$72)+Vehicles!$C$31/Vehicles!$AV$72)+B25*(Vehicles!$C$30/Vehicles!$AU$72+Vehicles!$C$31/Vehicles!$AV$72)/(Vehicles!$C$30*(1/Vehicles!$AT$72+1/Vehicles!$AU$72)+Vehicles!$C$31/Vehicles!$AV$72) ->  | T25: =AN25*(Vehicles!$D$30/Vehicles!$AX$72)/(Vehicles!$D$30*(1/Vehicles!$AX$72+1/Vehicles!$AY$72)+Vehicles!$D$31/Vehicles!$AZ$72)+C25*(Vehicles!$D$30/Vehicles!$AY$72+Vehicles!$D$31/Vehicles!$AZ$72)/(Vehicles!$D$30*(1/Vehicles!$AX$72+1/Vehicles!$AY$72)+Vehicles!$D$31/Vehicles!$AZ$72) ->  | U25: =AN25*(Vehicles!$F$30/Vehicles!$BF$72)/(Vehicles!$F$30*(1/Vehicles!$BF$72+1/Vehicles!$BG$72)+Vehicles!$F$31/Vehicles!$BH$72)+D25*(Vehicles!$F$30/Vehicles!$BG$72+Vehicles!$F$31/Vehicles!$BH$72)/(Vehicles!$F$30*(1/Vehicles!$BF$72+1/Vehicles!$BG$72)+Vehicles!$F$31/Vehicles!$BH$72) ->  | V25: =AN25*(Vehicles!$G$30/Vehicles!$BJ$72)/(Vehicles!$G$30*(1/Vehicles!$BJ$72+1/Vehicles!$BK$72)+Vehicles!$G$31/Vehicles!$BL$72)+F25*(Vehicles!$G$30/Vehicles!$BK$72+Vehicles!$G$31/Vehicles!$BL$72)/(Vehicles!$G$30*(1/Vehicles!$BJ$72+1/Vehicles!$BK$72)+Vehicles!$G$31/Vehicles!$BL$72) ->  | W25: =AN25*(Vehicles!$H$30/Vehicles!$BN$72)/(Vehicles!$H$30*(1/Vehicles!$BN$72+1/Vehicles!$BO$72)+Vehicles!$H$31/Vehicles!$BP$72)+G25*(Vehicles!$H$30/Vehicles!$BO$72+Vehicles!$H$31/Vehicles!$BP$72)/(Vehicles!$H$30*(1/Vehicles!$BN$72+1/Vehicles!$BO$72)+Vehicles!$H$31/Vehicles!$BP$72) ->  | X25: =AN25*(Vehicles!$I$30/Vehicles!$BR$72)/(Vehicles!$I$30*(1/Vehicles!$BR$72+1/Vehicles!$BS$72)+Vehicles!$I$31/Vehicles!$BT$72)+H25*(Vehicles!$I$30/Vehicles!$BS$72+Vehicles!$I$31/Vehicles!$BT$72)/(Vehicles!$I$30*(1/Vehicles!$BR$72+1/Vehicles!$BS$72)+Vehicles!$I$31/Vehicles!$BT$72) ->  | Y25: =AN25*(Vehicles!$J$30/Vehicles!$BV$72)/(Vehicles!$J$30*(1/Vehicles!$BV$72+1/Vehicles!$BW$72)+Vehicles!$J$31/Vehicles!$BX$72)+K25*(Vehicles!$J$30/Vehicles!$BW$72+Vehicles!$J$31/Vehicles!$BX$72)/(Vehicles!$J$30*(1/Vehicles!$BV$72+1/Vehicles!$BW$72)+Vehicles!$J$31/Vehicles!$BX$72) ->  | Z25: =AN25*(Vehicles!$K$30/Vehicles!$BZ$72)/(Vehicles!$K$30*(1/Vehicles!$BZ$72+1/Vehicles!$CA$72)+Vehicles!$K$31/Vehicles!$CB$72)+O25*(Vehicles!$K$30/Vehicles!$CA$72+Vehicles!$K$31/Vehicles!$CB$72)/(Vehicles!$K$30*(1/Vehicles!$BZ$72+1/Vehicles!$CA$72)+Vehicles!$K$31/Vehicles!$CB$72) ->  | AA25: =AN25*(Vehicles!$L$30/Vehicles!$CD$72)/(Vehicles!$L$30*(1/Vehicles!$CD$72+1/Vehicles!$CE$72)+Vehicles!$L$31/Vehicles!$CF$72)+AO25*(Vehicles!$L$30/Vehicles!$CE$72+Vehicles!$L$31/Vehicles!$CF$72)/(Vehicles!$L$30*(1/Vehicles!$CD$72+1/Vehicles!$CE$72)+Vehicles!$L$31/Vehicles!$CF$72) ->  | AB25: =AN25*(Vehicles!$L$30/Vehicles!$CD$72)/(Vehicles!$L$30*(1/Vehicles!$CD$72+1/Vehicles!$CE$72)+Vehicles!$L$31/Vehicles!$CG$72)+AP25*(Vehicles!$L$30/Vehicles!$CE$72+Vehicles!$L$31/Vehicles!$CG$72)/(Vehicles!$L$30*(1/Vehicles!$CD$72+1/Vehicles!$CE$72)+Vehicles!$L$31/Vehicles!$CG$72) ->  | AC25: =(MeOH_FTD!$AJ169*MeOH_FTD!$AK$162+MeOH_FTD!$AK169)/1000000*HLOOKUP($J$10,$Z$5:$AD$6,2,FALSE)/HLOOKUP($J$11,$Z$7:$AD$8,2,FALSE) -> 15.27644627 | AD25: =((1-Vehicles!$C$41)*(1-Vehicles!$C$13)*Fuel_Specs!$B$21/((1-Vehicles!$C$41)*(1-Vehicles!$C$13)*Fuel_Specs!$B$21+Vehicles!$C$41*(1-Vehicles!$C$13)*Fuel_Specs!$B$24+Vehicles!$C$13*Fuel_Specs!$B$42)*(Petroleum!B269*Petroleum!$J$262+Petroleum!$J269)+Vehicles!$C$41*(1-Vehicles!$C$13)*Fuel_Specs!$B$24/((1-Vehicles!$C$41)*(1-Vehicles!$C$13)*Fuel_Specs!$B$21+Vehicles!$C$41*(1-Vehicles!$C$13)*Fuel_Specs!$B$24+Vehicles!$C$13*Fuel_Specs!$B$42)*(Petroleum!B269*IF(Inputs!F$102=1,Petroleum!$K$262,Petroleum!$L$262)+IF(Inputs!F$102=1,Petroleum!$K269,Petroleum!$L269))+Vehicles!$C$13*Fuel_Specs!$B$42/((1-Vehicles!$C$41)*(1-Vehicles!$C$13)*Fuel_Specs!$B$21+Vehicles!$C$41*(1-Vehicles!$C$13)*Fuel_Specs!$B$24+Vehicles!$C$13*Fuel_Specs!$B$42)*(MeOH_FTD!$AZ169*MeOH_FTD!$BA$162+MeOH_FTD!$BA169))/1000000*HLOOKUP($J$10,$Z$5:$AD$6,2,FALSE)/HLOOKUP($J$11,$Z$7:$AD$8,2,FALSE) -> 13.79861733 | AE25: =((1-Vehicles!$C$42)*(1-Vehicles!$C$14)*Fuel_Specs!$B$21/((1-Vehicles!$C$42)*(1-Vehicles!$C$14)*Fuel_Specs!$B$21+Vehicles!$C$42*(1-Vehicles!$C$14)*Fuel_Specs!$B$24+Vehicles!$C$14*Fuel_Specs!$B$41)*(Petroleum!B269*Petroleum!$J$262+Petroleum!$J269)+Vehicles!$C$42*(1-Vehicles!$C$14)*Fuel_Specs!$B$24/((1-Vehicles!$C$42)*(1-Vehicles!$C$14)*Fuel_Specs!$B$21+Vehicles!$C$42*(1-Vehicles!$C$14)*Fuel_Specs!$B$24+Vehicles!$C$14*Fuel_Specs!$B$41)*(Petroleum!B269*IF(Inputs!F$102=1,Petroleum!$K$262,Petroleum!$L$262)+IF(Inputs!F$102=1,Petroleum!$K269,Petroleum!$L269))+Vehicles!$C$14*Fuel_Specs!$B$41/((1-Vehicles!$C$42)*(1-Vehicles!$C$14)*Fuel_Specs!$B$21+Vehicles!$C$42*(1-Vehicles!$C$14)*Fuel_Specs!$B$24+Vehicles!$C$14*Fuel_Specs!$B$41)*(BioOil!$Y439*BioOil!$Z$431+BioOil!$Z439))/1000000*HLOOKUP($J$10,$Z$5:$AD$6,2,FALSE)/HLOOKUP($J$11,$Z$7:$AD$8,2,FALSE) -> 10.43788254 | AF25: =((1-Vehicles!$C$43)*(1-Vehicles!$C$15)*Fuel_Specs!$B$21/((1-Vehicles!$C$43)*(1-Vehicles!$C$15)*Fuel_Specs!$B$21+Vehicles!$C$43*(1-Vehicles!$C$15)*Fuel_Specs!$B$24+Vehicles!$C$15*IF(Inputs!$E$670=1,IF(Inputs!$E$670=1,Fuel_Specs!$B$43,IF(Inputs!$E$670=3,Fuel_Specs!$B$45,Fuel_Specs!$B$44)),Fuel_Specs!$B$44))*(Petroleum!B269*Petroleum!$J$262+Petroleum!$J269)+Vehicles!$C$43*(1-Vehicles!$C$15)*Fuel_Specs!$B$24/((1-Vehicles!$C$43)*(1-Vehicles!$C$15)*Fuel_Specs!$B$21+Vehicles!$C$43*(1-Vehicles!$C$15)*Fuel_Specs!$B$24+Vehicles!$C$15*IF(Inputs!$E$670=1,IF(Inputs!$E$670=1,Fuel_Specs!$B$43,IF(Inputs!$E$670=3,Fuel_Specs!$B$45,Fuel_Specs!$B$44)),Fuel_Specs!$B$44))*(Petroleum!B269*IF(Inputs!F$102=1,Petroleum!$K$262,Petroleum!$L$262)+IF(Inputs!F$102=1,Petroleum!$K269,Petroleum!$L269))+Vehicles!$C$15*IF(Inputs!$E$670=1,IF(Inputs!$E$670=1,Fuel_Specs!$B$43,IF(Inputs!$E$670=3,Fuel_Specs!$B$45,Fuel_Specs!$B$44)),Fuel_Specs!$B$44)/((1-Vehicles!$C$43)*(1-Vehicles!$C$15)*Fuel_Specs!$B$21+Vehicles!$C$43*(1-Vehicles!$C$15)*Fuel_Specs!$B$24+Vehicles!$C$15*IF(Inputs!$E$670=1,IF(Inputs!$E$670=1,Fuel_Specs!$B$43,IF(Inputs!$E$670=3,Fuel_Specs!$B$45,Fuel_Specs!$B$44)),Fuel_Specs!$B$44))*(BioOil!$BQ439*BioOil!$BR$431+BioOil!$BR439))/1000000*HLOOKUP($J$10,$Z$5:$AD$6,2,FALSE)/HLOOKUP($J$11,$Z$7:$AD$8,2,FALSE) -> 21.11938891 | AG25: =((1-Vehicles!$C$43)*(1-Vehicles!$C$15)*Fuel_Specs!$B$21/((1-Vehicles!$C$43)*(1-Vehicles!$C$15)*Fuel_Specs!$B$21+Vehicles!$C$43*(1-Vehicles!$C$15)*Fuel_Specs!$B$24+Vehicles!$C$15*IF(Inputs!$E$670=1,Fuel_Specs!$B$43,Fuel_Specs!$B$44))*(Petroleum!B269*Petroleum!$J$262+Petroleum!$J269)+Vehicles!$C$43*(1-Vehicles!$C$15)*Fuel_Specs!$B$24/((1-Vehicles!$C$43)*(1-Vehicles!$C$15)*Fuel_Specs!$B$21+Vehicles!$C$43*(1-Vehicles!$C$15)*Fuel_Specs!$B$24+Vehicles!$C$15*IF(Inputs!$E$670=1,Fuel_Specs!$B$43,Fuel_Specs!$B$44))*(Petroleum!B269*IF(Inputs!F$102=1,Petroleum!$K$262,Petroleum!$L$262)+IF(Inputs!F$102=1,Petroleum!$K269,Petroleum!$L269))+Vehicles!$C$15*IF(Inputs!$E$670=1,Fuel_Specs!$B$43,Fuel_Specs!$B$44)/((1-Vehicles!$C$43)*(1-Vehicles!$C$15)*Fuel_Specs!$B$21+Vehicles!$C$43*(1-Vehicles!$C$15)*Fuel_Specs!$B$24+Vehicles!$C$15*IF(Inputs!$E$670=1,Fuel_Specs!$B$43,Fuel_Specs!$B$44))*(Pyrolysis_IDL!$AF304*Pyrolysis_IDL!$AG$297+Pyrolysis_IDL!$AG304))/1000000*HLOOKUP($J$10,$Z$5:$AD$6,2,FALSE)/HLOOKUP($J$11,$Z$7:$AD$8,2,FALSE) -> 7.407915994 | AH25: =(((1-Vehicles!$C$44)*(1-Vehicles!$C$17-Vehicles!$C$18)*Fuel_Specs!$B$21*(Petroleum!B269*Petroleum!$J$262+Petroleum!$J269)+Vehicles!$C$44*(1-Vehicles!$C$17-Vehicles!$C$18)*Fuel_Specs!$B$24*(Petroleum!B269*IF(Inputs!F$102=1,Petroleum!$K$262,Petroleum!$L$262)+IF(Inputs!F$102=1,Petroleum!$K269,Petroleum!$L269))+Vehicles!$C$17*Fuel_Specs!$B$33*(EtOH!BT553*EtOH!$BU$546+EtOH!$BU553)+Vehicles!$C$18*Fuel_Specs!$B$36*('EtOH-Diesel Additives'!$B60*'EtOH-Diesel Additives'!$B$53))/((1-Vehicles!$C$44)*(1-Vehicles!$C$17-Vehicles!$C$18)*Fuel_Specs!$B$21+Vehicles!$C$44*(1-Vehicles!$C$17-Vehicles!$C$18)*Fuel_Specs!$B$24+Vehicles!$C$17*Fuel_Specs!$B$33+Vehicles!$C$18*Fuel_Specs!$B$36))/1000000*HLOOKUP($J$10,$Z$5:$AD$6,2,FALSE)/HLOOKUP($J$11,$Z$7:$AD$8,2,FALSE) -> 11.22555815 | AI25: =AN25*(Vehicles!$M$30/Vehicles!$CO$72)/(Vehicles!$M$30*(1/Vehicles!$CO$72+1/Vehicles!$CP$72)+Vehicles!$M$31/Vehicles!$CQ$72)+E25*(Vehicles!$M$30/Vehicles!$CP$72+Vehicles!$M$31/Vehicles!$CQ$72)/(Vehicles!$M$30*(1/Vehicles!$CO$72+1/Vehicles!$CP$72)+Vehicles!$M$31/Vehicles!$CQ$72) ->  | AJ25: =AN25*(Vehicles!$N$30/Vehicles!$CS$72)/(Vehicles!$N$30*(1/Vehicles!$CS$72+1/Vehicles!$CT$72)+Vehicles!$N$31/Vehicles!$CU$72)+AC25*(Vehicles!$N$30/Vehicles!$CT$72+Vehicles!$N$31/Vehicles!$CU$72)/(Vehicles!$N$30*(1/Vehicles!$CS$72+1/Vehicles!$CT$72)+Vehicles!$N$31/Vehicles!$CU$72) ->  | AK25: =AN25*(Vehicles!$O$30/Vehicles!$CW$72)/(Vehicles!$O$30*(1/Vehicles!$CW$72+1/Vehicles!$CX$72)+Vehicles!$O$31/Vehicles!$CY$72)+AD25*(Vehicles!$O$30/Vehicles!$CX$72+Vehicles!$O$31/Vehicles!$CY$72)/(Vehicles!$O$30*(1/Vehicles!$CW$72+1/Vehicles!$CX$72)+Vehicles!$O$31/Vehicles!$CY$72) ->  | AL25: =AN25*(Vehicles!$P$30/Vehicles!$DA$72)/(Vehicles!$P$30*(1/Vehicles!$DA$72+1/Vehicles!$DB$72)+Vehicles!$P$31/Vehicles!$DC$72)+AE25*(Vehicles!$P$30/Vehicles!$DB$72+Vehicles!$P$31/Vehicles!$DC$72)/(Vehicles!$P$30*(1/Vehicles!$DA$72+1/Vehicles!$DB$72)+Vehicles!$P$31/Vehicles!$DC$72) ->  | AM25: =AN25*(Vehicles!$R$30/Vehicles!$DI$72)/(Vehicles!$R$30*(1/Vehicles!$DI$72+1/Vehicles!$DJ$72)+Vehicles!$R$31/Vehicles!$DK$72)+AH25*(Vehicles!$R$30/Vehicles!$DJ$72+Vehicles!$R$31/Vehicles!$DK$72)/(Vehicles!$R$30*(1/Vehicles!$DI$72+1/Vehicles!$DJ$72)+Vehicles!$R$31/Vehicles!$DK$72) ->  | AN25: =(Electric!$G210+Electric!$F210)/1000000*HLOOKUP($J$10,$Z$5:$AD$6,2,FALSE)/HLOOKUP($J$11,$Z$7:$AD$8,2,FALSE) -> 48.64513612 | AO25: =(Hydrogen!$AJ312*Hydrogen!$AK$305+Hydrogen!$AK312)/1000000*HLOOKUP($J$10,$Z$5:$AD$6,2,FALSE)/HLOOKUP($J$11,$Z$7:$AD$8,2,FALSE) -> 19.93186578 | AP25: =(Hydrogen!$BT312*Hydrogen!$BU$305+Hydrogen!$BU312)/1000000*HLOOKUP($J$10,$Z$5:$AD$6,2,FALSE)/HLOOKUP($J$11,$Z$7:$AD$8,2,FALSE) -> 33.58418155 | AQ25: =AN25*(Vehicles!$S$30/Vehicles!$DY$72)/(Vehicles!$S$30*(1/Vehicles!$DY$72+1/Vehicles!$DZ$72)+Vehicles!$S$31/Vehicles!$EA$72)+AO25*(Vehicles!$S$30/Vehicles!$DZ$72+Vehicles!$S$31/Vehicles!$EA$72)/(Vehicles!$S$30*(1/Vehicles!$DY$72+1/Vehicles!$DZ$72)+Vehicles!$S$31/Vehicles!$EA$72) ->  | AR25: =AN25*(Vehicles!$S$30/Vehicles!$DY$72)/(Vehicles!$S$30*(1/Vehicles!$DY$72+1/Vehicles!$DZ$72)+Vehicles!$S$31/Vehicles!$EA$72)+AP25*(Vehicles!$S$30/Vehicles!$DZ$72+Vehicles!$S$31/Vehicles!$EA$72)/(Vehicles!$S$30*(1/Vehicles!$DY$72+1/Vehicles!$DZ$72)+Vehicles!$S$31/Vehicles!$EA$72) ->  | AS25: =((1-Vehicles!$C$40)*(1-Vehicles!$C$16)*Fuel_Specs!$B$15/((1-Vehicles!$C$40)*(1-Vehicles!$C$16)*Fuel_Specs!$B$15+Vehicles!$C$40*(1-Vehicles!$C$16)*Fuel_Specs!$B$17+Vehicles!$C$16*Fuel_Specs!$B$48)*(Petroleum!$B269*Petroleum!$D$262+Petroleum!$D269)+Vehicles!$C$40*(1-Vehicles!$C$16)*Fuel_Specs!$B$17/((1-Vehicles!$C$40)*(1-Vehicles!$C$16)*Fuel_Specs!$B$15+Vehicles!$C$40*(1-Vehicles!$C$16)*Fuel_Specs!$B$17+Vehicles!$C$16*Fuel_Specs!$B$48)*(Petroleum!B269*Petroleum!$F$262+Petroleum!$F269)+Vehicles!$C$16*Fuel_Specs!$B$48/((1-Vehicles!$C$40)*(1-Vehicles!$C$16)*Fuel_Specs!$B$15+Vehicles!$C$40*(1-Vehicles!$C$16)*Fuel_Specs!$B$17+Vehicles!$C$16*Fuel_Specs!$B$48)*(Pyrolysis_IDL!$AP304*Pyrolysis_IDL!$AQ$297+Pyrolysis_IDL!$AQ304))/1000000*HLOOKUP($J$10,$Z$5:$AD$6,2,FALSE)/HLOOKUP($J$11,$Z$7:$AD$8,2,FALSE) -> 9.608584915 | AT25: =(Petroleum!$B269*Petroleum!$S$262+Petroleum!$S269)/1000000*HLOOKUP($J$10,$Z$5:$AD$6,2,FALSE)/HLOOKUP($J$11,$Z$7:$AD$8,2,FALSE) -> 27.00725155 | AU25: 25.81335417 | AV25: 23.52562388 | BB25: SI - Dedi. EtOH Vehicle | BC25: RNAVETOHDED | BN25: SI PHEV - Liquid H2 and Electricity | BO25: RNAVPHEVLH2
A26: CO: Total | B26: =(Inputs!$E$1518*(Petroleum!$B270*Petroleum!$F$262+Petroleum!$F270)+(1-Inputs!$E$1518)*(Petroleum!$B270*Petroleum!$D$262+Petroleum!$D270))/1000000*HLOOKUP($J$10,$Z$5:$AD$6,2,FALSE)/HLOOKUP($J$11,$Z$7:$AD$8,2,FALSE) -> 18.28990706 | C26: =(Petroleum!$C270*Petroleum!$G$262+Petroleum!$G270)/1000000*HLOOKUP($J$10,$Z$5:$AD$6,2,FALSE)/HLOOKUP($J$11,$Z$7:$AD$8,2,FALSE) -> 19.42121235 | D26: =((1-Vehicles!$C$35)*(1-Vehicles!$C$7)*Fuel_Specs!$B$15/((1-Vehicles!$C$35)*(1-Vehicles!$C$7)*Fuel_Specs!$B$15+Vehicles!$C$35*(1-Vehicles!$C$7)*Fuel_Specs!$B$17+Vehicles!$C$7*Fuel_Specs!$B$33)*(Petroleum!$B270*Petroleum!$D$262+(Petroleum!$D270-'T&D'!G223))+Vehicles!$C$35*(1-Vehicles!$C$7)*Fuel_Specs!$B$17/((1-Vehicles!$C$35)*(1-Vehicles!$C$7)*Fuel_Specs!$B$15+Vehicles!$C$35*(1-Vehicles!$C$7)*Fuel_Specs!$B$17+Vehicles!$C$7*Fuel_Specs!$B$33)*(Petroleum!B270*Petroleum!$F$262+Petroleum!$F270)+Vehicles!$C$7*Fuel_Specs!$B$33/((1-Vehicles!$C$35)*(1-Vehicles!$C$7)*Fuel_Specs!$B$15+Vehicles!$C$35*(1-Vehicles!$C$7)*Fuel_Specs!$B$17+Vehicles!$C$7*Fuel_Specs!$B$33)*(EtOH!BV554*EtOH!$BW$546+EtOH!$BW554)+Petroleum!AS132+Petroleum!AT132)/1000000*HLOOKUP($J$10,$Z$5:$AD$6,2,FALSE)/HLOOKUP($J$11,$Z$7:$AD$8,2,FALSE) -> 18.4187723 | E26: =(Inputs!$E$97*(IF(Inputs!F$102=1,Petroleum!$B270,Petroleum!$C270)*IF(Inputs!F$102=1,Petroleum!$K$262,Petroleum!$L$262)+IF(Inputs!F$102=1,Petroleum!$K270,Petroleum!$L270))+(1-Inputs!$E$97)*(IF(Inputs!F$101=1,Petroleum!$B270,Petroleum!$C270)*Petroleum!$J$262+Petroleum!$J270))/1000000*HLOOKUP($J$10,$Z$5:$AD$6,2,FALSE)/HLOOKUP($J$11,$Z$7:$AD$8,2,FALSE) -> 14.09305528 | F26: =(NG!$J92*NG!$K$84+NG!$K92)/1000000*HLOOKUP($J$10,$Z$5:$AD$6,2,FALSE)/HLOOKUP($J$11,$Z$7:$AD$8,2,FALSE) -> 50.51940957 | G26: =(NG!$R92*NG!$S$84+NG!$S92)/1000000*HLOOKUP($J$10,$Z$5:$AD$6,2,FALSE)/HLOOKUP($J$11,$Z$7:$AD$8,2,FALSE) -> 23.90316105 | H26: =(NG!$X92*NG!$Y$84+NG!$Y92)/1000000*HLOOKUP($J$10,$Z$5:$AD$6,2,FALSE)/HLOOKUP($J$11,$Z$7:$AD$8,2,FALSE) -> 20.48365149 | I26: =(MeOH_FTD!BJ170*MeOH_FTD!BK$162+MeOH_FTD!BK170)/1000000*HLOOKUP($J$10,$Z$5:$AD$6,2,FALSE)/HLOOKUP($J$11,$Z$7:$AD$8,2,FALSE) -> 21.71823049 | J26: =((1-Vehicles!$C$34)*(1-Vehicles!$C$5)*Fuel_Specs!$B$15/((1-Vehicles!$C$34)*(1-Vehicles!$C$5)*Fuel_Specs!$B$15+Vehicles!$C$34*(1-Vehicles!$C$5)*Fuel_Specs!$B$17+Vehicles!$C$5*Fuel_Specs!$B$32)*(Petroleum!$B270*Petroleum!$D$262+Petroleum!$D270)+Vehicles!$C$34*(1-Vehicles!$C$5)*Fuel_Specs!$B$17/((1-Vehicles!$C$34)*(1-Vehicles!$C$5)*Fuel_Specs!$B$15+Vehicles!$C$34*(1-Vehicles!$C$5)*Fuel_Specs!$B$17+Vehicles!$C$5*Fuel_Specs!$B$32)*(Petroleum!B270*Petroleum!$F$262+Petroleum!$F270)+Vehicles!$C$5*Fuel_Specs!$B$32/((1-Vehicles!$C$34)*(1-Vehicles!$C$5)*Fuel_Specs!$B$15+Vehicles!$C$34*(1-Vehicles!$C$5)*Fuel_Specs!$B$17+Vehicles!$C$5*Fuel_Specs!$B$32)*(MeOH_FTD!$N170*MeOH_FTD!$O$162+MeOH_FTD!$O170))/1000000*HLOOKUP($J$10,$Z$5:$AD$6,2,FALSE)/HLOOKUP($J$11,$Z$7:$AD$8,2,FALSE) -> 27.86684261 | K26: =((1-Vehicles!$C$34)*(1-Vehicles!$C$6)*Fuel_Specs!$B$15/((1-Vehicles!$C$34)*(1-Vehicles!$C$6)*Fuel_Specs!$B$15+Vehicles!$C$34*(1-Vehicles!$C$6)*Fuel_Specs!$B$17+Vehicles!$C$6*Fuel_Specs!$B$32)*(Petroleum!$B270*Petroleum!$D$262+Petroleum!$D270)+Vehicles!$C$34*(1-Vehicles!$C$6)*Fuel_Specs!$B$17/((1-Vehicles!$C$34)*(1-Vehicles!$C$6)*Fuel_Specs!$B$15+Vehicles!$C$34*(1-Vehicles!$C$6)*Fuel_Specs!$B$17+Vehicles!$C$6*Fuel_Specs!$B$32)*(Petroleum!B270*Petroleum!$F$262+Petroleum!$F270)+Vehicles!$C$6*Fuel_Specs!$B$32/((1-Vehicles!$C$34)*(1-Vehicles!$C$6)*Fuel_Specs!$B$15+Vehicles!$C$34*(1-Vehicles!$C$6)*Fuel_Specs!$B$17+Vehicles!$C$6*Fuel_Specs!$B$32)*(MeOH_FTD!$N170*MeOH_FTD!$O$162+MeOH_FTD!$O170))/1000000*HLOOKUP($J$10,$Z$5:$AD$6,2,FALSE)/HLOOKUP($J$11,$Z$7:$AD$8,2,FALSE) -> 29.10814133 | L26: =(MeOH_FTD!$N170*MeOH_FTD!$O$162+MeOH_FTD!$O170)/1000000*HLOOKUP($J$10,$Z$5:$AD$6,2,FALSE)/HLOOKUP($J$11,$Z$7:$AD$8,2,FALSE) -> 31.97347073 | M26: =((1-Vehicles!$C$36)*(1-Vehicles!$C$8)*Fuel_Specs!$B$15/((1-Vehicles!$C$36)*(1-Vehicles!$C$8)*Fuel_Specs!$B$15+Vehicles!$C$36*(1-Vehicles!$C$8)*Fuel_Specs!$B$17+Vehicles!$C$8*Fuel_Specs!$B$33)*(Petroleum!$B270*Petroleum!$D$262+(Petroleum!$D270-'T&D'!G223))+Vehicles!$C$36*(1-Vehicles!$C$8)*Fuel_Specs!$B$17/((1-Vehicles!$C$36)*(1-Vehicles!$C$8)*Fuel_Specs!$B$15+Vehicles!$C$36*(1-Vehicles!$C$8)*Fuel_Specs!$B$17+Vehicles!$C$8*Fuel_Specs!$B$33)*(Petroleum!B270*Petroleum!$F$262+Petroleum!$F270)+Vehicles!$C$8*Fuel_Specs!$B$33/((1-Vehicles!$C$36)*(1-Vehicles!$C$8)*Fuel_Specs!$B$15+Vehicles!$C$36*(1-Vehicles!$C$8)*Fuel_Specs!$B$17+Vehicles!$C$8*Fuel_Specs!$B$33)*(EtOH!BV554*EtOH!$BW$546+EtOH!$BW554)+Petroleum!AS132+Petroleum!AT132)/1000000*HLOOKUP($J$10,$Z$5:$AD$6,2,FALSE)/HLOOKUP($J$11,$Z$7:$AD$8,2,FALSE) -> 39.61177937 | N26: =((1-Vehicles!$C$37)*(1-Vehicles!$C$12)*Fuel_Specs!$B$15/((1-Vehicles!$C$37)*(1-Vehicles!$C$12)*Fuel_Specs!$B$15+Vehicles!$C$37*(1-Vehicles!$C$12)*Fuel_Specs!$B$17+Vehicles!$C$12*Fuel_Specs!$B$34)*(Petroleum!$B270*Petroleum!$D$262+Petroleum!$D270)+Vehicles!$C$37*(1-Vehicles!$C$12)*Fuel_Specs!$B$17/((1-Vehicles!$C$37)*(1-Vehicles!$C$12)*Fuel_Specs!$B$15+Vehicles!$C$37*(1-Vehicles!$C$12)*Fuel_Specs!$B$17+Vehicles!$C$12*Fuel_Specs!$B$34)*(Petroleum!B270*Petroleum!$F$262+Petroleum!$F270)+Vehicles!$C$12*Fuel_Specs!$B$34/((1-Vehicles!$C$37)*(1-Vehicles!$C$12)*Fuel_Specs!$B$15+Vehicles!$C$37*(1-Vehicles!$C$12)*Fuel_Specs!$B$17+Vehicles!$C$12*Fuel_Specs!$B$34)*(EtOH!$BX554*EtOH!$BY$546+EtOH!$BY554))/1000000*HLOOKUP($J$10,$Z$5:$AD$6,2,FALSE)/HLOOKUP($J$11,$Z$7:$AD$8,2,FALSE) -> 51.85360172 | O26: =((1-Vehicles!$C$36)*(1-Vehicles!$C$9)*Fuel_Specs!$B$15/((1-Vehicles!$C$36)*(1-Vehicles!$C$9)*Fuel_Specs!$B$15+Vehicles!$C$36*(1-Vehicles!$C$9)*Fuel_Specs!$B$17+Vehicles!$C$9*Fuel_Specs!$B$33)*(Petroleum!$B270*Petroleum!$D$262+(Petroleum!$D270-'T&D'!G223))+Vehicles!$C$36*(1-Vehicles!$C$9)*Fuel_Specs!$B$17/((1-Vehicles!$C$36)*(1-Vehicles!$C$9)*Fuel_Specs!$B$15+Vehicles!$C$36*(1-Vehicles!$C$9)*Fuel_Specs!$B$17+Vehicles!$C$9*Fuel_Specs!$B$33)*(Petroleum!B270*Petroleum!$F$262+Petroleum!$F270)+Vehicles!$C$9*Fuel_Specs!$B$33/((1-Vehicles!$C$36)*(1-Vehicles!$C$9)*Fuel_Specs!$B$15+Vehicles!$C$36*(1-Vehicles!$C$9)*Fuel_Specs!$B$17+Vehicles!$C$9*Fuel_Specs!$B$33)*(EtOH!BV554*EtOH!$BW$546+EtOH!$BW554)+Petroleum!AS132+Petroleum!AT132)/1000000*HLOOKUP($J$10,$Z$5:$AD$6,2,FALSE)/HLOOKUP($J$11,$Z$7:$AD$8,2,FALSE) -> 39.61177937 | P26: =(EtOH!$BT554*EtOH!$BU$546+EtOH!$BU554)/1000000*HLOOKUP($J$10,$Z$5:$AD$6,2,FALSE)/HLOOKUP($J$11,$Z$7:$AD$8,2,FALSE) -> 46.80782587 | Q26: =((1-Vehicles!$C$40)*(1-Vehicles!$C$16)*Fuel_Specs!$B$15/((1-Vehicles!$C$40)*(1-Vehicles!$C$16)*Fuel_Specs!$B$15+Vehicles!$C$40*(1-Vehicles!$C$16)*Fuel_Specs!$B$17+Vehicles!$C$16*Fuel_Specs!$B$47)*(Petroleum!$B270*Petroleum!$D$262+Petroleum!$D270)+Vehicles!$C$40*(1-Vehicles!$C$16)*Fuel_Specs!$B$17/((1-Vehicles!$C$40)*(1-Vehicles!$C$16)*Fuel_Specs!$B$15+Vehicles!$C$40*(1-Vehicles!$C$16)*Fuel_Specs!$B$17+Vehicles!$C$16*Fuel_Specs!$B$47)*(Petroleum!B270*Petroleum!$F$262+Petroleum!$F270)+Vehicles!$C$16*Fuel_Specs!$B$47/((1-Vehicles!$C$40)*(1-Vehicles!$C$16)*Fuel_Specs!$B$15+Vehicles!$C$40*(1-Vehicles!$C$16)*Fuel_Specs!$B$17+Vehicles!$C$16*Fuel_Specs!$B$47)*(BioOil!$CE440*BioOil!$CF$431+BioOil!$CF440))/1000000*HLOOKUP($J$10,$Z$5:$AD$6,2,FALSE)/HLOOKUP($J$11,$Z$7:$AD$8,2,FALSE) -> 168.8906481 | R26: =((1-Vehicles!$C$40)*(1-Vehicles!$C$16)*Fuel_Specs!$B$15/((1-Vehicles!$C$40)*(1-Vehicles!$C$16)*Fuel_Specs!$B$15+Vehicles!$C$40*(1-Vehicles!$C$16)*Fuel_Specs!$B$17+Vehicles!$C$16*Fuel_Specs!$B$47)*(Petroleum!$B270*Petroleum!$D$262+Petroleum!$D270)+Vehicles!$C$40*(1-Vehicles!$C$16)*Fuel_Specs!$B$17/((1-Vehicles!$C$40)*(1-Vehicles!$C$16)*Fuel_Specs!$B$15+Vehicles!$C$40*(1-Vehicles!$C$16)*Fuel_Specs!$B$17+Vehicles!$C$16*Fuel_Specs!$B$47)*(Petroleum!B270*Petroleum!$F$262+Petroleum!$F270)+Vehicles!$C$16*Fuel_Specs!$B$47/((1-Vehicles!$C$40)*(1-Vehicles!$C$16)*Fuel_Specs!$B$15+Vehicles!$C$40*(1-Vehicles!$C$16)*Fuel_Specs!$B$17+Vehicles!$C$16*Fuel_Specs!$B$47)*(Pyrolysis_IDL!$AD305*Pyrolysis_IDL!$AE$297+Pyrolysis_IDL!$AE305))/1000000*HLOOKUP($J$10,$Z$5:$AD$6,2,FALSE)/HLOOKUP($J$11,$Z$7:$AD$8,2,FALSE) -> 23.26278112 | S26: =AN26*(Vehicles!$C$30/Vehicles!$AT$72)/(Vehicles!$C$30*(1/Vehicles!$AT$72+1/Vehicles!$AU$72)+Vehicles!$C$31/Vehicles!$AV$72)+B26*(Vehicles!$C$30/Vehicles!$AU$72+Vehicles!$C$31/Vehicles!$AV$72)/(Vehicles!$C$30*(1/Vehicles!$AT$72+1/Vehicles!$AU$72)+Vehicles!$C$31/Vehicles!$AV$72) ->  | T26: =AN26*(Vehicles!$D$30/Vehicles!$AX$72)/(Vehicles!$D$30*(1/Vehicles!$AX$72+1/Vehicles!$AY$72)+Vehicles!$D$31/Vehicles!$AZ$72)+C26*(Vehicles!$D$30/Vehicles!$AY$72+Vehicles!$D$31/Vehicles!$AZ$72)/(Vehicles!$D$30*(1/Vehicles!$AX$72+1/Vehicles!$AY$72)+Vehicles!$D$31/Vehicles!$AZ$72) ->  | U26: =AN26*(Vehicles!$F$30/Vehicles!$BF$72)/(Vehicles!$F$30*(1/Vehicles!$BF$72+1/Vehicles!$BG$72)+Vehicles!$F$31/Vehicles!$BH$72)+D26*(Vehicles!$F$30/Vehicles!$BG$72+Vehicles!$F$31/Vehicles!$BH$72)/(Vehicles!$F$30*(1/Vehicles!$BF$72+1/Vehicles!$BG$72)+Vehicles!$F$31/Vehicles!$BH$72) ->  | V26: =AN26*(Vehicles!$G$30/Vehicles!$BJ$72)/(Vehicles!$G$30*(1/Vehicles!$BJ$72+1/Vehicles!$BK$72)+Vehicles!$G$31/Vehicles!$BL$72)+F26*(Vehicles!$G$30/Vehicles!$BK$72+Vehicles!$G$31/Vehicles!$BL$72)/(Vehicles!$G$30*(1/Vehicles!$BJ$72+1/Vehicles!$BK$72)+Vehicles!$G$31/Vehicles!$BL$72) ->  | W26: =AN26*(Vehicles!$H$30/Vehicles!$BN$72)/(Vehicles!$H$30*(1/Vehicles!$BN$72+1/Vehicles!$BO$72)+Vehicles!$H$31/Vehicles!$BP$72)+G26*(Vehicles!$H$30/Vehicles!$BO$72+Vehicles!$H$31/Vehicles!$BP$72)/(Vehicles!$H$30*(1/Vehicles!$BN$72+1/Vehicles!$BO$72)+Vehicles!$H$31/Vehicles!$BP$72) ->  | X26: =AN26*(Vehicles!$I$30/Vehicles!$BR$72)/(Vehicles!$I$30*(1/Vehicles!$BR$72+1/Vehicles!$BS$72)+Vehicles!$I$31/Vehicles!$BT$72)+H26*(Vehicles!$I$30/Vehicles!$BS$72+Vehicles!$I$31/Vehicles!$BT$72)/(Vehicles!$I$30*(1/Vehicles!$BR$72+1/Vehicles!$BS$72)+Vehicles!$I$31/Vehicles!$BT$72) ->  | Y26: =AN26*(Vehicles!$J$30/Vehicles!$BV$72)/(Vehicles!$J$30*(1/Vehicles!$BV$72+1/Vehicles!$BW$72)+Vehicles!$J$31/Vehicles!$BX$72)+K26*(Vehicles!$J$30/Vehicles!$BW$72+Vehicles!$J$31/Vehicles!$BX$72)/(Vehicles!$J$30*(1/Vehicles!$BV$72+1/Vehicles!$BW$72)+Vehicles!$J$31/Vehicles!$BX$72) ->  | Z26: =AN26*(Vehicles!$K$30/Vehicles!$BZ$72)/(Vehicles!$K$30*(1/Vehicles!$BZ$72+1/Vehicles!$CA$72)+Vehicles!$K$31/Vehicles!$CB$72)+O26*(Vehicles!$K$30/Vehicles!$CA$72+Vehicles!$K$31/Vehicles!$CB$72)/(Vehicles!$K$30*(1/Vehicles!$BZ$72+1/Vehicles!$CA$72)+Vehicles!$K$31/Vehicles!$CB$72) ->  | AA26: =AN26*(Vehicles!$L$30/Vehicles!$CD$72)/(Vehicles!$L$30*(1/Vehicles!$CD$72+1/Vehicles!$CE$72)+Vehicles!$L$31/Vehicles!$CF$72)+AO26*(Vehicles!$L$30/Vehicles!$CE$72+Vehicles!$L$31/Vehicles!$CF$72)/(Vehicles!$L$30*(1/Vehicles!$CD$72+1/Vehicles!$CE$72)+Vehicles!$L$31/Vehicles!$CF$72) ->  | AB26: =AN26*(Vehicles!$L$30/Vehicles!$CD$72)/(Vehicles!$L$30*(1/Vehicles!$CD$72+1/Vehicles!$CE$72)+Vehicles!$L$31/Vehicles!$CG$72)+AP26*(Vehicles!$L$30/Vehicles!$CE$72+Vehicles!$L$31/Vehicles!$CG$72)/(Vehicles!$L$30*(1/Vehicles!$CD$72+1/Vehicles!$CE$72)+Vehicles!$L$31/Vehicles!$CG$72) ->  | AC26: =(MeOH_FTD!$AJ170*MeOH_FTD!$AK$162+MeOH_FTD!$AK170)/1000000*HLOOKUP($J$10,$Z$5:$AD$6,2,FALSE)/HLOOKUP($J$11,$Z$7:$AD$8,2,FALSE) -> 35.73155518 | AD26: =((1-Vehicles!$C$41)*(1-Vehicles!$C$13)*Fuel_Specs!$B$21/((1-Vehicles!$C$41)*(1-Vehicles!$C$13)*Fuel_Specs!$B$21+Vehicles!$C$41*(1-Vehicles!$C$13)*Fuel_Specs!$B$24+Vehicles!$C$13*Fuel_Specs!$B$42)*(Petroleum!B270*Petroleum!$J$262+Petroleum!$J270)+Vehicles!$C$41*(1-Vehicles!$C$13)*Fuel_Specs!$B$24/((1-Vehicles!$C$41)*(1-Vehicles!$C$13)*Fuel_Specs!$B$21+Vehicles!$C$41*(1-Vehicles!$C$13)*Fuel_Specs!$B$24+Vehicles!$C$13*Fuel_Specs!$B$42)*(Petroleum!B270*IF(Inputs!F$102=1,Petroleum!$K$262,Petroleum!$L$262)+IF(Inputs!F$102=1,Petroleum!$K270,Petroleum!$L270))+Vehicles!$C$13*Fuel_Specs!$B$42/((1-Vehicles!$C$41)*(1-Vehicles!$C$13)*Fuel_Specs!$B$21+Vehicles!$C$41*(1-Vehicles!$C$13)*Fuel_Specs!$B$24+Vehicles!$C$13*Fuel_Specs!$B$42)*(MeOH_FTD!$AZ170*MeOH_FTD!$BA$162+MeOH_FTD!$BA170))/1000000*HLOOKUP($J$10,$Z$5:$AD$6,2,FALSE)/HLOOKUP($J$11,$Z$7:$AD$8,2,FALSE) -> 28.14247333 | AE26: =((1-Vehicles!$C$42)*(1-Vehicles!$C$14)*Fuel_Specs!$B$21/((1-Vehicles!$C$42)*(1-Vehicles!$C$14)*Fuel_Specs!$B$21+Vehicles!$C$42*(1-Vehicles!$C$14)*Fuel_Specs!$B$24+Vehicles!$C$14*Fuel_Specs!$B$41)*(Petroleum!B270*Petroleum!$J$262+Petroleum!$J270)+Vehicles!$C$42*(1-Vehicles!$C$14)*Fuel_Specs!$B$24/((1-Vehicles!$C$42)*(1-Vehicles!$C$14)*Fuel_Specs!$B$21+Vehicles!$C$42*(1-Vehicles!$C$14)*Fuel_Specs!$B$24+Vehicles!$C$14*Fuel_Specs!$B$41)*(Petroleum!B270*IF(Inputs!F$102=1,Petroleum!$K$262,Petroleum!$L$262)+IF(Inputs!F$102=1,Petroleum!$K270,Petroleum!$L270))+Vehicles!$C$14*Fuel_Specs!$B$41/((1-Vehicles!$C$42)*(1-Vehicles!$C$14)*Fuel_Specs!$B$21+Vehicles!$C$42*(1-Vehicles!$C$14)*Fuel_Specs!$B$24+Vehicles!$C$14*Fuel_Specs!$B$41)*(BioOil!$Y440*BioOil!$Z$431+BioOil!$Z440))/1000000*HLOOKUP($J$10,$Z$5:$AD$6,2,FALSE)/HLOOKUP($J$11,$Z$7:$AD$8,2,FALSE) -> 14.73185687 | AF26: =((1-Vehicles!$C$43)*(1-Vehicles!$C$15)*Fuel_Specs!$B$21/((1-Vehicles!$C$43)*(1-Vehicles!$C$15)*Fuel_Specs!$B$21+Vehicles!$C$43*(1-Vehicles!$C$15)*Fuel_Specs!$B$24+Vehicles!$C$15*IF(Inputs!$E$670=1,IF(Inputs!$E$670=1,Fuel_Specs!$B$43,IF(Inputs!$E$670=3,Fuel_Specs!$B$45,Fuel_Specs!$B$44)),Fuel_Specs!$B$44))*(Petroleum!B270*Petroleum!$J$262+Petroleum!$J270)+Vehicles!$C$43*(1-Vehicles!$C$15)*Fuel_Specs!$B$24/((1-Vehicles!$C$43)*(1-Vehicles!$C$15)*Fuel_Specs!$B$21+Vehicles!$C$43*(1-Vehicles!$C$15)*Fuel_Specs!$B$24+Vehicles!$C$15*IF(Inputs!$E$670=1,IF(Inputs!$E$670=1,Fuel_Specs!$B$43,IF(Inputs!$E$670=3,Fuel_Specs!$B$45,Fuel_Specs!$B$44)),Fuel_Specs!$B$44))*(Petroleum!B270*IF(Inputs!F$102=1,Petroleum!$K$262,Petroleum!$L$262)+IF(Inputs!F$102=1,Petroleum!$K270,Petroleum!$L270))+Vehicles!$C$15*IF(Inputs!$E$670=1,IF(Inputs!$E$670=1,Fuel_Specs!$B$43,IF(Inputs!$E$670=3,Fuel_Specs!$B$45,Fuel_Specs!$B$44)),Fuel_Specs!$B$44)/((1-Vehicles!$C$43)*(1-Vehicles!$C$15)*Fuel_Specs!$B$21+Vehicles!$C$43*(1-Vehicles!$C$15)*Fuel_Specs!$B$24+Vehicles!$C$15*IF(Inputs!$E$670=1,IF(Inputs!$E$670=1,Fuel_Specs!$B$43,IF(Inputs!$E$670=3,Fuel_Specs!$B$45,Fuel_Specs!$B$44)),Fuel_Specs!$B$44))*(BioOil!$BQ440*BioOil!$BR$431+BioOil!$BR440))/1000000*HLOOKUP($J$10,$Z$5:$AD$6,2,FALSE)/HLOOKUP($J$11,$Z$7:$AD$8,2,FALSE) -> 19.67794555 | AG26: =((1-Vehicles!$C$43)*(1-Vehicles!$C$15)*Fuel_Specs!$B$21/((1-Vehicles!$C$43)*(1-Vehicles!$C$15)*Fuel_Specs!$B$21+Vehicles!$C$43*(1-Vehicles!$C$15)*Fuel_Specs!$B$24+Vehicles!$C$15*IF(Inputs!$E$670=1,Fuel_Specs!$B$43,Fuel_Specs!$B$44))*(Petroleum!B270*Petroleum!$J$262+Petroleum!$J270)+Vehicles!$C$43*(1-Vehicles!$C$15)*Fuel_Specs!$B$24/((1-Vehicles!$C$43)*(1-Vehicles!$C$15)*Fuel_Specs!$B$21+Vehicles!$C$43*(1-Vehicles!$C$15)*Fuel_Specs!$B$24+Vehicles!$C$15*IF(Inputs!$E$670=1,Fuel_Specs!$B$43,Fuel_Specs!$B$44))*(Petroleum!B270*IF(Inputs!F$102=1,Petroleum!$K$262,Petroleum!$L$262)+IF(Inputs!F$102=1,Petroleum!$K270,Petroleum!$L270))+Vehicles!$C$15*IF(Inputs!$E$670=1,Fuel_Specs!$B$43,Fuel_Specs!$B$44)/((1-Vehicles!$C$43)*(1-Vehicles!$C$15)*Fuel_Specs!$B$21+Vehicles!$C$43*(1-Vehicles!$C$15)*Fuel_Specs!$B$24+Vehicles!$C$15*IF(Inputs!$E$670=1,Fuel_Specs!$B$43,Fuel_Specs!$B$44))*(Pyrolysis_IDL!$AF305*Pyrolysis_IDL!$AG$297+Pyrolysis_IDL!$AG305))/1000000*HLOOKUP($J$10,$Z$5:$AD$6,2,FALSE)/HLOOKUP($J$11,$Z$7:$AD$8,2,FALSE) -> 26.34868649 | AH26: =(((1-Vehicles!$C$44)*(1-Vehicles!$C$17-Vehicles!$C$18)*Fuel_Specs!$B$21*(Petroleum!B270*Petroleum!$J$262+Petroleum!$J270)+Vehicles!$C$44*(1-Vehicles!$C$17-Vehicles!$C$18)*Fuel_Specs!$B$24*(Petroleum!B270*IF(Inputs!F$102=1,Petroleum!$K$262,Petroleum!$L$262)+IF(Inputs!F$102=1,Petroleum!$K270,Petroleum!$L270))+Vehicles!$C$17*Fuel_Specs!$B$33*(EtOH!BT554*EtOH!$BU$546+EtOH!$BU554)+Vehicles!$C$18*Fuel_Specs!$B$36*('EtOH-Diesel Additives'!$B61*'EtOH-Diesel Additives'!$B$53))/((1-Vehicles!$C$44)*(1-Vehicles!$C$17-Vehicles!$C$18)*Fuel_Specs!$B$21+Vehicles!$C$44*(1-Vehicles!$C$17-Vehicles!$C$18)*Fuel_Specs!$B$24+Vehicles!$C$17*Fuel_Specs!$B$33+Vehicles!$C$18*Fuel_Specs!$B$36))/1000000*HLOOKUP($J$10,$Z$5:$AD$6,2,FALSE)/HLOOKUP($J$11,$Z$7:$AD$8,2,FALSE) -> 16.25325682 | AI26: =AN26*(Vehicles!$M$30/Vehicles!$CO$72)/(Vehicles!$M$30*(1/Vehicles!$CO$72+1/Vehicles!$CP$72)+Vehicles!$M$31/Vehicles!$CQ$72)+E26*(Vehicles!$M$30/Vehicles!$CP$72+Vehicles!$M$31/Vehicles!$CQ$72)/(Vehicles!$M$30*(1/Vehicles!$CO$72+1/Vehicles!$CP$72)+Vehicles!$M$31/Vehicles!$CQ$72) ->  | AJ26: =AN26*(Vehicles!$N$30/Vehicles!$CS$72)/(Vehicles!$N$30*(1/Vehicles!$CS$72+1/Vehicles!$CT$72)+Vehicles!$N$31/Vehicles!$CU$72)+AC26*(Vehicles!$N$30/Vehicles!$CT$72+Vehicles!$N$31/Vehicles!$CU$72)/(Vehicles!$N$30*(1/Vehicles!$CS$72+1/Vehicles!$CT$72)+Vehicles!$N$31/Vehicles!$CU$72) ->  | AK26: =AN26*(Vehicles!$O$30/Vehicles!$CW$72)/(Vehicles!$O$30*(1/Vehicles!$CW$72+1/Vehicles!$CX$72)+Vehicles!$O$31/Vehicles!$CY$72)+AD26*(Vehicles!$O$30/Vehicles!$CX$72+Vehicles!$O$31/Vehicles!$CY$72)/(Vehicles!$O$30*(1/Vehicles!$CW$72+1/Vehicles!$CX$72)+Vehicles!$O$31/Vehicles!$CY$72) ->  | AL26: =AN26*(Vehicles!$P$30/Vehicles!$DA$72)/(Vehicles!$P$30*(1/Vehicles!$DA$72+1/Vehicles!$DB$72)+Vehicles!$P$31/Vehicles!$DC$72)+AE26*(Vehicles!$P$30/Vehicles!$DB$72+Vehicles!$P$31/Vehicles!$DC$72)/(Vehicles!$P$30*(1/Vehicles!$DA$72+1/Vehicles!$DB$72)+Vehicles!$P$31/Vehicles!$DC$72) ->  | AM26: =AN26*(Vehicles!$R$30/Vehicles!$DI$72)/(Vehicles!$R$30*(1/Vehicles!$DI$72+1/Vehicles!$DJ$72)+Vehicles!$R$31/Vehicles!$DK$72)+AH26*(Vehicles!$R$30/Vehicles!$DJ$72+Vehicles!$R$31/Vehicles!$DK$72)/(Vehicles!$R$30*(1/Vehicles!$DI$72+1/Vehicles!$DJ$72)+Vehicles!$R$31/Vehicles!$DK$72) ->  | AN26: =(Electric!$G211+Electric!$F211)/1000000*HLOOKUP($J$10,$Z$5:$AD$6,2,FALSE)/HLOOKUP($J$11,$Z$7:$AD$8,2,FALSE) -> 172.6749389 | AO26: =(Hydrogen!$AJ313*Hydrogen!$AK$305+Hydrogen!$AK313)/1000000*HLOOKUP($J$10,$Z$5:$AD$6,2,FALSE)/HLOOKUP($J$11,$Z$7:$AD$8,2,FALSE) -> 68.87723308 | AP26: =(Hydrogen!$BT313*Hydrogen!$BU$305+Hydrogen!$BU313)/1000000*HLOOKUP($J$10,$Z$5:$AD$6,2,FALSE)/HLOOKUP($J$11,$Z$7:$AD$8,2,FALSE) -> 106.8058189 | AQ26: =AN26*(Vehicles!$S$30/Vehicles!$DY$72)/(Vehicles!$S$30*(1/Vehicles!$DY$72+1/Vehicles!$DZ$72)+Vehicles!$S$31/Vehicles!$EA$72)+AO26*(Vehicles!$S$30/Vehicles!$DZ$72+Vehicles!$S$31/Vehicles!$EA$72)/(Vehicles!$S$30*(1/Vehicles!$DY$72+1/Vehicles!$DZ$72)+Vehicles!$S$31/Vehicles!$EA$72) ->  | AR26: =AN26*(Vehicles!$S$30/Vehicles!$DY$72)/(Vehicles!$S$30*(1/Vehicles!$DY$72+1/Vehicles!$DZ$72)+Vehicles!$S$31/Vehicles!$EA$72)+AP26*(Vehicles!$S$30/Vehicles!$DZ$72+Vehicles!$S$31/Vehicles!$EA$72)/(Vehicles!$S$30*(1/Vehicles!$DY$72+1/Vehicles!$DZ$72)+Vehicles!$S$31/Vehicles!$EA$72) ->  | AS26: =((1-Vehicles!$C$40)*(1-Vehicles!$C$16)*Fuel_Specs!$B$15/((1-Vehicles!$C$40)*(1-Vehicles!$C$16)*Fuel_Specs!$B$15+Vehicles!$C$40*(1-Vehicles!$C$16)*Fuel_Specs!$B$17+Vehicles!$C$16*Fuel_Specs!$B$48)*(Petroleum!$B270*Petroleum!$D$262+Petroleum!$D270)+Vehicles!$C$40*(1-Vehicles!$C$16)*Fuel_Specs!$B$17/((1-Vehicles!$C$40)*(1-Vehicles!$C$16)*Fuel_Specs!$B$15+Vehicles!$C$40*(1-Vehicles!$C$16)*Fuel_Specs!$B$17+Vehicles!$C$16*Fuel_Specs!$B$48)*(Petroleum!B270*Petroleum!$F$262+Petroleum!$F270)+Vehicles!$C$16*Fuel_Specs!$B$48/((1-Vehicles!$C$40)*(1-Vehicles!$C$16)*Fuel_Specs!$B$15+Vehicles!$C$40*(1-Vehicles!$C$16)*Fuel_Specs!$B$17+Vehicles!$C$16*Fuel_Specs!$B$48)*(Pyrolysis_IDL!$AP305*Pyrolysis_IDL!$AQ$297+Pyrolysis_IDL!$AQ305))/1000000*HLOOKUP($J$10,$Z$5:$AD$6,2,FALSE)/HLOOKUP($J$11,$Z$7:$AD$8,2,FALSE) -> 60.4810696 | AT26: =(Petroleum!$B270*Petroleum!$S$262+Petroleum!$S270)/1000000*HLOOKUP($J$10,$Z$5:$AD$6,2,FALSE)/HLOOKUP($J$11,$Z$7:$AD$8,2,FALSE) -> 15.04219463 | AU26: 20.39547637 | AV26: 20.3774538 | BB26: SI - Gaseous H2 | BC26: RNAVGH2ICE
A27: NOx: Total | B27: =(Inputs!$E$1518*(Petroleum!$B271*Petroleum!$F$262+Petroleum!$F271)+(1-Inputs!$E$1518)*(Petroleum!$B271*Petroleum!$D$262+Petroleum!$D271))/1000000*HLOOKUP($J$10,$Z$5:$AD$6,2,FALSE)/HLOOKUP($J$11,$Z$7:$AD$8,2,FALSE) -> 40.74369488 | C27: =(Petroleum!$C271*Petroleum!$G$262+Petroleum!$G271)/1000000*HLOOKUP($J$10,$Z$5:$AD$6,2,FALSE)/HLOOKUP($J$11,$Z$7:$AD$8,2,FALSE) -> 53.49303012 | D27: =((1-Vehicles!$C$35)*(1-Vehicles!$C$7)*Fuel_Specs!$B$15/((1-Vehicles!$C$35)*(1-Vehicles!$C$7)*Fuel_Specs!$B$15+Vehicles!$C$35*(1-Vehicles!$C$7)*Fuel_Specs!$B$17+Vehicles!$C$7*Fuel_Specs!$B$33)*(Petroleum!$B271*Petroleum!$D$262+(Petroleum!$D271-'T&D'!G224))+Vehicles!$C$35*(1-Vehicles!$C$7)*Fuel_Specs!$B$17/((1-Vehicles!$C$35)*(1-Vehicles!$C$7)*Fuel_Specs!$B$15+Vehicles!$C$35*(1-Vehicles!$C$7)*Fuel_Specs!$B$17+Vehicles!$C$7*Fuel_Specs!$B$33)*(Petroleum!B271*Petroleum!$F$262+Petroleum!$F271)+Vehicles!$C$7*Fuel_Specs!$B$33/((1-Vehicles!$C$35)*(1-Vehicles!$C$7)*Fuel_Specs!$B$15+Vehicles!$C$35*(1-Vehicles!$C$7)*Fuel_Specs!$B$17+Vehicles!$C$7*Fuel_Specs!$B$33)*(EtOH!BV555*EtOH!$BW$546+EtOH!$BW555)+Petroleum!AS133+Petroleum!AT133)/1000000*HLOOKUP($J$10,$Z$5:$AD$6,2,FALSE)/HLOOKUP($J$11,$Z$7:$AD$8,2,FALSE) -> 40.84441706 | E27: =(Inputs!$E$97*(IF(Inputs!F$102=1,Petroleum!$B271,Petroleum!$C271)*IF(Inputs!F$102=1,Petroleum!$K$262,Petroleum!$L$262)+IF(Inputs!F$102=1,Petroleum!$K271,Petroleum!$L271))+(1-Inputs!$E$97)*(IF(Inputs!F$101=1,Petroleum!$B271,Petroleum!$C271)*Petroleum!$J$262+Petroleum!$J271))/1000000*HLOOKUP($J$10,$Z$5:$AD$6,2,FALSE)/HLOOKUP($J$11,$Z$7:$AD$8,2,FALSE) -> 30.3921547 | F27: =(NG!$J93*NG!$K$84+NG!$K93)/1000000*HLOOKUP($J$10,$Z$5:$AD$6,2,FALSE)/HLOOKUP($J$11,$Z$7:$AD$8,2,FALSE) -> 81.98688044 | G27: =(NG!$R93*NG!$S$84+NG!$S93)/1000000*HLOOKUP($J$10,$Z$5:$AD$6,2,FALSE)/HLOOKUP($J$11,$Z$7:$AD$8,2,FALSE) -> 30.39931376 | H27: =(NG!$X93*NG!$Y$84+NG!$Y93)/1000000*HLOOKUP($J$10,$Z$5:$AD$6,2,FALSE)/HLOOKUP($J$11,$Z$7:$AD$8,2,FALSE) -> 27.22298097 | I27: =(MeOH_FTD!BJ171*MeOH_FTD!BK$162+MeOH_FTD!BK171)/1000000*HLOOKUP($J$10,$Z$5:$AD$6,2,FALSE)/HLOOKUP($J$11,$Z$7:$AD$8,2,FALSE) -> -12.91204093 | J27: =((1-Vehicles!$C$34)*(1-Vehicles!$C$5)*Fuel_Specs!$B$15/((1-Vehicles!$C$34)*(1-Vehicles!$C$5)*Fuel_Specs!$B$15+Vehicles!$C$34*(1-Vehicles!$C$5)*Fuel_Specs!$B$17+Vehicles!$C$5*Fuel_Specs!$B$32)*(Petroleum!$B271*Petroleum!$D$262+Petroleum!$D271)+Vehicles!$C$34*(1-Vehicles!$C$5)*Fuel_Specs!$B$17/((1-Vehicles!$C$34)*(1-Vehicles!$C$5)*Fuel_Specs!$B$15+Vehicles!$C$34*(1-Vehicles!$C$5)*Fuel_Specs!$B$17+Vehicles!$C$5*Fuel_Specs!$B$32)*(Petroleum!B271*Petroleum!$F$262+Petroleum!$F271)+Vehicles!$C$5*Fuel_Specs!$B$32/((1-Vehicles!$C$34)*(1-Vehicles!$C$5)*Fuel_Specs!$B$15+Vehicles!$C$34*(1-Vehicles!$C$5)*Fuel_Specs!$B$17+Vehicles!$C$5*Fuel_Specs!$B$32)*(MeOH_FTD!$N171*MeOH_FTD!$O$162+MeOH_FTD!$O171))/1000000*HLOOKUP($J$10,$Z$5:$AD$6,2,FALSE)/HLOOKUP($J$11,$Z$7:$AD$8,2,FALSE) -> 59.03129822 | K27: =((1-Vehicles!$C$34)*(1-Vehicles!$C$6)*Fuel_Specs!$B$15/((1-Vehicles!$C$34)*(1-Vehicles!$C$6)*Fuel_Specs!$B$15+Vehicles!$C$34*(1-Vehicles!$C$6)*Fuel_Specs!$B$17+Vehicles!$C$6*Fuel_Specs!$B$32)*(Petroleum!$B271*Petroleum!$D$262+Petroleum!$D271)+Vehicles!$C$34*(1-Vehicles!$C$6)*Fuel_Specs!$B$17/((1-Vehicles!$C$34)*(1-Vehicles!$C$6)*Fuel_Specs!$B$15+Vehicles!$C$34*(1-Vehicles!$C$6)*Fuel_Specs!$B$17+Vehicles!$C$6*Fuel_Specs!$B$32)*(Petroleum!B271*Petroleum!$F$262+Petroleum!$F271)+Vehicles!$C$6*Fuel_Specs!$B$32/((1-Vehicles!$C$34)*(1-Vehicles!$C$6)*Fuel_Specs!$B$15+Vehicles!$C$34*(1-Vehicles!$C$6)*Fuel_Specs!$B$17+Vehicles!$C$6*Fuel_Specs!$B$32)*(MeOH_FTD!$N171*MeOH_FTD!$O$162+MeOH_FTD!$O171))/1000000*HLOOKUP($J$10,$Z$5:$AD$6,2,FALSE)/HLOOKUP($J$11,$Z$7:$AD$8,2,FALSE) -> 61.65283099 | L27: =(MeOH_FTD!$N171*MeOH_FTD!$O$162+MeOH_FTD!$O171)/1000000*HLOOKUP($J$10,$Z$5:$AD$6,2,FALSE)/HLOOKUP($J$11,$Z$7:$AD$8,2,FALSE) -> 67.70419866 | M27: =((1-Vehicles!$C$36)*(1-Vehicles!$C$8)*Fuel_Specs!$B$15/((1-Vehicles!$C$36)*(1-Vehicles!$C$8)*Fuel_Specs!$B$15+Vehicles!$C$36*(1-Vehicles!$C$8)*Fuel_Specs!$B$17+Vehicles!$C$8*Fuel_Specs!$B$33)*(Petroleum!$B271*Petroleum!$D$262+(Petroleum!$D271-'T&D'!G224))+Vehicles!$C$36*(1-Vehicles!$C$8)*Fuel_Specs!$B$17/((1-Vehicles!$C$36)*(1-Vehicles!$C$8)*Fuel_Specs!$B$15+Vehicles!$C$36*(1-Vehicles!$C$8)*Fuel_Specs!$B$17+Vehicles!$C$8*Fuel_Specs!$B$33)*(Petroleum!B271*Petroleum!$F$262+Petroleum!$F271)+Vehicles!$C$8*Fuel_Specs!$B$33/((1-Vehicles!$C$36)*(1-Vehicles!$C$8)*Fuel_Specs!$B$15+Vehicles!$C$36*(1-Vehicles!$C$8)*Fuel_Specs!$B$17+Vehicles!$C$8*Fuel_Specs!$B$33)*(EtOH!BV555*EtOH!$BW$546+EtOH!$BW555)+Petroleum!AS133+Petroleum!AT133)/1000000*HLOOKUP($J$10,$Z$5:$AD$6,2,FALSE)/HLOOKUP($J$11,$Z$7:$AD$8,2,FALSE) -> 104.2606096 | N27: =((1-Vehicles!$C$37)*(1-Vehicles!$C$12)*Fuel_Specs!$B$15/((1-Vehicles!$C$37)*(1-Vehicles!$C$12)*Fuel_Specs!$B$15+Vehicles!$C$37*(1-Vehicles!$C$12)*Fuel_Specs!$B$17+Vehicles!$C$12*Fuel_Specs!$B$34)*(Petroleum!$B271*Petroleum!$D$262+Petroleum!$D271)+Vehicles!$C$37*(1-Vehicles!$C$12)*Fuel_Specs!$B$17/((1-Vehicles!$C$37)*(1-Vehicles!$C$12)*Fuel_Specs!$B$15+Vehicles!$C$37*(1-Vehicles!$C$12)*Fuel_Specs!$B$17+Vehicles!$C$12*Fuel_Specs!$B$34)*(Petroleum!B271*Petroleum!$F$262+Petroleum!$F271)+Vehicles!$C$12*Fuel_Specs!$B$34/((1-Vehicles!$C$37)*(1-Vehicles!$C$12)*Fuel_Specs!$B$15+Vehicles!$C$37*(1-Vehicles!$C$12)*Fuel_Specs!$B$17+Vehicles!$C$12*Fuel_Specs!$B$34)*(EtOH!$BX555*EtOH!$BY$546+EtOH!$BY555))/1000000*HLOOKUP($J$10,$Z$5:$AD$6,2,FALSE)/HLOOKUP($J$11,$Z$7:$AD$8,2,FALSE) -> 114.2038231 | O27: =((1-Vehicles!$C$36)*(1-Vehicles!$C$9)*Fuel_Specs!$B$15/((1-Vehicles!$C$36)*(1-Vehicles!$C$9)*Fuel_Specs!$B$15+Vehicles!$C$36*(1-Vehicles!$C$9)*Fuel_Specs!$B$17+Vehicles!$C$9*Fuel_Specs!$B$33)*(Petroleum!$B271*Petroleum!$D$262+(Petroleum!$D271-'T&D'!G224))+Vehicles!$C$36*(1-Vehicles!$C$9)*Fuel_Specs!$B$17/((1-Vehicles!$C$36)*(1-Vehicles!$C$9)*Fuel_Specs!$B$15+Vehicles!$C$36*(1-Vehicles!$C$9)*Fuel_Specs!$B$17+Vehicles!$C$9*Fuel_Specs!$B$33)*(Petroleum!B271*Petroleum!$F$262+Petroleum!$F271)+Vehicles!$C$9*Fuel_Specs!$B$33/((1-Vehicles!$C$36)*(1-Vehicles!$C$9)*Fuel_Specs!$B$15+Vehicles!$C$36*(1-Vehicles!$C$9)*Fuel_Specs!$B$17+Vehicles!$C$9*Fuel_Specs!$B$33)*(EtOH!BV555*EtOH!$BW$546+EtOH!$BW555)+Petroleum!AS133+Petroleum!AT133)/1000000*HLOOKUP($J$10,$Z$5:$AD$6,2,FALSE)/HLOOKUP($J$11,$Z$7:$AD$8,2,FALSE) -> 104.2606096 | P27: =(EtOH!$BT555*EtOH!$BU$546+EtOH!$BU555)/1000000*HLOOKUP($J$10,$Z$5:$AD$6,2,FALSE)/HLOOKUP($J$11,$Z$7:$AD$8,2,FALSE) -> 125.5319062 | Q27: =((1-Vehicles!$C$40)*(1-Vehicles!$C$16)*Fuel_Specs!$B$15/((1-Vehicles!$C$40)*(1-Vehicles!$C$16)*Fuel_Specs!$B$15+Vehicles!$C$40*(1-Vehicles!$C$16)*Fuel_Specs!$B$17+Vehicles!$C$16*Fuel_Specs!$B$47)*(Petroleum!$B271*Petroleum!$D$262+Petroleum!$D271)+Vehicles!$C$40*(1-Vehicles!$C$16)*Fuel_Specs!$B$17/((1-Vehicles!$C$40)*(1-Vehicles!$C$16)*Fuel_Specs!$B$15+Vehicles!$C$40*(1-Vehicles!$C$16)*Fuel_Specs!$B$17+Vehicles!$C$16*Fuel_Specs!$B$47)*(Petroleum!B271*Petroleum!$F$262+Petroleum!$F271)+Vehicles!$C$16*Fuel_Specs!$B$47/((1-Vehicles!$C$40)*(1-Vehicles!$C$16)*Fuel_Specs!$B$15+Vehicles!$C$40*(1-Vehicles!$C$16)*Fuel_Specs!$B$17+Vehicles!$C$16*Fuel_Specs!$B$47)*(BioOil!$CE441*BioOil!$CF$431+BioOil!$CF441))/1000000*HLOOKUP($J$10,$Z$5:$AD$6,2,FALSE)/HLOOKUP($J$11,$Z$7:$AD$8,2,FALSE) -> 276.6110229 | R27: =((1-Vehicles!$C$40)*(1-Vehicles!$C$16)*Fuel_Specs!$B$15/((1-Vehicles!$C$40)*(1-Vehicles!$C$16)*Fuel_Specs!$B$15+Vehicles!$C$40*(1-Vehicles!$C$16)*Fuel_Specs!$B$17+Vehicles!$C$16*Fuel_Specs!$B$47)*(Petroleum!$B271*Petroleum!$D$262+Petroleum!$D271)+Vehicles!$C$40*(1-Vehicles!$C$16)*Fuel_Specs!$B$17/((1-Vehicles!$C$40)*(1-Vehicles!$C$16)*Fuel_Specs!$B$15+Vehicles!$C$40*(1-Vehicles!$C$16)*Fuel_Specs!$B$17+Vehicles!$C$16*Fuel_Specs!$B$47)*(Petroleum!B271*Petroleum!$F$262+Petroleum!$F271)+Vehicles!$C$16*Fuel_Specs!$B$47/((1-Vehicles!$C$40)*(1-Vehicles!$C$16)*Fuel_Specs!$B$15+Vehicles!$C$40*(1-Vehicles!$C$16)*Fuel_Specs!$B$17+Vehicles!$C$16*Fuel_Specs!$B$47)*(Pyrolysis_IDL!$AD306*Pyrolysis_IDL!$AE$297+Pyrolysis_IDL!$AE306))/1000000*HLOOKUP($J$10,$Z$5:$AD$6,2,FALSE)/HLOOKUP($J$11,$Z$7:$AD$8,2,FALSE) -> 63.40436973 | S27: =AN27*(Vehicles!$C$30/Vehicles!$AT$72)/(Vehicles!$C$30*(1/Vehicles!$AT$72+1/Vehicles!$AU$72)+Vehicles!$C$31/Vehicles!$AV$72)+B27*(Vehicles!$C$30/Vehicles!$AU$72+Vehicles!$C$31/Vehicles!$AV$72)/(Vehicles!$C$30*(1/Vehicles!$AT$72+1/Vehicles!$AU$72)+Vehicles!$C$31/Vehicles!$AV$72) ->  | T27: =AN27*(Vehicles!$D$30/Vehicles!$AX$72)/(Vehicles!$D$30*(1/Vehicles!$AX$72+1/Vehicles!$AY$72)+Vehicles!$D$31/Vehicles!$AZ$72)+C27*(Vehicles!$D$30/Vehicles!$AY$72+Vehicles!$D$31/Vehicles!$AZ$72)/(Vehicles!$D$30*(1/Vehicles!$AX$72+1/Vehicles!$AY$72)+Vehicles!$D$31/Vehicles!$AZ$72) ->  | U27: =AN27*(Vehicles!$F$30/Vehicles!$BF$72)/(Vehicles!$F$30*(1/Vehicles!$BF$72+1/Vehicles!$BG$72)+Vehicles!$F$31/Vehicles!$BH$72)+D27*(Vehicles!$F$30/Vehicles!$BG$72+Vehicles!$F$31/Vehicles!$BH$72)/(Vehicles!$F$30*(1/Vehicles!$BF$72+1/Vehicles!$BG$72)+Vehicles!$F$31/Vehicles!$BH$72) ->  | V27: =AN27*(Vehicles!$G$30/Vehicles!$BJ$72)/(Vehicles!$G$30*(1/Vehicles!$BJ$72+1/Vehicles!$BK$72)+Vehicles!$G$31/Vehicles!$BL$72)+F27*(Vehicles!$G$30/Vehicles!$BK$72+Vehicles!$G$31/Vehicles!$BL$72)/(Vehicles!$G$30*(1/Vehicles!$BJ$72+1/Vehicles!$BK$72)+Vehicles!$G$31/Vehicles!$BL$72) ->  | W27: =AN27*(Vehicles!$H$30/Vehicles!$BN$72)/(Vehicles!$H$30*(1/Vehicles!$BN$72+1/Vehicles!$BO$72)+Vehicles!$H$31/Vehicles!$BP$72)+G27*(Vehicles!$H$30/Vehicles!$BO$72+Vehicles!$H$31/Vehicles!$BP$72)/(Vehicles!$H$30*(1/Vehicles!$BN$72+1/Vehicles!$BO$72)+Vehicles!$H$31/Vehicles!$BP$72) ->  | X27: =AN27*(Vehicles!$I$30/Vehicles!$BR$72)/(Vehicles!$I$30*(1/Vehicles!$BR$72+1/Vehicles!$BS$72)+Vehicles!$I$31/Vehicles!$BT$72)+H27*(Vehicles!$I$30/Vehicles!$BS$72+Vehicles!$I$31/Vehicles!$BT$72)/(Vehicles!$I$30*(1/Vehicles!$BR$72+1/Vehicles!$BS$72)+Vehicles!$I$31/Vehicles!$BT$72) ->  | Y27: =AN27*(Vehicles!$J$30/Vehicles!$BV$72)/(Vehicles!$J$30*(1/Vehicles!$BV$72+1/Vehicles!$BW$72)+Vehicles!$J$31/Vehicles!$BX$72)+K27*(Vehicles!$J$30/Vehicles!$BW$72+Vehicles!$J$31/Vehicles!$BX$72)/(Vehicles!$J$30*(1/Vehicles!$BV$72+1/Vehicles!$BW$72)+Vehicles!$J$31/Vehicles!$BX$72) ->  | Z27: =AN27*(Vehicles!$K$30/Vehicles!$BZ$72)/(Vehicles!$K$30*(1/Vehicles!$BZ$72+1/Vehicles!$CA$72)+Vehicles!$K$31/Vehicles!$CB$72)+O27*(Vehicles!$K$30/Vehicles!$CA$72+Vehicles!$K$31/Vehicles!$CB$72)/(Vehicles!$K$30*(1/Vehicles!$BZ$72+1/Vehicles!$CA$72)+Vehicles!$K$31/Vehicles!$CB$72) ->  | AA27: =AN27*(Vehicles!$L$30/Vehicles!$CD$72)/(Vehicles!$L$30*(1/Vehicles!$CD$72+1/Vehicles!$CE$72)+Vehicles!$L$31/Vehicles!$CF$72)+AO27*(Vehicles!$L$30/Vehicles!$CE$72+Vehicles!$L$31/Vehicles!$CF$72)/(Vehicles!$L$30*(1/Vehicles!$CD$72+1/Vehicles!$CE$72)+Vehicles!$L$31/Vehicles!$CF$72) ->  | AB27: =AN27*(Vehicles!$L$30/Vehicles!$CD$72)/(Vehicles!$L$30*(1/Vehicles!$CD$72+1/Vehicles!$CE$72)+Vehicles!$L$31/Vehicles!$CG$72)+AP27*(Vehicles!$L$30/Vehicles!$CE$72+Vehicles!$L$31/Vehicles!$CG$72)/(Vehicles!$L$30*(1/Vehicles!$CD$72+1/Vehicles!$CE$72)+Vehicles!$L$31/Vehicles!$CG$72) ->  | AC27: =(MeOH_FTD!$AJ171*MeOH_FTD!$AK$162+MeOH_FTD!$AK171)/1000000*HLOOKUP($J$10,$Z$5:$AD$6,2,FALSE)/HLOOKUP($J$11,$Z$7:$AD$8,2,FALSE) -> 74.51628559 | AD27: =((1-Vehicles!$C$41)*(1-Vehicles!$C$13)*Fuel_Specs!$B$21/((1-Vehicles!$C$41)*(1-Vehicles!$C$13)*Fuel_Specs!$B$21+Vehicles!$C$41*(1-Vehicles!$C$13)*Fuel_Specs!$B$24+Vehicles!$C$13*Fuel_Specs!$B$42)*(Petroleum!B271*Petroleum!$J$262+Petroleum!$J271)+Vehicles!$C$41*(1-Vehicles!$C$13)*Fuel_Specs!$B$24/((1-Vehicles!$C$41)*(1-Vehicles!$C$13)*Fuel_Specs!$B$21+Vehicles!$C$41*(1-Vehicles!$C$13)*Fuel_Specs!$B$24+Vehicles!$C$13*Fuel_Specs!$B$42)*(Petroleum!B271*IF(Inputs!F$102=1,Petroleum!$K$262,Petroleum!$L$262)+IF(Inputs!F$102=1,Petroleum!$K271,Petroleum!$L271))+Vehicles!$C$13*Fuel_Specs!$B$42/((1-Vehicles!$C$41)*(1-Vehicles!$C$13)*Fuel_Specs!$B$21+Vehicles!$C$41*(1-Vehicles!$C$13)*Fuel_Specs!$B$24+Vehicles!$C$13*Fuel_Specs!$B$42)*(MeOH_FTD!$AZ171*MeOH_FTD!$BA$162+MeOH_FTD!$BA171))/1000000*HLOOKUP($J$10,$Z$5:$AD$6,2,FALSE)/HLOOKUP($J$11,$Z$7:$AD$8,2,FALSE) -> 34.45183246 | AE27: =((1-Vehicles!$C$42)*(1-Vehicles!$C$14)*Fuel_Specs!$B$21/((1-Vehicles!$C$42)*(1-Vehicles!$C$14)*Fuel_Specs!$B$21+Vehicles!$C$42*(1-Vehicles!$C$14)*Fuel_Specs!$B$24+Vehicles!$C$14*Fuel_Specs!$B$41)*(Petroleum!B271*Petroleum!$J$262+Petroleum!$J271)+Vehicles!$C$42*(1-Vehicles!$C$14)*Fuel_Specs!$B$24/((1-Vehicles!$C$42)*(1-Vehicles!$C$14)*Fuel_Specs!$B$21+Vehicles!$C$42*(1-Vehicles!$C$14)*Fuel_Specs!$B$24+Vehicles!$C$14*Fuel_Specs!$B$41)*(Petroleum!B271*IF(Inputs!F$102=1,Petroleum!$K$262,Petroleum!$L$262)+IF(Inputs!F$102=1,Petroleum!$K271,Petroleum!$L271))+Vehicles!$C$14*Fuel_Specs!$B$41/((1-Vehicles!$C$42)*(1-Vehicles!$C$14)*Fuel_Specs!$B$21+Vehicles!$C$42*(1-Vehicles!$C$14)*Fuel_Specs!$B$24+Vehicles!$C$14*Fuel_Specs!$B$41)*(BioOil!$Y441*BioOil!$Z$431+BioOil!$Z441))/1000000*HLOOKUP($J$10,$Z$5:$AD$6,2,FALSE)/HLOOKUP($J$11,$Z$7:$AD$8,2,FALSE) -> 31.3144516 | AF27: =((1-Vehicles!$C$43)*(1-Vehicles!$C$15)*Fuel_Specs!$B$21/((1-Vehicles!$C$43)*(1-Vehicles!$C$15)*Fuel_Specs!$B$21+Vehicles!$C$43*(1-Vehicles!$C$15)*Fuel_Specs!$B$24+Vehicles!$C$15*IF(Inputs!$E$670=1,IF(Inputs!$E$670=1,Fuel_Specs!$B$43,IF(Inputs!$E$670=3,Fuel_Specs!$B$45,Fuel_Specs!$B$44)),Fuel_Specs!$B$44))*(Petroleum!B271*Petroleum!$J$262+Petroleum!$J271)+Vehicles!$C$43*(1-Vehicles!$C$15)*Fuel_Specs!$B$24/((1-Vehicles!$C$43)*(1-Vehicles!$C$15)*Fuel_Specs!$B$21+Vehicles!$C$43*(1-Vehicles!$C$15)*Fuel_Specs!$B$24+Vehicles!$C$15*IF(Inputs!$E$670=1,IF(Inputs!$E$670=1,Fuel_Specs!$B$43,IF(Inputs!$E$670=3,Fuel_Specs!$B$45,Fuel_Specs!$B$44)),Fuel_Specs!$B$44))*(Petroleum!B271*IF(Inputs!F$102=1,Petroleum!$K$262,Petroleum!$L$262)+IF(Inputs!F$102=1,Petroleum!$K271,Petroleum!$L271))+Vehicles!$C$15*IF(Inputs!$E$670=1,IF(Inputs!$E$670=1,Fuel_Specs!$B$43,IF(Inputs!$E$670=3,Fuel_Specs!$B$45,Fuel_Specs!$B$44)),Fuel_Specs!$B$44)/((1-Vehicles!$C$43)*(1-Vehicles!$C$15)*Fuel_Specs!$B$21+Vehicles!$C$43*(1-Vehicles!$C$15)*Fuel_Specs!$B$24+Vehicles!$C$15*IF(Inputs!$E$670=1,IF(Inputs!$E$670=1,Fuel_Specs!$B$43,IF(Inputs!$E$670=3,Fuel_Specs!$B$45,Fuel_Specs!$B$44)),Fuel_Specs!$B$44))*(BioOil!$BQ441*BioOil!$BR$431+BioOil!$BR441))/1000000*HLOOKUP($J$10,$Z$5:$AD$6,2,FALSE)/HLOOKUP($J$11,$Z$7:$AD$8,2,FALSE) -> 39.9998387 | AG27: =((1-Vehicles!$C$43)*(1-Vehicles!$C$15)*Fuel_Specs!$B$21/((1-Vehicles!$C$43)*(1-Vehicles!$C$15)*Fuel_Specs!$B$21+Vehicles!$C$43*(1-Vehicles!$C$15)*Fuel_Specs!$B$24+Vehicles!$C$15*IF(Inputs!$E$670=1,Fuel_Specs!$B$43,Fuel_Specs!$B$44))*(Petroleum!B271*Petroleum!$J$262+Petroleum!$J271)+Vehicles!$C$43*(1-Vehicles!$C$15)*Fuel_Specs!$B$24/((1-Vehicles!$C$43)*(1-Vehicles!$C$15)*Fuel_Specs!$B$21+Vehicles!$C$43*(1-Vehicles!$C$15)*Fuel_Specs!$B$24+Vehicles!$C$15*IF(Inputs!$E$670=1,Fuel_Specs!$B$43,Fuel_Specs!$B$44))*(Petroleum!B271*IF(Inputs!F$102=1,Petroleum!$K$262,Petroleum!$L$262)+IF(Inputs!F$102=1,Petroleum!$K271,Petroleum!$L271))+Vehicles!$C$15*IF(Inputs!$E$670=1,Fuel_Specs!$B$43,Fuel_Specs!$B$44)/((1-Vehicles!$C$43)*(1-Vehicles!$C$15)*Fuel_Specs!$B$21+Vehicles!$C$43*(1-Vehicles!$C$15)*Fuel_Specs!$B$24+Vehicles!$C$15*IF(Inputs!$E$670=1,Fuel_Specs!$B$43,Fuel_Specs!$B$44))*(Pyrolysis_IDL!$AF306*Pyrolysis_IDL!$AG$297+Pyrolysis_IDL!$AG306))/1000000*HLOOKUP($J$10,$Z$5:$AD$6,2,FALSE)/HLOOKUP($J$11,$Z$7:$AD$8,2,FALSE) -> 63.00695324 | AH27: =(((1-Vehicles!$C$44)*(1-Vehicles!$C$17-Vehicles!$C$18)*Fuel_Specs!$B$21*(Petroleum!B271*Petroleum!$J$262+Petroleum!$J271)+Vehicles!$C$44*(1-Vehicles!$C$17-Vehicles!$C$18)*Fuel_Specs!$B$24*(Petroleum!B271*IF(Inputs!F$102=1,Petroleum!$K$262,Petroleum!$L$262)+IF(Inputs!F$102=1,Petroleum!$K271,Petroleum!$L271))+Vehicles!$C$17*Fuel_Specs!$B$33*(EtOH!BT555*EtOH!$BU$546+EtOH!$BU555)+Vehicles!$C$18*Fuel_Specs!$B$36*('EtOH-Diesel Additives'!$B62*'EtOH-Diesel Additives'!$B$53))/((1-Vehicles!$C$44)*(1-Vehicles!$C$17-Vehicles!$C$18)*Fuel_Specs!$B$21+Vehicles!$C$44*(1-Vehicles!$C$17-Vehicles!$C$18)*Fuel_Specs!$B$24+Vehicles!$C$17*Fuel_Specs!$B$33+Vehicles!$C$18*Fuel_Specs!$B$36))/1000000*HLOOKUP($J$10,$Z$5:$AD$6,2,FALSE)/HLOOKUP($J$11,$Z$7:$AD$8,2,FALSE) -> 36.7745554 | AI27: =AN27*(Vehicles!$M$30/Vehicles!$CO$72)/(Vehicles!$M$30*(1/Vehicles!$CO$72+1/Vehicles!$CP$72)+Vehicles!$M$31/Vehicles!$CQ$72)+E27*(Vehicles!$M$30/Vehicles!$CP$72+Vehicles!$M$31/Vehicles!$CQ$72)/(Vehicles!$M$30*(1/Vehicles!$CO$72+1/Vehicles!$CP$72)+Vehicles!$M$31/Vehicles!$CQ$72) ->  | AJ27: =AN27*(Vehicles!$N$30/Vehicles!$CS$72)/(Vehicles!$N$30*(1/Vehicles!$CS$72+1/Vehicles!$CT$72)+Vehicles!$N$31/Vehicles!$CU$72)+AC27*(Vehicles!$N$30/Vehicles!$CT$72+Vehicles!$N$31/Vehicles!$CU$72)/(Vehicles!$N$30*(1/Vehicles!$CS$72+1/Vehicles!$CT$72)+Vehicles!$N$31/Vehicles!$CU$72) ->  | AK27: =AN27*(Vehicles!$O$30/Vehicles!$CW$72)/(Vehicles!$O$30*(1/Vehicles!$CW$72+1/Vehicles!$CX$72)+Vehicles!$O$31/Vehicles!$CY$72)+AD27*(Vehicles!$O$30/Vehicles!$CX$72+Vehicles!$O$31/Vehicles!$CY$72)/(Vehicles!$O$30*(1/Vehicles!$CW$72+1/Vehicles!$CX$72)+Vehicles!$O$31/Vehicles!$CY$72) ->  | AL27: =AN27*(Vehicles!$P$30/Vehicles!$DA$72)/(Vehicles!$P$30*(1/Vehicles!$DA$72+1/Vehicles!$DB$72)+Vehicles!$P$31/Vehicles!$DC$72)+AE27*(Vehicles!$P$30/Vehicles!$DB$72+Vehicles!$P$31/Vehicles!$DC$72)/(Vehicles!$P$30*(1/Vehicles!$DA$72+1/Vehicles!$DB$72)+Vehicles!$P$31/Vehicles!$DC$72) ->  | AM27: =AN27*(Vehicles!$R$30/Vehicles!$DI$72)/(Vehicles!$R$30*(1/Vehicles!$DI$72+1/Vehicles!$DJ$72)+Vehicles!$R$31/Vehicles!$DK$72)+AH27*(Vehicles!$R$30/Vehicles!$DJ$72+Vehicles!$R$31/Vehicles!$DK$72)/(Vehicles!$R$30*(1/Vehicles!$DI$72+1/Vehicles!$DJ$72)+Vehicles!$R$31/Vehicles!$DK$72) ->  | AN27: =(Electric!$G212+Electric!$F212)/1000000*HLOOKUP($J$10,$Z$5:$AD$6,2,FALSE)/HLOOKUP($J$11,$Z$7:$AD$8,2,FALSE) -> 905.3969184 | AO27: =(Hydrogen!$AJ314*Hydrogen!$AK$305+Hydrogen!$AK314)/1000000*HLOOKUP($J$10,$Z$5:$AD$6,2,FALSE)/HLOOKUP($J$11,$Z$7:$AD$8,2,FALSE) -> 145.1895207 | AP27: =(Hydrogen!$BT314*Hydrogen!$BU$305+Hydrogen!$BU314)/1000000*HLOOKUP($J$10,$Z$5:$AD$6,2,FALSE)/HLOOKUP($J$11,$Z$7:$AD$8,2,FALSE) -> 394.5618036 | AQ27: =AN27*(Vehicles!$S$30/Vehicles!$DY$72)/(Vehicles!$S$30*(1/Vehicles!$DY$72+1/Vehicles!$DZ$72)+Vehicles!$S$31/Vehicles!$EA$72)+AO27*(Vehicles!$S$30/Vehicles!$DZ$72+Vehicles!$S$31/Vehicles!$EA$72)/(Vehicles!$S$30*(1/Vehicles!$DY$72+1/Vehicles!$DZ$72)+Vehicles!$S$31/Vehicles!$EA$72) ->  | AR27: =AN27*(Vehicles!$S$30/Vehicles!$DY$72)/(Vehicles!$S$30*(1/Vehicles!$DY$72+1/Vehicles!$DZ$72)+Vehicles!$S$31/Vehicles!$EA$72)+AP27*(Vehicles!$S$30/Vehicles!$DZ$72+Vehicles!$S$31/Vehicles!$EA$72)/(Vehicles!$S$30*(1/Vehicles!$DY$72+1/Vehicles!$DZ$72)+Vehicles!$S$31/Vehicles!$EA$72) ->  | AS27: =((1-Vehicles!$C$40)*(1-Vehicles!$C$16)*Fuel_Specs!$B$15/((1-Vehicles!$C$40)*(1-Vehicles!$C$16)*Fuel_Specs!$B$15+Vehicles!$C$40*(1-Vehicles!$C$16)*Fuel_Specs!$B$17+Vehicles!$C$16*Fuel_Specs!$B$48)*(Petroleum!$B271*Petroleum!$D$262+Petroleum!$D271)+Vehicles!$C$40*(1-Vehicles!$C$16)*Fuel_Specs!$B$17/((1-Vehicles!$C$40)*(1-Vehicles!$C$16)*Fuel_Specs!$B$15+Vehicles!$C$40*(1-Vehicles!$C$16)*Fuel_Specs!$B$17+Vehicles!$C$16*Fuel_Specs!$B$48)*(Petroleum!B271*Petroleum!$F$262+Petroleum!$F271)+Vehicles!$C$16*Fuel_Specs!$B$48/((1-Vehicles!$C$40)*(1-Vehicles!$C$16)*Fuel_Specs!$B$15+Vehicles!$C$40*(1-Vehicles!$C$16)*Fuel_Specs!$B$17+Vehicles!$C$16*Fuel_Specs!$B$48)*(Pyrolysis_IDL!$AP306*Pyrolysis_IDL!$AQ$297+Pyrolysis_IDL!$AQ306))/1000000*HLOOKUP($J$10,$Z$5:$AD$6,2,FALSE)/HLOOKUP($J$11,$Z$7:$AD$8,2,FALSE) -> 189.1001954 | AT27: =(Petroleum!$B271*Petroleum!$S$262+Petroleum!$S271)/1000000*HLOOKUP($J$10,$Z$5:$AD$6,2,FALSE)/HLOOKUP($J$11,$Z$7:$AD$8,2,FALSE) -> 33.06933898 | AU27: 44.49369386 | AV27: 45.2974445 | BB27: SI - Liquid H2 | BC27: RNAVLH2ICE
A28: PM10: Total | B28: =(Inputs!$E$1518*(Petroleum!$B272*Petroleum!$F$262+Petroleum!$F272)+(1-Inputs!$E$1518)*(Petroleum!$B272*Petroleum!$D$262+Petroleum!$D272))/1000000*HLOOKUP($J$10,$Z$5:$AD$6,2,FALSE)/HLOOKUP($J$11,$Z$7:$AD$8,2,FALSE) -> 3.615733762 | C28: =(Petroleum!$C272*Petroleum!$G$262+Petroleum!$G272)/1000000*HLOOKUP($J$10,$Z$5:$AD$6,2,FALSE)/HLOOKUP($J$11,$Z$7:$AD$8,2,FALSE) -> 4.986021992 | D28: =((1-Vehicles!$C$35)*(1-Vehicles!$C$7)*Fuel_Specs!$B$15/((1-Vehicles!$C$35)*(1-Vehicles!$C$7)*Fuel_Specs!$B$15+Vehicles!$C$35*(1-Vehicles!$C$7)*Fuel_Specs!$B$17+Vehicles!$C$7*Fuel_Specs!$B$33)*(Petroleum!$B272*Petroleum!$D$262+(Petroleum!$D272-'T&D'!G225))+Vehicles!$C$35*(1-Vehicles!$C$7)*Fuel_Specs!$B$17/((1-Vehicles!$C$35)*(1-Vehicles!$C$7)*Fuel_Specs!$B$15+Vehicles!$C$35*(1-Vehicles!$C$7)*Fuel_Specs!$B$17+Vehicles!$C$7*Fuel_Specs!$B$33)*(Petroleum!B272*Petroleum!$F$262+Petroleum!$F272)+Vehicles!$C$7*Fuel_Specs!$B$33/((1-Vehicles!$C$35)*(1-Vehicles!$C$7)*Fuel_Specs!$B$15+Vehicles!$C$35*(1-Vehicles!$C$7)*Fuel_Specs!$B$17+Vehicles!$C$7*Fuel_Specs!$B$33)*(EtOH!BV556*EtOH!$BW$546+EtOH!$BW556)+Petroleum!AS134+Petroleum!AT134)/1000000*HLOOKUP($J$10,$Z$5:$AD$6,2,FALSE)/HLOOKUP($J$11,$Z$7:$AD$8,2,FALSE) -> 3.621401346 | E28: =(Inputs!$E$97*(IF(Inputs!F$102=1,Petroleum!$B272,Petroleum!$C272)*IF(Inputs!F$102=1,Petroleum!$K$262,Petroleum!$L$262)+IF(Inputs!F$102=1,Petroleum!$K272,Petroleum!$L272))+(1-Inputs!$E$97)*(IF(Inputs!F$101=1,Petroleum!$B272,Petroleum!$C272)*Petroleum!$J$262+Petroleum!$J272))/1000000*HLOOKUP($J$10,$Z$5:$AD$6,2,FALSE)/HLOOKUP($J$11,$Z$7:$AD$8,2,FALSE) -> 1.92143912 | F28: =(NG!$J94*NG!$K$84+NG!$K94)/1000000*HLOOKUP($J$10,$Z$5:$AD$6,2,FALSE)/HLOOKUP($J$11,$Z$7:$AD$8,2,FALSE) -> 2.348884815 | G28: =(NG!$R94*NG!$S$84+NG!$S94)/1000000*HLOOKUP($J$10,$Z$5:$AD$6,2,FALSE)/HLOOKUP($J$11,$Z$7:$AD$8,2,FALSE) -> 1.114143711 | H28: =(NG!$X94*NG!$Y$84+NG!$Y94)/1000000*HLOOKUP($J$10,$Z$5:$AD$6,2,FALSE)/HLOOKUP($J$11,$Z$7:$AD$8,2,FALSE) -> 1.252472447 | I28: =(MeOH_FTD!BJ172*MeOH_FTD!BK$162+MeOH_FTD!BK172)/1000000*HLOOKUP($J$10,$Z$5:$AD$6,2,FALSE)/HLOOKUP($J$11,$Z$7:$AD$8,2,FALSE) -> -0.5924348454 | J28: =((1-Vehicles!$C$34)*(1-Vehicles!$C$5)*Fuel_Specs!$B$15/((1-Vehicles!$C$34)*(1-Vehicles!$C$5)*Fuel_Specs!$B$15+Vehicles!$C$34*(1-Vehicles!$C$5)*Fuel_Specs!$B$17+Vehicles!$C$5*Fuel_Specs!$B$32)*(Petroleum!$B272*Petroleum!$D$262+Petroleum!$D272)+Vehicles!$C$34*(1-Vehicles!$C$5)*Fuel_Specs!$B$17/((1-Vehicles!$C$34)*(1-Vehicles!$C$5)*Fuel_Specs!$B$15+Vehicles!$C$34*(1-Vehicles!$C$5)*Fuel_Specs!$B$17+Vehicles!$C$5*Fuel_Specs!$B$32)*(Petroleum!B272*Petroleum!$F$262+Petroleum!$F272)+Vehicles!$C$5*Fuel_Specs!$B$32/((1-Vehicles!$C$34)*(1-Vehicles!$C$5)*Fuel_Specs!$B$15+Vehicles!$C$34*(1-Vehicles!$C$5)*Fuel_Specs!$B$17+Vehicles!$C$5*Fuel_Specs!$B$32)*(MeOH_FTD!$N172*MeOH_FTD!$O$162+MeOH_FTD!$O172))/1000000*HLOOKUP($J$10,$Z$5:$AD$6,2,FALSE)/HLOOKUP($J$11,$Z$7:$AD$8,2,FALSE) -> 3.681770353 | K28: =((1-Vehicles!$C$34)*(1-Vehicles!$C$6)*Fuel_Specs!$B$15/((1-Vehicles!$C$34)*(1-Vehicles!$C$6)*Fuel_Specs!$B$15+Vehicles!$C$34*(1-Vehicles!$C$6)*Fuel_Specs!$B$17+Vehicles!$C$6*Fuel_Specs!$B$32)*(Petroleum!$B272*Petroleum!$D$262+Petroleum!$D272)+Vehicles!$C$34*(1-Vehicles!$C$6)*Fuel_Specs!$B$17/((1-Vehicles!$C$34)*(1-Vehicles!$C$6)*Fuel_Specs!$B$15+Vehicles!$C$34*(1-Vehicles!$C$6)*Fuel_Specs!$B$17+Vehicles!$C$6*Fuel_Specs!$B$32)*(Petroleum!B272*Petroleum!$F$262+Petroleum!$F272)+Vehicles!$C$6*Fuel_Specs!$B$32/((1-Vehicles!$C$34)*(1-Vehicles!$C$6)*Fuel_Specs!$B$15+Vehicles!$C$34*(1-Vehicles!$C$6)*Fuel_Specs!$B$17+Vehicles!$C$6*Fuel_Specs!$B$32)*(MeOH_FTD!$N172*MeOH_FTD!$O$162+MeOH_FTD!$O172))/1000000*HLOOKUP($J$10,$Z$5:$AD$6,2,FALSE)/HLOOKUP($J$11,$Z$7:$AD$8,2,FALSE) -> 3.800935958 | L28: =(MeOH_FTD!$N172*MeOH_FTD!$O$162+MeOH_FTD!$O172)/1000000*HLOOKUP($J$10,$Z$5:$AD$6,2,FALSE)/HLOOKUP($J$11,$Z$7:$AD$8,2,FALSE) -> 4.076009724 | M28: =((1-Vehicles!$C$36)*(1-Vehicles!$C$8)*Fuel_Specs!$B$15/((1-Vehicles!$C$36)*(1-Vehicles!$C$8)*Fuel_Specs!$B$15+Vehicles!$C$36*(1-Vehicles!$C$8)*Fuel_Specs!$B$17+Vehicles!$C$8*Fuel_Specs!$B$33)*(Petroleum!$B272*Petroleum!$D$262+(Petroleum!$D272-'T&D'!G225))+Vehicles!$C$36*(1-Vehicles!$C$8)*Fuel_Specs!$B$17/((1-Vehicles!$C$36)*(1-Vehicles!$C$8)*Fuel_Specs!$B$15+Vehicles!$C$36*(1-Vehicles!$C$8)*Fuel_Specs!$B$17+Vehicles!$C$8*Fuel_Specs!$B$33)*(Petroleum!B272*Petroleum!$F$262+Petroleum!$F272)+Vehicles!$C$8*Fuel_Specs!$B$33/((1-Vehicles!$C$36)*(1-Vehicles!$C$8)*Fuel_Specs!$B$15+Vehicles!$C$36*(1-Vehicles!$C$8)*Fuel_Specs!$B$17+Vehicles!$C$8*Fuel_Specs!$B$33)*(EtOH!BV556*EtOH!$BW$546+EtOH!$BW556)+Petroleum!AS134+Petroleum!AT134)/1000000*HLOOKUP($J$10,$Z$5:$AD$6,2,FALSE)/HLOOKUP($J$11,$Z$7:$AD$8,2,FALSE) -> 14.54521856 | N28: =((1-Vehicles!$C$37)*(1-Vehicles!$C$12)*Fuel_Specs!$B$15/((1-Vehicles!$C$37)*(1-Vehicles!$C$12)*Fuel_Specs!$B$15+Vehicles!$C$37*(1-Vehicles!$C$12)*Fuel_Specs!$B$17+Vehicles!$C$12*Fuel_Specs!$B$34)*(Petroleum!$B272*Petroleum!$D$262+Petroleum!$D272)+Vehicles!$C$37*(1-Vehicles!$C$12)*Fuel_Specs!$B$17/((1-Vehicles!$C$37)*(1-Vehicles!$C$12)*Fuel_Specs!$B$15+Vehicles!$C$37*(1-Vehicles!$C$12)*Fuel_Specs!$B$17+Vehicles!$C$12*Fuel_Specs!$B$34)*(Petroleum!B272*Petroleum!$F$262+Petroleum!$F272)+Vehicles!$C$12*Fuel_Specs!$B$34/((1-Vehicles!$C$37)*(1-Vehicles!$C$12)*Fuel_Specs!$B$15+Vehicles!$C$37*(1-Vehicles!$C$12)*Fuel_Specs!$B$17+Vehicles!$C$12*Fuel_Specs!$B$34)*(EtOH!$BX556*EtOH!$BY$546+EtOH!$BY556))/1000000*HLOOKUP($J$10,$Z$5:$AD$6,2,FALSE)/HLOOKUP($J$11,$Z$7:$AD$8,2,FALSE) -> 14.84540947 | O28: =((1-Vehicles!$C$36)*(1-Vehicles!$C$9)*Fuel_Specs!$B$15/((1-Vehicles!$C$36)*(1-Vehicles!$C$9)*Fuel_Specs!$B$15+Vehicles!$C$36*(1-Vehicles!$C$9)*Fuel_Specs!$B$17+Vehicles!$C$9*Fuel_Specs!$B$33)*(Petroleum!$B272*Petroleum!$D$262+(Petroleum!$D272-'T&D'!G225))+Vehicles!$C$36*(1-Vehicles!$C$9)*Fuel_Specs!$B$17/((1-Vehicles!$C$36)*(1-Vehicles!$C$9)*Fuel_Specs!$B$15+Vehicles!$C$36*(1-Vehicles!$C$9)*Fuel_Specs!$B$17+Vehicles!$C$9*Fuel_Specs!$B$33)*(Petroleum!B272*Petroleum!$F$262+Petroleum!$F272)+Vehicles!$C$9*Fuel_Specs!$B$33/((1-Vehicles!$C$36)*(1-Vehicles!$C$9)*Fuel_Specs!$B$15+Vehicles!$C$36*(1-Vehicles!$C$9)*Fuel_Specs!$B$17+Vehicles!$C$9*Fuel_Specs!$B$33)*(EtOH!BV556*EtOH!$BW$546+EtOH!$BW556)+Petroleum!AS134+Petroleum!AT134)/1000000*HLOOKUP($J$10,$Z$5:$AD$6,2,FALSE)/HLOOKUP($J$11,$Z$7:$AD$8,2,FALSE) -> 14.54521856 | P28: =(EtOH!$BT556*EtOH!$BU$546+EtOH!$BU556)/1000000*HLOOKUP($J$10,$Z$5:$AD$6,2,FALSE)/HLOOKUP($J$11,$Z$7:$AD$8,2,FALSE) -> 18.19860043 | Q28: =((1-Vehicles!$C$40)*(1-Vehicles!$C$16)*Fuel_Specs!$B$15/((1-Vehicles!$C$40)*(1-Vehicles!$C$16)*Fuel_Specs!$B$15+Vehicles!$C$40*(1-Vehicles!$C$16)*Fuel_Specs!$B$17+Vehicles!$C$16*Fuel_Specs!$B$47)*(Petroleum!$B272*Petroleum!$D$262+Petroleum!$D272)+Vehicles!$C$40*(1-Vehicles!$C$16)*Fuel_Specs!$B$17/((1-Vehicles!$C$40)*(1-Vehicles!$C$16)*Fuel_Specs!$B$15+Vehicles!$C$40*(1-Vehicles!$C$16)*Fuel_Specs!$B$17+Vehicles!$C$16*Fuel_Specs!$B$47)*(Petroleum!B272*Petroleum!$F$262+Petroleum!$F272)+Vehicles!$C$16*Fuel_Specs!$B$47/((1-Vehicles!$C$40)*(1-Vehicles!$C$16)*Fuel_Specs!$B$15+Vehicles!$C$40*(1-Vehicles!$C$16)*Fuel_Specs!$B$17+Vehicles!$C$16*Fuel_Specs!$B$47)*(BioOil!$CE442*BioOil!$CF$431+BioOil!$CF442))/1000000*HLOOKUP($J$10,$Z$5:$AD$6,2,FALSE)/HLOOKUP($J$11,$Z$7:$AD$8,2,FALSE) -> 2.249474505 | R28: =((1-Vehicles!$C$40)*(1-Vehicles!$C$16)*Fuel_Specs!$B$15/((1-Vehicles!$C$40)*(1-Vehicles!$C$16)*Fuel_Specs!$B$15+Vehicles!$C$40*(1-Vehicles!$C$16)*Fuel_Specs!$B$17+Vehicles!$C$16*Fuel_Specs!$B$47)*(Petroleum!$B272*Petroleum!$D$262+Petroleum!$D272)+Vehicles!$C$40*(1-Vehicles!$C$16)*Fuel_Specs!$B$17/((1-Vehicles!$C$40)*(1-Vehicles!$C$16)*Fuel_Specs!$B$15+Vehicles!$C$40*(1-Vehicles!$C$16)*Fuel_Specs!$B$17+Vehicles!$C$16*Fuel_Specs!$B$47)*(Petroleum!B272*Petroleum!$F$262+Petroleum!$F272)+Vehicles!$C$16*Fuel_Specs!$B$47/((1-Vehicles!$C$40)*(1-Vehicles!$C$16)*Fuel_Specs!$B$15+Vehicles!$C$40*(1-Vehicles!$C$16)*Fuel_Specs!$B$17+Vehicles!$C$16*Fuel_Specs!$B$47)*(Pyrolysis_IDL!$AD307*Pyrolysis_IDL!$AE$297+Pyrolysis_IDL!$AE307))/1000000*HLOOKUP($J$10,$Z$5:$AD$6,2,FALSE)/HLOOKUP($J$11,$Z$7:$AD$8,2,FALSE) -> 3.940889727 | S28: =AN28*(Vehicles!$C$30/Vehicles!$AT$72)/(Vehicles!$C$30*(1/Vehicles!$AT$72+1/Vehicles!$AU$72)+Vehicles!$C$31/Vehicles!$AV$72)+B28*(Vehicles!$C$30/Vehicles!$AU$72+Vehicles!$C$31/Vehicles!$AV$72)/(Vehicles!$C$30*(1/Vehicles!$AT$72+1/Vehicles!$AU$72)+Vehicles!$C$31/Vehicles!$AV$72) ->  | T28: =AN28*(Vehicles!$D$30/Vehicles!$AX$72)/(Vehicles!$D$30*(1/Vehicles!$AX$72+1/Vehicles!$AY$72)+Vehicles!$D$31/Vehicles!$AZ$72)+C28*(Vehicles!$D$30/Vehicles!$AY$72+Vehicles!$D$31/Vehicles!$AZ$72)/(Vehicles!$D$30*(1/Vehicles!$AX$72+1/Vehicles!$AY$72)+Vehicles!$D$31/Vehicles!$AZ$72) ->  | U28: =AN28*(Vehicles!$F$30/Vehicles!$BF$72)/(Vehicles!$F$30*(1/Vehicles!$BF$72+1/Vehicles!$BG$72)+Vehicles!$F$31/Vehicles!$BH$72)+D28*(Vehicles!$F$30/Vehicles!$BG$72+Vehicles!$F$31/Vehicles!$BH$72)/(Vehicles!$F$30*(1/Vehicles!$BF$72+1/Vehicles!$BG$72)+Vehicles!$F$31/Vehicles!$BH$72) ->  | V28: =AN28*(Vehicles!$G$30/Vehicles!$BJ$72)/(Vehicles!$G$30*(1/Vehicles!$BJ$72+1/Vehicles!$BK$72)+Vehicles!$G$31/Vehicles!$BL$72)+F28*(Vehicles!$G$30/Vehicles!$BK$72+Vehicles!$G$31/Vehicles!$BL$72)/(Vehicles!$G$30*(1/Vehicles!$BJ$72+1/Vehicles!$BK$72)+Vehicles!$G$31/Vehicles!$BL$72) ->  | W28: =AN28*(Vehicles!$H$30/Vehicles!$BN$72)/(Vehicles!$H$30*(1/Vehicles!$BN$72+1/Vehicles!$BO$72)+Vehicles!$H$31/Vehicles!$BP$72)+G28*(Vehicles!$H$30/Vehicles!$BO$72+Vehicles!$H$31/Vehicles!$BP$72)/(Vehicles!$H$30*(1/Vehicles!$BN$72+1/Vehicles!$BO$72)+Vehicles!$H$31/Vehicles!$BP$72) ->  | X28: =AN28*(Vehicles!$I$30/Vehicles!$BR$72)/(Vehicles!$I$30*(1/Vehicles!$BR$72+1/Vehicles!$BS$72)+Vehicles!$I$31/Vehicles!$BT$72)+H28*(Vehicles!$I$30/Vehicles!$BS$72+Vehicles!$I$31/Vehicles!$BT$72)/(Vehicles!$I$30*(1/Vehicles!$BR$72+1/Vehicles!$BS$72)+Vehicles!$I$31/Vehicles!$BT$72) ->  | Y28: =AN28*(Vehicles!$J$30/Vehicles!$BV$72)/(Vehicles!$J$30*(1/Vehicles!$BV$72+1/Vehicles!$BW$72)+Vehicles!$J$31/Vehicles!$BX$72)+K28*(Vehicles!$J$30/Vehicles!$BW$72+Vehicles!$J$31/Vehicles!$BX$72)/(Vehicles!$J$30*(1/Vehicles!$BV$72+1/Vehicles!$BW$72)+Vehicles!$J$31/Vehicles!$BX$72) ->  | Z28: =AN28*(Vehicles!$K$30/Vehicles!$BZ$72)/(Vehicles!$K$30*(1/Vehicles!$BZ$72+1/Vehicles!$CA$72)+Vehicles!$K$31/Vehicles!$CB$72)+O28*(Vehicles!$K$30/Vehicles!$CA$72+Vehicles!$K$31/Vehicles!$CB$72)/(Vehicles!$K$30*(1/Vehicles!$BZ$72+1/Vehicles!$CA$72)+Vehicles!$K$31/Vehicles!$CB$72) ->  | AA28: =AN28*(Vehicles!$L$30/Vehicles!$CD$72)/(Vehicles!$L$30*(1/Vehicles!$CD$72+1/Vehicles!$CE$72)+Vehicles!$L$31/Vehicles!$CF$72)+AO28*(Vehicles!$L$30/Vehicles!$CE$72+Vehicles!$L$31/Vehicles!$CF$72)/(Vehicles!$L$30*(1/Vehicles!$CD$72+1/Vehicles!$CE$72)+Vehicles!$L$31/Vehicles!$CF$72) ->  | AB28: =AN28*(Vehicles!$L$30/Vehicles!$CD$72)/(Vehicles!$L$30*(1/Vehicles!$CD$72+1/Vehicles!$CE$72)+Vehicles!$L$31/Vehicles!$CG$72)+AP28*(Vehicles!$L$30/Vehicles!$CE$72+Vehicles!$L$31/Vehicles!$CG$72)/(Vehicles!$L$30*(1/Vehicles!$CD$72+1/Vehicles!$CE$72)+Vehicles!$L$31/Vehicles!$CG$72) ->  | AC28: =(MeOH_FTD!$AJ172*MeOH_FTD!$AK$162+MeOH_FTD!$AK172)/1000000*HLOOKUP($J$10,$Z$5:$AD$6,2,FALSE)/HLOOKUP($J$11,$Z$7:$AD$8,2,FALSE) -> 3.29901252 | AD28: =((1-Vehicles!$C$41)*(1-Vehicles!$C$13)*Fuel_Specs!$B$21/((1-Vehicles!$C$41)*(1-Vehicles!$C$13)*Fuel_Specs!$B$21+Vehicles!$C$41*(1-Vehicles!$C$13)*Fuel_Specs!$B$24+Vehicles!$C$13*Fuel_Specs!$B$42)*(Petroleum!B272*Petroleum!$J$262+Petroleum!$J272)+Vehicles!$C$41*(1-Vehicles!$C$13)*Fuel_Specs!$B$24/((1-Vehicles!$C$41)*(1-Vehicles!$C$13)*Fuel_Specs!$B$21+Vehicles!$C$41*(1-Vehicles!$C$13)*Fuel_Specs!$B$24+Vehicles!$C$13*Fuel_Specs!$B$42)*(Petroleum!B272*IF(Inputs!F$102=1,Petroleum!$K$262,Petroleum!$L$262)+IF(Inputs!F$102=1,Petroleum!$K272,Petroleum!$L272))+Vehicles!$C$13*Fuel_Specs!$B$42/((1-Vehicles!$C$41)*(1-Vehicles!$C$13)*Fuel_Specs!$B$21+Vehicles!$C$41*(1-Vehicles!$C$13)*Fuel_Specs!$B$24+Vehicles!$C$13*Fuel_Specs!$B$42)*(MeOH_FTD!$AZ172*MeOH_FTD!$BA$162+MeOH_FTD!$BA172))/1000000*HLOOKUP($J$10,$Z$5:$AD$6,2,FALSE)/HLOOKUP($J$11,$Z$7:$AD$8,2,FALSE) -> 2.246195502 | AE28: =((1-Vehicles!$C$42)*(1-Vehicles!$C$14)*Fuel_Specs!$B$21/((1-Vehicles!$C$42)*(1-Vehicles!$C$14)*Fuel_Specs!$B$21+Vehicles!$C$42*(1-Vehicles!$C$14)*Fuel_Specs!$B$24+Vehicles!$C$14*Fuel_Specs!$B$41)*(Petroleum!B272*Petroleum!$J$262+Petroleum!$J272)+Vehicles!$C$42*(1-Vehicles!$C$14)*Fuel_Specs!$B$24/((1-Vehicles!$C$42)*(1-Vehicles!$C$14)*Fuel_Specs!$B$21+Vehicles!$C$42*(1-Vehicles!$C$14)*Fuel_Specs!$B$24+Vehicles!$C$14*Fuel_Specs!$B$41)*(Petroleum!B272*IF(Inputs!F$102=1,Petroleum!$K$262,Petroleum!$L$262)+IF(Inputs!F$102=1,Petroleum!$K272,Petroleum!$L272))+Vehicles!$C$14*Fuel_Specs!$B$41/((1-Vehicles!$C$42)*(1-Vehicles!$C$14)*Fuel_Specs!$B$21+Vehicles!$C$42*(1-Vehicles!$C$14)*Fuel_Specs!$B$24+Vehicles!$C$14*Fuel_Specs!$B$41)*(BioOil!$Y442*BioOil!$Z$431+BioOil!$Z442))/1000000*HLOOKUP($J$10,$Z$5:$AD$6,2,FALSE)/HLOOKUP($J$11,$Z$7:$AD$8,2,FALSE) -> 2.002887127 | AF28: =((1-Vehicles!$C$43)*(1-Vehicles!$C$15)*Fuel_Specs!$B$21/((1-Vehicles!$C$43)*(1-Vehicles!$C$15)*Fuel_Specs!$B$21+Vehicles!$C$43*(1-Vehicles!$C$15)*Fuel_Specs!$B$24+Vehicles!$C$15*IF(Inputs!$E$670=1,IF(Inputs!$E$670=1,Fuel_Specs!$B$43,IF(Inputs!$E$670=3,Fuel_Specs!$B$45,Fuel_Specs!$B$44)),Fuel_Specs!$B$44))*(Petroleum!B272*Petroleum!$J$262+Petroleum!$J272)+Vehicles!$C$43*(1-Vehicles!$C$15)*Fuel_Specs!$B$24/((1-Vehicles!$C$43)*(1-Vehicles!$C$15)*Fuel_Specs!$B$21+Vehicles!$C$43*(1-Vehicles!$C$15)*Fuel_Specs!$B$24+Vehicles!$C$15*IF(Inputs!$E$670=1,IF(Inputs!$E$670=1,Fuel_Specs!$B$43,IF(Inputs!$E$670=3,Fuel_Specs!$B$45,Fuel_Specs!$B$44)),Fuel_Specs!$B$44))*(Petroleum!B272*IF(Inputs!F$102=1,Petroleum!$K$262,Petroleum!$L$262)+IF(Inputs!F$102=1,Petroleum!$K272,Petroleum!$L272))+Vehicles!$C$15*IF(Inputs!$E$670=1,IF(Inputs!$E$670=1,Fuel_Specs!$B$43,IF(Inputs!$E$670=3,Fuel_Specs!$B$45,Fuel_Specs!$B$44)),Fuel_Specs!$B$44)/((1-Vehicles!$C$43)*(1-Vehicles!$C$15)*Fuel_Specs!$B$21+Vehicles!$C$43*(1-Vehicles!$C$15)*Fuel_Specs!$B$24+Vehicles!$C$15*IF(Inputs!$E$670=1,IF(Inputs!$E$670=1,Fuel_Specs!$B$43,IF(Inputs!$E$670=3,Fuel_Specs!$B$45,Fuel_Specs!$B$44)),Fuel_Specs!$B$44))*(BioOil!$BQ442*BioOil!$BR$431+BioOil!$BR442))/1000000*HLOOKUP($J$10,$Z$5:$AD$6,2,FALSE)/HLOOKUP($J$11,$Z$7:$AD$8,2,FALSE) -> 2.587866104 | AG28: =((1-Vehicles!$C$43)*(1-Vehicles!$C$15)*Fuel_Specs!$B$21/((1-Vehicles!$C$43)*(1-Vehicles!$C$15)*Fuel_Specs!$B$21+Vehicles!$C$43*(1-Vehicles!$C$15)*Fuel_Specs!$B$24+Vehicles!$C$15*IF(Inputs!$E$670=1,Fuel_Specs!$B$43,Fuel_Specs!$B$44))*(Petroleum!B272*Petroleum!$J$262+Petroleum!$J272)+Vehicles!$C$43*(1-Vehicles!$C$15)*Fuel_Specs!$B$24/((1-Vehicles!$C$43)*(1-Vehicles!$C$15)*Fuel_Specs!$B$21+Vehicles!$C$43*(1-Vehicles!$C$15)*Fuel_Specs!$B$24+Vehicles!$C$15*IF(Inputs!$E$670=1,Fuel_Specs!$B$43,Fuel_Specs!$B$44))*(Petroleum!B272*IF(Inputs!F$102=1,Petroleum!$K$262,Petroleum!$L$262)+IF(Inputs!F$102=1,Petroleum!$K272,Petroleum!$L272))+Vehicles!$C$15*IF(Inputs!$E$670=1,Fuel_Specs!$B$43,Fuel_Specs!$B$44)/((1-Vehicles!$C$43)*(1-Vehicles!$C$15)*Fuel_Specs!$B$21+Vehicles!$C$43*(1-Vehicles!$C$15)*Fuel_Specs!$B$24+Vehicles!$C$15*IF(Inputs!$E$670=1,Fuel_Specs!$B$43,Fuel_Specs!$B$44))*(Pyrolysis_IDL!$AF307*Pyrolysis_IDL!$AG$297+Pyrolysis_IDL!$AG307))/1000000*HLOOKUP($J$10,$Z$5:$AD$6,2,FALSE)/HLOOKUP($J$11,$Z$7:$AD$8,2,FALSE) -> 3.683214176 | AH28: =(((1-Vehicles!$C$44)*(1-Vehicles!$C$17-Vehicles!$C$18)*Fuel_Specs!$B$21*(Petroleum!B272*Petroleum!$J$262+Petroleum!$J272)+Vehicles!$C$44*(1-Vehicles!$C$17-Vehicles!$C$18)*Fuel_Specs!$B$24*(Petroleum!B272*IF(Inputs!F$102=1,Petroleum!$K$262,Petroleum!$L$262)+IF(Inputs!F$102=1,Petroleum!$K272,Petroleum!$L272))+Vehicles!$C$17*Fuel_Specs!$B$33*(EtOH!BT556*EtOH!$BU$546+EtOH!$BU556)+Vehicles!$C$18*Fuel_Specs!$B$36*('EtOH-Diesel Additives'!$B63*'EtOH-Diesel Additives'!$B$53))/((1-Vehicles!$C$44)*(1-Vehicles!$C$17-Vehicles!$C$18)*Fuel_Specs!$B$21+Vehicles!$C$44*(1-Vehicles!$C$17-Vehicles!$C$18)*Fuel_Specs!$B$24+Vehicles!$C$17*Fuel_Specs!$B$33+Vehicles!$C$18*Fuel_Specs!$B$36))/1000000*HLOOKUP($J$10,$Z$5:$AD$6,2,FALSE)/HLOOKUP($J$11,$Z$7:$AD$8,2,FALSE) -> 2.961961075 | AI28: =AN28*(Vehicles!$M$30/Vehicles!$CO$72)/(Vehicles!$M$30*(1/Vehicles!$CO$72+1/Vehicles!$CP$72)+Vehicles!$M$31/Vehicles!$CQ$72)+E28*(Vehicles!$M$30/Vehicles!$CP$72+Vehicles!$M$31/Vehicles!$CQ$72)/(Vehicles!$M$30*(1/Vehicles!$CO$72+1/Vehicles!$CP$72)+Vehicles!$M$31/Vehicles!$CQ$72) ->  | AJ28: =AN28*(Vehicles!$N$30/Vehicles!$CS$72)/(Vehicles!$N$30*(1/Vehicles!$CS$72+1/Vehicles!$CT$72)+Vehicles!$N$31/Vehicles!$CU$72)+AC28*(Vehicles!$N$30/Vehicles!$CT$72+Vehicles!$N$31/Vehicles!$CU$72)/(Vehicles!$N$30*(1/Vehicles!$CS$72+1/Vehicles!$CT$72)+Vehicles!$N$31/Vehicles!$CU$72) ->  | AK28: =AN28*(Vehicles!$O$30/Vehicles!$CW$72)/(Vehicles!$O$30*(1/Vehicles!$CW$72+1/Vehicles!$CX$72)+Vehicles!$O$31/Vehicles!$CY$72)+AD28*(Vehicles!$O$30/Vehicles!$CX$72+Vehicles!$O$31/Vehicles!$CY$72)/(Vehicles!$O$30*(1/Vehicles!$CW$72+1/Vehicles!$CX$72)+Vehicles!$O$31/Vehicles!$CY$72) ->  | AL28: =AN28*(Vehicles!$P$30/Vehicles!$DA$72)/(Vehicles!$P$30*(1/Vehicles!$DA$72+1/Vehicles!$DB$72)+Vehicles!$P$31/Vehicles!$DC$72)+AE28*(Vehicles!$P$30/Vehicles!$DB$72+Vehicles!$P$31/Vehicles!$DC$72)/(Vehicles!$P$30*(1/Vehicles!$DA$72+1/Vehicles!$DB$72)+Vehicles!$P$31/Vehicles!$DC$72) ->  | AM28: =AN28*(Vehicles!$R$30/Vehicles!$DI$72)/(Vehicles!$R$30*(1/Vehicles!$DI$72+1/Vehicles!$DJ$72)+Vehicles!$R$31/Vehicles!$DK$72)+AH28*(Vehicles!$R$30/Vehicles!$DJ$72+Vehicles!$R$31/Vehicles!$DK$72)/(Vehicles!$R$30*(1/Vehicles!$DI$72+1/Vehicles!$DJ$72)+Vehicles!$R$31/Vehicles!$DK$72) ->  | AN28: =(Electric!$G213+Electric!$F213)/1000000*HLOOKUP($J$10,$Z$5:$AD$6,2,FALSE)/HLOOKUP($J$11,$Z$7:$AD$8,2,FALSE) -> 54.71514734 | AO28: =(Hydrogen!$AJ315*Hydrogen!$AK$305+Hydrogen!$AK315)/1000000*HLOOKUP($J$10,$Z$5:$AD$6,2,FALSE)/HLOOKUP($J$11,$Z$7:$AD$8,2,FALSE) -> 8.332406374 | AP28: =(Hydrogen!$BT315*Hydrogen!$BU$305+Hydrogen!$BU315)/1000000*HLOOKUP($J$10,$Z$5:$AD$6,2,FALSE)/HLOOKUP($J$11,$Z$7:$AD$8,2,FALSE) -> 23.41644814 | AQ28: =AN28*(Vehicles!$S$30/Vehicles!$DY$72)/(Vehicles!$S$30*(1/Vehicles!$DY$72+1/Vehicles!$DZ$72)+Vehicles!$S$31/Vehicles!$EA$72)+AO28*(Vehicles!$S$30/Vehicles!$DZ$72+Vehicles!$S$31/Vehicles!$EA$72)/(Vehicles!$S$30*(1/Vehicles!$DY$72+1/Vehicles!$DZ$72)+Vehicles!$S$31/Vehicles!$EA$72) ->  | AR28: =AN28*(Vehicles!$S$30/Vehicles!$DY$72)/(Vehicles!$S$30*(1/Vehicles!$DY$72+1/Vehicles!$DZ$72)+Vehicles!$S$31/Vehicles!$EA$72)+AP28*(Vehicles!$S$30/Vehicles!$DZ$72+Vehicles!$S$31/Vehicles!$EA$72)/(Vehicles!$S$30*(1/Vehicles!$DY$72+1/Vehicles!$DZ$72)+Vehicles!$S$31/Vehicles!$EA$72) ->  | AS28: =((1-Vehicles!$C$40)*(1-Vehicles!$C$16)*Fuel_Specs!$B$15/((1-Vehicles!$C$40)*(1-Vehicles!$C$16)*Fuel_Specs!$B$15+Vehicles!$C$40*(1-Vehicles!$C$16)*Fuel_Specs!$B$17+Vehicles!$C$16*Fuel_Specs!$B$48)*(Petroleum!$B272*Petroleum!$D$262+Petroleum!$D272)+Vehicles!$C$40*(1-Vehicles!$C$16)*Fuel_Specs!$B$17/((1-Vehicles!$C$40)*(1-Vehicles!$C$16)*Fuel_Specs!$B$15+Vehicles!$C$40*(1-Vehicles!$C$16)*Fuel_Specs!$B$17+Vehicles!$C$16*Fuel_Specs!$B$48)*(Petroleum!B272*Petroleum!$F$262+Petroleum!$F272)+Vehicles!$C$16*Fuel_Specs!$B$48/((1-Vehicles!$C$40)*(1-Vehicles!$C$16)*Fuel_Specs!$B$15+Vehicles!$C$40*(1-Vehicles!$C$16)*Fuel_Specs!$B$17+Vehicles!$C$16*Fuel_Specs!$B$48)*(Pyrolysis_IDL!$AP307*Pyrolysis_IDL!$AQ$297+Pyrolysis_IDL!$AQ307))/1000000*HLOOKUP($J$10,$Z$5:$AD$6,2,FALSE)/HLOOKUP($J$11,$Z$7:$AD$8,2,FALSE) -> 24.79270686 | AT28: =(Petroleum!$B272*Petroleum!$S$262+Petroleum!$S272)/1000000*HLOOKUP($J$10,$Z$5:$AD$6,2,FALSE)/HLOOKUP($J$11,$Z$7:$AD$8,2,FALSE) -> 2.123335085 | AU28: 3.388436633 | AV28: 3.221512431 | BB28: SI - RG from Bio Oil | BC28: RNAVRENGASSI
A29: PM2.5: Total | B29: =(Inputs!$E$1518*(Petroleum!$B273*Petroleum!$F$262+Petroleum!$F273)+(1-Inputs!$E$1518)*(Petroleum!$B273*Petroleum!$D$262+Petroleum!$D273))/1000000*HLOOKUP($J$10,$Z$5:$AD$6,2,FALSE)/HLOOKUP($J$11,$Z$7:$AD$8,2,FALSE) -> 2.769416911 | C29: =(Petroleum!$C273*Petroleum!$G$262+Petroleum!$G273)/1000000*HLOOKUP($J$10,$Z$5:$AD$6,2,FALSE)/HLOOKUP($J$11,$Z$7:$AD$8,2,FALSE) -> 4.040631068 | D29: =((1-Vehicles!$C$35)*(1-Vehicles!$C$7)*Fuel_Specs!$B$15/((1-Vehicles!$C$35)*(1-Vehicles!$C$7)*Fuel_Specs!$B$15+Vehicles!$C$35*(1-Vehicles!$C$7)*Fuel_Specs!$B$17+Vehicles!$C$7*Fuel_Specs!$B$33)*(Petroleum!$B273*Petroleum!$D$262+(Petroleum!$D273-'T&D'!G226))+Vehicles!$C$35*(1-Vehicles!$C$7)*Fuel_Specs!$B$17/((1-Vehicles!$C$35)*(1-Vehicles!$C$7)*Fuel_Specs!$B$15+Vehicles!$C$35*(1-Vehicles!$C$7)*Fuel_Specs!$B$17+Vehicles!$C$7*Fuel_Specs!$B$33)*(Petroleum!B273*Petroleum!$F$262+Petroleum!$F273)+Vehicles!$C$7*Fuel_Specs!$B$33/((1-Vehicles!$C$35)*(1-Vehicles!$C$7)*Fuel_Specs!$B$15+Vehicles!$C$35*(1-Vehicles!$C$7)*Fuel_Specs!$B$17+Vehicles!$C$7*Fuel_Specs!$B$33)*(EtOH!BV557*EtOH!$BW$546+EtOH!$BW557)+Petroleum!AS135+Petroleum!AT135)/1000000*HLOOKUP($J$10,$Z$5:$AD$6,2,FALSE)/HLOOKUP($J$11,$Z$7:$AD$8,2,FALSE) -> 2.771740987 | E29: =(Inputs!$E$97*(IF(Inputs!F$102=1,Petroleum!$B273,Petroleum!$C273)*IF(Inputs!F$102=1,Petroleum!$K$262,Petroleum!$L$262)+IF(Inputs!F$102=1,Petroleum!$K273,Petroleum!$L273))+(1-Inputs!$E$97)*(IF(Inputs!F$101=1,Petroleum!$B273,Petroleum!$C273)*Petroleum!$J$262+Petroleum!$J273))/1000000*HLOOKUP($J$10,$Z$5:$AD$6,2,FALSE)/HLOOKUP($J$11,$Z$7:$AD$8,2,FALSE) -> 1.800862935 | F29: =(NG!$J95*NG!$K$84+NG!$K95)/1000000*HLOOKUP($J$10,$Z$5:$AD$6,2,FALSE)/HLOOKUP($J$11,$Z$7:$AD$8,2,FALSE) -> 2.312319135 | G29: =(NG!$R95*NG!$S$84+NG!$S95)/1000000*HLOOKUP($J$10,$Z$5:$AD$6,2,FALSE)/HLOOKUP($J$11,$Z$7:$AD$8,2,FALSE) -> 1.060031338 | H29: =(NG!$X95*NG!$Y$84+NG!$Y95)/1000000*HLOOKUP($J$10,$Z$5:$AD$6,2,FALSE)/HLOOKUP($J$11,$Z$7:$AD$8,2,FALSE) -> 1.126013791 | I29: =(MeOH_FTD!BJ173*MeOH_FTD!BK$162+MeOH_FTD!BK173)/1000000*HLOOKUP($J$10,$Z$5:$AD$6,2,FALSE)/HLOOKUP($J$11,$Z$7:$AD$8,2,FALSE) -> -0.7297506604 | J29: =((1-Vehicles!$C$34)*(1-Vehicles!$C$5)*Fuel_Specs!$B$15/((1-Vehicles!$C$34)*(1-Vehicles!$C$5)*Fuel_Specs!$B$15+Vehicles!$C$34*(1-Vehicles!$C$5)*Fuel_Specs!$B$17+Vehicles!$C$5*Fuel_Specs!$B$32)*(Petroleum!$B273*Petroleum!$D$262+Petroleum!$D273)+Vehicles!$C$34*(1-Vehicles!$C$5)*Fuel_Specs!$B$17/((1-Vehicles!$C$34)*(1-Vehicles!$C$5)*Fuel_Specs!$B$15+Vehicles!$C$34*(1-Vehicles!$C$5)*Fuel_Specs!$B$17+Vehicles!$C$5*Fuel_Specs!$B$32)*(Petroleum!B273*Petroleum!$F$262+Petroleum!$F273)+Vehicles!$C$5*Fuel_Specs!$B$32/((1-Vehicles!$C$34)*(1-Vehicles!$C$5)*Fuel_Specs!$B$15+Vehicles!$C$34*(1-Vehicles!$C$5)*Fuel_Specs!$B$17+Vehicles!$C$5*Fuel_Specs!$B$32)*(MeOH_FTD!$N173*MeOH_FTD!$O$162+MeOH_FTD!$O173))/1000000*HLOOKUP($J$10,$Z$5:$AD$6,2,FALSE)/HLOOKUP($J$11,$Z$7:$AD$8,2,FALSE) -> 3.541061982 | K29: =((1-Vehicles!$C$34)*(1-Vehicles!$C$6)*Fuel_Specs!$B$15/((1-Vehicles!$C$34)*(1-Vehicles!$C$6)*Fuel_Specs!$B$15+Vehicles!$C$34*(1-Vehicles!$C$6)*Fuel_Specs!$B$17+Vehicles!$C$6*Fuel_Specs!$B$32)*(Petroleum!$B273*Petroleum!$D$262+Petroleum!$D273)+Vehicles!$C$34*(1-Vehicles!$C$6)*Fuel_Specs!$B$17/((1-Vehicles!$C$34)*(1-Vehicles!$C$6)*Fuel_Specs!$B$15+Vehicles!$C$34*(1-Vehicles!$C$6)*Fuel_Specs!$B$17+Vehicles!$C$6*Fuel_Specs!$B$32)*(Petroleum!B273*Petroleum!$F$262+Petroleum!$F273)+Vehicles!$C$6*Fuel_Specs!$B$32/((1-Vehicles!$C$34)*(1-Vehicles!$C$6)*Fuel_Specs!$B$15+Vehicles!$C$34*(1-Vehicles!$C$6)*Fuel_Specs!$B$17+Vehicles!$C$6*Fuel_Specs!$B$32)*(MeOH_FTD!$N173*MeOH_FTD!$O$162+MeOH_FTD!$O173))/1000000*HLOOKUP($J$10,$Z$5:$AD$6,2,FALSE)/HLOOKUP($J$11,$Z$7:$AD$8,2,FALSE) -> 3.665263158 | L29: =(MeOH_FTD!$N173*MeOH_FTD!$O$162+MeOH_FTD!$O173)/1000000*HLOOKUP($J$10,$Z$5:$AD$6,2,FALSE)/HLOOKUP($J$11,$Z$7:$AD$8,2,FALSE) -> 3.951960691 | M29: =((1-Vehicles!$C$36)*(1-Vehicles!$C$8)*Fuel_Specs!$B$15/((1-Vehicles!$C$36)*(1-Vehicles!$C$8)*Fuel_Specs!$B$15+Vehicles!$C$36*(1-Vehicles!$C$8)*Fuel_Specs!$B$17+Vehicles!$C$8*Fuel_Specs!$B$33)*(Petroleum!$B273*Petroleum!$D$262+(Petroleum!$D273-'T&D'!G226))+Vehicles!$C$36*(1-Vehicles!$C$8)*Fuel_Specs!$B$17/((1-Vehicles!$C$36)*(1-Vehicles!$C$8)*Fuel_Specs!$B$15+Vehicles!$C$36*(1-Vehicles!$C$8)*Fuel_Specs!$B$17+Vehicles!$C$8*Fuel_Specs!$B$33)*(Petroleum!B273*Petroleum!$F$262+Petroleum!$F273)+Vehicles!$C$8*Fuel_Specs!$B$33/((1-Vehicles!$C$36)*(1-Vehicles!$C$8)*Fuel_Specs!$B$15+Vehicles!$C$36*(1-Vehicles!$C$8)*Fuel_Specs!$B$17+Vehicles!$C$8*Fuel_Specs!$B$33)*(EtOH!BV557*EtOH!$BW$546+EtOH!$BW557)+Petroleum!AS135+Petroleum!AT135)/1000000*HLOOKUP($J$10,$Z$5:$AD$6,2,FALSE)/HLOOKUP($J$11,$Z$7:$AD$8,2,FALSE) -> 6.746755635 | N29: =((1-Vehicles!$C$37)*(1-Vehicles!$C$12)*Fuel_Specs!$B$15/((1-Vehicles!$C$37)*(1-Vehicles!$C$12)*Fuel_Specs!$B$15+Vehicles!$C$37*(1-Vehicles!$C$12)*Fuel_Specs!$B$17+Vehicles!$C$12*Fuel_Specs!$B$34)*(Petroleum!$B273*Petroleum!$D$262+Petroleum!$D273)+Vehicles!$C$37*(1-Vehicles!$C$12)*Fuel_Specs!$B$17/((1-Vehicles!$C$37)*(1-Vehicles!$C$12)*Fuel_Specs!$B$15+Vehicles!$C$37*(1-Vehicles!$C$12)*Fuel_Specs!$B$17+Vehicles!$C$12*Fuel_Specs!$B$34)*(Petroleum!B273*Petroleum!$F$262+Petroleum!$F273)+Vehicles!$C$12*Fuel_Specs!$B$34/((1-Vehicles!$C$37)*(1-Vehicles!$C$12)*Fuel_Specs!$B$15+Vehicles!$C$37*(1-Vehicles!$C$12)*Fuel_Specs!$B$17+Vehicles!$C$12*Fuel_Specs!$B$34)*(EtOH!$BX557*EtOH!$BY$546+EtOH!$BY557))/1000000*HLOOKUP($J$10,$Z$5:$AD$6,2,FALSE)/HLOOKUP($J$11,$Z$7:$AD$8,2,FALSE) -> 7.274069562 | O29: =((1-Vehicles!$C$36)*(1-Vehicles!$C$9)*Fuel_Specs!$B$15/((1-Vehicles!$C$36)*(1-Vehicles!$C$9)*Fuel_Specs!$B$15+Vehicles!$C$36*(1-Vehicles!$C$9)*Fuel_Specs!$B$17+Vehicles!$C$9*Fuel_Specs!$B$33)*(Petroleum!$B273*Petroleum!$D$262+(Petroleum!$D273-'T&D'!G226))+Vehicles!$C$36*(1-Vehicles!$C$9)*Fuel_Specs!$B$17/((1-Vehicles!$C$36)*(1-Vehicles!$C$9)*Fuel_Specs!$B$15+Vehicles!$C$36*(1-Vehicles!$C$9)*Fuel_Specs!$B$17+Vehicles!$C$9*Fuel_Specs!$B$33)*(Petroleum!B273*Petroleum!$F$262+Petroleum!$F273)+Vehicles!$C$9*Fuel_Specs!$B$33/((1-Vehicles!$C$36)*(1-Vehicles!$C$9)*Fuel_Specs!$B$15+Vehicles!$C$36*(1-Vehicles!$C$9)*Fuel_Specs!$B$17+Vehicles!$C$9*Fuel_Specs!$B$33)*(EtOH!BV557*EtOH!$BW$546+EtOH!$BW557)+Petroleum!AS135+Petroleum!AT135)/1000000*HLOOKUP($J$10,$Z$5:$AD$6,2,FALSE)/HLOOKUP($J$11,$Z$7:$AD$8,2,FALSE) -> 6.746755635 | P29: =(EtOH!$BT557*EtOH!$BU$546+EtOH!$BU557)/1000000*HLOOKUP($J$10,$Z$5:$AD$6,2,FALSE)/HLOOKUP($J$11,$Z$7:$AD$8,2,FALSE) -> 8.07640727 | Q29: =((1-Vehicles!$C$40)*(1-Vehicles!$C$16)*Fuel_Specs!$B$15/((1-Vehicles!$C$40)*(1-Vehicles!$C$16)*Fuel_Specs!$B$15+Vehicles!$C$40*(1-Vehicles!$C$16)*Fuel_Specs!$B$17+Vehicles!$C$16*Fuel_Specs!$B$47)*(Petroleum!$B273*Petroleum!$D$262+Petroleum!$D273)+Vehicles!$C$40*(1-Vehicles!$C$16)*Fuel_Specs!$B$17/((1-Vehicles!$C$40)*(1-Vehicles!$C$16)*Fuel_Specs!$B$15+Vehicles!$C$40*(1-Vehicles!$C$16)*Fuel_Specs!$B$17+Vehicles!$C$16*Fuel_Specs!$B$47)*(Petroleum!B273*Petroleum!$F$262+Petroleum!$F273)+Vehicles!$C$16*Fuel_Specs!$B$47/((1-Vehicles!$C$40)*(1-Vehicles!$C$16)*Fuel_Specs!$B$15+Vehicles!$C$40*(1-Vehicles!$C$16)*Fuel_Specs!$B$17+Vehicles!$C$16*Fuel_Specs!$B$47)*(BioOil!$CE443*BioOil!$CF$431+BioOil!$CF443))/1000000*HLOOKUP($J$10,$Z$5:$AD$6,2,FALSE)/HLOOKUP($J$11,$Z$7:$AD$8,2,FALSE) -> 2.002797947 | R29: =((1-Vehicles!$C$40)*(1-Vehicles!$C$16)*Fuel_Specs!$B$15/((1-Vehicles!$C$40)*(1-Vehicles!$C$16)*Fuel_Specs!$B$15+Vehicles!$C$40*(1-Vehicles!$C$16)*Fuel_Specs!$B$17+Vehicles!$C$16*Fuel_Specs!$B$47)*(Petroleum!$B273*Petroleum!$D$262+Petroleum!$D273)+Vehicles!$C$40*(1-Vehicles!$C$16)*Fuel_Specs!$B$17/((1-Vehicles!$C$40)*(1-Vehicles!$C$16)*Fuel_Specs!$B$15+Vehicles!$C$40*(1-Vehicles!$C$16)*Fuel_Specs!$B$17+Vehicles!$C$16*Fuel_Specs!$B$47)*(Petroleum!B273*Petroleum!$F$262+Petroleum!$F273)+Vehicles!$C$16*Fuel_Specs!$B$47/((1-Vehicles!$C$40)*(1-Vehicles!$C$16)*Fuel_Specs!$B$15+Vehicles!$C$40*(1-Vehicles!$C$16)*Fuel_Specs!$B$17+Vehicles!$C$16*Fuel_Specs!$B$47)*(Pyrolysis_IDL!$AD308*Pyrolysis_IDL!$AE$297+Pyrolysis_IDL!$AE308))/1000000*HLOOKUP($J$10,$Z$5:$AD$6,2,FALSE)/HLOOKUP($J$11,$Z$7:$AD$8,2,FALSE) -> 3.770063841 | S29: =AN29*(Vehicles!$C$30/Vehicles!$AT$72)/(Vehicles!$C$30*(1/Vehicles!$AT$72+1/Vehicles!$AU$72)+Vehicles!$C$31/Vehicles!$AV$72)+B29*(Vehicles!$C$30/Vehicles!$AU$72+Vehicles!$C$31/Vehicles!$AV$72)/(Vehicles!$C$30*(1/Vehicles!$AT$72+1/Vehicles!$AU$72)+Vehicles!$C$31/Vehicles!$AV$72) ->  | T29: =AN29*(Vehicles!$D$30/Vehicles!$AX$72)/(Vehicles!$D$30*(1/Vehicles!$AX$72+1/Vehicles!$AY$72)+Vehicles!$D$31/Vehicles!$AZ$72)+C29*(Vehicles!$D$30/Vehicles!$AY$72+Vehicles!$D$31/Vehicles!$AZ$72)/(Vehicles!$D$30*(1/Vehicles!$AX$72+1/Vehicles!$AY$72)+Vehicles!$D$31/Vehicles!$AZ$72) ->  | U29: =AN29*(Vehicles!$F$30/Vehicles!$BF$72)/(Vehicles!$F$30*(1/Vehicles!$BF$72+1/Vehicles!$BG$72)+Vehicles!$F$31/Vehicles!$BH$72)+D29*(Vehicles!$F$30/Vehicles!$BG$72+Vehicles!$F$31/Vehicles!$BH$72)/(Vehicles!$F$30*(1/Vehicles!$BF$72+1/Vehicles!$BG$72)+Vehicles!$F$31/Vehicles!$BH$72) ->  | V29: =AN29*(Vehicles!$G$30/Vehicles!$BJ$72)/(Vehicles!$G$30*(1/Vehicles!$BJ$72+1/Vehicles!$BK$72)+Vehicles!$G$31/Vehicles!$BL$72)+F29*(Vehicles!$G$30/Vehicles!$BK$72+Vehicles!$G$31/Vehicles!$BL$72)/(Vehicles!$G$30*(1/Vehicles!$BJ$72+1/Vehicles!$BK$72)+Vehicles!$G$31/Vehicles!$BL$72) ->  | W29: =AN29*(Vehicles!$H$30/Vehicles!$BN$72)/(Vehicles!$H$30*(1/Vehicles!$BN$72+1/Vehicles!$BO$72)+Vehicles!$H$31/Vehicles!$BP$72)+G29*(Vehicles!$H$30/Vehicles!$BO$72+Vehicles!$H$31/Vehicles!$BP$72)/(Vehicles!$H$30*(1/Vehicles!$BN$72+1/Vehicles!$BO$72)+Vehicles!$H$31/Vehicles!$BP$72) ->  | X29: =AN29*(Vehicles!$I$30/Vehicles!$BR$72)/(Vehicles!$I$30*(1/Vehicles!$BR$72+1/Vehicles!$BS$72)+Vehicles!$I$31/Vehicles!$BT$72)+H29*(Vehicles!$I$30/Vehicles!$BS$72+Vehicles!$I$31/Vehicles!$BT$72)/(Vehicles!$I$30*(1/Vehicles!$BR$72+1/Vehicles!$BS$72)+Vehicles!$I$31/Vehicles!$BT$72) ->  | Y29: =AN29*(Vehicles!$J$30/Vehicles!$BV$72)/(Vehicles!$J$30*(1/Vehicles!$BV$72+1/Vehicles!$BW$72)+Vehicles!$J$31/Vehicles!$BX$72)+K29*(Vehicles!$J$30/Vehicles!$BW$72+Vehicles!$J$31/Vehicles!$BX$72)/(Vehicles!$J$30*(1/Vehicles!$BV$72+1/Vehicles!$BW$72)+Vehicles!$J$31/Vehicles!$BX$72) ->  | Z29: =AN29*(Vehicles!$K$30/Vehicles!$BZ$72)/(Vehicles!$K$30*(1/Vehicles!$BZ$72+1/Vehicles!$CA$72)+Vehicles!$K$31/Vehicles!$CB$72)+O29*(Vehicles!$K$30/Vehicles!$CA$72+Vehicles!$K$31/Vehicles!$CB$72)/(Vehicles!$K$30*(1/Vehicles!$BZ$72+1/Vehicles!$CA$72)+Vehicles!$K$31/Vehicles!$CB$72) ->  | AA29: =AN29*(Vehicles!$L$30/Vehicles!$CD$72)/(Vehicles!$L$30*(1/Vehicles!$CD$72+1/Vehicles!$CE$72)+Vehicles!$L$31/Vehicles!$CF$72)+AO29*(Vehicles!$L$30/Vehicles!$CE$72+Vehicles!$L$31/Vehicles!$CF$72)/(Vehicles!$L$30*(1/Vehicles!$CD$72+1/Vehicles!$CE$72)+Vehicles!$L$31/Vehicles!$CF$72) ->  | AB29: =AN29*(Vehicles!$L$30/Vehicles!$CD$72)/(Vehicles!$L$30*(1/Vehicles!$CD$72+1/Vehicles!$CE$72)+Vehicles!$L$31/Vehicles!$CG$72)+AP29*(Vehicles!$L$30/Vehicles!$CE$72+Vehicles!$L$31/Vehicles!$CG$72)/(Vehicles!$L$30*(1/Vehicles!$CD$72+1/Vehicles!$CE$72)+Vehicles!$L$31/Vehicles!$CG$72) ->  | AC29: =(MeOH_FTD!$AJ173*MeOH_FTD!$AK$162+MeOH_FTD!$AK173)/1000000*HLOOKUP($J$10,$Z$5:$AD$6,2,FALSE)/HLOOKUP($J$11,$Z$7:$AD$8,2,FALSE) -> 3.236466578 | AD29: =((1-Vehicles!$C$41)*(1-Vehicles!$C$13)*Fuel_Specs!$B$21/((1-Vehicles!$C$41)*(1-Vehicles!$C$13)*Fuel_Specs!$B$21+Vehicles!$C$41*(1-Vehicles!$C$13)*Fuel_Specs!$B$24+Vehicles!$C$13*Fuel_Specs!$B$42)*(Petroleum!B273*Petroleum!$J$262+Petroleum!$J273)+Vehicles!$C$41*(1-Vehicles!$C$13)*Fuel_Specs!$B$24/((1-Vehicles!$C$41)*(1-Vehicles!$C$13)*Fuel_Specs!$B$21+Vehicles!$C$41*(1-Vehicles!$C$13)*Fuel_Specs!$B$24+Vehicles!$C$13*Fuel_Specs!$B$42)*(Petroleum!B273*IF(Inputs!F$102=1,Petroleum!$K$262,Petroleum!$L$262)+IF(Inputs!F$102=1,Petroleum!$K273,Petroleum!$L273))+Vehicles!$C$13*Fuel_Specs!$B$42/((1-Vehicles!$C$41)*(1-Vehicles!$C$13)*Fuel_Specs!$B$21+Vehicles!$C$41*(1-Vehicles!$C$13)*Fuel_Specs!$B$24+Vehicles!$C$13*Fuel_Specs!$B$42)*(MeOH_FTD!$AZ173*MeOH_FTD!$BA$162+MeOH_FTD!$BA173))/1000000*HLOOKUP($J$10,$Z$5:$AD$6,2,FALSE)/HLOOKUP($J$11,$Z$7:$AD$8,2,FALSE) -> 2.129987724 | AE29: =((1-Vehicles!$C$42)*(1-Vehicles!$C$14)*Fuel_Specs!$B$21/((1-Vehicles!$C$42)*(1-Vehicles!$C$14)*Fuel_Specs!$B$21+Vehicles!$C$42*(1-Vehicles!$C$14)*Fuel_Specs!$B$24+Vehicles!$C$14*Fuel_Specs!$B$41)*(Petroleum!B273*Petroleum!$J$262+Petroleum!$J273)+Vehicles!$C$42*(1-Vehicles!$C$14)*Fuel_Specs!$B$24/((1-Vehicles!$C$42)*(1-Vehicles!$C$14)*Fuel_Specs!$B$21+Vehicles!$C$42*(1-Vehicles!$C$14)*Fuel_Specs!$B$24+Vehicles!$C$14*Fuel_Specs!$B$41)*(Petroleum!B273*IF(Inputs!F$102=1,Petroleum!$K$262,Petroleum!$L$262)+IF(Inputs!F$102=1,Petroleum!$K273,Petroleum!$L273))+Vehicles!$C$14*Fuel_Specs!$B$41/((1-Vehicles!$C$42)*(1-Vehicles!$C$14)*Fuel_Specs!$B$21+Vehicles!$C$42*(1-Vehicles!$C$14)*Fuel_Specs!$B$24+Vehicles!$C$14*Fuel_Specs!$B$41)*(BioOil!$Y443*BioOil!$Z$431+BioOil!$Z443))/1000000*HLOOKUP($J$10,$Z$5:$AD$6,2,FALSE)/HLOOKUP($J$11,$Z$7:$AD$8,2,FALSE) -> 1.858106844 | AF29: =((1-Vehicles!$C$43)*(1-Vehicles!$C$15)*Fuel_Specs!$B$21/((1-Vehicles!$C$43)*(1-Vehicles!$C$15)*Fuel_Specs!$B$21+Vehicles!$C$43*(1-Vehicles!$C$15)*Fuel_Specs!$B$24+Vehicles!$C$15*IF(Inputs!$E$670=1,IF(Inputs!$E$670=1,Fuel_Specs!$B$43,IF(Inputs!$E$670=3,Fuel_Specs!$B$45,Fuel_Specs!$B$44)),Fuel_Specs!$B$44))*(Petroleum!B273*Petroleum!$J$262+Petroleum!$J273)+Vehicles!$C$43*(1-Vehicles!$C$15)*Fuel_Specs!$B$24/((1-Vehicles!$C$43)*(1-Vehicles!$C$15)*Fuel_Specs!$B$21+Vehicles!$C$43*(1-Vehicles!$C$15)*Fuel_Specs!$B$24+Vehicles!$C$15*IF(Inputs!$E$670=1,IF(Inputs!$E$670=1,Fuel_Specs!$B$43,IF(Inputs!$E$670=3,Fuel_Specs!$B$45,Fuel_Specs!$B$44)),Fuel_Specs!$B$44))*(Petroleum!B273*IF(Inputs!F$102=1,Petroleum!$K$262,Petroleum!$L$262)+IF(Inputs!F$102=1,Petroleum!$K273,Petroleum!$L273))+Vehicles!$C$15*IF(Inputs!$E$670=1,IF(Inputs!$E$670=1,Fuel_Specs!$B$43,IF(Inputs!$E$670=3,Fuel_Specs!$B$45,Fuel_Specs!$B$44)),Fuel_Specs!$B$44)/((1-Vehicles!$C$43)*(1-Vehicles!$C$15)*Fuel_Specs!$B$21+Vehicles!$C$43*(1-Vehicles!$C$15)*Fuel_Specs!$B$24+Vehicles!$C$15*IF(Inputs!$E$670=1,IF(Inputs!$E$670=1,Fuel_Specs!$B$43,IF(Inputs!$E$670=3,Fuel_Specs!$B$45,Fuel_Specs!$B$44)),Fuel_Specs!$B$44))*(BioOil!$BQ443*BioOil!$BR$431+BioOil!$BR443))/1000000*HLOOKUP($J$10,$Z$5:$AD$6,2,FALSE)/HLOOKUP($J$11,$Z$7:$AD$8,2,FALSE) -> 2.336728689 | AG29: =((1-Vehicles!$C$43)*(1-Vehicles!$C$15)*Fuel_Specs!$B$21/((1-Vehicles!$C$43)*(1-Vehicles!$C$15)*Fuel_Specs!$B$21+Vehicles!$C$43*(1-Vehicles!$C$15)*Fuel_Specs!$B$24+Vehicles!$C$15*IF(Inputs!$E$670=1,Fuel_Specs!$B$43,Fuel_Specs!$B$44))*(Petroleum!B273*Petroleum!$J$262+Petroleum!$J273)+Vehicles!$C$43*(1-Vehicles!$C$15)*Fuel_Specs!$B$24/((1-Vehicles!$C$43)*(1-Vehicles!$C$15)*Fuel_Specs!$B$21+Vehicles!$C$43*(1-Vehicles!$C$15)*Fuel_Specs!$B$24+Vehicles!$C$15*IF(Inputs!$E$670=1,Fuel_Specs!$B$43,Fuel_Specs!$B$44))*(Petroleum!B273*IF(Inputs!F$102=1,Petroleum!$K$262,Petroleum!$L$262)+IF(Inputs!F$102=1,Petroleum!$K273,Petroleum!$L273))+Vehicles!$C$15*IF(Inputs!$E$670=1,Fuel_Specs!$B$43,Fuel_Specs!$B$44)/((1-Vehicles!$C$43)*(1-Vehicles!$C$15)*Fuel_Specs!$B$21+Vehicles!$C$43*(1-Vehicles!$C$15)*Fuel_Specs!$B$24+Vehicles!$C$15*IF(Inputs!$E$670=1,Fuel_Specs!$B$43,Fuel_Specs!$B$44))*(Pyrolysis_IDL!$AF308*Pyrolysis_IDL!$AG$297+Pyrolysis_IDL!$AG308))/1000000*HLOOKUP($J$10,$Z$5:$AD$6,2,FALSE)/HLOOKUP($J$11,$Z$7:$AD$8,2,FALSE) -> 3.4649328 | AH29: =(((1-Vehicles!$C$44)*(1-Vehicles!$C$17-Vehicles!$C$18)*Fuel_Specs!$B$21*(Petroleum!B273*Petroleum!$J$262+Petroleum!$J273)+Vehicles!$C$44*(1-Vehicles!$C$17-Vehicles!$C$18)*Fuel_Specs!$B$24*(Petroleum!B273*IF(Inputs!F$102=1,Petroleum!$K$262,Petroleum!$L$262)+IF(Inputs!F$102=1,Petroleum!$K273,Petroleum!$L273))+Vehicles!$C$17*Fuel_Specs!$B$33*(EtOH!BT557*EtOH!$BU$546+EtOH!$BU557)+Vehicles!$C$18*Fuel_Specs!$B$36*('EtOH-Diesel Additives'!$B64*'EtOH-Diesel Additives'!$B$53))/((1-Vehicles!$C$44)*(1-Vehicles!$C$17-Vehicles!$C$18)*Fuel_Specs!$B$21+Vehicles!$C$44*(1-Vehicles!$C$17-Vehicles!$C$18)*Fuel_Specs!$B$24+Vehicles!$C$17*Fuel_Specs!$B$33+Vehicles!$C$18*Fuel_Specs!$B$36))/1000000*HLOOKUP($J$10,$Z$5:$AD$6,2,FALSE)/HLOOKUP($J$11,$Z$7:$AD$8,2,FALSE) -> 2.217334639 | AI29: =AN29*(Vehicles!$M$30/Vehicles!$CO$72)/(Vehicles!$M$30*(1/Vehicles!$CO$72+1/Vehicles!$CP$72)+Vehicles!$M$31/Vehicles!$CQ$72)+E29*(Vehicles!$M$30/Vehicles!$CP$72+Vehicles!$M$31/Vehicles!$CQ$72)/(Vehicles!$M$30*(1/Vehicles!$CO$72+1/Vehicles!$CP$72)+Vehicles!$M$31/Vehicles!$CQ$72) ->  | AJ29: =AN29*(Vehicles!$N$30/Vehicles!$CS$72)/(Vehicles!$N$30*(1/Vehicles!$CS$72+1/Vehicles!$CT$72)+Vehicles!$N$31/Vehicles!$CU$72)+AC29*(Vehicles!$N$30/Vehicles!$CT$72+Vehicles!$N$31/Vehicles!$CU$72)/(Vehicles!$N$30*(1/Vehicles!$CS$72+1/Vehicles!$CT$72)+Vehicles!$N$31/Vehicles!$CU$72) ->  | AK29: =AN29*(Vehicles!$O$30/Vehicles!$CW$72)/(Vehicles!$O$30*(1/Vehicles!$CW$72+1/Vehicles!$CX$72)+Vehicles!$O$31/Vehicles!$CY$72)+AD29*(Vehicles!$O$30/Vehicles!$CX$72+Vehicles!$O$31/Vehicles!$CY$72)/(Vehicles!$O$30*(1/Vehicles!$CW$72+1/Vehicles!$CX$72)+Vehicles!$O$31/Vehicles!$CY$72) ->  | AL29: =AN29*(Vehicles!$P$30/Vehicles!$DA$72)/(Vehicles!$P$30*(1/Vehicles!$DA$72+1/Vehicles!$DB$72)+Vehicles!$P$31/Vehicles!$DC$72)+AE29*(Vehicles!$P$30/Vehicles!$DB$72+Vehicles!$P$31/Vehicles!$DC$72)/(Vehicles!$P$30*(1/Vehicles!$DA$72+1/Vehicles!$DB$72)+Vehicles!$P$31/Vehicles!$DC$72) ->  | AM29: =AN29*(Vehicles!$R$30/Vehicles!$DI$72)/(Vehicles!$R$30*(1/Vehicles!$DI$72+1/Vehicles!$DJ$72)+Vehicles!$R$31/Vehicles!$DK$72)+AH29*(Vehicles!$R$30/Vehicles!$DJ$72+Vehicles!$R$31/Vehicles!$DK$72)/(Vehicles!$R$30*(1/Vehicles!$DI$72+1/Vehicles!$DJ$72)+Vehicles!$R$31/Vehicles!$DK$72) ->  | AN29: =(Electric!$G214+Electric!$F214)/1000000*HLOOKUP($J$10,$Z$5:$AD$6,2,FALSE)/HLOOKUP($J$11,$Z$7:$AD$8,2,FALSE) -> 54.84193563 | AO29: =(Hydrogen!$AJ316*Hydrogen!$AK$305+Hydrogen!$AK316)/1000000*HLOOKUP($J$10,$Z$5:$AD$6,2,FALSE)/HLOOKUP($J$11,$Z$7:$AD$8,2,FALSE) -> 7.850310874 | AP29: =(Hydrogen!$BT316*Hydrogen!$BU$305+Hydrogen!$BU316)/1000000*HLOOKUP($J$10,$Z$5:$AD$6,2,FALSE)/HLOOKUP($J$11,$Z$7:$AD$8,2,FALSE) -> 23.32512854 | AQ29: =AN29*(Vehicles!$S$30/Vehicles!$DY$72)/(Vehicles!$S$30*(1/Vehicles!$DY$72+1/Vehicles!$DZ$72)+Vehicles!$S$31/Vehicles!$EA$72)+AO29*(Vehicles!$S$30/Vehicles!$DZ$72+Vehicles!$S$31/Vehicles!$EA$72)/(Vehicles!$S$30*(1/Vehicles!$DY$72+1/Vehicles!$DZ$72)+Vehicles!$S$31/Vehicles!$EA$72) ->  | AR29: =AN29*(Vehicles!$S$30/Vehicles!$DY$72)/(Vehicles!$S$30*(1/Vehicles!$DY$72+1/Vehicles!$DZ$72)+Vehicles!$S$31/Vehicles!$EA$72)+AP29*(Vehicles!$S$30/Vehicles!$DZ$72+Vehicles!$S$31/Vehicles!$EA$72)/(Vehicles!$S$30*(1/Vehicles!$DY$72+1/Vehicles!$DZ$72)+Vehicles!$S$31/Vehicles!$EA$72) ->  | AS29: =((1-Vehicles!$C$40)*(1-Vehicles!$C$16)*Fuel_Specs!$B$15/((1-Vehicles!$C$40)*(1-Vehicles!$C$16)*Fuel_Specs!$B$15+Vehicles!$C$40*(1-Vehicles!$C$16)*Fuel_Specs!$B$17+Vehicles!$C$16*Fuel_Specs!$B$48)*(Petroleum!$B273*Petroleum!$D$262+Petroleum!$D273)+Vehicles!$C$40*(1-Vehicles!$C$16)*Fuel_Specs!$B$17/((1-Vehicles!$C$40)*(1-Vehicles!$C$16)*Fuel_Specs!$B$15+Vehicles!$C$40*(1-Vehicles!$C$16)*Fuel_Specs!$B$17+Vehicles!$C$16*Fuel_Specs!$B$48)*(Petroleum!B273*Petroleum!$F$262+Petroleum!$F273)+Vehicles!$C$16*Fuel_Specs!$B$48/((1-Vehicles!$C$40)*(1-Vehicles!$C$16)*Fuel_Specs!$B$15+Vehicles!$C$40*(1-Vehicles!$C$16)*Fuel_Specs!$B$17+Vehicles!$C$16*Fuel_Specs!$B$48)*(Pyrolysis_IDL!$AP308*Pyrolysis_IDL!$AQ$297+Pyrolysis_IDL!$AQ308))/1000000*HLOOKUP($J$10,$Z$5:$AD$6,2,FALSE)/HLOOKUP($J$11,$Z$7:$AD$8,2,FALSE) -> 20.13924455 | AT29: =(Petroleum!$B273*Petroleum!$S$262+Petroleum!$S273)/1000000*HLOOKUP($J$10,$Z$5:$AD$6,2,FALSE)/HLOOKUP($J$11,$Z$7:$AD$8,2,FALSE) -> 1.98539385 | AU29: 3.126830585 | AV29: 2.983663632 | BB29: SI - RG from Pyrolysis | BC29: RNAVPYRORENGASSI
